Workbook

Sheet TOC
B1: (cntrl-o)
B2: label | C2: description 1 | D2: description 2 | E2: description 3 | F2: description 4
A3: 0 | B3: 000 | C3: stable operations
A4: 1 | B4: 001 | C4: case reserve adequacy +10% at CY 2023
A5: 2 | B5: 002 | C5: case reserve adequacy -15% at CY 2023
A6: 3 | B6: 003 | C6: case reserve adequacy +20% at CY 2023
A7: 4 | B7: 004 | C7: case reserve adequacy +20% at CY 2024
A8: 5 | B8: 005 | C8: large loss in AY 2023
A9: 6 | B9: 006 | C9: deteriortating loss ratio AY 2020 to AY 2025
A10: 7 | B10: 007 | C10: entered a new region in CY 2023
A11: 8 | B11: 008 | C11: settlement rate increase of 12 months at CY 2023
A12: 9 | B12: 009 | C12: settlement rate increase of 12 months at CY 2023 | D12: case reserve adequacy +20% at CY 2023
A13: 10 | B13: 010 | C13: settlement rate increase of 12 months at CY 2022

Sheet x
B2: Book of Triangles | AG2: |
B3: Scenario: | C3: x | R3: (1) | S3: (2) | T3: (3) | U3: (4) | V3: (5) | W3: (6) | X3: (7) | AG3: |
T4: avg. | U4: cum. | V4: ann. | W4: rt level | X4: on | AG4: | | AI4: est pd | AJ4: est rptd | AK4: real | AL4: real
B5: Amounts | C5: Paid Loss | E5: Development Age | J5: Amounts | K5: Rptd Loss | M5: Development Age | T5: rate | U5: avg. | V5: expos. | W5: adj. to | X5: level | AG5: | | AI5: AY | AJ5: AY | AK5: AY | AL5: AY
B6: AY | C6: 12 | D6: =C6+12 -> 24 | E6: =D6+12 -> 36 | F6: 48 | G6: 60 | H6: 72 | J6: AY | K6: 12 | L6: =K6+12 -> 24 | M6: =L6+12 -> 36 | N6: 48 | O6: 60 | P6: 72 | R6: CY | S6: EP | T6: chg. | U6: rt. lvl. | V6: chg. | W6: =R12 -> 2025 | X6: EP | Z6: CY | AA6: EE | AG6: | | AH6: AY | AI6: ULR | AJ6: ULR | AK6: ULR | AL6: Loss
B7: 2020 | J7: =$B$7 -> 2020 | R7: =$B$7 -> 2020 | S7: 7200 | U7: =T7 -> 0 | W7: =(1+U12)/(1+U7) -> 1 | X7: =S7*W7 -> 7200 | Z7: =$B$7 -> 2020 | AA7: 12.00000036 | AG7: | | AH7: =$B$7 -> 2020 | AK7: 0.6 | AL7: =S7*AK7 -> 4320
B8: =B7+1 -> 2021 | J8: =J7+1 -> 2021 | R8: =R7+1 -> 2021 | S8: 7200 | T8: 0 | U8: =(1+U7)*(1+T8)-1 -> 0 | V8: =(S8/S7)/(1+T8)-1 -> 0 | W8: =(1+U12)/(1+U8) -> 1 | X8: 7200 | Z8: =Z7+1 -> 2021 | AA8: 12.00000036 | AG8: | | AH8: =AH7+1 -> 2021 | AK8: 0.6 | AL8: 4320
B9: =B8+1 -> 2022 | J9: =J8+1 -> 2022 | R9: =R8+1 -> 2022 | S9: 7200 | T9: 0 | U9: =(1+U8)*(1+T9)-1 -> 0 | V9: =(S9/S8)/(1+T9)-1 -> 0 | W9: =(1+U12)/(1+U9) -> 1 | X9: 7200 | Z9: =Z8+1 -> 2022 | AA9: 12.00000036 | AG9: | | AH9: =AH8+1 -> 2022 | AK9: 0.6 | AL9: 4320
B10: 2023 | J10: 2023 | R10: =R9+1 -> 2023 | S10: 7200 | T10: 0 | U10: 0 | V10: =(S10/S9)/(1+T10)-1 -> 0 | W10: =(1+U12)/(1+U10) -> 1 | X10: 7200 | Z10: =Z9+1 -> 2023 | AA10: 12.00000036 | AG10: | | AH10: 2023 | AK10: 0.6 | AL10: 4320
B11: 2024 | J11: 2024 | R11: =R10+1 -> 2024 | S11: 7200 | T11: 0 | U11: 0 | V11: =(S11/S10)/(1+T11)-1 -> 0 | W11: =(1+U12)/(1+U11) -> 1 | X11: 7200 | Z11: =Z10+1 -> 2024 | AA11: 12.00000036 | AG11: | | AH11: 2024 | AK11: 0.6 | AL11: 4320
B12: 2025 | J12: 2025 | R12: =R11+1 -> 2025 | S12: 7200 | T12: 0 | U12: 0 | V12: =(S12/S11)/(1+T12)-1 -> 0 | W12: =(1+U12)/(1+U12) -> 1 | X12: 7200 | Z12: =Z11+1 -> 2025 | AA12: 12.00000036 | AG12: | | AH12: 2025 | AK12: 0.6 | AL12: 4320
AG13: |
B14: Counts | C14: Paid Count | E14: Development Age | J14: Counts | K14: Rptd Count | M14: Development Age | R14: (2) | S14: = | T14: given | AG14: |
B15: AY | C15: 12 | D15: 24 | E15: 36 | F15: 48 | G15: 60 | H15: 72 | J15: AY | K15: 12 | L15: 24 | M15: 36 | N15: 48 | O15: 60 | P15: 72 | R15: (3) | S15: = | T15: given | AG15: |
B16: =$B$7 -> 2020 | J16: =$B$7 -> 2020 | R16: (4) | S16: = | T16: [ 1 + (4):prior] x [1 + (3)] - 1.0 | AG16: | | AH16: Interpretation:
B17: =B16+1 -> 2021 | J17: =J16+1 -> 2021 | R17: (5) | S17: = | T17: [ (2) / (2):prior] / [1 + (3)] - 1.0 | AG17: |
B18: =B17+1 -> 2022 | J18: =J17+1 -> 2022 | R18: (6) | S18: = | T18: [ 1 + (4):2025] / [1 + (4)] | AG18: |
B19: 2023 | J19: 2023 | R19: (7) | S19: = | T19: (2) x (6) | AG19: |
B20: 2024 | J20: 2024 | AG20: |
B21: 2025 | J21: 2025 | AG21: |
AG22: |
C23: paid loss ratio | F23: Development Age | K23: rptd loss ratio | N23: Development Age | S23: paid/rptd loss | V23: Development Age | AA23: paid/rptd counts | AD23: Development Age | AG23: |
B24: AY | C24: 12 | D24: 24 | E24: 36 | F24: 48 | G24: 60 | H24: 72 | J24: AY | K24: 12 | L24: 24 | M24: 36 | N24: 48 | O24: 60 | P24: 72 | R24: AY | S24: 12 | T24: 24 | U24: 36 | V24: 48 | W24: 60 | X24: 72 | Z24: AY | AA24: 12 | AB24: 24 | AC24: 36 | AD24: 48 | AE24: 60 | AF24: 72 | AG24: |
B25: =$B$7 -> 2020 | C25: =C7/$X7 -> 0 | D25: 0 | E25: 0 | F25: 0 | G25: 0 | H25: 0 | J25: =$B$7 -> 2020 | K25: =K7/$X7 -> 0 | L25: 0 | M25: 0 | N25: 0 | O25: 0 | P25: 0 | R25: =$B$7 -> 2020 | S25: =C7/K7 ->  | Z25: =$B$7 -> 2020 | AA25: =C16/K16 ->  | AG25: |
B26: =B25+1 -> 2021 | C26: =C8/$X8 -> 0 | D26: =D8/$X8 -> 0 | E26: =E8/$X8 -> 0 | F26: =F8/$X8 -> 0 | G26: =G8/$X8 -> 0 | J26: =J25+1 -> 2021 | K26: =K8/$X8 -> 0 | L26: =L8/$X8 -> 0 | M26: =M8/$X8 -> 0 | N26: =N8/$X8 -> 0 | O26: =O8/$X8 -> 0 | R26: =R25+1 -> 2021 | S26: =C8/K8 ->  | T26: =D8/L8 ->  | U26: =E8/M8 ->  | V26: =F8/N8 ->  | W26: =G8/O8 ->  | Z26: =Z25+1 -> 2021 | AA26: =C17/K17 ->  | AB26: =D17/L17 ->  | AC26: =E17/M17 ->  | AD26: =F17/N17 ->  | AE26: =G17/O17 ->  | AG26: |
B27: =B26+1 -> 2022 | C27: =C9/$X9 -> 0 | D27: =D9/$X9 -> 0 | E27: =E9/$X9 -> 0 | F27: =F9/$X9 -> 0 | J27: =J26+1 -> 2022 | K27: =K9/$X9 -> 0 | L27: =L9/$X9 -> 0 | M27: =M9/$X9 -> 0 | N27: =N9/$X9 -> 0 | R27: =R26+1 -> 2022 | S27: =C9/K9 ->  | T27: =D9/L9 ->  | U27: =E9/M9 ->  | V27: =F9/N9 ->  | Z27: =Z26+1 -> 2022 | AA27: =C18/K18 ->  | AB27: =D18/L18 ->  | AC27: =E18/M18 ->  | AD27: =F18/N18 ->  | AG27: |
B28: 2023 | C28: =C10/$X10 -> 0 | D28: =D10/$X10 -> 0 | E28: =E10/$X10 -> 0 | J28: 2023 | K28: =K10/$X10 -> 0 | L28: =L10/$X10 -> 0 | M28: =M10/$X10 -> 0 | R28: 2023 | S28: =C10/K10 ->  | T28: =D10/L10 ->  | U28: =E10/M10 ->  | Z28: 2023 | AA28: =C19/K19 ->  | AB28: =D19/L19 ->  | AC28: =E19/M19 ->  | AG28: |
B29: 2024 | C29: =C11/$X11 -> 0 | D29: =D11/$X11 -> 0 | J29: 2024 | K29: =K11/$X11 -> 0 | L29: =L11/$X11 -> 0 | R29: 2024 | S29: =C11/K11 ->  | T29: =D11/L11 ->  | Z29: 2024 | AA29: =C20/K20 ->  | AB29: =D20/L20 ->  | AG29: |
B30: 2025 | C30: =C12/$X12 -> 0 | J30: 2025 | K30: =K12/$X12 -> 0 | R30: 2025 | S30: =C12/K12 ->  | Z30: 2025 | AA30: =C21/K21 ->  | AG30: |
AG31: |
C32: PAID dollars-per-count | K32: REPORTED dollars-per-count | S32: Case O/S dollars-per-count | AG32: |
C33: average paid loss | F33: Development Age | K33: average rptd loss | N33: Development Age | S33: average case O/S | V33: Development Age | AG33: |
B34: AY | C34: 12 | D34: 24 | E34: 36 | F34: 48 | G34: 60 | H34: 72 | J34: AY | K34: 12 | L34: 24 | M34: 36 | N34: 48 | O34: 60 | P34: 72 | R34: AY | S34: 12 | T34: 24 | U34: 36 | V34: 48 | W34: 60 | X34: 72 | AG34: |
B35: =$B$7 -> 2020 | C35: =C7/C16 ->  | J35: =$B$7 -> 2020 | K35: =K7/K16 ->  | R35: =$B$7 -> 2020 | S35: =IFERROR((K7-C7)/(K16-C16),0) -> 0 | T35: 0 | U35: 0 | V35: 0 | W35: 0 | X35: 0 | AG35: |
B36: =B35+1 -> 2021 | C36: =C8/C17 ->  | D36: =D8/D17 ->  | E36: =E8/E17 ->  | F36: =F8/F17 ->  | G36: =G8/G17 ->  | J36: =J35+1 -> 2021 | K36: =K8/K17 ->  | L36: =L8/L17 ->  | M36: =M8/M17 ->  | N36: =N8/N17 ->  | O36: =O8/O17 ->  | R36: =R35+1 -> 2021 | S36: =IFERROR((K8-C8)/(K17-C17),0) -> 0 | T36: =IFERROR((L8-D8)/(L17-D17),0) -> 0 | U36: =IFERROR((M8-E8)/(M17-E17),0) -> 0 | V36: =IFERROR((N8-F8)/(N17-F17),0) -> 0 | W36: =IFERROR((O8-G8)/(O17-G17),0) -> 0 | AG36: |
B37: =B36+1 -> 2022 | C37: =C9/C18 ->  | D37: =D9/D18 ->  | E37: =E9/E18 ->  | F37: =F9/F18 ->  | J37: =J36+1 -> 2022 | K37: =K9/K18 ->  | L37: =L9/L18 ->  | M37: =M9/M18 ->  | N37: =N9/N18 ->  | R37: =R36+1 -> 2022 | S37: =IFERROR((K9-C9)/(K18-C18),0) -> 0 | T37: =IFERROR((L9-D9)/(L18-D18),0) -> 0 | U37: =IFERROR((M9-E9)/(M18-E18),0) -> 0 | V37: =IFERROR((N9-F9)/(N18-F18),0) -> 0 | AG37: |
B38: 2023 | C38: =C10/C19 ->  | D38: =D10/D19 ->  | E38: =E10/E19 ->  | J38: 2023 | K38: =K10/K19 ->  | L38: =L10/L19 ->  | M38: =M10/M19 ->  | R38: 2023 | S38: =IFERROR((K10-C10)/(K19-C19),0) -> 0 | T38: =IFERROR((L10-D10)/(L19-D19),0) -> 0 | U38: =IFERROR((M10-E10)/(M19-E19),0) -> 0 | AG38: |
B39: 2024 | C39: =C11/C20 ->  | D39: =D11/D20 ->  | J39: 2024 | K39: =K11/K20 ->  | L39: =L11/L20 ->  | R39: 2024 | S39: =IFERROR((K11-C11)/(K20-C20),0) -> 0 | T39: =IFERROR((L11-D11)/(L20-D20),0) -> 0 | AG39: |
B40: 2025 | C40: =C12/C21 ->  | J40: 2025 | K40: =K12/K21 ->  | R40: 2025 | S40: =IFERROR((K12-C12)/(K21-C21),0) -> 0 | AG40: |
AG41: |
AG42: |
AG43: |
AG44: |
AG45: |
AG46: |
AG47: |
AG48: |
AG49: |
AG50: |
AG51: |
AG52: |
AG53: |
AG54: |
AG55: |
AG56: |
AG57: |
AG58: |
AG59: |
B60: ---- | C60: ---- | D60: ---- | E60: ---- | F60: ---- | G60: ---- | H60: ---- | I60: ---- | J60: ---- | K60: ---- | L60: ---- | M60: ---- | N60: ---- | O60: ---- | P60: ---- | Q60: ---- | R60: ---- | S60: ---- | T60: ---- | U60: ---- | V60: ---- | W60: ---- | X60: ---- | Y60: ---- | Z60: ---- | AA60: ---- | AB60: ---- | AC60: ---- | AD60: ---- | AE60: ---- | AF60: ---- | AG60: ----
AG61: |
B62: Book of Triangles | AG62: |
B63: Scenario: | C63: =C3 -> x | D63: (Comparison to Base Case) | R63: (1) | S63: (2) | T63: (3) | U63: (4) | V63: (5) | W63: (6) | X63: (7) | AG63: |
T64: avg. | U64: cum. | V64: ann. | W64: rt level | X64: on | AG64: |
B65: Amounts | C65: Paid Loss | E65: Development Age | J65: Amounts | K65: Rptd Loss | M65: Development Age | T65: rate | U65: avg. | V65: expos. | W65: adj. to | X65: level | AG65: |
B66: AY | C66: 12 | D66: =C66+12 -> 24 | E66: =D66+12 -> 36 | F66: 48 | G66: 60 | H66: 72 | J66: AY | K66: 12 | L66: =K66+12 -> 24 | M66: =L66+12 -> 36 | N66: 48 | O66: 60 | P66: 72 | R66: CY | S66: EP | T66: chg. | U66: rt. lvl. | V66: chg. | W66: =R72 -> 2025 | X66: EP | Z66: CY | AA66: EE | AG66: |
B67: 2020 | C67: =IFERROR((C7-'0'!C7)/'0'!C7,0) -> -1 | D67: =IFERROR((D7-'0'!D7)/'0'!D7,0) -> -1 | E67: =IFERROR((E7-'0'!E7)/'0'!E7,0) -> -1 | F67: =IFERROR((F7-'0'!F7)/'0'!F7,0) -> -1 | G67: =IFERROR((G7-'0'!G7)/'0'!G7,0) -> -1 | H67: =IFERROR((H7-'0'!H7)/'0'!H7,0) -> -1 | J67: =$B$7 -> 2020 | K67: =IFERROR((K7-'0'!K7)/'0'!K7,0) -> -1 | L67: =IFERROR((L7-'0'!L7)/'0'!L7,0) -> -1 | M67: =IFERROR((M7-'0'!M7)/'0'!M7,0) -> -1 | N67: =IFERROR((N7-'0'!N7)/'0'!N7,0) -> -1 | O67: =IFERROR((O7-'0'!O7)/'0'!O7,0) -> -1 | P67: =IFERROR((P7-'0'!P7)/'0'!P7,0) -> -1 | R67: =$B$7 -> 2020 | S67: =IFERROR((S7-'0'!S7)/'0'!S7,0) -> 0 | Z67: =$B$7 -> 2020 | AA67: =IFERROR((AA7-'0'!AA7)/'0'!AA7,0) -> 0 | AG67: |
B68: =B67+1 -> 2021 | C68: =IFERROR((C8-'0'!C8)/'0'!C8,0) -> -1 | D68: =IFERROR((D8-'0'!D8)/'0'!D8,0) -> -1 | E68: =IFERROR((E8-'0'!E8)/'0'!E8,0) -> -1 | F68: =IFERROR((F8-'0'!F8)/'0'!F8,0) -> -1 | G68: =IFERROR((G8-'0'!G8)/'0'!G8,0) -> -1 | J68: =J67+1 -> 2021 | K68: =IFERROR((K8-'0'!K8)/'0'!K8,0) -> -1 | L68: =IFERROR((L8-'0'!L8)/'0'!L8,0) -> -1 | M68: =IFERROR((M8-'0'!M8)/'0'!M8,0) -> -1 | N68: =IFERROR((N8-'0'!N8)/'0'!N8,0) -> -1 | O68: =IFERROR((O8-'0'!O8)/'0'!O8,0) -> -1 | R68: =R67+1 -> 2021 | S68: =IFERROR((S8-'0'!S8)/'0'!S8,0) -> 0 | T68: =IFERROR((T8-'0'!T8)/'0'!T8,0) -> 0 | Z68: =Z67+1 -> 2021 | AA68: =IFERROR((AA8-'0'!AA8)/'0'!AA8,0) -> 0 | AG68: |
B69: =B68+1 -> 2022 | C69: =IFERROR((C9-'0'!C9)/'0'!C9,0) -> -1 | D69: =IFERROR((D9-'0'!D9)/'0'!D9,0) -> -1 | E69: =IFERROR((E9-'0'!E9)/'0'!E9,0) -> -1 | F69: =IFERROR((F9-'0'!F9)/'0'!F9,0) -> -1 | J69: =J68+1 -> 2022 | K69: =IFERROR((K9-'0'!K9)/'0'!K9,0) -> -1 | L69: =IFERROR((L9-'0'!L9)/'0'!L9,0) -> -1 | M69: =IFERROR((M9-'0'!M9)/'0'!M9,0) -> -1 | N69: =IFERROR((N9-'0'!N9)/'0'!N9,0) -> -1 | R69: =R68+1 -> 2022 | S69: =IFERROR((S9-'0'!S9)/'0'!S9,0) -> 0 | T69: =IFERROR((T9-'0'!T9)/'0'!T9,0) -> 0 | Z69: =Z68+1 -> 2022 | AA69: =IFERROR((AA9-'0'!AA9)/'0'!AA9,0) -> 0 | AG69: |
B70: 2023 | C70: =IFERROR((C10-'0'!C10)/'0'!C10,0) -> -1 | D70: =IFERROR((D10-'0'!D10)/'0'!D10,0) -> -1 | E70: =IFERROR((E10-'0'!E10)/'0'!E10,0) -> -1 | J70: 2023 | K70: =IFERROR((K10-'0'!K10)/'0'!K10,0) -> -1 | L70: =IFERROR((L10-'0'!L10)/'0'!L10,0) -> -1 | M70: =IFERROR((M10-'0'!M10)/'0'!M10,0) -> -1 | R70: =R69+1 -> 2023 | S70: =IFERROR((S10-'0'!S10)/'0'!S10,0) -> 0 | T70: =IFERROR((T10-'0'!T10)/'0'!T10,0) -> 0 | Z70: =Z69+1 -> 2023 | AA70: =IFERROR((AA10-'0'!AA10)/'0'!AA10,0) -> 0 | AG70: |
B71: 2024 | C71: =IFERROR((C11-'0'!C11)/'0'!C11,0) -> -1 | D71: =IFERROR((D11-'0'!D11)/'0'!D11,0) -> -1 | J71: 2024 | K71: =IFERROR((K11-'0'!K11)/'0'!K11,0) -> -1 | L71: =IFERROR((L11-'0'!L11)/'0'!L11,0) -> -1 | R71: =R70+1 -> 2024 | S71: =IFERROR((S11-'0'!S11)/'0'!S11,0) -> 0 | T71: =IFERROR((T11-'0'!T11)/'0'!T11,0) -> 0 | Z71: =Z70+1 -> 2024 | AA71: =IFERROR((AA11-'0'!AA11)/'0'!AA11,0) -> 0 | AG71: |
B72: 2025 | C72: =IFERROR((C12-'0'!C12)/'0'!C12,0) -> -1 | J72: 2025 | K72: =IFERROR((K12-'0'!K12)/'0'!K12,0) -> -1 | R72: =R71+1 -> 2025 | S72: =IFERROR((S12-'0'!S12)/'0'!S12,0) -> 0 | T72: =IFERROR((T12-'0'!T12)/'0'!T12,0) -> 0 | Z72: =Z71+1 -> 2025 | AA72: =IFERROR((AA12-'0'!AA12)/'0'!AA12,0) -> 0 | AG72: |
AG73: |
B74: Counts | C74: Paid Count | E74: Development Age | J74: Counts | K74: Rptd Count | M74: Development Age | AG74: |
B75: AY | C75: 12 | D75: 24 | E75: 36 | F75: 48 | G75: 60 | H75: 72 | J75: AY | K75: 12 | L75: 24 | M75: 36 | N75: 48 | O75: 60 | P75: 72 | AG75: |
B76: =$B$7 -> 2020 | C76: =IFERROR((C16-'0'!C16)/'0'!C16,0) -> -1 | D76: =IFERROR((D16-'0'!D16)/'0'!D16,0) -> -1 | E76: =IFERROR((E16-'0'!E16)/'0'!E16,0) -> -1 | F76: =IFERROR((F16-'0'!F16)/'0'!F16,0) -> -1 | G76: =IFERROR((G16-'0'!G16)/'0'!G16,0) -> -1 | H76: =IFERROR((H16-'0'!H16)/'0'!H16,0) -> -1 | J76: =$B$7 -> 2020 | K76: =IFERROR((K16-'0'!K16)/'0'!K16,0) -> -1 | L76: =IFERROR((L16-'0'!L16)/'0'!L16,0) -> -1 | M76: =IFERROR((M16-'0'!M16)/'0'!M16,0) -> -1 | N76: =IFERROR((N16-'0'!N16)/'0'!N16,0) -> -1 | O76: =IFERROR((O16-'0'!O16)/'0'!O16,0) -> -1 | P76: =IFERROR((P16-'0'!P16)/'0'!P16,0) -> -1 | AG76: |
B77: =B76+1 -> 2021 | C77: =IFERROR((C17-'0'!C17)/'0'!C17,0) -> -1 | D77: =IFERROR((D17-'0'!D17)/'0'!D17,0) -> -1 | E77: =IFERROR((E17-'0'!E17)/'0'!E17,0) -> -1 | F77: =IFERROR((F17-'0'!F17)/'0'!F17,0) -> -1 | G77: =IFERROR((G17-'0'!G17)/'0'!G17,0) -> -1 | J77: =J76+1 -> 2021 | K77: =IFERROR((K17-'0'!K17)/'0'!K17,0) -> -1 | L77: =IFERROR((L17-'0'!L17)/'0'!L17,0) -> -1 | M77: =IFERROR((M17-'0'!M17)/'0'!M17,0) -> -1 | N77: =IFERROR((N17-'0'!N17)/'0'!N17,0) -> -1 | O77: =IFERROR((O17-'0'!O17)/'0'!O17,0) -> -1 | AG77: |
B78: =B77+1 -> 2022 | C78: =IFERROR((C18-'0'!C18)/'0'!C18,0) -> -1 | D78: =IFERROR((D18-'0'!D18)/'0'!D18,0) -> -1 | E78: =IFERROR((E18-'0'!E18)/'0'!E18,0) -> -1 | F78: =IFERROR((F18-'0'!F18)/'0'!F18,0) -> -1 | J78: =J77+1 -> 2022 | K78: =IFERROR((K18-'0'!K18)/'0'!K18,0) -> -1 | L78: =IFERROR((L18-'0'!L18)/'0'!L18,0) -> -1 | M78: =IFERROR((M18-'0'!M18)/'0'!M18,0) -> -1 | N78: =IFERROR((N18-'0'!N18)/'0'!N18,0) -> -1 | AG78: |
B79: 2023 | C79: =IFERROR((C19-'0'!C19)/'0'!C19,0) -> -1 | D79: =IFERROR((D19-'0'!D19)/'0'!D19,0) -> -1 | E79: =IFERROR((E19-'0'!E19)/'0'!E19,0) -> -1 | J79: 2023 | K79: =IFERROR((K19-'0'!K19)/'0'!K19,0) -> -1 | L79: =IFERROR((L19-'0'!L19)/'0'!L19,0) -> -1 | M79: =IFERROR((M19-'0'!M19)/'0'!M19,0) -> -1 | AG79: |
B80: 2024 | C80: =IFERROR((C20-'0'!C20)/'0'!C20,0) -> -1 | D80: =IFERROR((D20-'0'!D20)/'0'!D20,0) -> -1 | J80: 2024 | K80: =IFERROR((K20-'0'!K20)/'0'!K20,0) -> -1 | L80: =IFERROR((L20-'0'!L20)/'0'!L20,0) -> -1 | AG80: |
B81: 2025 | C81: =IFERROR((C21-'0'!C21)/'0'!C21,0) -> -1 | J81: 2025 | K81: =IFERROR((K21-'0'!K21)/'0'!K21,0) -> -1 | AG81: |
AG82: |
C83: paid loss ratio | F83: Development Age | K83: rptd loss ratio | N83: Development Age | S83: paid/rptd loss | V83: Development Age | AA83: paid/rptd counts | AD83: Development Age | AG83: |
B84: AY | C84: 12 | D84: 24 | E84: 36 | F84: 48 | G84: 60 | H84: 72 | J84: AY | K84: 12 | L84: 24 | M84: 36 | N84: 48 | O84: 60 | P84: 72 | R84: AY | S84: 12 | T84: 24 | U84: 36 | V84: 48 | W84: 60 | X84: 72 | Z84: AY | AA84: 12 | AB84: 24 | AC84: 36 | AD84: 48 | AE84: 60 | AF84: 72 | AG84: |
B85: =$B$7 -> 2020 | C85: =IFERROR((C25-'0'!C25)/'0'!C25,0) -> -1 | D85: =IFERROR((D25-'0'!D25)/'0'!D25,0) -> -1 | E85: =IFERROR((E25-'0'!E25)/'0'!E25,0) -> -1 | F85: =IFERROR((F25-'0'!F25)/'0'!F25,0) -> -1 | G85: =IFERROR((G25-'0'!G25)/'0'!G25,0) -> -1 | H85: =IFERROR((H25-'0'!H25)/'0'!H25,0) -> -1 | J85: =$B$7 -> 2020 | K85: =IFERROR((K25-'0'!K25)/'0'!K25,0) -> -1 | L85: =IFERROR((L25-'0'!L25)/'0'!L25,0) -> -1 | M85: =IFERROR((M25-'0'!M25)/'0'!M25,0) -> -1 | N85: =IFERROR((N25-'0'!N25)/'0'!N25,0) -> -1 | O85: =IFERROR((O25-'0'!O25)/'0'!O25,0) -> -1 | P85: =IFERROR((P25-'0'!P25)/'0'!P25,0) -> -1 | R85: =$B$7 -> 2020 | S85: =IFERROR((S25-'0'!S25)/'0'!S25,0) -> 0 | T85: =IFERROR((T25-'0'!T25)/'0'!T25,0) -> 0 | U85: =IFERROR((U25-'0'!U25)/'0'!U25,0) -> 0 | V85: =IFERROR((V25-'0'!V25)/'0'!V25,0) -> 0 | W85: =IFERROR((W25-'0'!W25)/'0'!W25,0) -> 0 | X85: =IFERROR((X25-'0'!X25)/'0'!X25,0) -> 0 | Z85: =$B$7 -> 2020 | AA85: =IFERROR((AA25-'0'!AA25)/'0'!AA25,0) -> 0 | AB85: =IFERROR((AB25-'0'!AB25)/'0'!AB25,0) -> 0 | AC85: =IFERROR((AC25-'0'!AC25)/'0'!AC25,0) -> 0 | AD85: =IFERROR((AD25-'0'!AD25)/'0'!AD25,0) -> 0 | AE85: =IFERROR((AE25-'0'!AE25)/'0'!AE25,0) -> 0 | AF85: =IFERROR((AF25-'0'!AF25)/'0'!AF25,0) -> 0 | AG85: |
B86: =B85+1 -> 2021 | C86: =IFERROR((C26-'0'!C26)/'0'!C26,0) -> -1 | D86: =IFERROR((D26-'0'!D26)/'0'!D26,0) -> -1 | E86: =IFERROR((E26-'0'!E26)/'0'!E26,0) -> -1 | F86: =IFERROR((F26-'0'!F26)/'0'!F26,0) -> -1 | G86: =IFERROR((G26-'0'!G26)/'0'!G26,0) -> -1 | J86: =J85+1 -> 2021 | K86: =IFERROR((K26-'0'!K26)/'0'!K26,0) -> -1 | L86: =IFERROR((L26-'0'!L26)/'0'!L26,0) -> -1 | M86: =IFERROR((M26-'0'!M26)/'0'!M26,0) -> -1 | N86: =IFERROR((N26-'0'!N26)/'0'!N26,0) -> -1 | O86: =IFERROR((O26-'0'!O26)/'0'!O26,0) -> -1 | R86: =R85+1 -> 2021 | S86: =IFERROR((S26-'0'!S26)/'0'!S26,0) -> 0 | T86: =IFERROR((T26-'0'!T26)/'0'!T26,0) -> 0 | U86: =IFERROR((U26-'0'!U26)/'0'!U26,0) -> 0 | V86: =IFERROR((V26-'0'!V26)/'0'!V26,0) -> 0 | W86: =IFERROR((W26-'0'!W26)/'0'!W26,0) -> 0 | Z86: =Z85+1 -> 2021 | AA86: =IFERROR((AA26-'0'!AA26)/'0'!AA26,0) -> 0 | AB86: =IFERROR((AB26-'0'!AB26)/'0'!AB26,0) -> 0 | AC86: =IFERROR((AC26-'0'!AC26)/'0'!AC26,0) -> 0 | AD86: =IFERROR((AD26-'0'!AD26)/'0'!AD26,0) -> 0 | AE86: =IFERROR((AE26-'0'!AE26)/'0'!AE26,0) -> 0 | AG86: |
B87: =B86+1 -> 2022 | C87: =IFERROR((C27-'0'!C27)/'0'!C27,0) -> -1 | D87: =IFERROR((D27-'0'!D27)/'0'!D27,0) -> -1 | E87: =IFERROR((E27-'0'!E27)/'0'!E27,0) -> -1 | F87: =IFERROR((F27-'0'!F27)/'0'!F27,0) -> -1 | J87: =J86+1 -> 2022 | K87: =IFERROR((K27-'0'!K27)/'0'!K27,0) -> -1 | L87: =IFERROR((L27-'0'!L27)/'0'!L27,0) -> -1 | M87: =IFERROR((M27-'0'!M27)/'0'!M27,0) -> -1 | N87: =IFERROR((N27-'0'!N27)/'0'!N27,0) -> -1 | R87: =R86+1 -> 2022 | S87: =IFERROR((S27-'0'!S27)/'0'!S27,0) -> 0 | T87: =IFERROR((T27-'0'!T27)/'0'!T27,0) -> 0 | U87: =IFERROR((U27-'0'!U27)/'0'!U27,0) -> 0 | V87: =IFERROR((V27-'0'!V27)/'0'!V27,0) -> 0 | Z87: =Z86+1 -> 2022 | AA87: =IFERROR((AA27-'0'!AA27)/'0'!AA27,0) -> 0 | AB87: =IFERROR((AB27-'0'!AB27)/'0'!AB27,0) -> 0 | AC87: =IFERROR((AC27-'0'!AC27)/'0'!AC27,0) -> 0 | AD87: =IFERROR((AD27-'0'!AD27)/'0'!AD27,0) -> 0 | AG87: |
B88: 2023 | C88: =IFERROR((C28-'0'!C28)/'0'!C28,0) -> -1 | D88: =IFERROR((D28-'0'!D28)/'0'!D28,0) -> -1 | E88: =IFERROR((E28-'0'!E28)/'0'!E28,0) -> -1 | J88: 2023 | K88: =IFERROR((K28-'0'!K28)/'0'!K28,0) -> -1 | L88: =IFERROR((L28-'0'!L28)/'0'!L28,0) -> -1 | M88: =IFERROR((M28-'0'!M28)/'0'!M28,0) -> -1 | R88: 2023 | S88: =IFERROR((S28-'0'!S28)/'0'!S28,0) -> 0 | T88: =IFERROR((T28-'0'!T28)/'0'!T28,0) -> 0 | U88: =IFERROR((U28-'0'!U28)/'0'!U28,0) -> 0 | Z88: 2023 | AA88: =IFERROR((AA28-'0'!AA28)/'0'!AA28,0) -> 0 | AB88: =IFERROR((AB28-'0'!AB28)/'0'!AB28,0) -> 0 | AC88: =IFERROR((AC28-'0'!AC28)/'0'!AC28,0) -> 0 | AG88: |
B89: 2024 | C89: =IFERROR((C29-'0'!C29)/'0'!C29,0) -> -1 | D89: =IFERROR((D29-'0'!D29)/'0'!D29,0) -> -1 | J89: 2024 | K89: =IFERROR((K29-'0'!K29)/'0'!K29,0) -> -1 | L89: =IFERROR((L29-'0'!L29)/'0'!L29,0) -> -1 | R89: 2024 | S89: =IFERROR((S29-'0'!S29)/'0'!S29,0) -> 0 | T89: =IFERROR((T29-'0'!T29)/'0'!T29,0) -> 0 | Z89: 2024 | AA89: =IFERROR((AA29-'0'!AA29)/'0'!AA29,0) -> 0 | AB89: =IFERROR((AB29-'0'!AB29)/'0'!AB29,0) -> 0 | AG89: |
B90: 2025 | C90: =IFERROR((C30-'0'!C30)/'0'!C30,0) -> -1 | J90: 2025 | K90: =IFERROR((K30-'0'!K30)/'0'!K30,0) -> -1 | R90: 2025 | S90: =IFERROR((S30-'0'!S30)/'0'!S30,0) -> 0 | Z90: 2025 | AA90: =IFERROR((AA30-'0'!AA30)/'0'!AA30,0) -> 0 | AG90: |
AG91: |
C92: PAID dollars-per-count | K92: REPORTED dollars-per-count | S92: Case O/S dollars-per-count | AG92: |
C93: average paid loss | F93: Development Age | K93: average rptd loss | N93: Development Age | S93: average case O/S | V93: Development Age | AG93: |
B94: AY | C94: 12 | D94: 24 | E94: 36 | F94: 48 | G94: 60 | H94: 72 | J94: AY | K94: 12 | L94: 24 | M94: 36 | N94: 48 | O94: 60 | P94: 72 | R94: AY | S94: 12 | T94: 24 | U94: 36 | V94: 48 | W94: 60 | X94: 72 | AG94: |
B95: =$B$7 -> 2020 | C95: =IFERROR((C35-'0'!C35)/'0'!C35,0) -> 0 | D95: =IFERROR((D35-'0'!D35)/'0'!D35,0) -> 0 | E95: =IFERROR((E35-'0'!E35)/'0'!E35,0) -> 0 | F95: =IFERROR((F35-'0'!F35)/'0'!F35,0) -> 0 | G95: =IFERROR((G35-'0'!G35)/'0'!G35,0) -> 0 | H95: =IFERROR((H35-'0'!H35)/'0'!H35,0) -> 0 | J95: =$B$7 -> 2020 | K95: =IFERROR((K35-'0'!K35)/'0'!K35,0) -> 0 | L95: =IFERROR((L35-'0'!L35)/'0'!L35,0) -> 0 | M95: =IFERROR((M35-'0'!M35)/'0'!M35,0) -> 0 | N95: =IFERROR((N35-'0'!N35)/'0'!N35,0) -> 0 | O95: =IFERROR((O35-'0'!O35)/'0'!O35,0) -> 0 | P95: =IFERROR((P35-'0'!P35)/'0'!P35,0) -> 0 | R95: =$B$7 -> 2020 | S95: =IFERROR((S35-'0'!S35)/'0'!S35,0) -> -1 | T95: =IFERROR((T35-'0'!T35)/'0'!T35,0) -> -1 | U95: =IFERROR((U35-'0'!U35)/'0'!U35,0) -> -1 | V95: =IFERROR((V35-'0'!V35)/'0'!V35,0) -> -1 | W95: =IFERROR((W35-'0'!W35)/'0'!W35,0) -> -1 | X95: =IFERROR((X35-'0'!X35)/'0'!X35,0) -> 0 | AG95: |
B96: =B95+1 -> 2021 | C96: =IFERROR((C36-'0'!C36)/'0'!C36,0) -> 0 | D96: =IFERROR((D36-'0'!D36)/'0'!D36,0) -> 0 | E96: =IFERROR((E36-'0'!E36)/'0'!E36,0) -> 0 | F96: =IFERROR((F36-'0'!F36)/'0'!F36,0) -> 0 | G96: =IFERROR((G36-'0'!G36)/'0'!G36,0) -> 0 | J96: =J95+1 -> 2021 | K96: =IFERROR((K36-'0'!K36)/'0'!K36,0) -> 0 | L96: =IFERROR((L36-'0'!L36)/'0'!L36,0) -> 0 | M96: =IFERROR((M36-'0'!M36)/'0'!M36,0) -> 0 | N96: =IFERROR((N36-'0'!N36)/'0'!N36,0) -> 0 | O96: =IFERROR((O36-'0'!O36)/'0'!O36,0) -> 0 | R96: =R95+1 -> 2021 | S96: =IFERROR((S36-'0'!S36)/'0'!S36,0) -> -1 | T96: =IFERROR((T36-'0'!T36)/'0'!T36,0) -> -1 | U96: =IFERROR((U36-'0'!U36)/'0'!U36,0) -> -1 | V96: =IFERROR((V36-'0'!V36)/'0'!V36,0) -> -1 | W96: =IFERROR((W36-'0'!W36)/'0'!W36,0) -> -1 | AG96: |
B97: =B96+1 -> 2022 | C97: =IFERROR((C37-'0'!C37)/'0'!C37,0) -> 0 | D97: =IFERROR((D37-'0'!D37)/'0'!D37,0) -> 0 | E97: =IFERROR((E37-'0'!E37)/'0'!E37,0) -> 0 | F97: =IFERROR((F37-'0'!F37)/'0'!F37,0) -> 0 | J97: =J96+1 -> 2022 | K97: =IFERROR((K37-'0'!K37)/'0'!K37,0) -> 0 | L97: =IFERROR((L37-'0'!L37)/'0'!L37,0) -> 0 | M97: =IFERROR((M37-'0'!M37)/'0'!M37,0) -> 0 | N97: =IFERROR((N37-'0'!N37)/'0'!N37,0) -> 0 | R97: =R96+1 -> 2022 | S97: =IFERROR((S37-'0'!S37)/'0'!S37,0) -> -1 | T97: =IFERROR((T37-'0'!T37)/'0'!T37,0) -> -1 | U97: =IFERROR((U37-'0'!U37)/'0'!U37,0) -> -1 | V97: =IFERROR((V37-'0'!V37)/'0'!V37,0) -> -1 | AG97: |
B98: 2023 | C98: =IFERROR((C38-'0'!C38)/'0'!C38,0) -> 0 | D98: =IFERROR((D38-'0'!D38)/'0'!D38,0) -> 0 | E98: =IFERROR((E38-'0'!E38)/'0'!E38,0) -> 0 | J98: 2023 | K98: =IFERROR((K38-'0'!K38)/'0'!K38,0) -> 0 | L98: =IFERROR((L38-'0'!L38)/'0'!L38,0) -> 0 | M98: =IFERROR((M38-'0'!M38)/'0'!M38,0) -> 0 | R98: 2023 | S98: =IFERROR((S38-'0'!S38)/'0'!S38,0) -> -1 | T98: =IFERROR((T38-'0'!T38)/'0'!T38,0) -> -1 | U98: =IFERROR((U38-'0'!U38)/'0'!U38,0) -> -1 | AG98: |
B99: 2024 | C99: =IFERROR((C39-'0'!C39)/'0'!C39,0) -> 0 | D99: =IFERROR((D39-'0'!D39)/'0'!D39,0) -> 0 | J99: 2024 | K99: =IFERROR((K39-'0'!K39)/'0'!K39,0) -> 0 | L99: =IFERROR((L39-'0'!L39)/'0'!L39,0) -> 0 | R99: 2024 | S99: =IFERROR((S39-'0'!S39)/'0'!S39,0) -> -1 | T99: =IFERROR((T39-'0'!T39)/'0'!T39,0) -> -1 | AG99: |
B100: 2025 | C100: =IFERROR((C40-'0'!C40)/'0'!C40,0) -> 0 | J100: 2025 | K100: =IFERROR((K40-'0'!K40)/'0'!K40,0) -> 0 | R100: 2025 | S100: =IFERROR((S40-'0'!S40)/'0'!S40,0) -> -1 | AG100: |
AG101: |
AG102: |
AG103: |
AG104: |
AG105: |
AG106: |
AG107: |
AG108: |
AG109: |
AG110: |
AG111: |
AG112: |
AG113: |
AG114: |
AG115: |
AG116: |
AG117: |
AG118: |
AG119: |
B120: ---- | C120: ---- | D120: ---- | E120: ---- | F120: ---- | G120: ---- | H120: ---- | I120: ---- | J120: ---- | K120: ---- | L120: ---- | M120: ---- | N120: ---- | O120: ---- | P120: ---- | Q120: ---- | R120: ---- | S120: ---- | T120: ---- | U120: ---- | V120: ---- | W120: ---- | AG120: ----
AG121: |
AG122: |
AG123: |
AG124: |
AG125: |
AG126: |
AG127: |
AG128: |
AG129: |
AG130: |
AG131: |
AG132: |
AG133: |
AG134: |
AG135: |
AG136: |
AG137: |
AG138: |
AG139: |
AG140: |
AG141: |
AG142: |
AG143: |
AG144: |
AG145: |
AG146: |
AG147: |
AG148: |
AG149: |
AG150: |
AG151: |
AG152: |
AG153: |
AG154: |
AG155: |
AG156: |
AG157: |
AG158: |
AG159: |
AG160: |
AG161: |
AG162: |
AG163: |
AG164: |
AG165: |
AG166: |
AG167: |
AG168: |
AG169: |
AG170: |
AG171: |
AG172: |
AG173: |
AG174: |
AG175: |
AG176: |
AG177: |
AG178: |
AG179: |
B180: ---- | C180: ---- | D180: ---- | E180: ---- | F180: ---- | G180: ---- | H180: ---- | I180: ---- | J180: ---- | K180: ---- | L180: ---- | M180: ---- | N180: ---- | O180: ---- | P180: ---- | Q180: ---- | R180: ---- | S180: ---- | T180: ---- | U180: ---- | V180: ---- | W180: ---- | AG180: ----
AG181: |
AG182: |
AG183: |
AG184: |
AG185: |
AG186: |
AG187: |
AG188: |
AG189: |
AG190: |
AG191: |
AG192: |
AG193: |
AG194: |
AG195: |
AG196: |
AG197: |
AG198: |
AG199: |
AG200: |
AG201: |
... 1358 more rows

Sheet 0
B2: Book of Triangles | AG2: | | AH2: Simulation: | AJ2: En.Scenario_1-6
B3: Scenario: | C3: 0 | R3: (1) | S3: (2) | T3: (3) | U3: (4) | V3: (5) | W3: (6) | X3: (7) | AG3: |
T4: avg. | U4: cum. | V4: ann. | W4: rt level | X4: on | AG4: | | AI4: real | AJ4: real
B5: Amounts | C5: Paid Loss | E5: Development Age | J5: Amounts | K5: Rptd Loss | M5: Development Age | T5: rate | U5: avg. | V5: expos. | W5: adj. to | X5: level | AG5: | | AI5: AY | AJ5: AY
B6: AY | C6: 12 | D6: =C6+12 -> 24 | E6: =D6+12 -> 36 | F6: 48 | G6: 60 | H6: 72 | J6: AY | K6: 12 | L6: =K6+12 -> 24 | M6: =L6+12 -> 36 | N6: 48 | O6: 60 | P6: 72 | R6: CY | S6: EP | T6: chg. | U6: rt. lvl. | V6: chg. | W6: =R12 -> 2025 | X6: EP | Z6: CY | AA6: EE | AG6: | | AH6: AY | AI6: ULR | AJ6: Loss
B7: 2020 | C7: 720 | D7: 1800 | E7: 2880 | F7: 3600 | G7: 3960 | H7: 4320 | J7: =$B$7 -> 2020 | K7: 2160 | L7: 2880 | M7: 3600 | N7: 3960 | O7: 4320 | P7: 4320 | R7: =$B$7 -> 2020 | S7: 7200 | U7: =T7 -> 0 | W7: =(1+U12)/(1+U7) -> 1 | X7: =S7*W7 -> 7200 | Z7: =$B$7 -> 2020 | AA7: 12.00000036 | AG7: | | AH7: =$B$7 -> 2020 | AI7: 0.6 | AJ7: =S7*AI7 -> 4320
B8: =B7+1 -> 2021 | C8: 720 | D8: 1800 | E8: 2880 | F8: 3600 | G8: 3960 | J8: =J7+1 -> 2021 | K8: 2160 | L8: 2880 | M8: 3600 | N8: 3960 | O8: 4320 | R8: =R7+1 -> 2021 | S8: 7200 | T8: 0 | U8: =(1+U7)*(1+T8)-1 -> 0 | V8: =(S8/S7)/(1+T8)-1 -> 0 | W8: =(1+U12)/(1+U8) -> 1 | X8: 7200 | Z8: =Z7+1 -> 2021 | AA8: 12.00000036 | AG8: | | AH8: =AH7+1 -> 2021 | AI8: 0.6 | AJ8: =S8*AI8 -> 4320
B9: =B8+1 -> 2022 | C9: 720 | D9: 1800 | E9: 2880 | F9: 3600 | J9: =J8+1 -> 2022 | K9: 2160 | L9: 2880 | M9: 3600 | N9: 3960 | R9: =R8+1 -> 2022 | S9: 7200 | T9: 0 | U9: =(1+U8)*(1+T9)-1 -> 0 | V9: =(S9/S8)/(1+T9)-1 -> 0 | W9: =(1+U12)/(1+U9) -> 1 | X9: 7200 | Z9: =Z8+1 -> 2022 | AA9: 12.00000036 | AG9: | | AH9: =AH8+1 -> 2022 | AI9: 0.6 | AJ9: 4320
B10: 2023 | C10: 720 | D10: 1800 | E10: 2880 | J10: 2023 | K10: 2160 | L10: 2880 | M10: 3600 | R10: =R9+1 -> 2023 | S10: 7200 | T10: 0 | U10: 0 | V10: =(S10/S9)/(1+T10)-1 -> 0 | W10: =(1+U12)/(1+U10) -> 1 | X10: 7200 | Z10: =Z9+1 -> 2023 | AA10: 12.00000036 | AG10: | | AH10: 2023 | AI10: 0.6 | AJ10: 4320
B11: 2024 | C11: 720 | D11: 1800 | J11: 2024 | K11: 2160 | L11: 2880 | R11: =R10+1 -> 2024 | S11: 7200 | T11: 0 | U11: 0 | V11: =(S11/S10)/(1+T11)-1 -> 0 | W11: =(1+U12)/(1+U11) -> 1 | X11: 7200 | Z11: =Z10+1 -> 2024 | AA11: 12.00000036 | AG11: | | AH11: 2024 | AI11: 0.6 | AJ11: 4320
B12: 2025 | C12: 720 | J12: 2025 | K12: 2160 | R12: =R11+1 -> 2025 | S12: 7200 | T12: 0 | U12: 0 | V12: =(S12/S11)/(1+T12)-1 -> 0 | W12: =(1+U12)/(1+U12) -> 1 | X12: 7200 | Z12: =Z11+1 -> 2025 | AA12: 12.00000036 | AG12: | | AH12: 2025 | AI12: 0.6 | AJ12: 4320
AG13: |
B14: Counts | C14: Paid Count | E14: Development Age | J14: Counts | K14: Rptd Count | M14: Development Age | R14: (2) | S14: = | T14: given | AG14: |
B15: AY | C15: 12 | D15: 24 | E15: 36 | F15: 48 | G15: 60 | H15: 72 | J15: AY | K15: 12 | L15: 24 | M15: 36 | N15: 48 | O15: 60 | P15: 72 | R15: (3) | S15: = | T15: given | AG15: |
B16: =$B$7 -> 2020 | C16: 2 | D16: 5 | E16: 8 | F16: 10 | G16: 11 | H16: 12 | J16: =$B$7 -> 2020 | K16: 6 | L16: 8 | M16: 10 | N16: 11 | O16: 12 | P16: 12 | R16: (4) | S16: = | T16: [ 1 + (4):prior] x [1 + (3)] - 1.0 | AG16: | | AH16: Interpretation: | AJ16: stable operations
B17: =B16+1 -> 2021 | C17: 2 | D17: 5 | E17: 8 | F17: 10 | G17: 11 | J17: =J16+1 -> 2021 | K17: 6 | L17: 8 | M17: 10 | N17: 11 | O17: 12 | R17: (5) | S17: = | T17: [ (2) / (2):prior] / [1 + (3)] - 1.0 | AG17: |
B18: =B17+1 -> 2022 | C18: 2 | D18: 5 | E18: 8 | F18: 10 | J18: =J17+1 -> 2022 | K18: 6 | L18: 8 | M18: 10 | N18: 11 | R18: (6) | S18: = | T18: [ 1 + (4):2025] / [1 + (4)] | AG18: |
B19: 2023 | C19: 2 | D19: 5 | E19: 8 | J19: 2023 | K19: 6 | L19: 8 | M19: 10 | R19: (7) | S19: = | T19: (2) x (6) | AG19: |
B20: 2024 | C20: 2 | D20: 5 | J20: 2024 | K20: 6 | L20: 8 | AG20: |
B21: 2025 | C21: 2 | J21: 2025 | K21: 6 | AG21: | | AH21: Questions | AI21: (a) | AJ21: What operational change(s) did
AG22: | | AJ22: you find?
C23: paid loss ratio | F23: Development Age | K23: rptd loss ratio | N23: Development Age | S23: paid/rptd loss | V23: Development Age | AA23: paid/rptd counts | AD23: Development Age | AG23: | | AI23: (b) | AJ23: Which diagnostics did you use?
B24: AY | C24: 12 | D24: 24 | E24: 36 | F24: 48 | G24: 60 | H24: 72 | J24: AY | K24: 12 | L24: 24 | M24: 36 | N24: 48 | O24: 60 | P24: 72 | R24: AY | S24: 12 | T24: 24 | U24: 36 | V24: 48 | W24: 60 | X24: 72 | Z24: AY | AA24: 12 | AB24: 24 | AC24: 36 | AD24: 48 | AE24: 60 | AF24: 72 | AG24: | | AI24: (c) | AJ24: Can you explain your reasoning?
B25: =$B$7 -> 2020 | C25: =C7/$X7 -> 0.1 | D25: 0.25 | E25: 0.4 | F25: 0.5 | G25: 0.55 | H25: 0.6 | J25: =$B$7 -> 2020 | K25: =K7/$X7 -> 0.3 | L25: 0.4 | M25: 0.5 | N25: 0.55 | O25: 0.6 | P25: 0.6 | R25: =$B$7 -> 2020 | S25: =C7/K7 -> 0.3333333333 | T25: 0.625 | U25: 0.8 | V25: 0.9090909091 | W25: 0.9166666667 | X25: 1 | Z25: =$B$7 -> 2020 | AA25: =C16/K16 -> 0.3333333333 | AB25: 0.625 | AC25: 0.8 | AD25: 0.9090909091 | AE25: 0.9166666667 | AF25: 1 | AG25: |
B26: =B25+1 -> 2021 | C26: =C8/$X8 -> 0.1 | D26: =D8/$X8 -> 0.25 | E26: =E8/$X8 -> 0.4 | F26: =F8/$X8 -> 0.5 | G26: =G8/$X8 -> 0.55 | J26: =J25+1 -> 2021 | K26: =K8/$X8 -> 0.3 | L26: =L8/$X8 -> 0.4 | M26: =M8/$X8 -> 0.5 | N26: =N8/$X8 -> 0.55 | O26: =O8/$X8 -> 0.6 | R26: =R25+1 -> 2021 | S26: =C8/K8 -> 0.3333333333 | T26: =D8/L8 -> 0.625 | U26: =E8/M8 -> 0.8 | V26: =F8/N8 -> 0.9090909091 | W26: =G8/O8 -> 0.9166666667 | Z26: =Z25+1 -> 2021 | AA26: =C17/K17 -> 0.3333333333 | AB26: =D17/L17 -> 0.625 | AC26: =E17/M17 -> 0.8 | AD26: =F17/N17 -> 0.9090909091 | AE26: =G17/O17 -> 0.9166666667 | AG26: |
B27: =B26+1 -> 2022 | C27: =C9/$X9 -> 0.1 | D27: =D9/$X9 -> 0.25 | E27: =E9/$X9 -> 0.4 | F27: =F9/$X9 -> 0.5 | J27: =J26+1 -> 2022 | K27: =K9/$X9 -> 0.3 | L27: =L9/$X9 -> 0.4 | M27: =M9/$X9 -> 0.5 | N27: =N9/$X9 -> 0.55 | R27: =R26+1 -> 2022 | S27: =C9/K9 -> 0.3333333333 | T27: =D9/L9 -> 0.625 | U27: =E9/M9 -> 0.8 | V27: =F9/N9 -> 0.9090909091 | Z27: =Z26+1 -> 2022 | AA27: =C18/K18 -> 0.3333333333 | AB27: =D18/L18 -> 0.625 | AC27: =E18/M18 -> 0.8 | AD27: =F18/N18 -> 0.9090909091 | AG27: |
B28: 2023 | C28: =C10/$X10 -> 0.1 | D28: =D10/$X10 -> 0.25 | E28: =E10/$X10 -> 0.4 | J28: 2023 | K28: =K10/$X10 -> 0.3 | L28: =L10/$X10 -> 0.4 | M28: =M10/$X10 -> 0.5 | R28: 2023 | S28: =C10/K10 -> 0.3333333333 | T28: =D10/L10 -> 0.625 | U28: =E10/M10 -> 0.8 | Z28: 2023 | AA28: =C19/K19 -> 0.3333333333 | AB28: =D19/L19 -> 0.625 | AC28: =E19/M19 -> 0.8 | AG28: |
B29: 2024 | C29: =C11/$X11 -> 0.1 | D29: =D11/$X11 -> 0.25 | J29: 2024 | K29: =K11/$X11 -> 0.3 | L29: =L11/$X11 -> 0.4 | R29: 2024 | S29: =C11/K11 -> 0.3333333333 | T29: =D11/L11 -> 0.625 | Z29: 2024 | AA29: =C20/K20 -> 0.3333333333 | AB29: =D20/L20 -> 0.625 | AG29: |
B30: 2025 | C30: =C12/$X12 -> 0.1 | J30: 2025 | K30: =K12/$X12 -> 0.3 | R30: 2025 | S30: =C12/K12 -> 0.3333333333 | Z30: 2025 | AA30: =C21/K21 -> 0.3333333333 | AG30: |
AG31: |
C32: PAID dollars-per-count | K32: REPORTED dollars-per-count | S32: Case O/S dollars-per-count | AG32: |
C33: average paid loss | F33: Development Age | K33: average rptd loss | N33: Development Age | S33: average case O/S | V33: Development Age | AG33: |
B34: AY | C34: 12 | D34: 24 | E34: 36 | F34: 48 | G34: 60 | H34: 72 | J34: AY | K34: 12 | L34: 24 | M34: 36 | N34: 48 | O34: 60 | P34: 72 | R34: AY | S34: 12 | T34: 24 | U34: 36 | V34: 48 | W34: 60 | X34: 72 | AG34: |
B35: =$B$7 -> 2020 | C35: =C7/C16 -> 360 | D35: 360 | E35: 360 | F35: 360 | G35: 360 | H35: 360 | J35: =$B$7 -> 2020 | K35: =K7/K16 -> 360 | L35: 360 | M35: 360 | N35: 360 | O35: 360 | P35: 360 | R35: =$B$7 -> 2020 | S35: =IFERROR((K7-C7)/(K16-C16),0) -> 360 | T35: 360 | U35: 360 | V35: 360 | W35: 360 | X35: 0 | AG35: |
B36: =B35+1 -> 2021 | C36: =C8/C17 -> 360 | D36: =D8/D17 -> 360 | E36: =E8/E17 -> 360 | F36: =F8/F17 -> 360 | G36: =G8/G17 -> 360 | J36: =J35+1 -> 2021 | K36: =K8/K17 -> 360 | L36: =L8/L17 -> 360 | M36: =M8/M17 -> 360 | N36: =N8/N17 -> 360 | O36: =O8/O17 -> 360 | R36: =R35+1 -> 2021 | S36: =IFERROR((K8-C8)/(K17-C17),0) -> 360 | T36: =IFERROR((L8-D8)/(L17-D17),0) -> 360 | U36: =IFERROR((M8-E8)/(M17-E17),0) -> 360 | V36: =IFERROR((N8-F8)/(N17-F17),0) -> 360 | W36: =IFERROR((O8-G8)/(O17-G17),0) -> 360 | AG36: |
B37: =B36+1 -> 2022 | C37: =C9/C18 -> 360 | D37: =D9/D18 -> 360 | E37: =E9/E18 -> 360 | F37: =F9/F18 -> 360 | J37: =J36+1 -> 2022 | K37: =K9/K18 -> 360 | L37: =L9/L18 -> 360 | M37: =M9/M18 -> 360 | N37: =N9/N18 -> 360 | R37: =R36+1 -> 2022 | S37: =IFERROR((K9-C9)/(K18-C18),0) -> 360 | T37: =IFERROR((L9-D9)/(L18-D18),0) -> 360 | U37: =IFERROR((M9-E9)/(M18-E18),0) -> 360 | V37: =IFERROR((N9-F9)/(N18-F18),0) -> 360 | AG37: |
B38: 2023 | C38: =C10/C19 -> 360 | D38: =D10/D19 -> 360 | E38: =E10/E19 -> 360 | J38: 2023 | K38: =K10/K19 -> 360 | L38: =L10/L19 -> 360 | M38: =M10/M19 -> 360 | R38: 2023 | S38: =IFERROR((K10-C10)/(K19-C19),0) -> 360 | T38: =IFERROR((L10-D10)/(L19-D19),0) -> 360 | U38: =IFERROR((M10-E10)/(M19-E19),0) -> 360 | AG38: |
B39: 2024 | C39: =C11/C20 -> 360 | D39: =D11/D20 -> 360 | J39: 2024 | K39: =K11/K20 -> 360 | L39: =L11/L20 -> 360 | R39: 2024 | S39: =IFERROR((K11-C11)/(K20-C20),0) -> 360 | T39: =IFERROR((L11-D11)/(L20-D20),0) -> 360 | AG39: |
B40: 2025 | C40: =C12/C21 -> 360 | J40: 2025 | K40: =K12/K21 -> 360 | R40: 2025 | S40: =IFERROR((K12-C12)/(K21-C21),0) -> 360 | AG40: |
AG41: |
AG42: |
AG43: |
AG44: |
AG45: |
AG46: |
AG47: |
AG48: |
AG49: |
AG50: |
AG51: |
AG52: |
AG53: |
AG54: |
AG55: |
AG56: |
AG57: |
AG58: |
AG59: |
B60: ---- | C60: ---- | D60: ---- | E60: ---- | F60: ---- | G60: ---- | H60: ---- | I60: ---- | J60: ---- | K60: ---- | L60: ---- | M60: ---- | N60: ---- | O60: ---- | P60: ---- | Q60: ---- | R60: ---- | S60: ---- | T60: ---- | U60: ---- | V60: ---- | W60: ---- | X60: ---- | Y60: ---- | Z60: ---- | AA60: ---- | AB60: ---- | AC60: ---- | AD60: ---- | AE60: ---- | AF60: ---- | AG60: ----
AG61: |
B62: Book of Triangles | AG62: |
B63: Scenario: | C63: =C3 -> 0 | D63: (Comparison to Base Case) | R63: (1) | S63: (2) | T63: (3) | U63: (4) | V63: (5) | W63: (6) | X63: (7) | AG63: |
T64: avg. | U64: cum. | V64: ann. | W64: rt level | X64: on | AG64: |
B65: Amounts | C65: Paid Loss | E65: Development Age | J65: Amounts | K65: Rptd Loss | M65: Development Age | T65: rate | U65: avg. | V65: expos. | W65: adj. to | X65: level | AG65: |
B66: AY | C66: 12 | D66: =C66+12 -> 24 | E66: =D66+12 -> 36 | F66: 48 | G66: 60 | H66: 72 | J66: AY | K66: 12 | L66: =K66+12 -> 24 | M66: =L66+12 -> 36 | N66: 48 | O66: 60 | P66: 72 | R66: CY | S66: EP | T66: chg. | U66: rt. lvl. | V66: chg. | W66: =R72 -> 2025 | X66: EP | Z66: CY | AA66: EE | AG66: |
B67: 2020 | C67: =IFERROR((C7-'0'!C7)/C7,0) -> 0 | D67: =IFERROR((D7-'0'!D7)/D7,0) -> 0 | E67: =IFERROR((E7-'0'!E7)/E7,0) -> 0 | F67: =IFERROR((F7-'0'!F7)/F7,0) -> 0 | G67: =IFERROR((G7-'0'!G7)/G7,0) -> 0 | H67: =IFERROR((H7-'0'!H7)/H7,0) -> 0 | J67: =$B$7 -> 2020 | K67: =IFERROR((K7-'0'!K7)/K7,0) -> 0 | L67: =IFERROR((L7-'0'!L7)/L7,0) -> 0 | M67: =IFERROR((M7-'0'!M7)/M7,0) -> 0 | N67: =IFERROR((N7-'0'!N7)/N7,0) -> 0 | O67: =IFERROR((O7-'0'!O7)/O7,0) -> 0 | P67: =IFERROR((P7-'0'!P7)/P7,0) -> 0 | R67: =$B$7 -> 2020 | S67: 7200 | U67: =T67 -> 0 | W67: =(1+U72)/(1+U67) -> 1 | X67: =S67*W67 -> 7200 | Z67: =$B$7 -> 2020 | AA67: 12.00000036 | AG67: |
B68: =B67+1 -> 2021 | C68: =IFERROR((C8-'0'!C8)/C8,0) -> 0 | D68: =IFERROR((D8-'0'!D8)/D8,0) -> 0 | E68: =IFERROR((E8-'0'!E8)/E8,0) -> 0 | F68: =IFERROR((F8-'0'!F8)/F8,0) -> 0 | G68: =IFERROR((G8-'0'!G8)/G8,0) -> 0 | J68: =J67+1 -> 2021 | K68: =IFERROR((K8-'0'!K8)/K8,0) -> 0 | L68: =IFERROR((L8-'0'!L8)/L8,0) -> 0 | M68: =IFERROR((M8-'0'!M8)/M8,0) -> 0 | N68: =IFERROR((N8-'0'!N8)/N8,0) -> 0 | O68: =IFERROR((O8-'0'!O8)/O8,0) -> 0 | R68: =R67+1 -> 2021 | S68: 7200 | T68: 0 | U68: =(1+U67)*(1+T68)-1 -> 0 | V68: =(S68/S67)/(1+T68)-1 -> 0 | W68: =(1+U72)/(1+U68) -> 1 | X68: 7200 | Z68: =Z67+1 -> 2021 | AA68: 12.00000036 | AG68: |
B69: =B68+1 -> 2022 | C69: =IFERROR((C9-'0'!C9)/C9,0) -> 0 | D69: =IFERROR((D9-'0'!D9)/D9,0) -> 0 | E69: =IFERROR((E9-'0'!E9)/E9,0) -> 0 | F69: =IFERROR((F9-'0'!F9)/F9,0) -> 0 | J69: =J68+1 -> 2022 | K69: =IFERROR((K9-'0'!K9)/K9,0) -> 0 | L69: =IFERROR((L9-'0'!L9)/L9,0) -> 0 | M69: =IFERROR((M9-'0'!M9)/M9,0) -> 0 | N69: =IFERROR((N9-'0'!N9)/N9,0) -> 0 | R69: =R68+1 -> 2022 | S69: 7200 | T69: 0 | U69: =(1+U68)*(1+T69)-1 -> 0 | V69: =(S69/S68)/(1+T69)-1 -> 0 | W69: =(1+U72)/(1+U69) -> 1 | X69: 7200 | Z69: =Z68+1 -> 2022 | AA69: 12.00000036 | AG69: |
B70: 2023 | C70: =IFERROR((C10-'0'!C10)/C10,0) -> 0 | D70: =IFERROR((D10-'0'!D10)/D10,0) -> 0 | E70: =IFERROR((E10-'0'!E10)/E10,0) -> 0 | J70: 2023 | K70: =IFERROR((K10-'0'!K10)/K10,0) -> 0 | L70: =IFERROR((L10-'0'!L10)/L10,0) -> 0 | M70: =IFERROR((M10-'0'!M10)/M10,0) -> 0 | R70: =R69+1 -> 2023 | S70: 7200 | T70: 0 | U70: 0 | V70: =(S70/S69)/(1+T70)-1 -> 0 | W70: =(1+U72)/(1+U70) -> 1 | X70: 7200 | Z70: =Z69+1 -> 2023 | AA70: 12.00000036 | AG70: |
B71: 2024 | C71: =IFERROR((C11-'0'!C11)/C11,0) -> 0 | D71: =IFERROR((D11-'0'!D11)/D11,0) -> 0 | J71: 2024 | K71: =IFERROR((K11-'0'!K11)/K11,0) -> 0 | L71: =IFERROR((L11-'0'!L11)/L11,0) -> 0 | R71: =R70+1 -> 2024 | S71: 7200 | T71: 0 | U71: 0 | V71: =(S71/S70)/(1+T71)-1 -> 0 | W71: =(1+U72)/(1+U71) -> 1 | X71: 7200 | Z71: =Z70+1 -> 2024 | AA71: 12.00000036 | AG71: |
B72: 2025 | C72: =IFERROR((C12-'0'!C12)/C12,0) -> 0 | J72: 2025 | K72: =IFERROR((K12-'0'!K12)/K12,0) -> 0 | R72: =R71+1 -> 2025 | S72: 7200 | T72: 0 | U72: 0 | V72: =(S72/S71)/(1+T72)-1 -> 0 | W72: =(1+U72)/(1+U72) -> 1 | X72: 7200 | Z72: =Z71+1 -> 2025 | AA72: 12.00000036 | AG72: |
AG73: |
B74: Counts | C74: Paid Count | E74: Development Age | J74: Counts | K74: Rptd Count | M74: Development Age | R74: (2) | S74: = | T74: given | AG74: |
B75: AY | C75: 12 | D75: 24 | E75: 36 | F75: 48 | G75: 60 | H75: 72 | J75: AY | K75: 12 | L75: 24 | M75: 36 | N75: 48 | O75: 60 | P75: 72 | R75: (3) | S75: = | T75: given | AG75: |
B76: =$B$7 -> 2020 | C76: =IFERROR((C16-'0'!C16)/C16,0) -> 0 | D76: =IFERROR((D16-'0'!D16)/D16,0) -> 0 | E76: =IFERROR((E16-'0'!E16)/E16,0) -> 0 | F76: =IFERROR((F16-'0'!F16)/F16,0) -> 0 | G76: =IFERROR((G16-'0'!G16)/G16,0) -> 0 | H76: =IFERROR((H16-'0'!H16)/H16,0) -> 0 | J76: =$B$7 -> 2020 | K76: =IFERROR((K16-'0'!K16)/K16,0) -> 0 | L76: =IFERROR((L16-'0'!L16)/L16,0) -> 0 | M76: =IFERROR((M16-'0'!M16)/M16,0) -> 0 | N76: =IFERROR((N16-'0'!N16)/N16,0) -> 0 | O76: =IFERROR((O16-'0'!O16)/O16,0) -> 0 | P76: =IFERROR((P16-'0'!P16)/P16,0) -> 0 | R76: (4) | S76: = | T76: [ 1 + (4):prior] x [1 + (3)] - 1.0 | AG76: |
B77: =B76+1 -> 2021 | C77: =IFERROR((C17-'0'!C17)/C17,0) -> 0 | D77: =IFERROR((D17-'0'!D17)/D17,0) -> 0 | E77: =IFERROR((E17-'0'!E17)/E17,0) -> 0 | F77: =IFERROR((F17-'0'!F17)/F17,0) -> 0 | G77: =IFERROR((G17-'0'!G17)/G17,0) -> 0 | J77: =J76+1 -> 2021 | K77: =IFERROR((K17-'0'!K17)/K17,0) -> 0 | L77: =IFERROR((L17-'0'!L17)/L17,0) -> 0 | M77: =IFERROR((M17-'0'!M17)/M17,0) -> 0 | N77: =IFERROR((N17-'0'!N17)/N17,0) -> 0 | O77: =IFERROR((O17-'0'!O17)/O17,0) -> 0 | R77: (5) | S77: = | T77: [ (2) / (2):prior] / [1 + (3)] - 1.0 | AG77: |
B78: =B77+1 -> 2022 | C78: =IFERROR((C18-'0'!C18)/C18,0) -> 0 | D78: =IFERROR((D18-'0'!D18)/D18,0) -> 0 | E78: =IFERROR((E18-'0'!E18)/E18,0) -> 0 | F78: =IFERROR((F18-'0'!F18)/F18,0) -> 0 | J78: =J77+1 -> 2022 | K78: =IFERROR((K18-'0'!K18)/K18,0) -> 0 | L78: =IFERROR((L18-'0'!L18)/L18,0) -> 0 | M78: =IFERROR((M18-'0'!M18)/M18,0) -> 0 | N78: =IFERROR((N18-'0'!N18)/N18,0) -> 0 | R78: (6) | S78: = | T78: [ 1 + (4):2025] / [1 + (4)] | AG78: |
B79: 2023 | C79: =IFERROR((C19-'0'!C19)/C19,0) -> 0 | D79: =IFERROR((D19-'0'!D19)/D19,0) -> 0 | E79: =IFERROR((E19-'0'!E19)/E19,0) -> 0 | J79: 2023 | K79: =IFERROR((K19-'0'!K19)/K19,0) -> 0 | L79: =IFERROR((L19-'0'!L19)/L19,0) -> 0 | M79: =IFERROR((M19-'0'!M19)/M19,0) -> 0 | R79: (7) | S79: = | T79: (2) x (6) | AG79: |
B80: 2024 | C80: =IFERROR((C20-'0'!C20)/C20,0) -> 0 | D80: =IFERROR((D20-'0'!D20)/D20,0) -> 0 | J80: 2024 | K80: =IFERROR((K20-'0'!K20)/K20,0) -> 0 | L80: =IFERROR((L20-'0'!L20)/L20,0) -> 0 | AG80: |
B81: 2025 | C81: =IFERROR((C21-'0'!C21)/C21,0) -> 0 | J81: 2025 | K81: =IFERROR((K21-'0'!K21)/K21,0) -> 0 | AG81: |
AG82: |
C83: paid loss ratio | F83: Development Age | K83: rptd loss ratio | N83: Development Age | S83: paid/rptd loss | V83: Development Age | AA83: paid/rptd counts | AD83: Development Age | AG83: |
B84: AY | C84: 12 | D84: 24 | E84: 36 | F84: 48 | G84: 60 | H84: 72 | J84: AY | K84: 12 | L84: 24 | M84: 36 | N84: 48 | O84: 60 | P84: 72 | R84: AY | S84: 12 | T84: 24 | U84: 36 | V84: 48 | W84: 60 | X84: 72 | Z84: AY | AA84: 12 | AB84: 24 | AC84: 36 | AD84: 48 | AE84: 60 | AF84: 72 | AG84: |
B85: =$B$7 -> 2020 | C85: =IFERROR((C25-'0'!C25)/C25,0) -> 0 | D85: =IFERROR((D25-'0'!D25)/D25,0) -> 0 | E85: =IFERROR((E25-'0'!E25)/E25,0) -> 0 | F85: =IFERROR((F25-'0'!F25)/F25,0) -> 0 | G85: =IFERROR((G25-'0'!G25)/G25,0) -> 0 | H85: =IFERROR((H25-'0'!H25)/H25,0) -> 0 | J85: =$B$7 -> 2020 | K85: =IFERROR((K25-'0'!K25)/K25,0) -> 0 | L85: =IFERROR((L25-'0'!L25)/L25,0) -> 0 | M85: =IFERROR((M25-'0'!M25)/M25,0) -> 0 | N85: =IFERROR((N25-'0'!N25)/N25,0) -> 0 | O85: =IFERROR((O25-'0'!O25)/O25,0) -> 0 | P85: =IFERROR((P25-'0'!P25)/P25,0) -> 0 | R85: =$B$7 -> 2020 | S85: =IFERROR((S25-'0'!S25)/S25,0) -> 0 | T85: =IFERROR((T25-'0'!T25)/T25,0) -> 0 | U85: =IFERROR((U25-'0'!U25)/U25,0) -> 0 | V85: =IFERROR((V25-'0'!V25)/V25,0) -> 0 | W85: =IFERROR((W25-'0'!W25)/W25,0) -> 0 | X85: =IFERROR((X25-'0'!X25)/X25,0) -> 0 | Z85: =$B$7 -> 2020 | AA85: =IFERROR((AA25-'0'!AA25)/AA25,0) -> 0 | AB85: =IFERROR((AB25-'0'!AB25)/AB25,0) -> 0 | AC85: =IFERROR((AC25-'0'!AC25)/AC25,0) -> 0 | AD85: =IFERROR((AD25-'0'!AD25)/AD25,0) -> 0 | AE85: =IFERROR((AE25-'0'!AE25)/AE25,0) -> 0 | AF85: =IFERROR((AF25-'0'!AF25)/AF25,0) -> 0 | AG85: |
B86: =B85+1 -> 2021 | C86: =IFERROR((C26-'0'!C26)/C26,0) -> 0 | D86: =IFERROR((D26-'0'!D26)/D26,0) -> 0 | E86: =IFERROR((E26-'0'!E26)/E26,0) -> 0 | F86: =IFERROR((F26-'0'!F26)/F26,0) -> 0 | G86: =IFERROR((G26-'0'!G26)/G26,0) -> 0 | J86: =J85+1 -> 2021 | K86: =IFERROR((K26-'0'!K26)/K26,0) -> 0 | L86: =IFERROR((L26-'0'!L26)/L26,0) -> 0 | M86: =IFERROR((M26-'0'!M26)/M26,0) -> 0 | N86: =IFERROR((N26-'0'!N26)/N26,0) -> 0 | O86: =IFERROR((O26-'0'!O26)/O26,0) -> 0 | R86: =R85+1 -> 2021 | S86: =IFERROR((S26-'0'!S26)/S26,0) -> 0 | T86: =IFERROR((T26-'0'!T26)/T26,0) -> 0 | U86: =IFERROR((U26-'0'!U26)/U26,0) -> 0 | V86: =IFERROR((V26-'0'!V26)/V26,0) -> 0 | W86: =IFERROR((W26-'0'!W26)/W26,0) -> 0 | Z86: =Z85+1 -> 2021 | AA86: =IFERROR((AA26-'0'!AA26)/AA26,0) -> 0 | AB86: =IFERROR((AB26-'0'!AB26)/AB26,0) -> 0 | AC86: =IFERROR((AC26-'0'!AC26)/AC26,0) -> 0 | AD86: =IFERROR((AD26-'0'!AD26)/AD26,0) -> 0 | AE86: =IFERROR((AE26-'0'!AE26)/AE26,0) -> 0 | AG86: |
B87: =B86+1 -> 2022 | C87: =IFERROR((C27-'0'!C27)/C27,0) -> 0 | D87: =IFERROR((D27-'0'!D27)/D27,0) -> 0 | E87: =IFERROR((E27-'0'!E27)/E27,0) -> 0 | F87: =IFERROR((F27-'0'!F27)/F27,0) -> 0 | J87: =J86+1 -> 2022 | K87: =IFERROR((K27-'0'!K27)/K27,0) -> 0 | L87: =IFERROR((L27-'0'!L27)/L27,0) -> 0 | M87: =IFERROR((M27-'0'!M27)/M27,0) -> 0 | N87: =IFERROR((N27-'0'!N27)/N27,0) -> 0 | R87: =R86+1 -> 2022 | S87: =IFERROR((S27-'0'!S27)/S27,0) -> 0 | T87: =IFERROR((T27-'0'!T27)/T27,0) -> 0 | U87: =IFERROR((U27-'0'!U27)/U27,0) -> 0 | V87: =IFERROR((V27-'0'!V27)/V27,0) -> 0 | Z87: =Z86+1 -> 2022 | AA87: =IFERROR((AA27-'0'!AA27)/AA27,0) -> 0 | AB87: =IFERROR((AB27-'0'!AB27)/AB27,0) -> 0 | AC87: =IFERROR((AC27-'0'!AC27)/AC27,0) -> 0 | AD87: =IFERROR((AD27-'0'!AD27)/AD27,0) -> 0 | AG87: |
B88: 2023 | C88: =IFERROR((C28-'0'!C28)/C28,0) -> 0 | D88: =IFERROR((D28-'0'!D28)/D28,0) -> 0 | E88: =IFERROR((E28-'0'!E28)/E28,0) -> 0 | J88: 2023 | K88: =IFERROR((K28-'0'!K28)/K28,0) -> 0 | L88: =IFERROR((L28-'0'!L28)/L28,0) -> 0 | M88: =IFERROR((M28-'0'!M28)/M28,0) -> 0 | R88: 2023 | S88: =IFERROR((S28-'0'!S28)/S28,0) -> 0 | T88: =IFERROR((T28-'0'!T28)/T28,0) -> 0 | U88: =IFERROR((U28-'0'!U28)/U28,0) -> 0 | Z88: 2023 | AA88: =IFERROR((AA28-'0'!AA28)/AA28,0) -> 0 | AB88: =IFERROR((AB28-'0'!AB28)/AB28,0) -> 0 | AC88: =IFERROR((AC28-'0'!AC28)/AC28,0) -> 0 | AG88: |
B89: 2024 | C89: =IFERROR((C29-'0'!C29)/C29,0) -> 0 | D89: =IFERROR((D29-'0'!D29)/D29,0) -> 0 | J89: 2024 | K89: =IFERROR((K29-'0'!K29)/K29,0) -> 0 | L89: =IFERROR((L29-'0'!L29)/L29,0) -> 0 | R89: 2024 | S89: =IFERROR((S29-'0'!S29)/S29,0) -> 0 | T89: =IFERROR((T29-'0'!T29)/T29,0) -> 0 | Z89: 2024 | AA89: =IFERROR((AA29-'0'!AA29)/AA29,0) -> 0 | AB89: =IFERROR((AB29-'0'!AB29)/AB29,0) -> 0 | AG89: |
B90: 2025 | C90: =IFERROR((C30-'0'!C30)/C30,0) -> 0 | J90: 2025 | K90: =IFERROR((K30-'0'!K30)/K30,0) -> 0 | R90: 2025 | S90: =IFERROR((S30-'0'!S30)/S30,0) -> 0 | Z90: 2025 | AA90: =IFERROR((AA30-'0'!AA30)/AA30,0) -> 0 | AG90: |
AG91: |
C92: PAID dollars-per-count | K92: REPORTED dollars-per-count | S92: Case O/S dollars-per-count | AG92: |
C93: average paid loss | F93: Development Age | K93: average rptd loss | N93: Development Age | S93: average case O/S | V93: Development Age | AG93: |
B94: AY | C94: 12 | D94: 24 | E94: 36 | F94: 48 | G94: 60 | H94: 72 | J94: AY | K94: 12 | L94: 24 | M94: 36 | N94: 48 | O94: 60 | P94: 72 | R94: AY | S94: 12 | T94: 24 | U94: 36 | V94: 48 | W94: 60 | X94: 72 | AG94: |
B95: =$B$7 -> 2020 | C95: =IFERROR((C35-'0'!C35)/C35,0) -> 0 | D95: =IFERROR((D35-'0'!D35)/D35,0) -> 0 | E95: =IFERROR((E35-'0'!E35)/E35,0) -> 0 | F95: =IFERROR((F35-'0'!F35)/F35,0) -> 0 | G95: =IFERROR((G35-'0'!G35)/G35,0) -> 0 | H95: =IFERROR((H35-'0'!H35)/H35,0) -> 0 | J95: =$B$7 -> 2020 | K95: =IFERROR((K35-'0'!K35)/K35,0) -> 0 | L95: =IFERROR((L35-'0'!L35)/L35,0) -> 0 | M95: =IFERROR((M35-'0'!M35)/M35,0) -> 0 | N95: =IFERROR((N35-'0'!N35)/N35,0) -> 0 | O95: =IFERROR((O35-'0'!O35)/O35,0) -> 0 | P95: =IFERROR((P35-'0'!P35)/P35,0) -> 0 | R95: =$B$7 -> 2020 | S95: =IFERROR((S35-'0'!S35)/S35,0) -> 0 | T95: =IFERROR((T35-'0'!T35)/T35,0) -> 0 | U95: =IFERROR((U35-'0'!U35)/U35,0) -> 0 | V95: =IFERROR((V35-'0'!V35)/V35,0) -> 0 | W95: =IFERROR((W35-'0'!W35)/W35,0) -> 0 | X95: =IFERROR((X35-'0'!X35)/X35,0) -> 0 | AG95: |
B96: =B95+1 -> 2021 | C96: =IFERROR((C36-'0'!C36)/C36,0) -> 0 | D96: =IFERROR((D36-'0'!D36)/D36,0) -> 0 | E96: =IFERROR((E36-'0'!E36)/E36,0) -> 0 | F96: =IFERROR((F36-'0'!F36)/F36,0) -> 0 | G96: =IFERROR((G36-'0'!G36)/G36,0) -> 0 | J96: =J95+1 -> 2021 | K96: =IFERROR((K36-'0'!K36)/K36,0) -> 0 | L96: =IFERROR((L36-'0'!L36)/L36,0) -> 0 | M96: =IFERROR((M36-'0'!M36)/M36,0) -> 0 | N96: =IFERROR((N36-'0'!N36)/N36,0) -> 0 | O96: =IFERROR((O36-'0'!O36)/O36,0) -> 0 | R96: =R95+1 -> 2021 | S96: =IFERROR((S36-'0'!S36)/S36,0) -> 0 | T96: =IFERROR((T36-'0'!T36)/T36,0) -> 0 | U96: =IFERROR((U36-'0'!U36)/U36,0) -> 0 | V96: =IFERROR((V36-'0'!V36)/V36,0) -> 0 | W96: =IFERROR((W36-'0'!W36)/W36,0) -> 0 | AG96: |
B97: =B96+1 -> 2022 | C97: =IFERROR((C37-'0'!C37)/C37,0) -> 0 | D97: =IFERROR((D37-'0'!D37)/D37,0) -> 0 | E97: =IFERROR((E37-'0'!E37)/E37,0) -> 0 | F97: =IFERROR((F37-'0'!F37)/F37,0) -> 0 | J97: =J96+1 -> 2022 | K97: =IFERROR((K37-'0'!K37)/K37,0) -> 0 | L97: =IFERROR((L37-'0'!L37)/L37,0) -> 0 | M97: =IFERROR((M37-'0'!M37)/M37,0) -> 0 | N97: =IFERROR((N37-'0'!N37)/N37,0) -> 0 | R97: =R96+1 -> 2022 | S97: =IFERROR((S37-'0'!S37)/S37,0) -> 0 | T97: =IFERROR((T37-'0'!T37)/T37,0) -> 0 | U97: =IFERROR((U37-'0'!U37)/U37,0) -> 0 | V97: =IFERROR((V37-'0'!V37)/V37,0) -> 0 | AG97: |
B98: 2023 | C98: =IFERROR((C38-'0'!C38)/C38,0) -> 0 | D98: =IFERROR((D38-'0'!D38)/D38,0) -> 0 | E98: =IFERROR((E38-'0'!E38)/E38,0) -> 0 | J98: 2023 | K98: =IFERROR((K38-'0'!K38)/K38,0) -> 0 | L98: =IFERROR((L38-'0'!L38)/L38,0) -> 0 | M98: =IFERROR((M38-'0'!M38)/M38,0) -> 0 | R98: 2023 | S98: =IFERROR((S38-'0'!S38)/S38,0) -> 0 | T98: =IFERROR((T38-'0'!T38)/T38,0) -> 0 | U98: =IFERROR((U38-'0'!U38)/U38,0) -> 0 | AG98: |
B99: 2024 | C99: =IFERROR((C39-'0'!C39)/C39,0) -> 0 | D99: =IFERROR((D39-'0'!D39)/D39,0) -> 0 | J99: 2024 | K99: =IFERROR((K39-'0'!K39)/K39,0) -> 0 | L99: =IFERROR((L39-'0'!L39)/L39,0) -> 0 | R99: 2024 | S99: =IFERROR((S39-'0'!S39)/S39,0) -> 0 | T99: =IFERROR((T39-'0'!T39)/T39,0) -> 0 | AG99: |
B100: 2025 | C100: =IFERROR((C40-'0'!C40)/C40,0) -> 0 | J100: 2025 | K100: =IFERROR((K40-'0'!K40)/K40,0) -> 0 | R100: 2025 | S100: =IFERROR((S40-'0'!S40)/S40,0) -> 0 | AG100: |
AG101: |
AG102: |
AG103: |
AG104: |
AG105: |
AG106: |
AG107: |
AG108: |
AG109: |
AG110: |
AG111: |
AG112: |
AG113: |
AG114: |
AG115: |
AG116: |
AG117: |
AG118: |
AG119: |
B120: ---- | C120: ---- | D120: ---- | E120: ---- | F120: ---- | G120: ---- | H120: ---- | I120: ---- | J120: ---- | K120: ---- | L120: ---- | M120: ---- | N120: ---- | O120: ---- | P120: ---- | Q120: ---- | R120: ---- | S120: ---- | T120: ---- | U120: ---- | V120: ---- | W120: ---- | AG120: ----
AG121: |
AG122: |
AG123: |
AG124: |
AG125: |
AG126: |
AG127: |
AG128: |
AG129: |
AG130: |
AG131: |
AG132: |
AG133: |
AG134: |
AG135: |
AG136: |
AG137: |
AG138: |
AG139: |
AG140: |
AG141: |
AG142: |
AG143: |
AG144: |
AG145: |
AG146: |
AG147: |
AG148: |
AG149: |
AG150: |
AG151: |
AG152: |
AG153: |
AG154: |
AG155: |
AG156: |
AG157: |
AG158: |
AG159: |
AG160: |
AG161: |
AG162: |
AG163: |
AG164: |
AG165: |
AG166: |
AG167: |
AG168: |
AG169: |
AG170: |
AG171: |
AG172: |
AG173: |
AG174: |
AG175: |
AG176: |
AG177: |
AG178: |
AG179: |
B180: ---- | C180: ---- | D180: ---- | E180: ---- | F180: ---- | G180: ---- | H180: ---- | I180: ---- | J180: ---- | K180: ---- | L180: ---- | M180: ---- | N180: ---- | O180: ---- | P180: ---- | Q180: ---- | R180: ---- | S180: ---- | T180: ---- | U180: ---- | V180: ---- | W180: ---- | AG180: ----
AG181: |
AG182: |
AG183: |
AG184: |
AG185: |
AG186: |
AG187: |
AG188: |
AG189: |
AG190: |
AG191: |
AG192: |
AG193: |
AG194: |
AG195: |
AG196: |
AG197: |
AG198: |
AG199: |
AG200: |
AG201: |
... 1358 more rows

Sheet 1
B2: Book of Triangles | AG2: |
B3: Scenario: | C3: 1 | R3: (1) | S3: (2) | T3: (3) | U3: (4) | V3: (5) | W3: (6) | X3: (7) | AG3: |
T4: avg. | U4: cum. | V4: ann. | W4: rt level | X4: on | AG4: | | AI4: est pd | AJ4: est rptd | AK4: real | AL4: real
B5: Amounts | C5: Paid Loss | E5: Development Age | J5: Amounts | K5: Rptd Loss | M5: Development Age | T5: rate | U5: avg. | V5: expos. | W5: adj. to | X5: level | AG5: | | AI5: AY | AJ5: AY | AK5: AY | AL5: AY
B6: AY | C6: 12 | D6: =C6+12 -> 24 | E6: =D6+12 -> 36 | F6: 48 | G6: 60 | H6: 72 | J6: AY | K6: 12 | L6: =K6+12 -> 24 | M6: =L6+12 -> 36 | N6: 48 | O6: 60 | P6: 72 | R6: CY | S6: EP | T6: chg. | U6: rt. lvl. | V6: chg. | W6: =R12 -> 2025 | X6: EP | Z6: CY | AA6: EE | AG6: | | AH6: AY | AI6: ULR | AJ6: ULR | AK6: ULR | AL6: Loss
B7: 2020 | C7: 720 | D7: 1800 | E7: 2880 | F7: 3600 | G7: 3960 | H7: 4320 | J7: =$B$7 -> 2020 | K7: 2160 | L7: 2880 | M7: 3600 | N7: 3996 | O7: 4356 | P7: 4320 | R7: =$B$7 -> 2020 | S7: 7200 | U7: =T7 -> 0 | W7: =(1+U12)/(1+U7) -> 1 | X7: =S7*W7 -> 7200 | Z7: =$B$7 -> 2020 | AA7: 12.00000036 | AG7: | | AH7: =$B$7 -> 2020 | AI7: 0.6 | AJ7: 0.6 | AK7: 0.6 | AL7: =S7*AK7 -> 4320
B8: =B7+1 -> 2021 | C8: 720 | D8: 1800 | E8: 2880 | F8: 3600 | G8: 3960 | J8: =J7+1 -> 2021 | K8: 2160 | L8: 2880 | M8: 3672 | N8: 3996 | O8: 4356 | R8: =R7+1 -> 2021 | S8: 7200 | T8: 0 | U8: =(1+U7)*(1+T8)-1 -> 0 | V8: =(S8/S7)/(1+T8)-1 -> 0 | W8: =(1+U12)/(1+U8) -> 1 | X8: 7200 | Z8: =Z7+1 -> 2021 | AA8: 12.00000036 | AG8: | | AH8: =AH7+1 -> 2021 | AI8: 0.6 | AJ8: 0.6 | AK8: 0.6 | AL8: 4320
B9: =B8+1 -> 2022 | C9: 720 | D9: 1800 | E9: 2880 | F9: 3600 | J9: =J8+1 -> 2022 | K9: 2160 | L9: 2952 | M9: 3672 | N9: 3996 | R9: =R8+1 -> 2022 | S9: 7200 | T9: 0 | U9: =(1+U8)*(1+T9)-1 -> 0 | V9: =(S9/S8)/(1+T9)-1 -> 0 | W9: =(1+U12)/(1+U9) -> 1 | X9: 7200 | Z9: =Z8+1 -> 2022 | AA9: 12.00000036 | AG9: | | AH9: =AH8+1 -> 2022 | AI9: 0.6 | AJ9: 0.6 | AK9: 0.6 | AL9: 4320
B10: 2023 | C10: 720 | D10: 1800 | E10: 2880 | J10: 2023 | K10: 2304 | L10: 2988 | M10: 3672 | R10: =R9+1 -> 2023 | S10: 7200 | T10: 0 | U10: 0 | V10: =(S10/S9)/(1+T10)-1 -> 0 | W10: =(1+U12)/(1+U10) -> 1 | X10: 7200 | Z10: =Z9+1 -> 2023 | AA10: 12.00000036 | AG10: | | AH10: 2023 | AI10: 0.6 | AJ10: 0.604 | AK10: 0.6 | AL10: 4320
B11: 2024 | C11: 720 | D11: 1800 | J11: 2024 | K11: 2304 | L11: 2988 | R11: =R10+1 -> 2024 | S11: 7200 | T11: 0 | U11: 0 | V11: =(S11/S10)/(1+T11)-1 -> 0 | W11: =(1+U12)/(1+U11) -> 1 | X11: 7200 | Z11: =Z10+1 -> 2024 | AA11: 12.00000036 | AG11: | | AH11: 2024 | AI11: 0.6 | AJ11: 0.6140946497 | AK11: 0.6 | AL11: 4320
B12: 2025 | C12: 720 | J12: 2025 | K12: 2304 | R12: =R11+1 -> 2025 | S12: 7200 | T12: 0 | U12: 0 | V12: =(S12/S11)/(1+T12)-1 -> 0 | W12: =(1+U12)/(1+U12) -> 1 | X12: 7200 | Z12: =Z11+1 -> 2025 | AA12: 12.00000036 | AG12: | | AH12: 2025 | AI12: 0.6 | AJ12: 0.6276096645 | AK12: 0.6 | AL12: 4320
AG13: |
B14: Counts | C14: Paid Count | E14: Development Age | J14: Counts | K14: Rptd Count | M14: Development Age | R14: (2) | S14: = | T14: given | AG14: |
B15: AY | C15: 12 | D15: 24 | E15: 36 | F15: 48 | G15: 60 | H15: 72 | J15: AY | K15: 12 | L15: 24 | M15: 36 | N15: 48 | O15: 60 | P15: 72 | R15: (3) | S15: = | T15: given | AG15: |
B16: =$B$7 -> 2020 | C16: 2 | D16: 5 | E16: 8 | F16: 10 | G16: 11 | H16: 12 | J16: =$B$7 -> 2020 | K16: 6 | L16: 8 | M16: 10 | N16: 11 | O16: 12 | P16: 12 | R16: (4) | S16: = | T16: [ 1 + (4):prior] x [1 + (3)] - 1.0 | AG16: | | AH16: Interpretation: | AJ16: case reserve adequacy +10% at CY 2023
B17: =B16+1 -> 2021 | C17: 2 | D17: 5 | E17: 8 | F17: 10 | G17: 11 | J17: =J16+1 -> 2021 | K17: 6 | L17: 8 | M17: 10 | N17: 11 | O17: 12 | R17: (5) | S17: = | T17: [ (2) / (2):prior] / [1 + (3)] - 1.0 | AG17: |
B18: =B17+1 -> 2022 | C18: 2 | D18: 5 | E18: 8 | F18: 10 | J18: =J17+1 -> 2022 | K18: 6 | L18: 8 | M18: 10 | N18: 11 | R18: (6) | S18: = | T18: [ 1 + (4):2025] / [1 + (4)] | AG18: |
B19: 2023 | C19: 2 | D19: 5 | E19: 8 | J19: 2023 | K19: 6 | L19: 8 | M19: 10 | R19: (7) | S19: = | T19: (2) x (6) | AG19: |
B20: 2024 | C20: 2 | D20: 5 | J20: 2024 | K20: 6 | L20: 8 | AG20: |
B21: 2025 | C21: 2 | J21: 2025 | K21: 6 | AG21: |
AG22: |
C23: paid loss ratio | F23: Development Age | K23: rptd loss ratio | N23: Development Age | S23: paid/rptd loss | V23: Development Age | AA23: paid/rptd counts | AD23: Development Age | AG23: |
B24: AY | C24: 12 | D24: 24 | E24: 36 | F24: 48 | G24: 60 | H24: 72 | J24: AY | K24: 12 | L24: 24 | M24: 36 | N24: 48 | O24: 60 | P24: 72 | R24: AY | S24: 12 | T24: 24 | U24: 36 | V24: 48 | W24: 60 | X24: 72 | Z24: AY | AA24: 12 | AB24: 24 | AC24: 36 | AD24: 48 | AE24: 60 | AF24: 72 | AG24: |
B25: =$B$7 -> 2020 | C25: =C7/$X7 -> 0.1 | D25: 0.25 | E25: 0.4 | F25: 0.5 | G25: 0.55 | H25: 0.6 | J25: =$B$7 -> 2020 | K25: =K7/$X7 -> 0.3 | L25: 0.4 | M25: 0.5 | N25: 0.555 | O25: 0.605 | P25: 0.6 | R25: =$B$7 -> 2020 | S25: =C7/K7 -> 0.3333333333 | T25: 0.625 | U25: 0.8 | V25: 0.9009009009 | W25: 0.9090909091 | X25: 1 | Z25: =$B$7 -> 2020 | AA25: =C16/K16 -> 0.3333333333 | AB25: 0.625 | AC25: 0.8 | AD25: 0.9090909091 | AE25: 0.9166666667 | AF25: 1 | AG25: |
B26: =B25+1 -> 2021 | C26: =C8/$X8 -> 0.1 | D26: =D8/$X8 -> 0.25 | E26: =E8/$X8 -> 0.4 | F26: =F8/$X8 -> 0.5 | G26: =G8/$X8 -> 0.55 | J26: =J25+1 -> 2021 | K26: =K8/$X8 -> 0.3 | L26: =L8/$X8 -> 0.4 | M26: =M8/$X8 -> 0.51 | N26: =N8/$X8 -> 0.555 | O26: =O8/$X8 -> 0.605 | R26: =R25+1 -> 2021 | S26: =C8/K8 -> 0.3333333333 | T26: =D8/L8 -> 0.625 | U26: =E8/M8 -> 0.7843137255 | V26: =F8/N8 -> 0.9009009009 | W26: =G8/O8 -> 0.9090909091 | Z26: =Z25+1 -> 2021 | AA26: =C17/K17 -> 0.3333333333 | AB26: =D17/L17 -> 0.625 | AC26: =E17/M17 -> 0.8 | AD26: =F17/N17 -> 0.9090909091 | AE26: =G17/O17 -> 0.9166666667 | AG26: |
B27: =B26+1 -> 2022 | C27: =C9/$X9 -> 0.1 | D27: =D9/$X9 -> 0.25 | E27: =E9/$X9 -> 0.4 | F27: =F9/$X9 -> 0.5 | J27: =J26+1 -> 2022 | K27: =K9/$X9 -> 0.3 | L27: =L9/$X9 -> 0.41 | M27: =M9/$X9 -> 0.51 | N27: =N9/$X9 -> 0.555 | R27: =R26+1 -> 2022 | S27: =C9/K9 -> 0.3333333333 | T27: =D9/L9 -> 0.6097560976 | U27: =E9/M9 -> 0.7843137255 | V27: =F9/N9 -> 0.9009009009 | Z27: =Z26+1 -> 2022 | AA27: =C18/K18 -> 0.3333333333 | AB27: =D18/L18 -> 0.625 | AC27: =E18/M18 -> 0.8 | AD27: =F18/N18 -> 0.9090909091 | AG27: |
B28: 2023 | C28: =C10/$X10 -> 0.1 | D28: =D10/$X10 -> 0.25 | E28: =E10/$X10 -> 0.4 | J28: 2023 | K28: =K10/$X10 -> 0.32 | L28: =L10/$X10 -> 0.415 | M28: =M10/$X10 -> 0.51 | R28: 2023 | S28: =C10/K10 -> 0.3125 | T28: =D10/L10 -> 0.6024096386 | U28: =E10/M10 -> 0.7843137255 | Z28: 2023 | AA28: =C19/K19 -> 0.3333333333 | AB28: =D19/L19 -> 0.625 | AC28: =E19/M19 -> 0.8 | AG28: |
B29: 2024 | C29: =C11/$X11 -> 0.1 | D29: =D11/$X11 -> 0.25 | J29: 2024 | K29: =K11/$X11 -> 0.32 | L29: =L11/$X11 -> 0.415 | R29: 2024 | S29: =C11/K11 -> 0.3125 | T29: =D11/L11 -> 0.6024096386 | Z29: 2024 | AA29: =C20/K20 -> 0.3333333333 | AB29: =D20/L20 -> 0.625 | AG29: |
B30: 2025 | C30: =C12/$X12 -> 0.1 | J30: 2025 | K30: =K12/$X12 -> 0.32 | R30: 2025 | S30: =C12/K12 -> 0.3125 | Z30: 2025 | AA30: =C21/K21 -> 0.3333333333 | AG30: |
AG31: |
C32: PAID dollars-per-count | K32: REPORTED dollars-per-count | S32: Case O/S dollars-per-count | AG32: |
C33: average paid loss | F33: Development Age | K33: average rptd loss | N33: Development Age | S33: average case O/S | V33: Development Age | AG33: |
B34: AY | C34: 12 | D34: 24 | E34: 36 | F34: 48 | G34: 60 | H34: 72 | J34: AY | K34: 12 | L34: 24 | M34: 36 | N34: 48 | O34: 60 | P34: 72 | R34: AY | S34: 12 | T34: 24 | U34: 36 | V34: 48 | W34: 60 | X34: 72 | AG34: |
B35: =$B$7 -> 2020 | C35: =C7/C16 -> 360 | D35: 360 | E35: 360 | F35: 360 | G35: 360 | H35: 360 | J35: =$B$7 -> 2020 | K35: =K7/K16 -> 360 | L35: 360 | M35: 360 | N35: 363.2727273 | O35: 363 | P35: 360 | R35: =$B$7 -> 2020 | S35: =IFERROR((K7-C7)/(K16-C16),0) -> 360 | T35: 360 | U35: 360 | V35: 396 | W35: 396 | X35: 0 | AG35: |
B36: =B35+1 -> 2021 | C36: =C8/C17 -> 360 | D36: =D8/D17 -> 360 | E36: =E8/E17 -> 360 | F36: =F8/F17 -> 360 | G36: =G8/G17 -> 360 | J36: =J35+1 -> 2021 | K36: =K8/K17 -> 360 | L36: =L8/L17 -> 360 | M36: =M8/M17 -> 367.2 | N36: =N8/N17 -> 363.2727273 | O36: =O8/O17 -> 363 | R36: =R35+1 -> 2021 | S36: =IFERROR((K8-C8)/(K17-C17),0) -> 360 | T36: =IFERROR((L8-D8)/(L17-D17),0) -> 360 | U36: =IFERROR((M8-E8)/(M17-E17),0) -> 396 | V36: =IFERROR((N8-F8)/(N17-F17),0) -> 396 | W36: =IFERROR((O8-G8)/(O17-G17),0) -> 396 | AG36: |
B37: =B36+1 -> 2022 | C37: =C9/C18 -> 360 | D37: =D9/D18 -> 360 | E37: =E9/E18 -> 360 | F37: =F9/F18 -> 360 | J37: =J36+1 -> 2022 | K37: =K9/K18 -> 360 | L37: =L9/L18 -> 369 | M37: =M9/M18 -> 367.2 | N37: =N9/N18 -> 363.2727273 | R37: =R36+1 -> 2022 | S37: =IFERROR((K9-C9)/(K18-C18),0) -> 360 | T37: =IFERROR((L9-D9)/(L18-D18),0) -> 384 | U37: =IFERROR((M9-E9)/(M18-E18),0) -> 396 | V37: =IFERROR((N9-F9)/(N18-F18),0) -> 396 | AG37: |
B38: 2023 | C38: =C10/C19 -> 360 | D38: =D10/D19 -> 360 | E38: =E10/E19 -> 360 | J38: 2023 | K38: =K10/K19 -> 384 | L38: =L10/L19 -> 373.5 | M38: =M10/M19 -> 367.2 | R38: 2023 | S38: =IFERROR((K10-C10)/(K19-C19),0) -> 396 | T38: =IFERROR((L10-D10)/(L19-D19),0) -> 396 | U38: =IFERROR((M10-E10)/(M19-E19),0) -> 396 | AG38: |
B39: 2024 | C39: =C11/C20 -> 360 | D39: =D11/D20 -> 360 | J39: 2024 | K39: =K11/K20 -> 384 | L39: =L11/L20 -> 373.5 | R39: 2024 | S39: =IFERROR((K11-C11)/(K20-C20),0) -> 396 | T39: =IFERROR((L11-D11)/(L20-D20),0) -> 396 | AG39: |
B40: 2025 | C40: =C12/C21 -> 360 | J40: 2025 | K40: =K12/K21 -> 384 | R40: 2025 | S40: =IFERROR((K12-C12)/(K21-C21),0) -> 396 | AG40: |
AG41: |
AG42: |
AG43: |
AG44: |
AG45: |
AG46: |
AG47: |
AG48: |
AG49: |
AG50: |
AG51: |
AG52: |
AG53: |
AG54: |
AG55: |
AG56: |
AG57: |
AG58: |
AG59: |
B60: ---- | C60: ---- | D60: ---- | E60: ---- | F60: ---- | G60: ---- | H60: ---- | I60: ---- | J60: ---- | K60: ---- | L60: ---- | M60: ---- | N60: ---- | O60: ---- | P60: ---- | Q60: ---- | R60: ---- | S60: ---- | T60: ---- | U60: ---- | V60: ---- | W60: ---- | X60: ---- | Y60: ---- | Z60: ---- | AA60: ---- | AB60: ---- | AC60: ---- | AD60: ---- | AE60: ---- | AF60: ---- | AG60: ----
AG61: |
B62: Book of Triangles | AG62: |
B63: Scenario: | C63: =C3 -> 1 | D63: (Comparison to Base Case) | R63: (1) | S63: (2) | T63: (3) | U63: (4) | V63: (5) | W63: (6) | X63: (7) | AG63: |
T64: avg. | U64: cum. | V64: ann. | W64: rt level | X64: on | AG64: |
B65: Amounts | C65: Paid Loss | E65: Development Age | J65: Amounts | K65: Rptd Loss | M65: Development Age | T65: rate | U65: avg. | V65: expos. | W65: adj. to | X65: level | AG65: |
B66: AY | C66: 12 | D66: =C66+12 -> 24 | E66: =D66+12 -> 36 | F66: 48 | G66: 60 | H66: 72 | J66: AY | K66: 12 | L66: =K66+12 -> 24 | M66: =L66+12 -> 36 | N66: 48 | O66: 60 | P66: 72 | R66: CY | S66: EP | T66: chg. | U66: rt. lvl. | V66: chg. | W66: =R72 -> 2025 | X66: EP | Z66: CY | AA66: EE | AG66: |
B67: 2020 | C67: =IFERROR((C7-'0'!C7)/'0'!C7,0) -> 0 | D67: =IFERROR((D7-'0'!D7)/'0'!D7,0) -> 0 | E67: =IFERROR((E7-'0'!E7)/'0'!E7,0) -> 0 | F67: =IFERROR((F7-'0'!F7)/'0'!F7,0) -> 0 | G67: =IFERROR((G7-'0'!G7)/'0'!G7,0) -> 0 | H67: =IFERROR((H7-'0'!H7)/'0'!H7,0) -> 0 | J67: =$B$7 -> 2020 | K67: =IFERROR((K7-'0'!K7)/'0'!K7,0) -> 0 | L67: =IFERROR((L7-'0'!L7)/'0'!L7,0) -> 0 | M67: =IFERROR((M7-'0'!M7)/'0'!M7,0) -> 0 | N67: =IFERROR((N7-'0'!N7)/'0'!N7,0) -> 0.009090909091 | O67: =IFERROR((O7-'0'!O7)/'0'!O7,0) -> 0.008333333333 | P67: =IFERROR((P7-'0'!P7)/'0'!P7,0) -> 0 | R67: =$B$7 -> 2020 | S67: =IFERROR((S7-'0'!S7)/'0'!S7,0) -> 0 | Z67: =$B$7 -> 2020 | AA67: =IFERROR((AA7-'0'!AA7)/'0'!AA7,0) -> 0 | AG67: |
B68: =B67+1 -> 2021 | C68: =IFERROR((C8-'0'!C8)/'0'!C8,0) -> 0 | D68: =IFERROR((D8-'0'!D8)/'0'!D8,0) -> 0 | E68: =IFERROR((E8-'0'!E8)/'0'!E8,0) -> 0 | F68: =IFERROR((F8-'0'!F8)/'0'!F8,0) -> 0 | G68: =IFERROR((G8-'0'!G8)/'0'!G8,0) -> 0 | J68: =J67+1 -> 2021 | K68: =IFERROR((K8-'0'!K8)/'0'!K8,0) -> 0 | L68: =IFERROR((L8-'0'!L8)/'0'!L8,0) -> 0 | M68: =IFERROR((M8-'0'!M8)/'0'!M8,0) -> 0.02 | N68: =IFERROR((N8-'0'!N8)/'0'!N8,0) -> 0.009090909091 | O68: =IFERROR((O8-'0'!O8)/'0'!O8,0) -> 0.008333333333 | R68: =R67+1 -> 2021 | S68: =IFERROR((S8-'0'!S8)/'0'!S8,0) -> 0 | T68: =IFERROR((T8-'0'!T8)/'0'!T8,0) -> 0 | Z68: =Z67+1 -> 2021 | AA68: =IFERROR((AA8-'0'!AA8)/'0'!AA8,0) -> 0 | AG68: |
B69: =B68+1 -> 2022 | C69: =IFERROR((C9-'0'!C9)/'0'!C9,0) -> 0 | D69: =IFERROR((D9-'0'!D9)/'0'!D9,0) -> 0 | E69: =IFERROR((E9-'0'!E9)/'0'!E9,0) -> 0 | F69: =IFERROR((F9-'0'!F9)/'0'!F9,0) -> 0 | J69: =J68+1 -> 2022 | K69: =IFERROR((K9-'0'!K9)/'0'!K9,0) -> 0 | L69: =IFERROR((L9-'0'!L9)/'0'!L9,0) -> 0.025 | M69: =IFERROR((M9-'0'!M9)/'0'!M9,0) -> 0.02 | N69: =IFERROR((N9-'0'!N9)/'0'!N9,0) -> 0.009090909091 | R69: =R68+1 -> 2022 | S69: =IFERROR((S9-'0'!S9)/'0'!S9,0) -> 0 | T69: =IFERROR((T9-'0'!T9)/'0'!T9,0) -> 0 | Z69: =Z68+1 -> 2022 | AA69: =IFERROR((AA9-'0'!AA9)/'0'!AA9,0) -> 0 | AG69: |
B70: 2023 | C70: =IFERROR((C10-'0'!C10)/'0'!C10,0) -> 0 | D70: =IFERROR((D10-'0'!D10)/'0'!D10,0) -> 0 | E70: =IFERROR((E10-'0'!E10)/'0'!E10,0) -> 0 | J70: 2023 | K70: =IFERROR((K10-'0'!K10)/'0'!K10,0) -> 0.06666666667 | L70: =IFERROR((L10-'0'!L10)/'0'!L10,0) -> 0.0375 | M70: =IFERROR((M10-'0'!M10)/'0'!M10,0) -> 0.02 | R70: =R69+1 -> 2023 | S70: =IFERROR((S10-'0'!S10)/'0'!S10,0) -> 0 | T70: =IFERROR((T10-'0'!T10)/'0'!T10,0) -> 0 | Z70: =Z69+1 -> 2023 | AA70: =IFERROR((AA10-'0'!AA10)/'0'!AA10,0) -> 0 | AG70: |
B71: 2024 | C71: =IFERROR((C11-'0'!C11)/'0'!C11,0) -> 0 | D71: =IFERROR((D11-'0'!D11)/'0'!D11,0) -> 0 | J71: 2024 | K71: =IFERROR((K11-'0'!K11)/'0'!K11,0) -> 0.06666666667 | L71: =IFERROR((L11-'0'!L11)/'0'!L11,0) -> 0.0375 | R71: =R70+1 -> 2024 | S71: =IFERROR((S11-'0'!S11)/'0'!S11,0) -> 0 | T71: =IFERROR((T11-'0'!T11)/'0'!T11,0) -> 0 | Z71: =Z70+1 -> 2024 | AA71: =IFERROR((AA11-'0'!AA11)/'0'!AA11,0) -> 0 | AG71: |
B72: 2025 | C72: =IFERROR((C12-'0'!C12)/'0'!C12,0) -> 0 | J72: 2025 | K72: =IFERROR((K12-'0'!K12)/'0'!K12,0) -> 0.06666666667 | R72: =R71+1 -> 2025 | S72: =IFERROR((S12-'0'!S12)/'0'!S12,0) -> 0 | T72: =IFERROR((T12-'0'!T12)/'0'!T12,0) -> 0 | Z72: =Z71+1 -> 2025 | AA72: =IFERROR((AA12-'0'!AA12)/'0'!AA12,0) -> 0 | AG72: |
AG73: |
B74: Counts | C74: Paid Count | E74: Development Age | J74: Counts | K74: Rptd Count | M74: Development Age | AG74: |
B75: AY | C75: 12 | D75: 24 | E75: 36 | F75: 48 | G75: 60 | H75: 72 | J75: AY | K75: 12 | L75: 24 | M75: 36 | N75: 48 | O75: 60 | P75: 72 | AG75: |
B76: =$B$7 -> 2020 | C76: =IFERROR((C16-'0'!C16)/'0'!C16,0) -> 0 | D76: =IFERROR((D16-'0'!D16)/'0'!D16,0) -> 0 | E76: =IFERROR((E16-'0'!E16)/'0'!E16,0) -> 0 | F76: =IFERROR((F16-'0'!F16)/'0'!F16,0) -> 0 | G76: =IFERROR((G16-'0'!G16)/'0'!G16,0) -> 0 | H76: =IFERROR((H16-'0'!H16)/'0'!H16,0) -> 0 | J76: =$B$7 -> 2020 | K76: =IFERROR((K16-'0'!K16)/'0'!K16,0) -> 0 | L76: =IFERROR((L16-'0'!L16)/'0'!L16,0) -> 0 | M76: =IFERROR((M16-'0'!M16)/'0'!M16,0) -> 0 | N76: =IFERROR((N16-'0'!N16)/'0'!N16,0) -> 0 | O76: =IFERROR((O16-'0'!O16)/'0'!O16,0) -> 0 | P76: =IFERROR((P16-'0'!P16)/'0'!P16,0) -> 0 | AG76: |
B77: =B76+1 -> 2021 | C77: =IFERROR((C17-'0'!C17)/'0'!C17,0) -> 0 | D77: =IFERROR((D17-'0'!D17)/'0'!D17,0) -> 0 | E77: =IFERROR((E17-'0'!E17)/'0'!E17,0) -> 0 | F77: =IFERROR((F17-'0'!F17)/'0'!F17,0) -> 0 | G77: =IFERROR((G17-'0'!G17)/'0'!G17,0) -> 0 | J77: =J76+1 -> 2021 | K77: =IFERROR((K17-'0'!K17)/'0'!K17,0) -> 0 | L77: =IFERROR((L17-'0'!L17)/'0'!L17,0) -> 0 | M77: =IFERROR((M17-'0'!M17)/'0'!M17,0) -> 0 | N77: =IFERROR((N17-'0'!N17)/'0'!N17,0) -> 0 | O77: =IFERROR((O17-'0'!O17)/'0'!O17,0) -> 0 | AG77: |
B78: =B77+1 -> 2022 | C78: =IFERROR((C18-'0'!C18)/'0'!C18,0) -> 0 | D78: =IFERROR((D18-'0'!D18)/'0'!D18,0) -> 0 | E78: =IFERROR((E18-'0'!E18)/'0'!E18,0) -> 0 | F78: =IFERROR((F18-'0'!F18)/'0'!F18,0) -> 0 | J78: =J77+1 -> 2022 | K78: =IFERROR((K18-'0'!K18)/'0'!K18,0) -> 0 | L78: =IFERROR((L18-'0'!L18)/'0'!L18,0) -> 0 | M78: =IFERROR((M18-'0'!M18)/'0'!M18,0) -> 0 | N78: =IFERROR((N18-'0'!N18)/'0'!N18,0) -> 0 | AG78: |
B79: 2023 | C79: =IFERROR((C19-'0'!C19)/'0'!C19,0) -> 0 | D79: =IFERROR((D19-'0'!D19)/'0'!D19,0) -> 0 | E79: =IFERROR((E19-'0'!E19)/'0'!E19,0) -> 0 | J79: 2023 | K79: =IFERROR((K19-'0'!K19)/'0'!K19,0) -> 0 | L79: =IFERROR((L19-'0'!L19)/'0'!L19,0) -> 0 | M79: =IFERROR((M19-'0'!M19)/'0'!M19,0) -> 0 | AG79: |
B80: 2024 | C80: =IFERROR((C20-'0'!C20)/'0'!C20,0) -> 0 | D80: =IFERROR((D20-'0'!D20)/'0'!D20,0) -> 0 | J80: 2024 | K80: =IFERROR((K20-'0'!K20)/'0'!K20,0) -> 0 | L80: =IFERROR((L20-'0'!L20)/'0'!L20,0) -> 0 | AG80: |
B81: 2025 | C81: =IFERROR((C21-'0'!C21)/'0'!C21,0) -> 0 | J81: 2025 | K81: =IFERROR((K21-'0'!K21)/'0'!K21,0) -> 0 | AG81: |
AG82: |
C83: paid loss ratio | F83: Development Age | K83: rptd loss ratio | N83: Development Age | S83: paid/rptd loss | V83: Development Age | AA83: paid/rptd counts | AD83: Development Age | AG83: |
B84: AY | C84: 12 | D84: 24 | E84: 36 | F84: 48 | G84: 60 | H84: 72 | J84: AY | K84: 12 | L84: 24 | M84: 36 | N84: 48 | O84: 60 | P84: 72 | R84: AY | S84: 12 | T84: 24 | U84: 36 | V84: 48 | W84: 60 | X84: 72 | Z84: AY | AA84: 12 | AB84: 24 | AC84: 36 | AD84: 48 | AE84: 60 | AF84: 72 | AG84: |
B85: =$B$7 -> 2020 | C85: =IFERROR((C25-'0'!C25)/'0'!C25,0) -> 0 | D85: =IFERROR((D25-'0'!D25)/'0'!D25,0) -> 0 | E85: =IFERROR((E25-'0'!E25)/'0'!E25,0) -> 0 | F85: =IFERROR((F25-'0'!F25)/'0'!F25,0) -> 0 | G85: =IFERROR((G25-'0'!G25)/'0'!G25,0) -> 0 | H85: =IFERROR((H25-'0'!H25)/'0'!H25,0) -> 0 | J85: =$B$7 -> 2020 | K85: =IFERROR((K25-'0'!K25)/'0'!K25,0) -> 0 | L85: =IFERROR((L25-'0'!L25)/'0'!L25,0) -> 0 | M85: =IFERROR((M25-'0'!M25)/'0'!M25,0) -> 0 | N85: =IFERROR((N25-'0'!N25)/'0'!N25,0) -> 0.009090909091 | O85: =IFERROR((O25-'0'!O25)/'0'!O25,0) -> 0.008333333333 | P85: =IFERROR((P25-'0'!P25)/'0'!P25,0) -> 0 | R85: =$B$7 -> 2020 | S85: =IFERROR((S25-'0'!S25)/'0'!S25,0) -> 0 | T85: =IFERROR((T25-'0'!T25)/'0'!T25,0) -> 0 | U85: =IFERROR((U25-'0'!U25)/'0'!U25,0) -> 0 | V85: =IFERROR((V25-'0'!V25)/'0'!V25,0) -> -0.009009009009 | W85: =IFERROR((W25-'0'!W25)/'0'!W25,0) -> -0.00826446281 | X85: =IFERROR((X25-'0'!X25)/'0'!X25,0) -> 0 | Z85: =$B$7 -> 2020 | AA85: =IFERROR((AA25-'0'!AA25)/'0'!AA25,0) -> 0 | AB85: =IFERROR((AB25-'0'!AB25)/'0'!AB25,0) -> 0 | AC85: =IFERROR((AC25-'0'!AC25)/'0'!AC25,0) -> 0 | AD85: =IFERROR((AD25-'0'!AD25)/'0'!AD25,0) -> 0 | AE85: =IFERROR((AE25-'0'!AE25)/'0'!AE25,0) -> 0 | AF85: =IFERROR((AF25-'0'!AF25)/'0'!AF25,0) -> 0 | AG85: |
B86: =B85+1 -> 2021 | C86: =IFERROR((C26-'0'!C26)/'0'!C26,0) -> 0 | D86: =IFERROR((D26-'0'!D26)/'0'!D26,0) -> 0 | E86: =IFERROR((E26-'0'!E26)/'0'!E26,0) -> 0 | F86: =IFERROR((F26-'0'!F26)/'0'!F26,0) -> 0 | G86: =IFERROR((G26-'0'!G26)/'0'!G26,0) -> 0 | J86: =J85+1 -> 2021 | K86: =IFERROR((K26-'0'!K26)/'0'!K26,0) -> 0 | L86: =IFERROR((L26-'0'!L26)/'0'!L26,0) -> 0 | M86: =IFERROR((M26-'0'!M26)/'0'!M26,0) -> 0.02 | N86: =IFERROR((N26-'0'!N26)/'0'!N26,0) -> 0.009090909091 | O86: =IFERROR((O26-'0'!O26)/'0'!O26,0) -> 0.008333333333 | R86: =R85+1 -> 2021 | S86: =IFERROR((S26-'0'!S26)/'0'!S26,0) -> 0 | T86: =IFERROR((T26-'0'!T26)/'0'!T26,0) -> 0 | U86: =IFERROR((U26-'0'!U26)/'0'!U26,0) -> -0.01960784314 | V86: =IFERROR((V26-'0'!V26)/'0'!V26,0) -> -0.009009009009 | W86: =IFERROR((W26-'0'!W26)/'0'!W26,0) -> -0.00826446281 | Z86: =Z85+1 -> 2021 | AA86: =IFERROR((AA26-'0'!AA26)/'0'!AA26,0) -> 0 | AB86: =IFERROR((AB26-'0'!AB26)/'0'!AB26,0) -> 0 | AC86: =IFERROR((AC26-'0'!AC26)/'0'!AC26,0) -> 0 | AD86: =IFERROR((AD26-'0'!AD26)/'0'!AD26,0) -> 0 | AE86: =IFERROR((AE26-'0'!AE26)/'0'!AE26,0) -> 0 | AG86: |
B87: =B86+1 -> 2022 | C87: =IFERROR((C27-'0'!C27)/'0'!C27,0) -> 0 | D87: =IFERROR((D27-'0'!D27)/'0'!D27,0) -> 0 | E87: =IFERROR((E27-'0'!E27)/'0'!E27,0) -> 0 | F87: =IFERROR((F27-'0'!F27)/'0'!F27,0) -> 0 | J87: =J86+1 -> 2022 | K87: =IFERROR((K27-'0'!K27)/'0'!K27,0) -> 0 | L87: =IFERROR((L27-'0'!L27)/'0'!L27,0) -> 0.025 | M87: =IFERROR((M27-'0'!M27)/'0'!M27,0) -> 0.02 | N87: =IFERROR((N27-'0'!N27)/'0'!N27,0) -> 0.009090909091 | R87: =R86+1 -> 2022 | S87: =IFERROR((S27-'0'!S27)/'0'!S27,0) -> 0 | T87: =IFERROR((T27-'0'!T27)/'0'!T27,0) -> -0.0243902439 | U87: =IFERROR((U27-'0'!U27)/'0'!U27,0) -> -0.01960784314 | V87: =IFERROR((V27-'0'!V27)/'0'!V27,0) -> -0.009009009009 | Z87: =Z86+1 -> 2022 | AA87: =IFERROR((AA27-'0'!AA27)/'0'!AA27,0) -> 0 | AB87: =IFERROR((AB27-'0'!AB27)/'0'!AB27,0) -> 0 | AC87: =IFERROR((AC27-'0'!AC27)/'0'!AC27,0) -> 0 | AD87: =IFERROR((AD27-'0'!AD27)/'0'!AD27,0) -> 0 | AG87: |
B88: 2023 | C88: =IFERROR((C28-'0'!C28)/'0'!C28,0) -> 0 | D88: =IFERROR((D28-'0'!D28)/'0'!D28,0) -> 0 | E88: =IFERROR((E28-'0'!E28)/'0'!E28,0) -> 0 | J88: 2023 | K88: =IFERROR((K28-'0'!K28)/'0'!K28,0) -> 0.06666666667 | L88: =IFERROR((L28-'0'!L28)/'0'!L28,0) -> 0.0375 | M88: =IFERROR((M28-'0'!M28)/'0'!M28,0) -> 0.02 | R88: 2023 | S88: =IFERROR((S28-'0'!S28)/'0'!S28,0) -> -0.0625 | T88: =IFERROR((T28-'0'!T28)/'0'!T28,0) -> -0.03614457831 | U88: =IFERROR((U28-'0'!U28)/'0'!U28,0) -> -0.01960784314 | Z88: 2023 | AA88: =IFERROR((AA28-'0'!AA28)/'0'!AA28,0) -> 0 | AB88: =IFERROR((AB28-'0'!AB28)/'0'!AB28,0) -> 0 | AC88: =IFERROR((AC28-'0'!AC28)/'0'!AC28,0) -> 0 | AG88: |
B89: 2024 | C89: =IFERROR((C29-'0'!C29)/'0'!C29,0) -> 0 | D89: =IFERROR((D29-'0'!D29)/'0'!D29,0) -> 0 | J89: 2024 | K89: =IFERROR((K29-'0'!K29)/'0'!K29,0) -> 0.06666666667 | L89: =IFERROR((L29-'0'!L29)/'0'!L29,0) -> 0.0375 | R89: 2024 | S89: =IFERROR((S29-'0'!S29)/'0'!S29,0) -> -0.0625 | T89: =IFERROR((T29-'0'!T29)/'0'!T29,0) -> -0.03614457831 | Z89: 2024 | AA89: =IFERROR((AA29-'0'!AA29)/'0'!AA29,0) -> 0 | AB89: =IFERROR((AB29-'0'!AB29)/'0'!AB29,0) -> 0 | AG89: |
B90: 2025 | C90: =IFERROR((C30-'0'!C30)/'0'!C30,0) -> 0 | J90: 2025 | K90: =IFERROR((K30-'0'!K30)/'0'!K30,0) -> 0.06666666667 | R90: 2025 | S90: =IFERROR((S30-'0'!S30)/'0'!S30,0) -> -0.0625 | Z90: 2025 | AA90: =IFERROR((AA30-'0'!AA30)/'0'!AA30,0) -> 0 | AG90: |
AG91: |
C92: PAID dollars-per-count | K92: REPORTED dollars-per-count | S92: Case O/S dollars-per-count | AG92: |
C93: average paid loss | F93: Development Age | K93: average rptd loss | N93: Development Age | S93: average case O/S | V93: Development Age | AG93: |
B94: AY | C94: 12 | D94: 24 | E94: 36 | F94: 48 | G94: 60 | H94: 72 | J94: AY | K94: 12 | L94: 24 | M94: 36 | N94: 48 | O94: 60 | P94: 72 | R94: AY | S94: 12 | T94: 24 | U94: 36 | V94: 48 | W94: 60 | X94: 72 | AG94: |
B95: =$B$7 -> 2020 | C95: =IFERROR((C35-'0'!C35)/'0'!C35,0) -> 0 | D95: =IFERROR((D35-'0'!D35)/'0'!D35,0) -> 0 | E95: =IFERROR((E35-'0'!E35)/'0'!E35,0) -> 0 | F95: =IFERROR((F35-'0'!F35)/'0'!F35,0) -> 0 | G95: =IFERROR((G35-'0'!G35)/'0'!G35,0) -> 0 | H95: =IFERROR((H35-'0'!H35)/'0'!H35,0) -> 0 | J95: =$B$7 -> 2020 | K95: =IFERROR((K35-'0'!K35)/'0'!K35,0) -> 0 | L95: =IFERROR((L35-'0'!L35)/'0'!L35,0) -> 0 | M95: =IFERROR((M35-'0'!M35)/'0'!M35,0) -> 0 | N95: =IFERROR((N35-'0'!N35)/'0'!N35,0) -> 0.009090909091 | O95: =IFERROR((O35-'0'!O35)/'0'!O35,0) -> 0.008333333333 | P95: =IFERROR((P35-'0'!P35)/'0'!P35,0) -> 0 | R95: =$B$7 -> 2020 | S95: =IFERROR((S35-'0'!S35)/'0'!S35,0) -> 0 | T95: =IFERROR((T35-'0'!T35)/'0'!T35,0) -> 0 | U95: =IFERROR((U35-'0'!U35)/'0'!U35,0) -> 0 | V95: =IFERROR((V35-'0'!V35)/'0'!V35,0) -> 0.1 | W95: =IFERROR((W35-'0'!W35)/'0'!W35,0) -> 0.1 | X95: =IFERROR((X35-'0'!X35)/'0'!X35,0) -> 0 | AG95: |
B96: =B95+1 -> 2021 | C96: =IFERROR((C36-'0'!C36)/'0'!C36,0) -> 0 | D96: =IFERROR((D36-'0'!D36)/'0'!D36,0) -> 0 | E96: =IFERROR((E36-'0'!E36)/'0'!E36,0) -> 0 | F96: =IFERROR((F36-'0'!F36)/'0'!F36,0) -> 0 | G96: =IFERROR((G36-'0'!G36)/'0'!G36,0) -> 0 | J96: =J95+1 -> 2021 | K96: =IFERROR((K36-'0'!K36)/'0'!K36,0) -> 0 | L96: =IFERROR((L36-'0'!L36)/'0'!L36,0) -> 0 | M96: =IFERROR((M36-'0'!M36)/'0'!M36,0) -> 0.02 | N96: =IFERROR((N36-'0'!N36)/'0'!N36,0) -> 0.009090909091 | O96: =IFERROR((O36-'0'!O36)/'0'!O36,0) -> 0.008333333333 | R96: =R95+1 -> 2021 | S96: =IFERROR((S36-'0'!S36)/'0'!S36,0) -> 0 | T96: =IFERROR((T36-'0'!T36)/'0'!T36,0) -> 0 | U96: =IFERROR((U36-'0'!U36)/'0'!U36,0) -> 0.1 | V96: =IFERROR((V36-'0'!V36)/'0'!V36,0) -> 0.1 | W96: =IFERROR((W36-'0'!W36)/'0'!W36,0) -> 0.1 | AG96: |
B97: =B96+1 -> 2022 | C97: =IFERROR((C37-'0'!C37)/'0'!C37,0) -> 0 | D97: =IFERROR((D37-'0'!D37)/'0'!D37,0) -> 0 | E97: =IFERROR((E37-'0'!E37)/'0'!E37,0) -> 0 | F97: =IFERROR((F37-'0'!F37)/'0'!F37,0) -> 0 | J97: =J96+1 -> 2022 | K97: =IFERROR((K37-'0'!K37)/'0'!K37,0) -> 0 | L97: =IFERROR((L37-'0'!L37)/'0'!L37,0) -> 0.025 | M97: =IFERROR((M37-'0'!M37)/'0'!M37,0) -> 0.02 | N97: =IFERROR((N37-'0'!N37)/'0'!N37,0) -> 0.009090909091 | R97: =R96+1 -> 2022 | S97: =IFERROR((S37-'0'!S37)/'0'!S37,0) -> 0 | T97: =IFERROR((T37-'0'!T37)/'0'!T37,0) -> 0.06666666667 | U97: =IFERROR((U37-'0'!U37)/'0'!U37,0) -> 0.1 | V97: =IFERROR((V37-'0'!V37)/'0'!V37,0) -> 0.1 | AG97: |
B98: 2023 | C98: =IFERROR((C38-'0'!C38)/'0'!C38,0) -> 0 | D98: =IFERROR((D38-'0'!D38)/'0'!D38,0) -> 0 | E98: =IFERROR((E38-'0'!E38)/'0'!E38,0) -> 0 | J98: 2023 | K98: =IFERROR((K38-'0'!K38)/'0'!K38,0) -> 0.06666666667 | L98: =IFERROR((L38-'0'!L38)/'0'!L38,0) -> 0.0375 | M98: =IFERROR((M38-'0'!M38)/'0'!M38,0) -> 0.02 | R98: 2023 | S98: =IFERROR((S38-'0'!S38)/'0'!S38,0) -> 0.1 | T98: =IFERROR((T38-'0'!T38)/'0'!T38,0) -> 0.1 | U98: =IFERROR((U38-'0'!U38)/'0'!U38,0) -> 0.1 | AG98: |
B99: 2024 | C99: =IFERROR((C39-'0'!C39)/'0'!C39,0) -> 0 | D99: =IFERROR((D39-'0'!D39)/'0'!D39,0) -> 0 | J99: 2024 | K99: =IFERROR((K39-'0'!K39)/'0'!K39,0) -> 0.06666666667 | L99: =IFERROR((L39-'0'!L39)/'0'!L39,0) -> 0.0375 | R99: 2024 | S99: =IFERROR((S39-'0'!S39)/'0'!S39,0) -> 0.1 | T99: =IFERROR((T39-'0'!T39)/'0'!T39,0) -> 0.1 | AG99: |
B100: 2025 | C100: =IFERROR((C40-'0'!C40)/'0'!C40,0) -> 0 | J100: 2025 | K100: =IFERROR((K40-'0'!K40)/'0'!K40,0) -> 0.06666666667 | R100: 2025 | S100: =IFERROR((S40-'0'!S40)/'0'!S40,0) -> 0.1 | AG100: |
AG101: |
AG102: |
AG103: |
AG104: |
AG105: |
AG106: |
AG107: |
AG108: |
AG109: |
AG110: |
AG111: |
AG112: |
AG113: |
AG114: |
AG115: |
AG116: |
AG117: |
AG118: |
AG119: |
B120: ---- | C120: ---- | D120: ---- | E120: ---- | F120: ---- | G120: ---- | H120: ---- | I120: ---- | J120: ---- | K120: ---- | L120: ---- | M120: ---- | N120: ---- | O120: ---- | P120: ---- | Q120: ---- | R120: ---- | S120: ---- | T120: ---- | U120: ---- | V120: ---- | W120: ---- | AG120: ----
AG121: |
AG122: |
AG123: |
AG124: |
AG125: |
AG126: |
AG127: |
AG128: |
AG129: |
AG130: |
AG131: |
AG132: |
AG133: |
AG134: |
AG135: |
AG136: |
AG137: |
AG138: |
AG139: |
AG140: |
AG141: |
AG142: |
AG143: |
AG144: |
AG145: |
AG146: |
AG147: |
AG148: |
AG149: |
AG150: |
AG151: |
AG152: |
AG153: |
AG154: |
AG155: |
AG156: |
AG157: |
AG158: |
AG159: |
AG160: |
AG161: |
AG162: |
AG163: |
AG164: |
AG165: |
AG166: |
AG167: |
AG168: |
AG169: |
AG170: |
AG171: |
AG172: |
AG173: |
AG174: |
AG175: |
AG176: |
AG177: |
AG178: |
AG179: |
B180: ---- | C180: ---- | D180: ---- | E180: ---- | F180: ---- | G180: ---- | H180: ---- | I180: ---- | J180: ---- | K180: ---- | L180: ---- | M180: ---- | N180: ---- | O180: ---- | P180: ---- | Q180: ---- | R180: ---- | S180: ---- | T180: ---- | U180: ---- | V180: ---- | W180: ---- | AG180: ----
AG181: |
AG182: |
AG183: |
AG184: |
AG185: |
AG186: |
AG187: |
AG188: |
AG189: |
AG190: |
AG191: |
AG192: |
AG193: |
AG194: |
AG195: |
AG196: |
AG197: |
AG198: |
AG199: |
AG200: |
AG201: |
... 1358 more rows

Sheet 2
B2: Book of Triangles | AG2: |
B3: Scenario: | C3: 2 | R3: (1) | S3: (2) | T3: (3) | U3: (4) | V3: (5) | W3: (6) | X3: (7) | AG3: |
T4: avg. | U4: cum. | V4: ann. | W4: rt level | X4: on | AG4: | | AI4: est pd | AJ4: est rptd | AK4: real | AL4: real
B5: Amounts | C5: Paid Loss | E5: Development Age | J5: Amounts | K5: Rptd Loss | M5: Development Age | T5: rate | U5: avg. | V5: expos. | W5: adj. to | X5: level | AG5: | | AI5: AY | AJ5: AY | AK5: AY | AL5: AY
B6: AY | C6: 12 | D6: =C6+12 -> 24 | E6: =D6+12 -> 36 | F6: 48 | G6: 60 | H6: 72 | J6: AY | K6: 12 | L6: =K6+12 -> 24 | M6: =L6+12 -> 36 | N6: 48 | O6: 60 | P6: 72 | R6: CY | S6: EP | T6: chg. | U6: rt. lvl. | V6: chg. | W6: =R12 -> 2025 | X6: EP | Z6: CY | AA6: EE | AG6: | | AH6: AY | AI6: ULR | AJ6: ULR | AK6: ULR | AL6: Loss
B7: 2020 | C7: 720 | D7: 1800 | E7: 2880 | F7: 3600 | G7: 3960 | H7: 4320 | J7: =$B$7 -> 2020 | K7: 2160 | L7: 2880 | M7: 3600 | N7: 3906 | O7: 4266 | P7: 4320 | R7: =$B$7 -> 2020 | S7: 7200 | U7: =T7 -> 0 | W7: =(1+U12)/(1+U7) -> 1 | X7: =S7*W7 -> 7200 | Z7: =$B$7 -> 2020 | AA7: 12.00000036 | AG7: | | AH7: =$B$7 -> 2020 | AI7: 0.6 | AJ7: 0.6 | AK7: 0.6 | AL7: =S7*AK7 -> 4320
B8: =B7+1 -> 2021 | C8: 720 | D8: 1800 | E8: 2880 | F8: 3600 | G8: 3960 | J8: =J7+1 -> 2021 | K8: 2160 | L8: 2880 | M8: 3492 | N8: 3906 | O8: 4266 | R8: =R7+1 -> 2021 | S8: 7200 | T8: 0 | U8: =(1+U7)*(1+T8)-1 -> 0 | V8: =(S8/S7)/(1+T8)-1 -> 0 | W8: =(1+U12)/(1+U8) -> 1 | X8: 7200 | Z8: =Z7+1 -> 2021 | AA8: 12.00000036 | AG8: | | AH8: =AH7+1 -> 2021 | AI8: 0.6 | AJ8: 0.6 | AK8: 0.6 | AL8: 4320
B9: =B8+1 -> 2022 | C9: 720 | D9: 1800 | E9: 2880 | F9: 3600 | J9: =J8+1 -> 2022 | K9: 2160 | L9: 2772 | M9: 3492 | N9: 3906 | R9: =R8+1 -> 2022 | S9: 7200 | T9: 0 | U9: =(1+U8)*(1+T9)-1 -> 0 | V9: =(S9/S8)/(1+T9)-1 -> 0 | W9: =(1+U12)/(1+U9) -> 1 | X9: 7200 | Z9: =Z8+1 -> 2022 | AA9: 12.00000036 | AG9: | | AH9: =AH8+1 -> 2022 | AI9: 0.6 | AJ9: 0.6 | AK9: 0.6 | AL9: 4320
B10: 2023 | C10: 720 | D10: 1800 | E10: 2880 | J10: 2023 | K10: 1944 | L10: 2718 | M10: 3492 | R10: =R9+1 -> 2023 | S10: 7200 | T10: 0 | U10: 0 | V10: =(S10/S9)/(1+T10)-1 -> 0 | W10: =(1+U12)/(1+U10) -> 1 | X10: 7200 | Z10: =Z9+1 -> 2023 | AA10: 12.00000036 | AG10: | | AH10: 2023 | AI10: 0.6 | AJ10: 0.594 | AK10: 0.6 | AL10: 4320
B11: 2024 | C11: 720 | D11: 1800 | J11: 2024 | K11: 1944 | L11: 2718 | R11: =R10+1 -> 2024 | S11: 7200 | T11: 0 | U11: 0 | V11: =(S11/S10)/(1+T11)-1 -> 0 | W11: =(1+U12)/(1+U11) -> 1 | X11: 7200 | Z11: =Z10+1 -> 2024 | AA11: 12.00000036 | AG11: | | AH11: 2024 | AI11: 0.6 | AJ11: 0.5787353323 | AK11: 0.6 | AL11: 4320
B12: 2025 | C12: 720 | J12: 2025 | K12: 1944 | R12: =R11+1 -> 2025 | S12: 7200 | T12: 0 | U12: 0 | V12: =(S12/S11)/(1+T12)-1 -> 0 | W12: =(1+U12)/(1+U12) -> 1 | X12: 7200 | Z12: =Z11+1 -> 2025 | AA12: 12.00000036 | AG12: | | AH12: 2025 | AI12: 0.6 | AJ12: 0.5584987591 | AK12: 0.6 | AL12: 4320
AG13: |
B14: Counts | C14: Paid Count | E14: Development Age | J14: Counts | K14: Rptd Count | M14: Development Age | R14: (2) | S14: = | T14: given | AG14: |
B15: AY | C15: 12 | D15: 24 | E15: 36 | F15: 48 | G15: 60 | H15: 72 | J15: AY | K15: 12 | L15: 24 | M15: 36 | N15: 48 | O15: 60 | P15: 72 | R15: (3) | S15: = | T15: given | AG15: |
B16: =$B$7 -> 2020 | C16: 2 | D16: 5 | E16: 8 | F16: 10 | G16: 11 | H16: 12 | J16: =$B$7 -> 2020 | K16: 6 | L16: 8 | M16: 10 | N16: 11 | O16: 12 | P16: 12 | R16: (4) | S16: = | T16: [ 1 + (4):prior] x [1 + (3)] - 1.0 | AG16: | | AH16: Interpretation: | AJ16: case reserve adequacy -15% at CY 2023
B17: =B16+1 -> 2021 | C17: 2 | D17: 5 | E17: 8 | F17: 10 | G17: 11 | J17: =J16+1 -> 2021 | K17: 6 | L17: 8 | M17: 10 | N17: 11 | O17: 12 | R17: (5) | S17: = | T17: [ (2) / (2):prior] / [1 + (3)] - 1.0 | AG17: |
B18: =B17+1 -> 2022 | C18: 2 | D18: 5 | E18: 8 | F18: 10 | J18: =J17+1 -> 2022 | K18: 6 | L18: 8 | M18: 10 | N18: 11 | R18: (6) | S18: = | T18: [ 1 + (4):2025] / [1 + (4)] | AG18: |
B19: 2023 | C19: 2 | D19: 5 | E19: 8 | J19: 2023 | K19: 6 | L19: 8 | M19: 10 | R19: (7) | S19: = | T19: (2) x (6) | AG19: |
B20: 2024 | C20: 2 | D20: 5 | J20: 2024 | K20: 6 | L20: 8 | AG20: |
B21: 2025 | C21: 2 | J21: 2025 | K21: 6 | AG21: |
AG22: |
C23: paid loss ratio | F23: Development Age | K23: rptd loss ratio | N23: Development Age | S23: paid/rptd loss | V23: Development Age | AA23: paid/rptd counts | AD23: Development Age | AG23: |
B24: AY | C24: 12 | D24: 24 | E24: 36 | F24: 48 | G24: 60 | H24: 72 | J24: AY | K24: 12 | L24: 24 | M24: 36 | N24: 48 | O24: 60 | P24: 72 | R24: AY | S24: 12 | T24: 24 | U24: 36 | V24: 48 | W24: 60 | X24: 72 | Z24: AY | AA24: 12 | AB24: 24 | AC24: 36 | AD24: 48 | AE24: 60 | AF24: 72 | AG24: |
B25: =$B$7 -> 2020 | C25: =C7/$X7 -> 0.1 | D25: 0.25 | E25: 0.4 | F25: 0.5 | G25: 0.55 | H25: 0.6 | J25: =$B$7 -> 2020 | K25: =K7/$X7 -> 0.3 | L25: 0.4 | M25: 0.5 | N25: 0.5425 | O25: 0.5925 | P25: 0.6 | R25: =$B$7 -> 2020 | S25: =C7/K7 -> 0.3333333333 | T25: 0.625 | U25: 0.8 | V25: 0.9216589862 | W25: 0.9282700422 | X25: 1 | Z25: =$B$7 -> 2020 | AA25: =C16/K16 -> 0.3333333333 | AB25: 0.625 | AC25: 0.8 | AD25: 0.9090909091 | AE25: 0.9166666667 | AF25: 1 | AG25: |
B26: =B25+1 -> 2021 | C26: =C8/$X8 -> 0.1 | D26: =D8/$X8 -> 0.25 | E26: =E8/$X8 -> 0.4 | F26: =F8/$X8 -> 0.5 | G26: =G8/$X8 -> 0.55 | J26: =J25+1 -> 2021 | K26: =K8/$X8 -> 0.3 | L26: =L8/$X8 -> 0.4 | M26: =M8/$X8 -> 0.485 | N26: =N8/$X8 -> 0.5425 | O26: =O8/$X8 -> 0.5925 | R26: =R25+1 -> 2021 | S26: =C8/K8 -> 0.3333333333 | T26: =D8/L8 -> 0.625 | U26: =E8/M8 -> 0.824742268 | V26: =F8/N8 -> 0.9216589862 | W26: =G8/O8 -> 0.9282700422 | Z26: =Z25+1 -> 2021 | AA26: =C17/K17 -> 0.3333333333 | AB26: =D17/L17 -> 0.625 | AC26: =E17/M17 -> 0.8 | AD26: =F17/N17 -> 0.9090909091 | AE26: =G17/O17 -> 0.9166666667 | AG26: |
B27: =B26+1 -> 2022 | C27: =C9/$X9 -> 0.1 | D27: =D9/$X9 -> 0.25 | E27: =E9/$X9 -> 0.4 | F27: =F9/$X9 -> 0.5 | J27: =J26+1 -> 2022 | K27: =K9/$X9 -> 0.3 | L27: =L9/$X9 -> 0.385 | M27: =M9/$X9 -> 0.485 | N27: =N9/$X9 -> 0.5425 | R27: =R26+1 -> 2022 | S27: =C9/K9 -> 0.3333333333 | T27: =D9/L9 -> 0.6493506494 | U27: =E9/M9 -> 0.824742268 | V27: =F9/N9 -> 0.9216589862 | Z27: =Z26+1 -> 2022 | AA27: =C18/K18 -> 0.3333333333 | AB27: =D18/L18 -> 0.625 | AC27: =E18/M18 -> 0.8 | AD27: =F18/N18 -> 0.9090909091 | AG27: |
B28: 2023 | C28: =C10/$X10 -> 0.1 | D28: =D10/$X10 -> 0.25 | E28: =E10/$X10 -> 0.4 | J28: 2023 | K28: =K10/$X10 -> 0.27 | L28: =L10/$X10 -> 0.3775 | M28: =M10/$X10 -> 0.485 | R28: 2023 | S28: =C10/K10 -> 0.3703703704 | T28: =D10/L10 -> 0.6622516556 | U28: =E10/M10 -> 0.824742268 | Z28: 2023 | AA28: =C19/K19 -> 0.3333333333 | AB28: =D19/L19 -> 0.625 | AC28: =E19/M19 -> 0.8 | AG28: |
B29: 2024 | C29: =C11/$X11 -> 0.1 | D29: =D11/$X11 -> 0.25 | J29: 2024 | K29: =K11/$X11 -> 0.27 | L29: =L11/$X11 -> 0.3775 | R29: 2024 | S29: =C11/K11 -> 0.3703703704 | T29: =D11/L11 -> 0.6622516556 | Z29: 2024 | AA29: =C20/K20 -> 0.3333333333 | AB29: =D20/L20 -> 0.625 | AG29: |
B30: 2025 | C30: =C12/$X12 -> 0.1 | J30: 2025 | K30: =K12/$X12 -> 0.27 | R30: 2025 | S30: =C12/K12 -> 0.3703703704 | Z30: 2025 | AA30: =C21/K21 -> 0.3333333333 | AG30: |
AG31: |
C32: PAID dollars-per-count | K32: REPORTED dollars-per-count | S32: Case O/S dollars-per-count | AG32: |
C33: average paid loss | F33: Development Age | K33: average rptd loss | N33: Development Age | S33: average case O/S | V33: Development Age | AG33: |
B34: AY | C34: 12 | D34: 24 | E34: 36 | F34: 48 | G34: 60 | H34: 72 | J34: AY | K34: 12 | L34: 24 | M34: 36 | N34: 48 | O34: 60 | P34: 72 | R34: AY | S34: 12 | T34: 24 | U34: 36 | V34: 48 | W34: 60 | X34: 72 | AG34: |
B35: =$B$7 -> 2020 | C35: =C7/C16 -> 360 | D35: 360 | E35: 360 | F35: 360 | G35: 360 | H35: 360 | J35: =$B$7 -> 2020 | K35: =K7/K16 -> 360 | L35: 360 | M35: 360 | N35: 355.0909091 | O35: 355.5 | P35: 360 | R35: =$B$7 -> 2020 | S35: =IFERROR((K7-C7)/(K16-C16),0) -> 360 | T35: 360 | U35: 360 | V35: 306 | W35: 306 | X35: 0 | AG35: |
B36: =B35+1 -> 2021 | C36: =C8/C17 -> 360 | D36: =D8/D17 -> 360 | E36: =E8/E17 -> 360 | F36: =F8/F17 -> 360 | G36: =G8/G17 -> 360 | J36: =J35+1 -> 2021 | K36: =K8/K17 -> 360 | L36: =L8/L17 -> 360 | M36: =M8/M17 -> 349.2 | N36: =N8/N17 -> 355.0909091 | O36: =O8/O17 -> 355.5 | R36: =R35+1 -> 2021 | S36: =IFERROR((K8-C8)/(K17-C17),0) -> 360 | T36: =IFERROR((L8-D8)/(L17-D17),0) -> 360 | U36: =IFERROR((M8-E8)/(M17-E17),0) -> 306 | V36: =IFERROR((N8-F8)/(N17-F17),0) -> 306 | W36: =IFERROR((O8-G8)/(O17-G17),0) -> 306 | AG36: |
B37: =B36+1 -> 2022 | C37: =C9/C18 -> 360 | D37: =D9/D18 -> 360 | E37: =E9/E18 -> 360 | F37: =F9/F18 -> 360 | J37: =J36+1 -> 2022 | K37: =K9/K18 -> 360 | L37: =L9/L18 -> 346.5 | M37: =M9/M18 -> 349.2 | N37: =N9/N18 -> 355.0909091 | R37: =R36+1 -> 2022 | S37: =IFERROR((K9-C9)/(K18-C18),0) -> 360 | T37: =IFERROR((L9-D9)/(L18-D18),0) -> 324 | U37: =IFERROR((M9-E9)/(M18-E18),0) -> 306 | V37: =IFERROR((N9-F9)/(N18-F18),0) -> 306 | AG37: |
B38: 2023 | C38: =C10/C19 -> 360 | D38: =D10/D19 -> 360 | E38: =E10/E19 -> 360 | J38: 2023 | K38: =K10/K19 -> 324 | L38: =L10/L19 -> 339.75 | M38: =M10/M19 -> 349.2 | R38: 2023 | S38: =IFERROR((K10-C10)/(K19-C19),0) -> 306 | T38: =IFERROR((L10-D10)/(L19-D19),0) -> 306 | U38: =IFERROR((M10-E10)/(M19-E19),0) -> 306 | AG38: |
B39: 2024 | C39: =C11/C20 -> 360 | D39: =D11/D20 -> 360 | J39: 2024 | K39: =K11/K20 -> 324 | L39: =L11/L20 -> 339.75 | R39: 2024 | S39: =IFERROR((K11-C11)/(K20-C20),0) -> 306 | T39: =IFERROR((L11-D11)/(L20-D20),0) -> 306 | AG39: |
B40: 2025 | C40: =C12/C21 -> 360 | J40: 2025 | K40: =K12/K21 -> 324 | R40: 2025 | S40: =IFERROR((K12-C12)/(K21-C21),0) -> 306 | AG40: |
AG41: |
AG42: |
AG43: |
AG44: |
AG45: |
AG46: |
AG47: |
AG48: |
AG49: |
AG50: |
AG51: |
AG52: |
AG53: |
AG54: |
AG55: |
AG56: |
AG57: |
AG58: |
AG59: |
B60: ---- | C60: ---- | D60: ---- | E60: ---- | F60: ---- | G60: ---- | H60: ---- | I60: ---- | J60: ---- | K60: ---- | L60: ---- | M60: ---- | N60: ---- | O60: ---- | P60: ---- | Q60: ---- | R60: ---- | S60: ---- | T60: ---- | U60: ---- | V60: ---- | W60: ---- | X60: ---- | Y60: ---- | Z60: ---- | AA60: ---- | AB60: ---- | AC60: ---- | AD60: ---- | AE60: ---- | AF60: ---- | AG60: ----
AG61: |
B62: Book of Triangles | AG62: |
B63: Scenario: | C63: =C3 -> 2 | D63: (Comparison to Base Case) | R63: (1) | S63: (2) | T63: (3) | U63: (4) | V63: (5) | W63: (6) | X63: (7) | AG63: |
T64: avg. | U64: cum. | V64: ann. | W64: rt level | X64: on | AG64: |
B65: Amounts | C65: Paid Loss | E65: Development Age | J65: Amounts | K65: Rptd Loss | M65: Development Age | T65: rate | U65: avg. | V65: expos. | W65: adj. to | X65: level | AG65: |
B66: AY | C66: 12 | D66: =C66+12 -> 24 | E66: =D66+12 -> 36 | F66: 48 | G66: 60 | H66: 72 | J66: AY | K66: 12 | L66: =K66+12 -> 24 | M66: =L66+12 -> 36 | N66: 48 | O66: 60 | P66: 72 | R66: CY | S66: EP | T66: chg. | U66: rt. lvl. | V66: chg. | W66: =R72 -> 2025 | X66: EP | Z66: CY | AA66: EE | AG66: |
B67: 2020 | C67: =IFERROR((C7-'0'!C7)/'0'!C7,0) -> 0 | D67: =IFERROR((D7-'0'!D7)/'0'!D7,0) -> 0 | E67: =IFERROR((E7-'0'!E7)/'0'!E7,0) -> 0 | F67: =IFERROR((F7-'0'!F7)/'0'!F7,0) -> 0 | G67: =IFERROR((G7-'0'!G7)/'0'!G7,0) -> 0 | H67: =IFERROR((H7-'0'!H7)/'0'!H7,0) -> 0 | J67: =$B$7 -> 2020 | K67: =IFERROR((K7-'0'!K7)/'0'!K7,0) -> 0 | L67: =IFERROR((L7-'0'!L7)/'0'!L7,0) -> 0 | M67: =IFERROR((M7-'0'!M7)/'0'!M7,0) -> 0 | N67: =IFERROR((N7-'0'!N7)/'0'!N7,0) -> -0.01363636364 | O67: =IFERROR((O7-'0'!O7)/'0'!O7,0) -> -0.0125 | P67: =IFERROR((P7-'0'!P7)/'0'!P7,0) -> 0 | R67: =$B$7 -> 2020 | S67: =IFERROR((S7-'0'!S7)/'0'!S7,0) -> 0 | Z67: =$B$7 -> 2020 | AA67: =IFERROR((AA7-'0'!AA7)/'0'!AA7,0) -> 0 | AG67: |
B68: =B67+1 -> 2021 | C68: =IFERROR((C8-'0'!C8)/'0'!C8,0) -> 0 | D68: =IFERROR((D8-'0'!D8)/'0'!D8,0) -> 0 | E68: =IFERROR((E8-'0'!E8)/'0'!E8,0) -> 0 | F68: =IFERROR((F8-'0'!F8)/'0'!F8,0) -> 0 | G68: =IFERROR((G8-'0'!G8)/'0'!G8,0) -> 0 | J68: =J67+1 -> 2021 | K68: =IFERROR((K8-'0'!K8)/'0'!K8,0) -> 0 | L68: =IFERROR((L8-'0'!L8)/'0'!L8,0) -> 0 | M68: =IFERROR((M8-'0'!M8)/'0'!M8,0) -> -0.03 | N68: =IFERROR((N8-'0'!N8)/'0'!N8,0) -> -0.01363636364 | O68: =IFERROR((O8-'0'!O8)/'0'!O8,0) -> -0.0125 | R68: =R67+1 -> 2021 | S68: =IFERROR((S8-'0'!S8)/'0'!S8,0) -> 0 | T68: =IFERROR((T8-'0'!T8)/'0'!T8,0) -> 0 | Z68: =Z67+1 -> 2021 | AA68: =IFERROR((AA8-'0'!AA8)/'0'!AA8,0) -> 0 | AG68: |
B69: =B68+1 -> 2022 | C69: =IFERROR((C9-'0'!C9)/'0'!C9,0) -> 0 | D69: =IFERROR((D9-'0'!D9)/'0'!D9,0) -> 0 | E69: =IFERROR((E9-'0'!E9)/'0'!E9,0) -> 0 | F69: =IFERROR((F9-'0'!F9)/'0'!F9,0) -> 0 | J69: =J68+1 -> 2022 | K69: =IFERROR((K9-'0'!K9)/'0'!K9,0) -> 0 | L69: =IFERROR((L9-'0'!L9)/'0'!L9,0) -> -0.0375 | M69: =IFERROR((M9-'0'!M9)/'0'!M9,0) -> -0.03 | N69: =IFERROR((N9-'0'!N9)/'0'!N9,0) -> -0.01363636364 | R69: =R68+1 -> 2022 | S69: =IFERROR((S9-'0'!S9)/'0'!S9,0) -> 0 | T69: =IFERROR((T9-'0'!T9)/'0'!T9,0) -> 0 | Z69: =Z68+1 -> 2022 | AA69: =IFERROR((AA9-'0'!AA9)/'0'!AA9,0) -> 0 | AG69: |
B70: 2023 | C70: =IFERROR((C10-'0'!C10)/'0'!C10,0) -> 0 | D70: =IFERROR((D10-'0'!D10)/'0'!D10,0) -> 0 | E70: =IFERROR((E10-'0'!E10)/'0'!E10,0) -> 0 | J70: 2023 | K70: =IFERROR((K10-'0'!K10)/'0'!K10,0) -> -0.1 | L70: =IFERROR((L10-'0'!L10)/'0'!L10,0) -> -0.05625 | M70: =IFERROR((M10-'0'!M10)/'0'!M10,0) -> -0.03 | R70: =R69+1 -> 2023 | S70: =IFERROR((S10-'0'!S10)/'0'!S10,0) -> 0 | T70: =IFERROR((T10-'0'!T10)/'0'!T10,0) -> 0 | Z70: =Z69+1 -> 2023 | AA70: =IFERROR((AA10-'0'!AA10)/'0'!AA10,0) -> 0 | AG70: |
B71: 2024 | C71: =IFERROR((C11-'0'!C11)/'0'!C11,0) -> 0 | D71: =IFERROR((D11-'0'!D11)/'0'!D11,0) -> 0 | J71: 2024 | K71: =IFERROR((K11-'0'!K11)/'0'!K11,0) -> -0.1 | L71: =IFERROR((L11-'0'!L11)/'0'!L11,0) -> -0.05625 | R71: =R70+1 -> 2024 | S71: =IFERROR((S11-'0'!S11)/'0'!S11,0) -> 0 | T71: =IFERROR((T11-'0'!T11)/'0'!T11,0) -> 0 | Z71: =Z70+1 -> 2024 | AA71: =IFERROR((AA11-'0'!AA11)/'0'!AA11,0) -> 0 | AG71: |
B72: 2025 | C72: =IFERROR((C12-'0'!C12)/'0'!C12,0) -> 0 | J72: 2025 | K72: =IFERROR((K12-'0'!K12)/'0'!K12,0) -> -0.1 | R72: =R71+1 -> 2025 | S72: =IFERROR((S12-'0'!S12)/'0'!S12,0) -> 0 | T72: =IFERROR((T12-'0'!T12)/'0'!T12,0) -> 0 | Z72: =Z71+1 -> 2025 | AA72: =IFERROR((AA12-'0'!AA12)/'0'!AA12,0) -> 0 | AG72: |
AG73: |
B74: Counts | C74: Paid Count | E74: Development Age | J74: Counts | K74: Rptd Count | M74: Development Age | AG74: |
B75: AY | C75: 12 | D75: 24 | E75: 36 | F75: 48 | G75: 60 | H75: 72 | J75: AY | K75: 12 | L75: 24 | M75: 36 | N75: 48 | O75: 60 | P75: 72 | AG75: |
B76: =$B$7 -> 2020 | C76: =IFERROR((C16-'0'!C16)/'0'!C16,0) -> 0 | D76: =IFERROR((D16-'0'!D16)/'0'!D16,0) -> 0 | E76: =IFERROR((E16-'0'!E16)/'0'!E16,0) -> 0 | F76: =IFERROR((F16-'0'!F16)/'0'!F16,0) -> 0 | G76: =IFERROR((G16-'0'!G16)/'0'!G16,0) -> 0 | H76: =IFERROR((H16-'0'!H16)/'0'!H16,0) -> 0 | J76: =$B$7 -> 2020 | K76: =IFERROR((K16-'0'!K16)/'0'!K16,0) -> 0 | L76: =IFERROR((L16-'0'!L16)/'0'!L16,0) -> 0 | M76: =IFERROR((M16-'0'!M16)/'0'!M16,0) -> 0 | N76: =IFERROR((N16-'0'!N16)/'0'!N16,0) -> 0 | O76: =IFERROR((O16-'0'!O16)/'0'!O16,0) -> 0 | P76: =IFERROR((P16-'0'!P16)/'0'!P16,0) -> 0 | AG76: |
B77: =B76+1 -> 2021 | C77: =IFERROR((C17-'0'!C17)/'0'!C17,0) -> 0 | D77: =IFERROR((D17-'0'!D17)/'0'!D17,0) -> 0 | E77: =IFERROR((E17-'0'!E17)/'0'!E17,0) -> 0 | F77: =IFERROR((F17-'0'!F17)/'0'!F17,0) -> 0 | G77: =IFERROR((G17-'0'!G17)/'0'!G17,0) -> 0 | J77: =J76+1 -> 2021 | K77: =IFERROR((K17-'0'!K17)/'0'!K17,0) -> 0 | L77: =IFERROR((L17-'0'!L17)/'0'!L17,0) -> 0 | M77: =IFERROR((M17-'0'!M17)/'0'!M17,0) -> 0 | N77: =IFERROR((N17-'0'!N17)/'0'!N17,0) -> 0 | O77: =IFERROR((O17-'0'!O17)/'0'!O17,0) -> 0 | AG77: |
B78: =B77+1 -> 2022 | C78: =IFERROR((C18-'0'!C18)/'0'!C18,0) -> 0 | D78: =IFERROR((D18-'0'!D18)/'0'!D18,0) -> 0 | E78: =IFERROR((E18-'0'!E18)/'0'!E18,0) -> 0 | F78: =IFERROR((F18-'0'!F18)/'0'!F18,0) -> 0 | J78: =J77+1 -> 2022 | K78: =IFERROR((K18-'0'!K18)/'0'!K18,0) -> 0 | L78: =IFERROR((L18-'0'!L18)/'0'!L18,0) -> 0 | M78: =IFERROR((M18-'0'!M18)/'0'!M18,0) -> 0 | N78: =IFERROR((N18-'0'!N18)/'0'!N18,0) -> 0 | AG78: |
B79: 2023 | C79: =IFERROR((C19-'0'!C19)/'0'!C19,0) -> 0 | D79: =IFERROR((D19-'0'!D19)/'0'!D19,0) -> 0 | E79: =IFERROR((E19-'0'!E19)/'0'!E19,0) -> 0 | J79: 2023 | K79: =IFERROR((K19-'0'!K19)/'0'!K19,0) -> 0 | L79: =IFERROR((L19-'0'!L19)/'0'!L19,0) -> 0 | M79: =IFERROR((M19-'0'!M19)/'0'!M19,0) -> 0 | AG79: |
B80: 2024 | C80: =IFERROR((C20-'0'!C20)/'0'!C20,0) -> 0 | D80: =IFERROR((D20-'0'!D20)/'0'!D20,0) -> 0 | J80: 2024 | K80: =IFERROR((K20-'0'!K20)/'0'!K20,0) -> 0 | L80: =IFERROR((L20-'0'!L20)/'0'!L20,0) -> 0 | AG80: |
B81: 2025 | C81: =IFERROR((C21-'0'!C21)/'0'!C21,0) -> 0 | J81: 2025 | K81: =IFERROR((K21-'0'!K21)/'0'!K21,0) -> 0 | AG81: |
AG82: |
C83: paid loss ratio | F83: Development Age | K83: rptd loss ratio | N83: Development Age | S83: paid/rptd loss | V83: Development Age | AA83: paid/rptd counts | AD83: Development Age | AG83: |
B84: AY | C84: 12 | D84: 24 | E84: 36 | F84: 48 | G84: 60 | H84: 72 | J84: AY | K84: 12 | L84: 24 | M84: 36 | N84: 48 | O84: 60 | P84: 72 | R84: AY | S84: 12 | T84: 24 | U84: 36 | V84: 48 | W84: 60 | X84: 72 | Z84: AY | AA84: 12 | AB84: 24 | AC84: 36 | AD84: 48 | AE84: 60 | AF84: 72 | AG84: |
B85: =$B$7 -> 2020 | C85: =IFERROR((C25-'0'!C25)/'0'!C25,0) -> 0 | D85: =IFERROR((D25-'0'!D25)/'0'!D25,0) -> 0 | E85: =IFERROR((E25-'0'!E25)/'0'!E25,0) -> 0 | F85: =IFERROR((F25-'0'!F25)/'0'!F25,0) -> 0 | G85: =IFERROR((G25-'0'!G25)/'0'!G25,0) -> 0 | H85: =IFERROR((H25-'0'!H25)/'0'!H25,0) -> 0 | J85: =$B$7 -> 2020 | K85: =IFERROR((K25-'0'!K25)/'0'!K25,0) -> 0 | L85: =IFERROR((L25-'0'!L25)/'0'!L25,0) -> 0 | M85: =IFERROR((M25-'0'!M25)/'0'!M25,0) -> 0 | N85: =IFERROR((N25-'0'!N25)/'0'!N25,0) -> -0.01363636364 | O85: =IFERROR((O25-'0'!O25)/'0'!O25,0) -> -0.0125 | P85: =IFERROR((P25-'0'!P25)/'0'!P25,0) -> 0 | R85: =$B$7 -> 2020 | S85: =IFERROR((S25-'0'!S25)/'0'!S25,0) -> 0 | T85: =IFERROR((T25-'0'!T25)/'0'!T25,0) -> 0 | U85: =IFERROR((U25-'0'!U25)/'0'!U25,0) -> 0 | V85: =IFERROR((V25-'0'!V25)/'0'!V25,0) -> 0.01382488479 | W85: =IFERROR((W25-'0'!W25)/'0'!W25,0) -> 0.01265822785 | X85: =IFERROR((X25-'0'!X25)/'0'!X25,0) -> 0 | Z85: =$B$7 -> 2020 | AA85: =IFERROR((AA25-'0'!AA25)/'0'!AA25,0) -> 0 | AB85: =IFERROR((AB25-'0'!AB25)/'0'!AB25,0) -> 0 | AC85: =IFERROR((AC25-'0'!AC25)/'0'!AC25,0) -> 0 | AD85: =IFERROR((AD25-'0'!AD25)/'0'!AD25,0) -> 0 | AE85: =IFERROR((AE25-'0'!AE25)/'0'!AE25,0) -> 0 | AF85: =IFERROR((AF25-'0'!AF25)/'0'!AF25,0) -> 0 | AG85: |
B86: =B85+1 -> 2021 | C86: =IFERROR((C26-'0'!C26)/'0'!C26,0) -> 0 | D86: =IFERROR((D26-'0'!D26)/'0'!D26,0) -> 0 | E86: =IFERROR((E26-'0'!E26)/'0'!E26,0) -> 0 | F86: =IFERROR((F26-'0'!F26)/'0'!F26,0) -> 0 | G86: =IFERROR((G26-'0'!G26)/'0'!G26,0) -> 0 | J86: =J85+1 -> 2021 | K86: =IFERROR((K26-'0'!K26)/'0'!K26,0) -> 0 | L86: =IFERROR((L26-'0'!L26)/'0'!L26,0) -> 0 | M86: =IFERROR((M26-'0'!M26)/'0'!M26,0) -> -0.03 | N86: =IFERROR((N26-'0'!N26)/'0'!N26,0) -> -0.01363636364 | O86: =IFERROR((O26-'0'!O26)/'0'!O26,0) -> -0.0125 | R86: =R85+1 -> 2021 | S86: =IFERROR((S26-'0'!S26)/'0'!S26,0) -> 0 | T86: =IFERROR((T26-'0'!T26)/'0'!T26,0) -> 0 | U86: =IFERROR((U26-'0'!U26)/'0'!U26,0) -> 0.03092783505 | V86: =IFERROR((V26-'0'!V26)/'0'!V26,0) -> 0.01382488479 | W86: =IFERROR((W26-'0'!W26)/'0'!W26,0) -> 0.01265822785 | Z86: =Z85+1 -> 2021 | AA86: =IFERROR((AA26-'0'!AA26)/'0'!AA26,0) -> 0 | AB86: =IFERROR((AB26-'0'!AB26)/'0'!AB26,0) -> 0 | AC86: =IFERROR((AC26-'0'!AC26)/'0'!AC26,0) -> 0 | AD86: =IFERROR((AD26-'0'!AD26)/'0'!AD26,0) -> 0 | AE86: =IFERROR((AE26-'0'!AE26)/'0'!AE26,0) -> 0 | AG86: |
B87: =B86+1 -> 2022 | C87: =IFERROR((C27-'0'!C27)/'0'!C27,0) -> 0 | D87: =IFERROR((D27-'0'!D27)/'0'!D27,0) -> 0 | E87: =IFERROR((E27-'0'!E27)/'0'!E27,0) -> 0 | F87: =IFERROR((F27-'0'!F27)/'0'!F27,0) -> 0 | J87: =J86+1 -> 2022 | K87: =IFERROR((K27-'0'!K27)/'0'!K27,0) -> 0 | L87: =IFERROR((L27-'0'!L27)/'0'!L27,0) -> -0.0375 | M87: =IFERROR((M27-'0'!M27)/'0'!M27,0) -> -0.03 | N87: =IFERROR((N27-'0'!N27)/'0'!N27,0) -> -0.01363636364 | R87: =R86+1 -> 2022 | S87: =IFERROR((S27-'0'!S27)/'0'!S27,0) -> 0 | T87: =IFERROR((T27-'0'!T27)/'0'!T27,0) -> 0.03896103896 | U87: =IFERROR((U27-'0'!U27)/'0'!U27,0) -> 0.03092783505 | V87: =IFERROR((V27-'0'!V27)/'0'!V27,0) -> 0.01382488479 | Z87: =Z86+1 -> 2022 | AA87: =IFERROR((AA27-'0'!AA27)/'0'!AA27,0) -> 0 | AB87: =IFERROR((AB27-'0'!AB27)/'0'!AB27,0) -> 0 | AC87: =IFERROR((AC27-'0'!AC27)/'0'!AC27,0) -> 0 | AD87: =IFERROR((AD27-'0'!AD27)/'0'!AD27,0) -> 0 | AG87: |
B88: 2023 | C88: =IFERROR((C28-'0'!C28)/'0'!C28,0) -> 0 | D88: =IFERROR((D28-'0'!D28)/'0'!D28,0) -> 0 | E88: =IFERROR((E28-'0'!E28)/'0'!E28,0) -> 0 | J88: 2023 | K88: =IFERROR((K28-'0'!K28)/'0'!K28,0) -> -0.1 | L88: =IFERROR((L28-'0'!L28)/'0'!L28,0) -> -0.05625 | M88: =IFERROR((M28-'0'!M28)/'0'!M28,0) -> -0.03 | R88: 2023 | S88: =IFERROR((S28-'0'!S28)/'0'!S28,0) -> 0.1111111111 | T88: =IFERROR((T28-'0'!T28)/'0'!T28,0) -> 0.05960264901 | U88: =IFERROR((U28-'0'!U28)/'0'!U28,0) -> 0.03092783505 | Z88: 2023 | AA88: =IFERROR((AA28-'0'!AA28)/'0'!AA28,0) -> 0 | AB88: =IFERROR((AB28-'0'!AB28)/'0'!AB28,0) -> 0 | AC88: =IFERROR((AC28-'0'!AC28)/'0'!AC28,0) -> 0 | AG88: |
B89: 2024 | C89: =IFERROR((C29-'0'!C29)/'0'!C29,0) -> 0 | D89: =IFERROR((D29-'0'!D29)/'0'!D29,0) -> 0 | J89: 2024 | K89: =IFERROR((K29-'0'!K29)/'0'!K29,0) -> -0.1 | L89: =IFERROR((L29-'0'!L29)/'0'!L29,0) -> -0.05625 | R89: 2024 | S89: =IFERROR((S29-'0'!S29)/'0'!S29,0) -> 0.1111111111 | T89: =IFERROR((T29-'0'!T29)/'0'!T29,0) -> 0.05960264901 | Z89: 2024 | AA89: =IFERROR((AA29-'0'!AA29)/'0'!AA29,0) -> 0 | AB89: =IFERROR((AB29-'0'!AB29)/'0'!AB29,0) -> 0 | AG89: |
B90: 2025 | C90: =IFERROR((C30-'0'!C30)/'0'!C30,0) -> 0 | J90: 2025 | K90: =IFERROR((K30-'0'!K30)/'0'!K30,0) -> -0.1 | R90: 2025 | S90: =IFERROR((S30-'0'!S30)/'0'!S30,0) -> 0.1111111111 | Z90: 2025 | AA90: =IFERROR((AA30-'0'!AA30)/'0'!AA30,0) -> 0 | AG90: |
AG91: |
C92: PAID dollars-per-count | K92: REPORTED dollars-per-count | S92: Case O/S dollars-per-count | AG92: |
C93: average paid loss | F93: Development Age | K93: average rptd loss | N93: Development Age | S93: average case O/S | V93: Development Age | AG93: |
B94: AY | C94: 12 | D94: 24 | E94: 36 | F94: 48 | G94: 60 | H94: 72 | J94: AY | K94: 12 | L94: 24 | M94: 36 | N94: 48 | O94: 60 | P94: 72 | R94: AY | S94: 12 | T94: 24 | U94: 36 | V94: 48 | W94: 60 | X94: 72 | AG94: |
B95: =$B$7 -> 2020 | C95: =IFERROR((C35-'0'!C35)/'0'!C35,0) -> 0 | D95: =IFERROR((D35-'0'!D35)/'0'!D35,0) -> 0 | E95: =IFERROR((E35-'0'!E35)/'0'!E35,0) -> 0 | F95: =IFERROR((F35-'0'!F35)/'0'!F35,0) -> 0 | G95: =IFERROR((G35-'0'!G35)/'0'!G35,0) -> 0 | H95: =IFERROR((H35-'0'!H35)/'0'!H35,0) -> 0 | J95: =$B$7 -> 2020 | K95: =IFERROR((K35-'0'!K35)/'0'!K35,0) -> 0 | L95: =IFERROR((L35-'0'!L35)/'0'!L35,0) -> 0 | M95: =IFERROR((M35-'0'!M35)/'0'!M35,0) -> 0 | N95: =IFERROR((N35-'0'!N35)/'0'!N35,0) -> -0.01363636364 | O95: =IFERROR((O35-'0'!O35)/'0'!O35,0) -> -0.0125 | P95: =IFERROR((P35-'0'!P35)/'0'!P35,0) -> 0 | R95: =$B$7 -> 2020 | S95: =IFERROR((S35-'0'!S35)/'0'!S35,0) -> 0 | T95: =IFERROR((T35-'0'!T35)/'0'!T35,0) -> 0 | U95: =IFERROR((U35-'0'!U35)/'0'!U35,0) -> 0 | V95: =IFERROR((V35-'0'!V35)/'0'!V35,0) -> -0.15 | W95: =IFERROR((W35-'0'!W35)/'0'!W35,0) -> -0.15 | X95: =IFERROR((X35-'0'!X35)/'0'!X35,0) -> 0 | AG95: |
B96: =B95+1 -> 2021 | C96: =IFERROR((C36-'0'!C36)/'0'!C36,0) -> 0 | D96: =IFERROR((D36-'0'!D36)/'0'!D36,0) -> 0 | E96: =IFERROR((E36-'0'!E36)/'0'!E36,0) -> 0 | F96: =IFERROR((F36-'0'!F36)/'0'!F36,0) -> 0 | G96: =IFERROR((G36-'0'!G36)/'0'!G36,0) -> 0 | J96: =J95+1 -> 2021 | K96: =IFERROR((K36-'0'!K36)/'0'!K36,0) -> 0 | L96: =IFERROR((L36-'0'!L36)/'0'!L36,0) -> 0 | M96: =IFERROR((M36-'0'!M36)/'0'!M36,0) -> -0.03 | N96: =IFERROR((N36-'0'!N36)/'0'!N36,0) -> -0.01363636364 | O96: =IFERROR((O36-'0'!O36)/'0'!O36,0) -> -0.0125 | R96: =R95+1 -> 2021 | S96: =IFERROR((S36-'0'!S36)/'0'!S36,0) -> 0 | T96: =IFERROR((T36-'0'!T36)/'0'!T36,0) -> 0 | U96: =IFERROR((U36-'0'!U36)/'0'!U36,0) -> -0.15 | V96: =IFERROR((V36-'0'!V36)/'0'!V36,0) -> -0.15 | W96: =IFERROR((W36-'0'!W36)/'0'!W36,0) -> -0.15 | AG96: |
B97: =B96+1 -> 2022 | C97: =IFERROR((C37-'0'!C37)/'0'!C37,0) -> 0 | D97: =IFERROR((D37-'0'!D37)/'0'!D37,0) -> 0 | E97: =IFERROR((E37-'0'!E37)/'0'!E37,0) -> 0 | F97: =IFERROR((F37-'0'!F37)/'0'!F37,0) -> 0 | J97: =J96+1 -> 2022 | K97: =IFERROR((K37-'0'!K37)/'0'!K37,0) -> 0 | L97: =IFERROR((L37-'0'!L37)/'0'!L37,0) -> -0.0375 | M97: =IFERROR((M37-'0'!M37)/'0'!M37,0) -> -0.03 | N97: =IFERROR((N37-'0'!N37)/'0'!N37,0) -> -0.01363636364 | R97: =R96+1 -> 2022 | S97: =IFERROR((S37-'0'!S37)/'0'!S37,0) -> 0 | T97: =IFERROR((T37-'0'!T37)/'0'!T37,0) -> -0.1 | U97: =IFERROR((U37-'0'!U37)/'0'!U37,0) -> -0.15 | V97: =IFERROR((V37-'0'!V37)/'0'!V37,0) -> -0.15 | AG97: |
B98: 2023 | C98: =IFERROR((C38-'0'!C38)/'0'!C38,0) -> 0 | D98: =IFERROR((D38-'0'!D38)/'0'!D38,0) -> 0 | E98: =IFERROR((E38-'0'!E38)/'0'!E38,0) -> 0 | J98: 2023 | K98: =IFERROR((K38-'0'!K38)/'0'!K38,0) -> -0.1 | L98: =IFERROR((L38-'0'!L38)/'0'!L38,0) -> -0.05625 | M98: =IFERROR((M38-'0'!M38)/'0'!M38,0) -> -0.03 | R98: 2023 | S98: =IFERROR((S38-'0'!S38)/'0'!S38,0) -> -0.15 | T98: =IFERROR((T38-'0'!T38)/'0'!T38,0) -> -0.15 | U98: =IFERROR((U38-'0'!U38)/'0'!U38,0) -> -0.15 | AG98: |
B99: 2024 | C99: =IFERROR((C39-'0'!C39)/'0'!C39,0) -> 0 | D99: =IFERROR((D39-'0'!D39)/'0'!D39,0) -> 0 | J99: 2024 | K99: =IFERROR((K39-'0'!K39)/'0'!K39,0) -> -0.1 | L99: =IFERROR((L39-'0'!L39)/'0'!L39,0) -> -0.05625 | R99: 2024 | S99: =IFERROR((S39-'0'!S39)/'0'!S39,0) -> -0.15 | T99: =IFERROR((T39-'0'!T39)/'0'!T39,0) -> -0.15 | AG99: |
B100: 2025 | C100: =IFERROR((C40-'0'!C40)/'0'!C40,0) -> 0 | J100: 2025 | K100: =IFERROR((K40-'0'!K40)/'0'!K40,0) -> -0.1 | R100: 2025 | S100: =IFERROR((S40-'0'!S40)/'0'!S40,0) -> -0.15 | AG100: |
AG101: |
AG102: |
AG103: |
AG104: |
AG105: |
AG106: |
AG107: |
AG108: |
AG109: |
AG110: |
AG111: |
AG112: |
AG113: |
AG114: |
AG115: |
AG116: |
AG117: |
AG118: |
AG119: |
B120: ---- | C120: ---- | D120: ---- | E120: ---- | F120: ---- | G120: ---- | H120: ---- | I120: ---- | J120: ---- | K120: ---- | L120: ---- | M120: ---- | N120: ---- | O120: ---- | P120: ---- | Q120: ---- | R120: ---- | S120: ---- | T120: ---- | U120: ---- | V120: ---- | W120: ---- | AG120: ----
AG121: |
AG122: |
AG123: |
AG124: |
AG125: |
AG126: |
AG127: |
AG128: |
AG129: |
AG130: |
AG131: |
AG132: |
AG133: |
AG134: |
AG135: |
AG136: |
AG137: |
AG138: |
AG139: |
AG140: |
AG141: |
AG142: |
AG143: |
AG144: |
AG145: |
AG146: |
AG147: |
AG148: |
AG149: |
AG150: |
AG151: |
AG152: |
AG153: |
AG154: |
AG155: |
AG156: |
AG157: |
AG158: |
AG159: |
AG160: |
AG161: |
AG162: |
AG163: |
AG164: |
AG165: |
AG166: |
AG167: |
AG168: |
AG169: |
AG170: |
AG171: |
AG172: |
AG173: |
AG174: |
AG175: |
AG176: |
AG177: |
AG178: |
AG179: |
B180: ---- | C180: ---- | D180: ---- | E180: ---- | F180: ---- | G180: ---- | H180: ---- | I180: ---- | J180: ---- | K180: ---- | L180: ---- | M180: ---- | N180: ---- | O180: ---- | P180: ---- | Q180: ---- | R180: ---- | S180: ---- | T180: ---- | U180: ---- | V180: ---- | W180: ---- | AG180: ----
AG181: |
AG182: |
AG183: |
AG184: |
AG185: |
AG186: |
AG187: |
AG188: |
AG189: |
AG190: |
AG191: |
AG192: |
AG193: |
AG194: |
AG195: |
AG196: |
AG197: |
AG198: |
AG199: |
AG200: |
AG201: |
... 1358 more rows

Sheet 3
B2: Book of Triangles | AG2: |
B3: Scenario: | C3: 3 | R3: (1) | S3: (2) | T3: (3) | U3: (4) | V3: (5) | W3: (6) | X3: (7) | AG3: |
T4: avg. | U4: cum. | V4: ann. | W4: rt level | X4: on | AG4: | | AI4: est pd | AJ4: est rptd | AK4: real | AL4: real
B5: Amounts | C5: Paid Loss | E5: Development Age | J5: Amounts | K5: Rptd Loss | M5: Development Age | T5: rate | U5: avg. | V5: expos. | W5: adj. to | X5: level | AG5: | | AI5: AY | AJ5: AY | AK5: AY | AL5: AY
B6: AY | C6: 12 | D6: =C6+12 -> 24 | E6: =D6+12 -> 36 | F6: =E6+12 -> 48 | G6: =F6+12 -> 60 | H6: =G6+12 -> 72 | J6: AY | K6: 12 | L6: =K6+12 -> 24 | M6: =L6+12 -> 36 | N6: =M6+12 -> 48 | O6: =N6+12 -> 60 | P6: =O6+12 -> 72 | R6: CY | S6: EP | T6: chg. | U6: rt. lvl. | V6: chg. | W6: =R12 -> 2025 | X6: EP | Z6: CY | AA6: EE | AG6: | | AH6: AY | AI6: ULR | AJ6: ULR | AK6: ULR | AL6: Loss
B7: 2020 | C7: 720 | D7: 1800 | E7: 2880 | F7: 3600 | G7: 3960 | H7: 4320 | J7: =$B$7 -> 2020 | K7: 2160 | L7: 2880 | M7: 3600 | N7: 4032.000031 | O7: 4392.000031 | P7: 4320 | R7: =$B$7 -> 2020 | S7: 7200 | U7: =T7 -> 0 | W7: =(1+U12)/(1+U7) -> 1 | X7: =S7*W7 -> 7200 | Z7: =$B$7 -> 2020 | AA7: 12.00000036 | AG7: | | AH7: =$B$7 -> 2020 | AI7: 0.6 | AJ7: 0.6 | AK7: 0.6 | AL7: =S7*AK7 -> 4320
B8: =B7+1 -> 2021 | C8: 720 | D8: 1800 | E8: 2880 | F8: 3600 | G8: 3960 | J8: =J7+1 -> 2021 | K8: 2160 | L8: 2880 | M8: 3744.000061 | N8: 4032.000031 | O8: 4392.000031 | R8: =R7+1 -> 2021 | S8: 7200 | T8: 0 | U8: =(1+U7)*(1+T8)-1 -> 0 | V8: =(S8/S7)/(1+T8)-1 -> 0 | W8: =(1+U12)/(1+U8) -> 1 | X8: 7200 | Z8: =Z7+1 -> 2021 | AA8: 12.00000036 | AG8: | | AH8: =AH7+1 -> 2021 | AI8: 0.6 | AJ8: 0.6 | AK8: 0.6 | AL8: 4320
B9: =B8+1 -> 2022 | C9: 720 | D9: 1800 | E9: 2880 | F9: 3600 | J9: =J8+1 -> 2022 | K9: 2160 | L9: 3024.000061 | M9: 3744.000061 | N9: 4032.000031 | R9: =R8+1 -> 2022 | S9: 7200 | T9: 0 | U9: =(1+U8)*(1+T9)-1 -> 0 | V9: =(S9/S8)/(1+T9)-1 -> 0 | W9: =(1+U12)/(1+U9) -> 1 | X9: 7200 | Z9: =Z8+1 -> 2022 | AA9: 12.00000036 | AG9: | | AH9: =AH8+1 -> 2022 | AI9: 0.6 | AJ9: 0.6 | AK9: 0.6 | AL9: 4320
B10: 2023 | C10: 720 | D10: 1800 | E10: 2880 | J10: 2023 | K10: 2448.000122 | L10: 3096.000092 | M10: 3744.000061 | R10: =R9+1 -> 2023 | S10: 7200 | T10: 0 | U10: 0 | V10: =(S10/S9)/(1+T10)-1 -> 0 | W10: =(1+U12)/(1+U10) -> 1 | X10: 7200 | Z10: =Z9+1 -> 2023 | AA10: 12.00000036 | AG10: | | AH10: 2023 | AI10: 0.6 | AJ10: 0.6080000034 | AK10: 0.6 | AL10: 4320
B11: 2024 | C11: 720 | D11: 1800 | J11: 2024 | K11: 2448.000122 | L11: 3096.000092 | R11: =R10+1 -> 2024 | S11: 7200 | T11: 0 | U11: 0 | V11: =(S11/S10)/(1+T11)-1 -> 0 | W11: =(1+U12)/(1+U11) -> 1 | X11: 7200 | Z11: =Z10+1 -> 2024 | AA11: 12.00000036 | AG11: | | AH11: 2024 | AI11: 0.6 | AJ11: 0.6281344441 | AK11: 0.6 | AL11: 4320
B12: 2025 | C12: 720 | J12: 2025 | K12: 2448.000122 | R12: =R11+1 -> 2025 | S12: 7200 | T12: 0 | U12: 0 | V12: =(S12/S11)/(1+T12)-1 -> 0 | W12: =(1+U12)/(1+U12) -> 1 | X12: 7200 | Z12: =Z11+1 -> 2025 | AA12: 12.00000036 | AG12: | | AH12: 2025 | AI12: 0.6 | AJ12: 0.6552075366 | AK12: 0.6 | AL12: 4320
AG13: |
B14: Counts | C14: Paid Count | E14: Development Age | J14: Counts | K14: Rptd Count | M14: Development Age | R14: (2) | S14: = | T14: given | AG14: |
B15: AY | C15: 12 | D15: 24 | E15: 36 | F15: 48 | G15: 60 | H15: 72 | J15: AY | K15: 12 | L15: 24 | M15: 36 | N15: 48 | O15: 60 | P15: 72 | R15: (3) | S15: = | T15: given | AG15: |
B16: =$B$7 -> 2020 | C16: 2 | D16: 5 | E16: 8 | F16: 10 | G16: 11 | H16: 12 | J16: =$B$7 -> 2020 | K16: 6 | L16: 8 | M16: 10 | N16: 11 | O16: 12 | P16: 12 | R16: (4) | S16: = | T16: [ 1 + (4):prior] x [1 + (3)] - 1.0 | AG16: | | AH16: Interpretation: | AJ16: case reserve adequacy +20% at CY 2023
B17: =B16+1 -> 2021 | C17: 2 | D17: 5 | E17: 8 | F17: 10 | G17: 11 | J17: =J16+1 -> 2021 | K17: 6 | L17: 8 | M17: 10 | N17: 11 | O17: 12 | R17: (5) | S17: = | T17: [ (2) / (2):prior] / [1 + (3)] - 1.0 | AG17: |
B18: =B17+1 -> 2022 | C18: 2 | D18: 5 | E18: 8 | F18: 10 | J18: =J17+1 -> 2022 | K18: 6 | L18: 8 | M18: 10 | N18: 11 | R18: (6) | S18: = | T18: [ 1 + (4):2025] / [1 + (4)] | AG18: |
B19: 2023 | C19: 2 | D19: 5 | E19: 8 | J19: 2023 | K19: 6 | L19: 8 | M19: 10 | R19: (7) | S19: = | T19: (2) x (6) | AG19: |
B20: 2024 | C20: 2 | D20: 5 | J20: 2024 | K20: 6 | L20: 8 | AG20: |
B21: 2025 | C21: 2 | J21: 2025 | K21: 6 | AG21: |
AG22: |
C23: paid loss ratio | F23: Development Age | K23: rptd loss ratio | N23: Development Age | S23: paid/rptd loss | V23: Development Age | AA23: paid/rptd counts | AD23: Development Age | AG23: |
B24: AY | C24: 12 | D24: 24 | E24: 36 | F24: 48 | G24: 60 | H24: 72 | J24: AY | K24: 12 | L24: 24 | M24: 36 | N24: 48 | O24: 60 | P24: 72 | R24: AY | S24: 12 | T24: 24 | U24: 36 | V24: 48 | W24: 60 | X24: 72 | Z24: AY | AA24: 12 | AB24: 24 | AC24: 36 | AD24: 48 | AE24: 60 | AF24: 72 | AG24: |
B25: =$B$7 -> 2020 | C25: =C7/$X7 -> 0.1 | D25: 0.25 | E25: 0.4 | F25: 0.5 | G25: 0.55 | H25: 0.6 | J25: =$B$7 -> 2020 | K25: =K7/$X7 -> 0.3 | L25: 0.4 | M25: 0.5 | N25: 0.5600000042 | O25: 0.6100000042 | P25: 0.6 | R25: =$B$7 -> 2020 | S25: =C7/K7 -> 0.3333333333 | T25: 0.625 | U25: 0.8 | V25: 0.8928571361 | W25: 0.901639338 | X25: 1 | Z25: =$B$7 -> 2020 | AA25: =C16/K16 -> 0.3333333333 | AB25: 0.625 | AC25: 0.8 | AD25: 0.9090909091 | AE25: 0.9166666667 | AF25: 1 | AG25: |
B26: =B25+1 -> 2021 | C26: =C8/$X8 -> 0.1 | D26: =D8/$X8 -> 0.25 | E26: =E8/$X8 -> 0.4 | F26: =F8/$X8 -> 0.5 | G26: =G8/$X8 -> 0.55 | J26: =J25+1 -> 2021 | K26: =K8/$X8 -> 0.3 | L26: =L8/$X8 -> 0.4 | M26: =M8/$X8 -> 0.5200000085 | N26: =N8/$X8 -> 0.5600000042 | O26: =O8/$X8 -> 0.6100000042 | R26: =R25+1 -> 2021 | S26: =C8/K8 -> 0.3333333333 | T26: =D8/L8 -> 0.625 | U26: =E8/M8 -> 0.7692307567 | V26: =F8/N8 -> 0.8928571361 | W26: =G8/O8 -> 0.901639338 | Z26: =Z25+1 -> 2021 | AA26: =C17/K17 -> 0.3333333333 | AB26: =D17/L17 -> 0.625 | AC26: =E17/M17 -> 0.8 | AD26: =F17/N17 -> 0.9090909091 | AE26: =G17/O17 -> 0.9166666667 | AG26: |
B27: =B26+1 -> 2022 | C27: =C9/$X9 -> 0.1 | D27: =D9/$X9 -> 0.25 | E27: =E9/$X9 -> 0.4 | F27: =F9/$X9 -> 0.5 | J27: =J26+1 -> 2022 | K27: =K9/$X9 -> 0.3 | L27: =L9/$X9 -> 0.4200000085 | M27: =M9/$X9 -> 0.5200000085 | N27: =N9/$X9 -> 0.5600000042 | R27: =R26+1 -> 2022 | S27: =C9/K9 -> 0.3333333333 | T27: =D9/L9 -> 0.5952380832 | U27: =E9/M9 -> 0.7692307567 | V27: =F9/N9 -> 0.8928571361 | Z27: =Z26+1 -> 2022 | AA27: =C18/K18 -> 0.3333333333 | AB27: =D18/L18 -> 0.625 | AC27: =E18/M18 -> 0.8 | AD27: =F18/N18 -> 0.9090909091 | AG27: |
B28: 2023 | C28: =C10/$X10 -> 0.1 | D28: =D10/$X10 -> 0.25 | E28: =E10/$X10 -> 0.4 | J28: 2023 | K28: =K10/$X10 -> 0.340000017 | L28: =L10/$X10 -> 0.4300000127 | M28: =M10/$X10 -> 0.5200000085 | R28: 2023 | S28: =C10/K10 -> 0.2941176324 | T28: =D10/L10 -> 0.5813953316 | U28: =E10/M10 -> 0.7692307567 | Z28: 2023 | AA28: =C19/K19 -> 0.3333333333 | AB28: =D19/L19 -> 0.625 | AC28: =E19/M19 -> 0.8 | AG28: |
B29: 2024 | C29: =C11/$X11 -> 0.1 | D29: =D11/$X11 -> 0.25 | J29: 2024 | K29: =K11/$X11 -> 0.340000017 | L29: =L11/$X11 -> 0.4300000127 | R29: 2024 | S29: =C11/K11 -> 0.2941176324 | T29: =D11/L11 -> 0.5813953316 | Z29: 2024 | AA29: =C20/K20 -> 0.3333333333 | AB29: =D20/L20 -> 0.625 | AG29: |
B30: 2025 | C30: =C12/$X12 -> 0.1 | J30: 2025 | K30: =K12/$X12 -> 0.340000017 | R30: 2025 | S30: =C12/K12 -> 0.2941176324 | Z30: 2025 | AA30: =C21/K21 -> 0.3333333333 | AG30: |
AG31: |
C32: PAID dollars-per-count | K32: REPORTED dollars-per-count | S32: Case O/S dollars-per-count | AG32: |
C33: average paid loss | F33: Development Age | K33: average rptd loss | N33: Development Age | S33: average case O/S | V33: Development Age | AG33: |
B34: AY | C34: 12 | D34: 24 | E34: 36 | F34: 48 | G34: 60 | H34: 72 | J34: AY | K34: 12 | L34: 24 | M34: 36 | N34: 48 | O34: 60 | P34: 72 | R34: AY | S34: 12 | T34: 24 | U34: 36 | V34: 48 | W34: 60 | X34: 72 | AG34: |
B35: =$B$7 -> 2020 | C35: =C7/C16 -> 360 | D35: 360 | E35: 360 | F35: 360 | G35: 360 | H35: 360 | J35: =$B$7 -> 2020 | K35: =K7/K16 -> 360 | L35: 360 | M35: 360 | N35: 366.5454573 | O35: 366.0000025 | P35: 360 | R35: =$B$7 -> 2020 | S35: =IFERROR((K7-C7)/(K16-C16),0) -> 360 | T35: 360 | U35: 360 | V35: 432.0000305 | W35: 432.0000305 | X35: 0 | AG35: |
B36: =B35+1 -> 2021 | C36: =C8/C17 -> 360 | D36: =D8/D17 -> 360 | E36: =E8/E17 -> 360 | F36: =F8/F17 -> 360 | G36: =G8/G17 -> 360 | J36: =J35+1 -> 2021 | K36: =K8/K17 -> 360 | L36: =L8/L17 -> 360 | M36: =M8/M17 -> 374.4000061 | N36: =N8/N17 -> 366.5454573 | O36: =O8/O17 -> 366.0000025 | R36: =R35+1 -> 2021 | S36: =IFERROR((K8-C8)/(K17-C17),0) -> 360 | T36: =IFERROR((L8-D8)/(L17-D17),0) -> 360 | U36: =IFERROR((M8-E8)/(M17-E17),0) -> 432.0000305 | V36: =IFERROR((N8-F8)/(N17-F17),0) -> 432.0000305 | W36: =IFERROR((O8-G8)/(O17-G17),0) -> 432.0000305 | AG36: |
B37: =B36+1 -> 2022 | C37: =C9/C18 -> 360 | D37: =D9/D18 -> 360 | E37: =E9/E18 -> 360 | F37: =F9/F18 -> 360 | J37: =J36+1 -> 2022 | K37: =K9/K18 -> 360 | L37: =L9/L18 -> 378.0000076 | M37: =M9/M18 -> 374.4000061 | N37: =N9/N18 -> 366.5454573 | R37: =R36+1 -> 2022 | S37: =IFERROR((K9-C9)/(K18-C18),0) -> 360 | T37: =IFERROR((L9-D9)/(L18-D18),0) -> 408.0000203 | U37: =IFERROR((M9-E9)/(M18-E18),0) -> 432.0000305 | V37: =IFERROR((N9-F9)/(N18-F18),0) -> 432.0000305 | AG37: |
B38: 2023 | C38: =C10/C19 -> 360 | D38: =D10/D19 -> 360 | E38: =E10/E19 -> 360 | J38: 2023 | K38: =K10/K19 -> 408.0000203 | L38: =L10/L19 -> 387.0000114 | M38: =M10/M19 -> 374.4000061 | R38: 2023 | S38: =IFERROR((K10-C10)/(K19-C19),0) -> 432.0000305 | T38: =IFERROR((L10-D10)/(L19-D19),0) -> 432.0000305 | U38: =IFERROR((M10-E10)/(M19-E19),0) -> 432.0000305 | AG38: |
B39: 2024 | C39: =C11/C20 -> 360 | D39: =D11/D20 -> 360 | J39: 2024 | K39: =K11/K20 -> 408.0000203 | L39: =L11/L20 -> 387.0000114 | R39: 2024 | S39: =IFERROR((K11-C11)/(K20-C20),0) -> 432.0000305 | T39: =IFERROR((L11-D11)/(L20-D20),0) -> 432.0000305 | AG39: |
B40: 2025 | C40: =C12/C21 -> 360 | J40: 2025 | K40: =K12/K21 -> 408.0000203 | R40: 2025 | S40: =IFERROR((K12-C12)/(K21-C21),0) -> 432.0000305 | AG40: |
AG41: |
AG42: |
AG43: |
AG44: |
AG45: |
AG46: |
AG47: |
AG48: |
AG49: |
AG50: |
AG51: |
AG52: |
AG53: |
AG54: |
AG55: |
AG56: |
AG57: |
AG58: |
AG59: |
B60: ---- | C60: ---- | D60: ---- | E60: ---- | F60: ---- | G60: ---- | H60: ---- | I60: ---- | J60: ---- | K60: ---- | L60: ---- | M60: ---- | N60: ---- | O60: ---- | P60: ---- | Q60: ---- | R60: ---- | S60: ---- | T60: ---- | U60: ---- | V60: ---- | W60: ---- | X60: ---- | Y60: ---- | Z60: ---- | AA60: ---- | AB60: ---- | AC60: ---- | AD60: ---- | AE60: ---- | AF60: ---- | AG60: ----
AG61: |
B62: Book of Triangles | AG62: |
B63: Scenario: | C63: =C3 -> 3 | D63: (Comparison to Base Case) | R63: (1) | S63: (2) | T63: (3) | U63: (4) | V63: (5) | W63: (6) | X63: (7) | AG63: |
T64: avg. | U64: cum. | V64: ann. | W64: rt level | X64: on | AG64: |
B65: Amounts | C65: Paid Loss | E65: Development Age | J65: Amounts | K65: Rptd Loss | M65: Development Age | T65: rate | U65: avg. | V65: expos. | W65: adj. to | X65: level | AG65: |
B66: AY | C66: 12 | D66: =C66+12 -> 24 | E66: =D66+12 -> 36 | F66: =E66+12 -> 48 | G66: =F66+12 -> 60 | H66: =G66+12 -> 72 | J66: AY | K66: 12 | L66: =K66+12 -> 24 | M66: =L66+12 -> 36 | N66: =M66+12 -> 48 | O66: =N66+12 -> 60 | P66: =O66+12 -> 72 | R66: CY | S66: EP | T66: chg. | U66: rt. lvl. | V66: chg. | W66: =R72 -> 2025 | X66: EP | Z66: CY | AA66: EE | AG66: |
B67: 2020 | C67: =IFERROR((C7-'0'!C7)/'0'!C7,0) -> 0 | D67: =IFERROR((D7-'0'!D7)/'0'!D7,0) -> 0 | E67: =IFERROR((E7-'0'!E7)/'0'!E7,0) -> 0 | F67: =IFERROR((F7-'0'!F7)/'0'!F7,0) -> 0 | G67: =IFERROR((G7-'0'!G7)/'0'!G7,0) -> 0 | H67: =IFERROR((H7-'0'!H7)/'0'!H7,0) -> 0 | J67: =$B$7 -> 2020 | K67: =IFERROR((K7-'0'!K7)/'0'!K7,0) -> 0 | L67: =IFERROR((L7-'0'!L7)/'0'!L7,0) -> 0 | M67: =IFERROR((M7-'0'!M7)/'0'!M7,0) -> 0 | N67: =IFERROR((N7-'0'!N7)/'0'!N7,0) -> 0.01818182589 | O67: =IFERROR((O7-'0'!O7)/'0'!O7,0) -> 0.01666667373 | P67: =IFERROR((P7-'0'!P7)/'0'!P7,0) -> 0 | R67: =$B$7 -> 2020 | S67: =IFERROR((S7-'0'!S7)/'0'!S7,0) -> 0 | Z67: =$B$7 -> 2020 | AA67: =IFERROR((AA7-'0'!AA7)/'0'!AA7,0) -> 0 | AG67: |
B68: =B67+1 -> 2021 | C68: =IFERROR((C8-'0'!C8)/'0'!C8,0) -> 0 | D68: =IFERROR((D8-'0'!D8)/'0'!D8,0) -> 0 | E68: =IFERROR((E8-'0'!E8)/'0'!E8,0) -> 0 | F68: =IFERROR((F8-'0'!F8)/'0'!F8,0) -> 0 | G68: =IFERROR((G8-'0'!G8)/'0'!G8,0) -> 0 | J68: =J67+1 -> 2021 | K68: =IFERROR((K8-'0'!K8)/'0'!K8,0) -> 0 | L68: =IFERROR((L8-'0'!L8)/'0'!L8,0) -> 0 | M68: =IFERROR((M8-'0'!M8)/'0'!M8,0) -> 0.04000001695 | N68: =IFERROR((N8-'0'!N8)/'0'!N8,0) -> 0.01818182589 | O68: =IFERROR((O8-'0'!O8)/'0'!O8,0) -> 0.01666667373 | R68: =R67+1 -> 2021 | S68: =IFERROR((S8-'0'!S8)/'0'!S8,0) -> 0 | T68: =IFERROR((T8-'0'!T8)/'0'!T8,0) -> 0 | Z68: =Z67+1 -> 2021 | AA68: =IFERROR((AA8-'0'!AA8)/'0'!AA8,0) -> 0 | AG68: |
B69: =B68+1 -> 2022 | C69: =IFERROR((C9-'0'!C9)/'0'!C9,0) -> 0 | D69: =IFERROR((D9-'0'!D9)/'0'!D9,0) -> 0 | E69: =IFERROR((E9-'0'!E9)/'0'!E9,0) -> 0 | F69: =IFERROR((F9-'0'!F9)/'0'!F9,0) -> 0 | J69: =J68+1 -> 2022 | K69: =IFERROR((K9-'0'!K9)/'0'!K9,0) -> 0 | L69: =IFERROR((L9-'0'!L9)/'0'!L9,0) -> 0.05000002119 | M69: =IFERROR((M9-'0'!M9)/'0'!M9,0) -> 0.04000001695 | N69: =IFERROR((N9-'0'!N9)/'0'!N9,0) -> 0.01818182589 | R69: =R68+1 -> 2022 | S69: =IFERROR((S9-'0'!S9)/'0'!S9,0) -> 0 | T69: =IFERROR((T9-'0'!T9)/'0'!T9,0) -> 0 | Z69: =Z68+1 -> 2022 | AA69: =IFERROR((AA9-'0'!AA9)/'0'!AA9,0) -> 0 | AG69: |
B70: 2023 | C70: =IFERROR((C10-'0'!C10)/'0'!C10,0) -> 0 | D70: =IFERROR((D10-'0'!D10)/'0'!D10,0) -> 0 | E70: =IFERROR((E10-'0'!E10)/'0'!E10,0) -> 0 | J70: 2023 | K70: =IFERROR((K10-'0'!K10)/'0'!K10,0) -> 0.1333333898 | L70: =IFERROR((L10-'0'!L10)/'0'!L10,0) -> 0.07500003179 | M70: =IFERROR((M10-'0'!M10)/'0'!M10,0) -> 0.04000001695 | R70: =R69+1 -> 2023 | S70: =IFERROR((S10-'0'!S10)/'0'!S10,0) -> 0 | T70: =IFERROR((T10-'0'!T10)/'0'!T10,0) -> 0 | Z70: =Z69+1 -> 2023 | AA70: =IFERROR((AA10-'0'!AA10)/'0'!AA10,0) -> 0 | AG70: |
B71: 2024 | C71: =IFERROR((C11-'0'!C11)/'0'!C11,0) -> 0 | D71: =IFERROR((D11-'0'!D11)/'0'!D11,0) -> 0 | J71: 2024 | K71: =IFERROR((K11-'0'!K11)/'0'!K11,0) -> 0.1333333898 | L71: =IFERROR((L11-'0'!L11)/'0'!L11,0) -> 0.07500003179 | R71: =R70+1 -> 2024 | S71: =IFERROR((S11-'0'!S11)/'0'!S11,0) -> 0 | T71: =IFERROR((T11-'0'!T11)/'0'!T11,0) -> 0 | Z71: =Z70+1 -> 2024 | AA71: =IFERROR((AA11-'0'!AA11)/'0'!AA11,0) -> 0 | AG71: |
B72: 2025 | C72: =IFERROR((C12-'0'!C12)/'0'!C12,0) -> 0 | J72: 2025 | K72: =IFERROR((K12-'0'!K12)/'0'!K12,0) -> 0.1333333898 | R72: =R71+1 -> 2025 | S72: =IFERROR((S12-'0'!S12)/'0'!S12,0) -> 0 | T72: =IFERROR((T12-'0'!T12)/'0'!T12,0) -> 0 | Z72: =Z71+1 -> 2025 | AA72: =IFERROR((AA12-'0'!AA12)/'0'!AA12,0) -> 0 | AG72: |
AG73: |
B74: Counts | C74: Paid Count | E74: Development Age | J74: Counts | K74: Rptd Count | M74: Development Age | AG74: |
B75: AY | C75: 12 | D75: 24 | E75: 36 | F75: 48 | G75: 60 | H75: 72 | J75: AY | K75: 12 | L75: 24 | M75: 36 | N75: 48 | O75: 60 | P75: 72 | AG75: |
B76: =$B$7 -> 2020 | C76: =IFERROR((C16-'0'!C16)/'0'!C16,0) -> 0 | D76: =IFERROR((D16-'0'!D16)/'0'!D16,0) -> 0 | E76: =IFERROR((E16-'0'!E16)/'0'!E16,0) -> 0 | F76: =IFERROR((F16-'0'!F16)/'0'!F16,0) -> 0 | G76: =IFERROR((G16-'0'!G16)/'0'!G16,0) -> 0 | H76: =IFERROR((H16-'0'!H16)/'0'!H16,0) -> 0 | J76: =$B$7 -> 2020 | K76: =IFERROR((K16-'0'!K16)/'0'!K16,0) -> 0 | L76: =IFERROR((L16-'0'!L16)/'0'!L16,0) -> 0 | M76: =IFERROR((M16-'0'!M16)/'0'!M16,0) -> 0 | N76: =IFERROR((N16-'0'!N16)/'0'!N16,0) -> 0 | O76: =IFERROR((O16-'0'!O16)/'0'!O16,0) -> 0 | P76: =IFERROR((P16-'0'!P16)/'0'!P16,0) -> 0 | AG76: |
B77: =B76+1 -> 2021 | C77: =IFERROR((C17-'0'!C17)/'0'!C17,0) -> 0 | D77: =IFERROR((D17-'0'!D17)/'0'!D17,0) -> 0 | E77: =IFERROR((E17-'0'!E17)/'0'!E17,0) -> 0 | F77: =IFERROR((F17-'0'!F17)/'0'!F17,0) -> 0 | G77: =IFERROR((G17-'0'!G17)/'0'!G17,0) -> 0 | J77: =J76+1 -> 2021 | K77: =IFERROR((K17-'0'!K17)/'0'!K17,0) -> 0 | L77: =IFERROR((L17-'0'!L17)/'0'!L17,0) -> 0 | M77: =IFERROR((M17-'0'!M17)/'0'!M17,0) -> 0 | N77: =IFERROR((N17-'0'!N17)/'0'!N17,0) -> 0 | O77: =IFERROR((O17-'0'!O17)/'0'!O17,0) -> 0 | AG77: |
B78: =B77+1 -> 2022 | C78: =IFERROR((C18-'0'!C18)/'0'!C18,0) -> 0 | D78: =IFERROR((D18-'0'!D18)/'0'!D18,0) -> 0 | E78: =IFERROR((E18-'0'!E18)/'0'!E18,0) -> 0 | F78: =IFERROR((F18-'0'!F18)/'0'!F18,0) -> 0 | J78: =J77+1 -> 2022 | K78: =IFERROR((K18-'0'!K18)/'0'!K18,0) -> 0 | L78: =IFERROR((L18-'0'!L18)/'0'!L18,0) -> 0 | M78: =IFERROR((M18-'0'!M18)/'0'!M18,0) -> 0 | N78: =IFERROR((N18-'0'!N18)/'0'!N18,0) -> 0 | AG78: |
B79: 2023 | C79: =IFERROR((C19-'0'!C19)/'0'!C19,0) -> 0 | D79: =IFERROR((D19-'0'!D19)/'0'!D19,0) -> 0 | E79: =IFERROR((E19-'0'!E19)/'0'!E19,0) -> 0 | J79: 2023 | K79: =IFERROR((K19-'0'!K19)/'0'!K19,0) -> 0 | L79: =IFERROR((L19-'0'!L19)/'0'!L19,0) -> 0 | M79: =IFERROR((M19-'0'!M19)/'0'!M19,0) -> 0 | AG79: |
B80: 2024 | C80: =IFERROR((C20-'0'!C20)/'0'!C20,0) -> 0 | D80: =IFERROR((D20-'0'!D20)/'0'!D20,0) -> 0 | J80: 2024 | K80: =IFERROR((K20-'0'!K20)/'0'!K20,0) -> 0 | L80: =IFERROR((L20-'0'!L20)/'0'!L20,0) -> 0 | AG80: |
B81: 2025 | C81: =IFERROR((C21-'0'!C21)/'0'!C21,0) -> 0 | J81: 2025 | K81: =IFERROR((K21-'0'!K21)/'0'!K21,0) -> 0 | AG81: |
AG82: |
C83: paid loss ratio | F83: Development Age | K83: rptd loss ratio | N83: Development Age | S83: paid/rptd loss | V83: Development Age | AA83: paid/rptd counts | AD83: Development Age | AG83: |
B84: AY | C84: 12 | D84: 24 | E84: 36 | F84: 48 | G84: 60 | H84: 72 | J84: AY | K84: 12 | L84: 24 | M84: 36 | N84: 48 | O84: 60 | P84: 72 | R84: AY | S84: 12 | T84: 24 | U84: 36 | V84: 48 | W84: 60 | X84: 72 | Z84: AY | AA84: 12 | AB84: 24 | AC84: 36 | AD84: 48 | AE84: 60 | AF84: 72 | AG84: |
B85: =$B$7 -> 2020 | C85: =IFERROR((C25-'0'!C25)/'0'!C25,0) -> 0 | D85: =IFERROR((D25-'0'!D25)/'0'!D25,0) -> 0 | E85: =IFERROR((E25-'0'!E25)/'0'!E25,0) -> 0 | F85: =IFERROR((F25-'0'!F25)/'0'!F25,0) -> 0 | G85: =IFERROR((G25-'0'!G25)/'0'!G25,0) -> 0 | H85: =IFERROR((H25-'0'!H25)/'0'!H25,0) -> 0 | J85: =$B$7 -> 2020 | K85: =IFERROR((K25-'0'!K25)/'0'!K25,0) -> 0 | L85: =IFERROR((L25-'0'!L25)/'0'!L25,0) -> 0 | M85: =IFERROR((M25-'0'!M25)/'0'!M25,0) -> 0 | N85: =IFERROR((N25-'0'!N25)/'0'!N25,0) -> 0.01818182589 | O85: =IFERROR((O25-'0'!O25)/'0'!O25,0) -> 0.01666667373 | P85: =IFERROR((P25-'0'!P25)/'0'!P25,0) -> 0 | R85: =$B$7 -> 2020 | S85: =IFERROR((S25-'0'!S25)/'0'!S25,0) -> 0 | T85: =IFERROR((T25-'0'!T25)/'0'!T25,0) -> 0 | U85: =IFERROR((U25-'0'!U25)/'0'!U25,0) -> 0 | V85: =IFERROR((V25-'0'!V25)/'0'!V25,0) -> -0.01785715029 | W85: =IFERROR((W25-'0'!W25)/'0'!W25,0) -> -0.01639344946 | X85: =IFERROR((X25-'0'!X25)/'0'!X25,0) -> 0 | Z85: =$B$7 -> 2020 | AA85: =IFERROR((AA25-'0'!AA25)/'0'!AA25,0) -> 0 | AB85: =IFERROR((AB25-'0'!AB25)/'0'!AB25,0) -> 0 | AC85: =IFERROR((AC25-'0'!AC25)/'0'!AC25,0) -> 0 | AD85: =IFERROR((AD25-'0'!AD25)/'0'!AD25,0) -> 0 | AE85: =IFERROR((AE25-'0'!AE25)/'0'!AE25,0) -> 0 | AF85: =IFERROR((AF25-'0'!AF25)/'0'!AF25,0) -> 0 | AG85: |
B86: =B85+1 -> 2021 | C86: =IFERROR((C26-'0'!C26)/'0'!C26,0) -> 0 | D86: =IFERROR((D26-'0'!D26)/'0'!D26,0) -> 0 | E86: =IFERROR((E26-'0'!E26)/'0'!E26,0) -> 0 | F86: =IFERROR((F26-'0'!F26)/'0'!F26,0) -> 0 | G86: =IFERROR((G26-'0'!G26)/'0'!G26,0) -> 0 | J86: =J85+1 -> 2021 | K86: =IFERROR((K26-'0'!K26)/'0'!K26,0) -> 0 | L86: =IFERROR((L26-'0'!L26)/'0'!L26,0) -> 0 | M86: =IFERROR((M26-'0'!M26)/'0'!M26,0) -> 0.04000001695 | N86: =IFERROR((N26-'0'!N26)/'0'!N26,0) -> 0.01818182589 | O86: =IFERROR((O26-'0'!O26)/'0'!O26,0) -> 0.01666667373 | R86: =R85+1 -> 2021 | S86: =IFERROR((S26-'0'!S26)/'0'!S26,0) -> 0 | T86: =IFERROR((T26-'0'!T26)/'0'!T26,0) -> 0 | U86: =IFERROR((U26-'0'!U26)/'0'!U26,0) -> -0.03846155414 | V86: =IFERROR((V26-'0'!V26)/'0'!V26,0) -> -0.01785715029 | W86: =IFERROR((W26-'0'!W26)/'0'!W26,0) -> -0.01639344946 | Z86: =Z85+1 -> 2021 | AA86: =IFERROR((AA26-'0'!AA26)/'0'!AA26,0) -> 0 | AB86: =IFERROR((AB26-'0'!AB26)/'0'!AB26,0) -> 0 | AC86: =IFERROR((AC26-'0'!AC26)/'0'!AC26,0) -> 0 | AD86: =IFERROR((AD26-'0'!AD26)/'0'!AD26,0) -> 0 | AE86: =IFERROR((AE26-'0'!AE26)/'0'!AE26,0) -> 0 | AG86: |
B87: =B86+1 -> 2022 | C87: =IFERROR((C27-'0'!C27)/'0'!C27,0) -> 0 | D87: =IFERROR((D27-'0'!D27)/'0'!D27,0) -> 0 | E87: =IFERROR((E27-'0'!E27)/'0'!E27,0) -> 0 | F87: =IFERROR((F27-'0'!F27)/'0'!F27,0) -> 0 | J87: =J86+1 -> 2022 | K87: =IFERROR((K27-'0'!K27)/'0'!K27,0) -> 0 | L87: =IFERROR((L27-'0'!L27)/'0'!L27,0) -> 0.05000002119 | M87: =IFERROR((M27-'0'!M27)/'0'!M27,0) -> 0.04000001695 | N87: =IFERROR((N27-'0'!N27)/'0'!N27,0) -> 0.01818182589 | R87: =R86+1 -> 2022 | S87: =IFERROR((S27-'0'!S27)/'0'!S27,0) -> 0 | T87: =IFERROR((T27-'0'!T27)/'0'!T27,0) -> -0.04761906684 | U87: =IFERROR((U27-'0'!U27)/'0'!U27,0) -> -0.03846155414 | V87: =IFERROR((V27-'0'!V27)/'0'!V27,0) -> -0.01785715029 | Z87: =Z86+1 -> 2022 | AA87: =IFERROR((AA27-'0'!AA27)/'0'!AA27,0) -> 0 | AB87: =IFERROR((AB27-'0'!AB27)/'0'!AB27,0) -> 0 | AC87: =IFERROR((AC27-'0'!AC27)/'0'!AC27,0) -> 0 | AD87: =IFERROR((AD27-'0'!AD27)/'0'!AD27,0) -> 0 | AG87: |
B88: 2023 | C88: =IFERROR((C28-'0'!C28)/'0'!C28,0) -> 0 | D88: =IFERROR((D28-'0'!D28)/'0'!D28,0) -> 0 | E88: =IFERROR((E28-'0'!E28)/'0'!E28,0) -> 0 | J88: 2023 | K88: =IFERROR((K28-'0'!K28)/'0'!K28,0) -> 0.1333333898 | L88: =IFERROR((L28-'0'!L28)/'0'!L28,0) -> 0.07500003179 | M88: =IFERROR((M28-'0'!M28)/'0'!M28,0) -> 0.04000001695 | R88: 2023 | S88: =IFERROR((S28-'0'!S28)/'0'!S28,0) -> -0.1176471028 | T88: =IFERROR((T28-'0'!T28)/'0'!T28,0) -> -0.06976746937 | U88: =IFERROR((U28-'0'!U28)/'0'!U28,0) -> -0.03846155414 | Z88: 2023 | AA88: =IFERROR((AA28-'0'!AA28)/'0'!AA28,0) -> 0 | AB88: =IFERROR((AB28-'0'!AB28)/'0'!AB28,0) -> 0 | AC88: =IFERROR((AC28-'0'!AC28)/'0'!AC28,0) -> 0 | AG88: |
B89: 2024 | C89: =IFERROR((C29-'0'!C29)/'0'!C29,0) -> 0 | D89: =IFERROR((D29-'0'!D29)/'0'!D29,0) -> 0 | J89: 2024 | K89: =IFERROR((K29-'0'!K29)/'0'!K29,0) -> 0.1333333898 | L89: =IFERROR((L29-'0'!L29)/'0'!L29,0) -> 0.07500003179 | R89: 2024 | S89: =IFERROR((S29-'0'!S29)/'0'!S29,0) -> -0.1176471028 | T89: =IFERROR((T29-'0'!T29)/'0'!T29,0) -> -0.06976746937 | Z89: 2024 | AA89: =IFERROR((AA29-'0'!AA29)/'0'!AA29,0) -> 0 | AB89: =IFERROR((AB29-'0'!AB29)/'0'!AB29,0) -> 0 | AG89: |
B90: 2025 | C90: =IFERROR((C30-'0'!C30)/'0'!C30,0) -> 0 | J90: 2025 | K90: =IFERROR((K30-'0'!K30)/'0'!K30,0) -> 0.1333333898 | R90: 2025 | S90: =IFERROR((S30-'0'!S30)/'0'!S30,0) -> -0.1176471028 | Z90: 2025 | AA90: =IFERROR((AA30-'0'!AA30)/'0'!AA30,0) -> 0 | AG90: |
AG91: |
C92: PAID dollars-per-count | K92: REPORTED dollars-per-count | S92: Case O/S dollars-per-count | AG92: |
C93: average paid loss | F93: Development Age | K93: average rptd loss | N93: Development Age | S93: average case O/S | V93: Development Age | AG93: |
B94: AY | C94: 12 | D94: 24 | E94: 36 | F94: 48 | G94: 60 | H94: 72 | J94: AY | K94: 12 | L94: 24 | M94: 36 | N94: 48 | O94: 60 | P94: 72 | R94: AY | S94: 12 | T94: 24 | U94: 36 | V94: 48 | W94: 60 | X94: 72 | AG94: |
B95: =$B$7 -> 2020 | C95: =IFERROR((C35-'0'!C35)/'0'!C35,0) -> 0 | D95: =IFERROR((D35-'0'!D35)/'0'!D35,0) -> 0 | E95: =IFERROR((E35-'0'!E35)/'0'!E35,0) -> 0 | F95: =IFERROR((F35-'0'!F35)/'0'!F35,0) -> 0 | G95: =IFERROR((G35-'0'!G35)/'0'!G35,0) -> 0 | H95: =IFERROR((H35-'0'!H35)/'0'!H35,0) -> 0 | J95: =$B$7 -> 2020 | K95: =IFERROR((K35-'0'!K35)/'0'!K35,0) -> 0 | L95: =IFERROR((L35-'0'!L35)/'0'!L35,0) -> 0 | M95: =IFERROR((M35-'0'!M35)/'0'!M35,0) -> 0 | N95: =IFERROR((N35-'0'!N35)/'0'!N35,0) -> 0.01818182589 | O95: =IFERROR((O35-'0'!O35)/'0'!O35,0) -> 0.01666667373 | P95: =IFERROR((P35-'0'!P35)/'0'!P35,0) -> 0 | R95: =$B$7 -> 2020 | S95: =IFERROR((S35-'0'!S35)/'0'!S35,0) -> 0 | T95: =IFERROR((T35-'0'!T35)/'0'!T35,0) -> 0 | U95: =IFERROR((U35-'0'!U35)/'0'!U35,0) -> 0 | V95: =IFERROR((V35-'0'!V35)/'0'!V35,0) -> 0.2000000848 | W95: =IFERROR((W35-'0'!W35)/'0'!W35,0) -> 0.2000000848 | X95: =IFERROR((X35-'0'!X35)/'0'!X35,0) -> 0 | AG95: |
B96: =B95+1 -> 2021 | C96: =IFERROR((C36-'0'!C36)/'0'!C36,0) -> 0 | D96: =IFERROR((D36-'0'!D36)/'0'!D36,0) -> 0 | E96: =IFERROR((E36-'0'!E36)/'0'!E36,0) -> 0 | F96: =IFERROR((F36-'0'!F36)/'0'!F36,0) -> 0 | G96: =IFERROR((G36-'0'!G36)/'0'!G36,0) -> 0 | J96: =J95+1 -> 2021 | K96: =IFERROR((K36-'0'!K36)/'0'!K36,0) -> 0 | L96: =IFERROR((L36-'0'!L36)/'0'!L36,0) -> 0 | M96: =IFERROR((M36-'0'!M36)/'0'!M36,0) -> 0.04000001695 | N96: =IFERROR((N36-'0'!N36)/'0'!N36,0) -> 0.01818182589 | O96: =IFERROR((O36-'0'!O36)/'0'!O36,0) -> 0.01666667373 | R96: =R95+1 -> 2021 | S96: =IFERROR((S36-'0'!S36)/'0'!S36,0) -> 0 | T96: =IFERROR((T36-'0'!T36)/'0'!T36,0) -> 0 | U96: =IFERROR((U36-'0'!U36)/'0'!U36,0) -> 0.2000000848 | V96: =IFERROR((V36-'0'!V36)/'0'!V36,0) -> 0.2000000848 | W96: =IFERROR((W36-'0'!W36)/'0'!W36,0) -> 0.2000000848 | AG96: |
B97: =B96+1 -> 2022 | C97: =IFERROR((C37-'0'!C37)/'0'!C37,0) -> 0 | D97: =IFERROR((D37-'0'!D37)/'0'!D37,0) -> 0 | E97: =IFERROR((E37-'0'!E37)/'0'!E37,0) -> 0 | F97: =IFERROR((F37-'0'!F37)/'0'!F37,0) -> 0 | J97: =J96+1 -> 2022 | K97: =IFERROR((K37-'0'!K37)/'0'!K37,0) -> 0 | L97: =IFERROR((L37-'0'!L37)/'0'!L37,0) -> 0.05000002119 | M97: =IFERROR((M37-'0'!M37)/'0'!M37,0) -> 0.04000001695 | N97: =IFERROR((N37-'0'!N37)/'0'!N37,0) -> 0.01818182589 | R97: =R96+1 -> 2022 | S97: =IFERROR((S37-'0'!S37)/'0'!S37,0) -> 0 | T97: =IFERROR((T37-'0'!T37)/'0'!T37,0) -> 0.1333333898 | U97: =IFERROR((U37-'0'!U37)/'0'!U37,0) -> 0.2000000848 | V97: =IFERROR((V37-'0'!V37)/'0'!V37,0) -> 0.2000000848 | AG97: |
B98: 2023 | C98: =IFERROR((C38-'0'!C38)/'0'!C38,0) -> 0 | D98: =IFERROR((D38-'0'!D38)/'0'!D38,0) -> 0 | E98: =IFERROR((E38-'0'!E38)/'0'!E38,0) -> 0 | J98: 2023 | K98: =IFERROR((K38-'0'!K38)/'0'!K38,0) -> 0.1333333898 | L98: =IFERROR((L38-'0'!L38)/'0'!L38,0) -> 0.07500003179 | M98: =IFERROR((M38-'0'!M38)/'0'!M38,0) -> 0.04000001695 | R98: 2023 | S98: =IFERROR((S38-'0'!S38)/'0'!S38,0) -> 0.2000000848 | T98: =IFERROR((T38-'0'!T38)/'0'!T38,0) -> 0.2000000848 | U98: =IFERROR((U38-'0'!U38)/'0'!U38,0) -> 0.2000000848 | AG98: |
B99: 2024 | C99: =IFERROR((C39-'0'!C39)/'0'!C39,0) -> 0 | D99: =IFERROR((D39-'0'!D39)/'0'!D39,0) -> 0 | J99: 2024 | K99: =IFERROR((K39-'0'!K39)/'0'!K39,0) -> 0.1333333898 | L99: =IFERROR((L39-'0'!L39)/'0'!L39,0) -> 0.07500003179 | R99: 2024 | S99: =IFERROR((S39-'0'!S39)/'0'!S39,0) -> 0.2000000848 | T99: =IFERROR((T39-'0'!T39)/'0'!T39,0) -> 0.2000000848 | AG99: |
B100: 2025 | C100: =IFERROR((C40-'0'!C40)/'0'!C40,0) -> 0 | J100: 2025 | K100: =IFERROR((K40-'0'!K40)/'0'!K40,0) -> 0.1333333898 | R100: 2025 | S100: =IFERROR((S40-'0'!S40)/'0'!S40,0) -> 0.2000000848 | AG100: |
AG101: |
AG102: |
AG103: |
AG104: |
AG105: |
AG106: |
AG107: |
AG108: |
AG109: |
AG110: |
AG111: |
AG112: |
AG113: |
AG114: |
AG115: |
AG116: |
AG117: |
AG118: |
AG119: |
B120: ---- | C120: ---- | D120: ---- | E120: ---- | F120: ---- | G120: ---- | H120: ---- | I120: ---- | J120: ---- | K120: ---- | L120: ---- | M120: ---- | N120: ---- | O120: ---- | P120: ---- | Q120: ---- | R120: ---- | S120: ---- | T120: ---- | U120: ---- | V120: ---- | W120: ---- | AG120: ----
AG121: |
AG122: |
AG123: |
AG124: |
AG125: |
AG126: |
AG127: |
AG128: |
AG129: |
AG130: |
AG131: |
AG132: |
AG133: |
AG134: |
AG135: |
AG136: |
AG137: |
AG138: |
AG139: |
AG140: |
AG141: |
AG142: |
AG143: |
AG144: |
AG145: |
AG146: |
AG147: |
AG148: |
AG149: |
AG150: |
AG151: |
AG152: |
AG153: |
AG154: |
AG155: |
AG156: |
AG157: |
AG158: |
AG159: |
AG160: |
AG161: |
AG162: |
AG163: |
AG164: |
AG165: |
AG166: |
AG167: |
AG168: |
AG169: |
AG170: |
AG171: |
AG172: |
AG173: |
AG174: |
AG175: |
AG176: |
AG177: |
AG178: |
AG179: |
B180: ---- | C180: ---- | D180: ---- | E180: ---- | F180: ---- | G180: ---- | H180: ---- | I180: ---- | J180: ---- | K180: ---- | L180: ---- | M180: ---- | N180: ---- | O180: ---- | P180: ---- | Q180: ---- | R180: ---- | S180: ---- | T180: ---- | U180: ---- | V180: ---- | W180: ---- | AG180: ----
AG181: |
AG182: |
AG183: |
AG184: |
AG185: |
AG186: |
AG187: |
AG188: |
AG189: |
AG190: |
AG191: |
AG192: |
AG193: |
AG194: |
AG195: |
AG196: |
AG197: |
AG198: |
AG199: |
AG200: |
AG201: |
... 1358 more rows

Sheet 4
B2: Book of Triangles | AG2: |
B3: Scenario: | C3: 4 | R3: (1) | S3: (2) | T3: (3) | U3: (4) | V3: (5) | W3: (6) | X3: (7) | AG3: |
T4: avg. | U4: cum. | V4: ann. | W4: rt level | X4: on | AG4: | | AI4: est pd | AJ4: est rptd | AK4: real | AL4: real
B5: Amounts | C5: Paid Loss | E5: Development Age | J5: Amounts | K5: Rptd Loss | M5: Development Age | T5: rate | U5: avg. | V5: expos. | W5: adj. to | X5: level | AG5: | | AI5: AY | AJ5: AY | AK5: AY | AL5: AY
B6: AY | C6: 12 | D6: =C6+12 -> 24 | E6: =D6+12 -> 36 | F6: 48 | G6: 60 | H6: 72 | J6: AY | K6: 12 | L6: =K6+12 -> 24 | M6: =L6+12 -> 36 | N6: 48 | O6: 60 | P6: 72 | R6: CY | S6: EP | T6: chg. | U6: rt. lvl. | V6: chg. | W6: =R12 -> 2025 | X6: EP | Z6: CY | AA6: EE | AG6: | | AH6: AY | AI6: ULR | AJ6: ULR | AK6: ULR | AL6: Loss
B7: 2020 | C7: 720 | D7: 1800 | E7: 2880 | F7: 3600 | G7: 3960 | H7: 4320 | J7: =$B$7 -> 2020 | K7: 2160 | L7: 2880 | M7: 3600 | N7: 3960 | O7: 4392.000031 | P7: 4320 | R7: =$B$7 -> 2020 | S7: 7200 | U7: =T7 -> 0 | W7: =(1+U12)/(1+U7) -> 1 | X7: =S7*W7 -> 7200 | Z7: =$B$7 -> 2020 | AA7: 12.00000036 | AG7: | | AH7: =$B$7 -> 2020 | AI7: 0.6 | AJ7: 0.6 | AK7: 0.6 | AL7: =S7*AK7 -> 4320
B8: =B7+1 -> 2021 | C8: 720 | D8: 1800 | E8: 2880 | F8: 3600 | G8: 3960 | J8: =J7+1 -> 2021 | K8: 2160 | L8: 2880 | M8: 3600 | N8: 4032.000031 | O8: 4392.000031 | R8: =R7+1 -> 2021 | S8: 7200 | T8: 0 | U8: =(1+U7)*(1+T8)-1 -> 0 | V8: =(S8/S7)/(1+T8)-1 -> 0 | W8: =(1+U12)/(1+U8) -> 1 | X8: 7200 | Z8: =Z7+1 -> 2021 | AA8: 12.00000036 | AG8: | | AH8: =AH7+1 -> 2021 | AI8: 0.6 | AJ8: 0.6 | AK8: 0.6 | AL8: 4320
B9: =B8+1 -> 2022 | C9: 720 | D9: 1800 | E9: 2880 | F9: 3600 | J9: =J8+1 -> 2022 | K9: 2160 | L9: 2880 | M9: 3744.000061 | N9: 4032.000031 | R9: =R8+1 -> 2022 | S9: 7200 | T9: 0 | U9: =(1+U8)*(1+T9)-1 -> 0 | V9: =(S9/S8)/(1+T9)-1 -> 0 | W9: =(1+U12)/(1+U9) -> 1 | X9: 7200 | Z9: =Z8+1 -> 2022 | AA9: 12.00000036 | AG9: | | AH9: =AH8+1 -> 2022 | AI9: 0.6 | AJ9: 0.6054545478 | AK9: 0.6 | AL9: 4320
B10: 2023 | C10: 720 | D10: 1800 | E10: 2880 | J10: 2023 | K10: 2160 | L10: 3024.000061 | M10: 3744.000061 | R10: =R9+1 -> 2023 | S10: 7200 | T10: 0 | U10: 0 | V10: =(S10/S9)/(1+T10)-1 -> 0 | W10: =(1+U12)/(1+U10) -> 1 | X10: 7200 | Z10: =Z9+1 -> 2023 | AA10: 12.00000036 | AG10: | | AH10: 2023 | AI10: 0.6 | AJ10: 0.6178519556 | AK10: 0.6 | AL10: 4320
B11: 2024 | C11: 720 | D11: 1800 | J11: 2024 | K11: 2448.000122 | L11: 3096.000092 | R11: =R10+1 -> 2024 | S11: 7200 | T11: 0 | U11: 0 | V11: =(S11/S10)/(1+T11)-1 -> 0 | W11: =(1+U12)/(1+U11) -> 1 | X11: 7200 | Z11: =Z10+1 -> 2024 | AA11: 12.00000036 | AG11: | | AH11: 2024 | AI11: 0.6 | AJ11: 0.643510928 | AK11: 0.6 | AL11: 4320
B12: 2025 | C12: 720 | J12: 2025 | K12: 2448.000122 | R12: =R11+1 -> 2025 | S12: 7200 | T12: 0 | U12: 0 | V12: =(S12/S11)/(1+T12)-1 -> 0 | W12: =(1+U12)/(1+U12) -> 1 | X12: 7200 | Z12: =Z11+1 -> 2025 | AA12: 12.00000036 | AG12: | | AH12: 2025 | AI12: 0.6 | AJ12: 0.6782306014 | AK12: 0.6 | AL12: 4320
AG13: |
B14: Counts | C14: Paid Count | E14: Development Age | J14: Counts | K14: Rptd Count | M14: Development Age | R14: (2) | S14: = | T14: given | AG14: |
B15: AY | C15: 12 | D15: 24 | E15: 36 | F15: 48 | G15: 60 | H15: 72 | J15: AY | K15: 12 | L15: 24 | M15: 36 | N15: 48 | O15: 60 | P15: 72 | R15: (3) | S15: = | T15: given | AG15: |
B16: =$B$7 -> 2020 | C16: 2 | D16: 5 | E16: 8 | F16: 10 | G16: 11 | H16: 12 | J16: =$B$7 -> 2020 | K16: 6 | L16: 8 | M16: 10 | N16: 11 | O16: 12 | P16: 12 | R16: (4) | S16: = | T16: [ 1 + (4):prior] x [1 + (3)] - 1.0 | AG16: | | AH16: Interpretation: | AJ16: case reserve adequacy +20% at CY 2024
B17: =B16+1 -> 2021 | C17: 2 | D17: 5 | E17: 8 | F17: 10 | G17: 11 | J17: =J16+1 -> 2021 | K17: 6 | L17: 8 | M17: 10 | N17: 11 | O17: 12 | R17: (5) | S17: = | T17: [ (2) / (2):prior] / [1 + (3)] - 1.0 | AG17: |
B18: =B17+1 -> 2022 | C18: 2 | D18: 5 | E18: 8 | F18: 10 | J18: =J17+1 -> 2022 | K18: 6 | L18: 8 | M18: 10 | N18: 11 | R18: (6) | S18: = | T18: [ 1 + (4):2025] / [1 + (4)] | AG18: |
B19: 2023 | C19: 2 | D19: 5 | E19: 8 | J19: 2023 | K19: 6 | L19: 8 | M19: 10 | R19: (7) | S19: = | T19: (2) x (6) | AG19: |
B20: 2024 | C20: 2 | D20: 5 | J20: 2024 | K20: 6 | L20: 8 | AG20: |
B21: 2025 | C21: 2 | J21: 2025 | K21: 6 | AG21: |
AG22: |
C23: paid loss ratio | F23: Development Age | K23: rptd loss ratio | N23: Development Age | S23: paid/rptd loss | V23: Development Age | AA23: paid/rptd counts | AD23: Development Age | AG23: |
B24: AY | C24: 12 | D24: 24 | E24: 36 | F24: 48 | G24: 60 | H24: 72 | J24: AY | K24: 12 | L24: 24 | M24: 36 | N24: 48 | O24: 60 | P24: 72 | R24: AY | S24: 12 | T24: 24 | U24: 36 | V24: 48 | W24: 60 | X24: 72 | Z24: AY | AA24: 12 | AB24: 24 | AC24: 36 | AD24: 48 | AE24: 60 | AF24: 72 | AG24: |
B25: =$B$7 -> 2020 | C25: =C7/$X7 -> 0.1 | D25: 0.25 | E25: 0.4 | F25: 0.5 | G25: 0.55 | H25: 0.6 | J25: =$B$7 -> 2020 | K25: =K7/$X7 -> 0.3 | L25: 0.4 | M25: 0.5 | N25: 0.55 | O25: 0.6100000042 | P25: 0.6 | R25: =$B$7 -> 2020 | S25: =C7/K7 -> 0.3333333333 | T25: 0.625 | U25: 0.8 | V25: 0.9090909091 | W25: 0.901639338 | X25: 1 | Z25: =$B$7 -> 2020 | AA25: =C16/K16 -> 0.3333333333 | AB25: 0.625 | AC25: 0.8 | AD25: 0.9090909091 | AE25: 0.9166666667 | AF25: 1 | AG25: |
B26: =B25+1 -> 2021 | C26: =C8/$X8 -> 0.1 | D26: =D8/$X8 -> 0.25 | E26: =E8/$X8 -> 0.4 | F26: =F8/$X8 -> 0.5 | G26: =G8/$X8 -> 0.55 | J26: =J25+1 -> 2021 | K26: =K8/$X8 -> 0.3 | L26: =L8/$X8 -> 0.4 | M26: =M8/$X8 -> 0.5 | N26: =N8/$X8 -> 0.5600000042 | O26: =O8/$X8 -> 0.6100000042 | R26: =R25+1 -> 2021 | S26: =C8/K8 -> 0.3333333333 | T26: =D8/L8 -> 0.625 | U26: =E8/M8 -> 0.8 | V26: =F8/N8 -> 0.8928571361 | W26: =G8/O8 -> 0.901639338 | Z26: =Z25+1 -> 2021 | AA26: =C17/K17 -> 0.3333333333 | AB26: =D17/L17 -> 0.625 | AC26: =E17/M17 -> 0.8 | AD26: =F17/N17 -> 0.9090909091 | AE26: =G17/O17 -> 0.9166666667 | AG26: |
B27: =B26+1 -> 2022 | C27: =C9/$X9 -> 0.1 | D27: =D9/$X9 -> 0.25 | E27: =E9/$X9 -> 0.4 | F27: =F9/$X9 -> 0.5 | J27: =J26+1 -> 2022 | K27: =K9/$X9 -> 0.3 | L27: =L9/$X9 -> 0.4 | M27: =M9/$X9 -> 0.5200000085 | N27: =N9/$X9 -> 0.5600000042 | R27: =R26+1 -> 2022 | S27: =C9/K9 -> 0.3333333333 | T27: =D9/L9 -> 0.625 | U27: =E9/M9 -> 0.7692307567 | V27: =F9/N9 -> 0.8928571361 | Z27: =Z26+1 -> 2022 | AA27: =C18/K18 -> 0.3333333333 | AB27: =D18/L18 -> 0.625 | AC27: =E18/M18 -> 0.8 | AD27: =F18/N18 -> 0.9090909091 | AG27: |
B28: 2023 | C28: =C10/$X10 -> 0.1 | D28: =D10/$X10 -> 0.25 | E28: =E10/$X10 -> 0.4 | J28: 2023 | K28: =K10/$X10 -> 0.3 | L28: =L10/$X10 -> 0.4200000085 | M28: =M10/$X10 -> 0.5200000085 | R28: 2023 | S28: =C10/K10 -> 0.3333333333 | T28: =D10/L10 -> 0.5952380832 | U28: =E10/M10 -> 0.7692307567 | Z28: 2023 | AA28: =C19/K19 -> 0.3333333333 | AB28: =D19/L19 -> 0.625 | AC28: =E19/M19 -> 0.8 | AG28: |
B29: 2024 | C29: =C11/$X11 -> 0.1 | D29: =D11/$X11 -> 0.25 | J29: 2024 | K29: =K11/$X11 -> 0.340000017 | L29: =L11/$X11 -> 0.4300000127 | R29: 2024 | S29: =C11/K11 -> 0.2941176324 | T29: =D11/L11 -> 0.5813953316 | Z29: 2024 | AA29: =C20/K20 -> 0.3333333333 | AB29: =D20/L20 -> 0.625 | AG29: |
B30: 2025 | C30: =C12/$X12 -> 0.1 | J30: 2025 | K30: =K12/$X12 -> 0.340000017 | R30: 2025 | S30: =C12/K12 -> 0.2941176324 | Z30: 2025 | AA30: =C21/K21 -> 0.3333333333 | AG30: |
AG31: |
C32: PAID dollars-per-count | K32: REPORTED dollars-per-count | S32: Case O/S dollars-per-count | AG32: |
C33: average paid loss | F33: Development Age | K33: average rptd loss | N33: Development Age | S33: average case O/S | V33: Development Age | AG33: |
B34: AY | C34: 12 | D34: 24 | E34: 36 | F34: 48 | G34: 60 | H34: 72 | J34: AY | K34: 12 | L34: 24 | M34: 36 | N34: 48 | O34: 60 | P34: 72 | R34: AY | S34: 12 | T34: 24 | U34: 36 | V34: 48 | W34: 60 | X34: 72 | AG34: |
B35: =$B$7 -> 2020 | C35: =C7/C16 -> 360 | D35: 360 | E35: 360 | F35: 360 | G35: 360 | H35: 360 | J35: =$B$7 -> 2020 | K35: =K7/K16 -> 360 | L35: 360 | M35: 360 | N35: 360 | O35: 366.0000025 | P35: 360 | R35: =$B$7 -> 2020 | S35: =IFERROR((K7-C7)/(K16-C16),0) -> 360 | T35: 360 | U35: 360 | V35: 360 | W35: 432.0000305 | X35: 0 | AG35: |
B36: =B35+1 -> 2021 | C36: =C8/C17 -> 360 | D36: =D8/D17 -> 360 | E36: =E8/E17 -> 360 | F36: =F8/F17 -> 360 | G36: =G8/G17 -> 360 | J36: =J35+1 -> 2021 | K36: =K8/K17 -> 360 | L36: =L8/L17 -> 360 | M36: =M8/M17 -> 360 | N36: =N8/N17 -> 366.5454573 | O36: =O8/O17 -> 366.0000025 | R36: =R35+1 -> 2021 | S36: =IFERROR((K8-C8)/(K17-C17),0) -> 360 | T36: =IFERROR((L8-D8)/(L17-D17),0) -> 360 | U36: =IFERROR((M8-E8)/(M17-E17),0) -> 360 | V36: =IFERROR((N8-F8)/(N17-F17),0) -> 432.0000305 | W36: =IFERROR((O8-G8)/(O17-G17),0) -> 432.0000305 | AG36: |
B37: =B36+1 -> 2022 | C37: =C9/C18 -> 360 | D37: =D9/D18 -> 360 | E37: =E9/E18 -> 360 | F37: =F9/F18 -> 360 | J37: =J36+1 -> 2022 | K37: =K9/K18 -> 360 | L37: =L9/L18 -> 360 | M37: =M9/M18 -> 374.4000061 | N37: =N9/N18 -> 366.5454573 | R37: =R36+1 -> 2022 | S37: =IFERROR((K9-C9)/(K18-C18),0) -> 360 | T37: =IFERROR((L9-D9)/(L18-D18),0) -> 360 | U37: =IFERROR((M9-E9)/(M18-E18),0) -> 432.0000305 | V37: =IFERROR((N9-F9)/(N18-F18),0) -> 432.0000305 | AG37: |
B38: 2023 | C38: =C10/C19 -> 360 | D38: =D10/D19 -> 360 | E38: =E10/E19 -> 360 | J38: 2023 | K38: =K10/K19 -> 360 | L38: =L10/L19 -> 378.0000076 | M38: =M10/M19 -> 374.4000061 | R38: 2023 | S38: =IFERROR((K10-C10)/(K19-C19),0) -> 360 | T38: =IFERROR((L10-D10)/(L19-D19),0) -> 408.0000203 | U38: =IFERROR((M10-E10)/(M19-E19),0) -> 432.0000305 | AG38: |
B39: 2024 | C39: =C11/C20 -> 360 | D39: =D11/D20 -> 360 | J39: 2024 | K39: =K11/K20 -> 408.0000203 | L39: =L11/L20 -> 387.0000114 | R39: 2024 | S39: =IFERROR((K11-C11)/(K20-C20),0) -> 432.0000305 | T39: =IFERROR((L11-D11)/(L20-D20),0) -> 432.0000305 | AG39: |
B40: 2025 | C40: =C12/C21 -> 360 | J40: 2025 | K40: =K12/K21 -> 408.0000203 | R40: 2025 | S40: =IFERROR((K12-C12)/(K21-C21),0) -> 432.0000305 | AG40: |
AG41: |
AG42: |
AG43: |
AG44: |
AG45: |
AG46: |
AG47: |
AG48: |
AG49: |
AG50: |
AG51: |
AG52: |
AG53: |
AG54: |
AG55: |
AG56: |
AG57: |
AG58: |
AG59: |
B60: ---- | C60: ---- | D60: ---- | E60: ---- | F60: ---- | G60: ---- | H60: ---- | I60: ---- | J60: ---- | K60: ---- | L60: ---- | M60: ---- | N60: ---- | O60: ---- | P60: ---- | Q60: ---- | R60: ---- | S60: ---- | T60: ---- | U60: ---- | V60: ---- | W60: ---- | X60: ---- | Y60: ---- | Z60: ---- | AA60: ---- | AB60: ---- | AC60: ---- | AD60: ---- | AE60: ---- | AF60: ---- | AG60: ----
AG61: |
B62: Book of Triangles | AG62: |
B63: Scenario: | C63: =C3 -> 4 | D63: (Comparison to Base Case) | R63: (1) | S63: (2) | T63: (3) | U63: (4) | V63: (5) | W63: (6) | X63: (7) | AG63: |
T64: avg. | U64: cum. | V64: ann. | W64: rt level | X64: on | AG64: |
B65: Amounts | C65: Paid Loss | E65: Development Age | J65: Amounts | K65: Rptd Loss | M65: Development Age | T65: rate | U65: avg. | V65: expos. | W65: adj. to | X65: level | AG65: |
B66: AY | C66: 12 | D66: =C66+12 -> 24 | E66: =D66+12 -> 36 | F66: 48 | G66: 60 | H66: 72 | J66: AY | K66: 12 | L66: =K66+12 -> 24 | M66: =L66+12 -> 36 | N66: 48 | O66: 60 | P66: 72 | R66: CY | S66: EP | T66: chg. | U66: rt. lvl. | V66: chg. | W66: =R72 -> 2025 | X66: EP | Z66: CY | AA66: EE | AG66: |
B67: 2020 | C67: =IFERROR((C7-'0'!C7)/'0'!C7,0) -> 0 | D67: =IFERROR((D7-'0'!D7)/'0'!D7,0) -> 0 | E67: =IFERROR((E7-'0'!E7)/'0'!E7,0) -> 0 | F67: =IFERROR((F7-'0'!F7)/'0'!F7,0) -> 0 | G67: =IFERROR((G7-'0'!G7)/'0'!G7,0) -> 0 | H67: =IFERROR((H7-'0'!H7)/'0'!H7,0) -> 0 | J67: =$B$7 -> 2020 | K67: =IFERROR((K7-'0'!K7)/'0'!K7,0) -> 0 | L67: =IFERROR((L7-'0'!L7)/'0'!L7,0) -> 0 | M67: =IFERROR((M7-'0'!M7)/'0'!M7,0) -> 0 | N67: =IFERROR((N7-'0'!N7)/'0'!N7,0) -> 0 | O67: =IFERROR((O7-'0'!O7)/'0'!O7,0) -> 0.01666667373 | P67: =IFERROR((P7-'0'!P7)/'0'!P7,0) -> 0 | R67: =$B$7 -> 2020 | S67: =IFERROR((S7-'0'!S7)/'0'!S7,0) -> 0 | Z67: =$B$7 -> 2020 | AA67: =IFERROR((AA7-'0'!AA7)/'0'!AA7,0) -> 0 | AG67: |
B68: =B67+1 -> 2021 | C68: =IFERROR((C8-'0'!C8)/'0'!C8,0) -> 0 | D68: =IFERROR((D8-'0'!D8)/'0'!D8,0) -> 0 | E68: =IFERROR((E8-'0'!E8)/'0'!E8,0) -> 0 | F68: =IFERROR((F8-'0'!F8)/'0'!F8,0) -> 0 | G68: =IFERROR((G8-'0'!G8)/'0'!G8,0) -> 0 | J68: =J67+1 -> 2021 | K68: =IFERROR((K8-'0'!K8)/'0'!K8,0) -> 0 | L68: =IFERROR((L8-'0'!L8)/'0'!L8,0) -> 0 | M68: =IFERROR((M8-'0'!M8)/'0'!M8,0) -> 0 | N68: =IFERROR((N8-'0'!N8)/'0'!N8,0) -> 0.01818182589 | O68: =IFERROR((O8-'0'!O8)/'0'!O8,0) -> 0.01666667373 | R68: =R67+1 -> 2021 | S68: =IFERROR((S8-'0'!S8)/'0'!S8,0) -> 0 | T68: =IFERROR((T8-'0'!T8)/'0'!T8,0) -> 0 | Z68: =Z67+1 -> 2021 | AA68: =IFERROR((AA8-'0'!AA8)/'0'!AA8,0) -> 0 | AG68: |
B69: =B68+1 -> 2022 | C69: =IFERROR((C9-'0'!C9)/'0'!C9,0) -> 0 | D69: =IFERROR((D9-'0'!D9)/'0'!D9,0) -> 0 | E69: =IFERROR((E9-'0'!E9)/'0'!E9,0) -> 0 | F69: =IFERROR((F9-'0'!F9)/'0'!F9,0) -> 0 | J69: =J68+1 -> 2022 | K69: =IFERROR((K9-'0'!K9)/'0'!K9,0) -> 0 | L69: =IFERROR((L9-'0'!L9)/'0'!L9,0) -> 0 | M69: =IFERROR((M9-'0'!M9)/'0'!M9,0) -> 0.04000001695 | N69: =IFERROR((N9-'0'!N9)/'0'!N9,0) -> 0.01818182589 | R69: =R68+1 -> 2022 | S69: =IFERROR((S9-'0'!S9)/'0'!S9,0) -> 0 | T69: =IFERROR((T9-'0'!T9)/'0'!T9,0) -> 0 | Z69: =Z68+1 -> 2022 | AA69: =IFERROR((AA9-'0'!AA9)/'0'!AA9,0) -> 0 | AG69: |
B70: 2023 | C70: =IFERROR((C10-'0'!C10)/'0'!C10,0) -> 0 | D70: =IFERROR((D10-'0'!D10)/'0'!D10,0) -> 0 | E70: =IFERROR((E10-'0'!E10)/'0'!E10,0) -> 0 | J70: 2023 | K70: =IFERROR((K10-'0'!K10)/'0'!K10,0) -> 0 | L70: =IFERROR((L10-'0'!L10)/'0'!L10,0) -> 0.05000002119 | M70: =IFERROR((M10-'0'!M10)/'0'!M10,0) -> 0.04000001695 | R70: =R69+1 -> 2023 | S70: =IFERROR((S10-'0'!S10)/'0'!S10,0) -> 0 | T70: =IFERROR((T10-'0'!T10)/'0'!T10,0) -> 0 | Z70: =Z69+1 -> 2023 | AA70: =IFERROR((AA10-'0'!AA10)/'0'!AA10,0) -> 0 | AG70: |
B71: 2024 | C71: =IFERROR((C11-'0'!C11)/'0'!C11,0) -> 0 | D71: =IFERROR((D11-'0'!D11)/'0'!D11,0) -> 0 | J71: 2024 | K71: =IFERROR((K11-'0'!K11)/'0'!K11,0) -> 0.1333333898 | L71: =IFERROR((L11-'0'!L11)/'0'!L11,0) -> 0.07500003179 | R71: =R70+1 -> 2024 | S71: =IFERROR((S11-'0'!S11)/'0'!S11,0) -> 0 | T71: =IFERROR((T11-'0'!T11)/'0'!T11,0) -> 0 | Z71: =Z70+1 -> 2024 | AA71: =IFERROR((AA11-'0'!AA11)/'0'!AA11,0) -> 0 | AG71: |
B72: 2025 | C72: =IFERROR((C12-'0'!C12)/'0'!C12,0) -> 0 | J72: 2025 | K72: =IFERROR((K12-'0'!K12)/'0'!K12,0) -> 0.1333333898 | R72: =R71+1 -> 2025 | S72: =IFERROR((S12-'0'!S12)/'0'!S12,0) -> 0 | T72: =IFERROR((T12-'0'!T12)/'0'!T12,0) -> 0 | Z72: =Z71+1 -> 2025 | AA72: =IFERROR((AA12-'0'!AA12)/'0'!AA12,0) -> 0 | AG72: |
AG73: |
B74: Counts | C74: Paid Count | E74: Development Age | J74: Counts | K74: Rptd Count | M74: Development Age | AG74: |
B75: AY | C75: 12 | D75: 24 | E75: 36 | F75: 48 | G75: 60 | H75: 72 | J75: AY | K75: 12 | L75: 24 | M75: 36 | N75: 48 | O75: 60 | P75: 72 | AG75: |
B76: =$B$7 -> 2020 | C76: =IFERROR((C16-'0'!C16)/'0'!C16,0) -> 0 | D76: =IFERROR((D16-'0'!D16)/'0'!D16,0) -> 0 | E76: =IFERROR((E16-'0'!E16)/'0'!E16,0) -> 0 | F76: =IFERROR((F16-'0'!F16)/'0'!F16,0) -> 0 | G76: =IFERROR((G16-'0'!G16)/'0'!G16,0) -> 0 | H76: =IFERROR((H16-'0'!H16)/'0'!H16,0) -> 0 | J76: =$B$7 -> 2020 | K76: =IFERROR((K16-'0'!K16)/'0'!K16,0) -> 0 | L76: =IFERROR((L16-'0'!L16)/'0'!L16,0) -> 0 | M76: =IFERROR((M16-'0'!M16)/'0'!M16,0) -> 0 | N76: =IFERROR((N16-'0'!N16)/'0'!N16,0) -> 0 | O76: =IFERROR((O16-'0'!O16)/'0'!O16,0) -> 0 | P76: =IFERROR((P16-'0'!P16)/'0'!P16,0) -> 0 | AG76: |
B77: =B76+1 -> 2021 | C77: =IFERROR((C17-'0'!C17)/'0'!C17,0) -> 0 | D77: =IFERROR((D17-'0'!D17)/'0'!D17,0) -> 0 | E77: =IFERROR((E17-'0'!E17)/'0'!E17,0) -> 0 | F77: =IFERROR((F17-'0'!F17)/'0'!F17,0) -> 0 | G77: =IFERROR((G17-'0'!G17)/'0'!G17,0) -> 0 | J77: =J76+1 -> 2021 | K77: =IFERROR((K17-'0'!K17)/'0'!K17,0) -> 0 | L77: =IFERROR((L17-'0'!L17)/'0'!L17,0) -> 0 | M77: =IFERROR((M17-'0'!M17)/'0'!M17,0) -> 0 | N77: =IFERROR((N17-'0'!N17)/'0'!N17,0) -> 0 | O77: =IFERROR((O17-'0'!O17)/'0'!O17,0) -> 0 | AG77: |
B78: =B77+1 -> 2022 | C78: =IFERROR((C18-'0'!C18)/'0'!C18,0) -> 0 | D78: =IFERROR((D18-'0'!D18)/'0'!D18,0) -> 0 | E78: =IFERROR((E18-'0'!E18)/'0'!E18,0) -> 0 | F78: =IFERROR((F18-'0'!F18)/'0'!F18,0) -> 0 | J78: =J77+1 -> 2022 | K78: =IFERROR((K18-'0'!K18)/'0'!K18,0) -> 0 | L78: =IFERROR((L18-'0'!L18)/'0'!L18,0) -> 0 | M78: =IFERROR((M18-'0'!M18)/'0'!M18,0) -> 0 | N78: =IFERROR((N18-'0'!N18)/'0'!N18,0) -> 0 | AG78: |
B79: 2023 | C79: =IFERROR((C19-'0'!C19)/'0'!C19,0) -> 0 | D79: =IFERROR((D19-'0'!D19)/'0'!D19,0) -> 0 | E79: =IFERROR((E19-'0'!E19)/'0'!E19,0) -> 0 | J79: 2023 | K79: =IFERROR((K19-'0'!K19)/'0'!K19,0) -> 0 | L79: =IFERROR((L19-'0'!L19)/'0'!L19,0) -> 0 | M79: =IFERROR((M19-'0'!M19)/'0'!M19,0) -> 0 | AG79: |
B80: 2024 | C80: =IFERROR((C20-'0'!C20)/'0'!C20,0) -> 0 | D80: =IFERROR((D20-'0'!D20)/'0'!D20,0) -> 0 | J80: 2024 | K80: =IFERROR((K20-'0'!K20)/'0'!K20,0) -> 0 | L80: =IFERROR((L20-'0'!L20)/'0'!L20,0) -> 0 | AG80: |
B81: 2025 | C81: =IFERROR((C21-'0'!C21)/'0'!C21,0) -> 0 | J81: 2025 | K81: =IFERROR((K21-'0'!K21)/'0'!K21,0) -> 0 | AG81: |
AG82: |
C83: paid loss ratio | F83: Development Age | K83: rptd loss ratio | N83: Development Age | S83: paid/rptd loss | V83: Development Age | AA83: paid/rptd counts | AD83: Development Age | AG83: |
B84: AY | C84: 12 | D84: 24 | E84: 36 | F84: 48 | G84: 60 | H84: 72 | J84: AY | K84: 12 | L84: 24 | M84: 36 | N84: 48 | O84: 60 | P84: 72 | R84: AY | S84: 12 | T84: 24 | U84: 36 | V84: 48 | W84: 60 | X84: 72 | Z84: AY | AA84: 12 | AB84: 24 | AC84: 36 | AD84: 48 | AE84: 60 | AF84: 72 | AG84: |
B85: =$B$7 -> 2020 | C85: =IFERROR((C25-'0'!C25)/'0'!C25,0) -> 0 | D85: =IFERROR((D25-'0'!D25)/'0'!D25,0) -> 0 | E85: =IFERROR((E25-'0'!E25)/'0'!E25,0) -> 0 | F85: =IFERROR((F25-'0'!F25)/'0'!F25,0) -> 0 | G85: =IFERROR((G25-'0'!G25)/'0'!G25,0) -> 0 | H85: =IFERROR((H25-'0'!H25)/'0'!H25,0) -> 0 | J85: =$B$7 -> 2020 | K85: =IFERROR((K25-'0'!K25)/'0'!K25,0) -> 0 | L85: =IFERROR((L25-'0'!L25)/'0'!L25,0) -> 0 | M85: =IFERROR((M25-'0'!M25)/'0'!M25,0) -> 0 | N85: =IFERROR((N25-'0'!N25)/'0'!N25,0) -> 0 | O85: =IFERROR((O25-'0'!O25)/'0'!O25,0) -> 0.01666667373 | P85: =IFERROR((P25-'0'!P25)/'0'!P25,0) -> 0 | R85: =$B$7 -> 2020 | S85: =IFERROR((S25-'0'!S25)/'0'!S25,0) -> 0 | T85: =IFERROR((T25-'0'!T25)/'0'!T25,0) -> 0 | U85: =IFERROR((U25-'0'!U25)/'0'!U25,0) -> 0 | V85: =IFERROR((V25-'0'!V25)/'0'!V25,0) -> 0 | W85: =IFERROR((W25-'0'!W25)/'0'!W25,0) -> -0.01639344946 | X85: =IFERROR((X25-'0'!X25)/'0'!X25,0) -> 0 | Z85: =$B$7 -> 2020 | AA85: =IFERROR((AA25-'0'!AA25)/'0'!AA25,0) -> 0 | AB85: =IFERROR((AB25-'0'!AB25)/'0'!AB25,0) -> 0 | AC85: =IFERROR((AC25-'0'!AC25)/'0'!AC25,0) -> 0 | AD85: =IFERROR((AD25-'0'!AD25)/'0'!AD25,0) -> 0 | AE85: =IFERROR((AE25-'0'!AE25)/'0'!AE25,0) -> 0 | AF85: =IFERROR((AF25-'0'!AF25)/'0'!AF25,0) -> 0 | AG85: |
B86: =B85+1 -> 2021 | C86: =IFERROR((C26-'0'!C26)/'0'!C26,0) -> 0 | D86: =IFERROR((D26-'0'!D26)/'0'!D26,0) -> 0 | E86: =IFERROR((E26-'0'!E26)/'0'!E26,0) -> 0 | F86: =IFERROR((F26-'0'!F26)/'0'!F26,0) -> 0 | G86: =IFERROR((G26-'0'!G26)/'0'!G26,0) -> 0 | J86: =J85+1 -> 2021 | K86: =IFERROR((K26-'0'!K26)/'0'!K26,0) -> 0 | L86: =IFERROR((L26-'0'!L26)/'0'!L26,0) -> 0 | M86: =IFERROR((M26-'0'!M26)/'0'!M26,0) -> 0 | N86: =IFERROR((N26-'0'!N26)/'0'!N26,0) -> 0.01818182589 | O86: =IFERROR((O26-'0'!O26)/'0'!O26,0) -> 0.01666667373 | R86: =R85+1 -> 2021 | S86: =IFERROR((S26-'0'!S26)/'0'!S26,0) -> 0 | T86: =IFERROR((T26-'0'!T26)/'0'!T26,0) -> 0 | U86: =IFERROR((U26-'0'!U26)/'0'!U26,0) -> 0 | V86: =IFERROR((V26-'0'!V26)/'0'!V26,0) -> -0.01785715029 | W86: =IFERROR((W26-'0'!W26)/'0'!W26,0) -> -0.01639344946 | Z86: =Z85+1 -> 2021 | AA86: =IFERROR((AA26-'0'!AA26)/'0'!AA26,0) -> 0 | AB86: =IFERROR((AB26-'0'!AB26)/'0'!AB26,0) -> 0 | AC86: =IFERROR((AC26-'0'!AC26)/'0'!AC26,0) -> 0 | AD86: =IFERROR((AD26-'0'!AD26)/'0'!AD26,0) -> 0 | AE86: =IFERROR((AE26-'0'!AE26)/'0'!AE26,0) -> 0 | AG86: |
B87: =B86+1 -> 2022 | C87: =IFERROR((C27-'0'!C27)/'0'!C27,0) -> 0 | D87: =IFERROR((D27-'0'!D27)/'0'!D27,0) -> 0 | E87: =IFERROR((E27-'0'!E27)/'0'!E27,0) -> 0 | F87: =IFERROR((F27-'0'!F27)/'0'!F27,0) -> 0 | J87: =J86+1 -> 2022 | K87: =IFERROR((K27-'0'!K27)/'0'!K27,0) -> 0 | L87: =IFERROR((L27-'0'!L27)/'0'!L27,0) -> 0 | M87: =IFERROR((M27-'0'!M27)/'0'!M27,0) -> 0.04000001695 | N87: =IFERROR((N27-'0'!N27)/'0'!N27,0) -> 0.01818182589 | R87: =R86+1 -> 2022 | S87: =IFERROR((S27-'0'!S27)/'0'!S27,0) -> 0 | T87: =IFERROR((T27-'0'!T27)/'0'!T27,0) -> 0 | U87: =IFERROR((U27-'0'!U27)/'0'!U27,0) -> -0.03846155414 | V87: =IFERROR((V27-'0'!V27)/'0'!V27,0) -> -0.01785715029 | Z87: =Z86+1 -> 2022 | AA87: =IFERROR((AA27-'0'!AA27)/'0'!AA27,0) -> 0 | AB87: =IFERROR((AB27-'0'!AB27)/'0'!AB27,0) -> 0 | AC87: =IFERROR((AC27-'0'!AC27)/'0'!AC27,0) -> 0 | AD87: =IFERROR((AD27-'0'!AD27)/'0'!AD27,0) -> 0 | AG87: |
B88: 2023 | C88: =IFERROR((C28-'0'!C28)/'0'!C28,0) -> 0 | D88: =IFERROR((D28-'0'!D28)/'0'!D28,0) -> 0 | E88: =IFERROR((E28-'0'!E28)/'0'!E28,0) -> 0 | J88: 2023 | K88: =IFERROR((K28-'0'!K28)/'0'!K28,0) -> 0 | L88: =IFERROR((L28-'0'!L28)/'0'!L28,0) -> 0.05000002119 | M88: =IFERROR((M28-'0'!M28)/'0'!M28,0) -> 0.04000001695 | R88: 2023 | S88: =IFERROR((S28-'0'!S28)/'0'!S28,0) -> 0 | T88: =IFERROR((T28-'0'!T28)/'0'!T28,0) -> -0.04761906684 | U88: =IFERROR((U28-'0'!U28)/'0'!U28,0) -> -0.03846155414 | Z88: 2023 | AA88: =IFERROR((AA28-'0'!AA28)/'0'!AA28,0) -> 0 | AB88: =IFERROR((AB28-'0'!AB28)/'0'!AB28,0) -> 0 | AC88: =IFERROR((AC28-'0'!AC28)/'0'!AC28,0) -> 0 | AG88: |
B89: 2024 | C89: =IFERROR((C29-'0'!C29)/'0'!C29,0) -> 0 | D89: =IFERROR((D29-'0'!D29)/'0'!D29,0) -> 0 | J89: 2024 | K89: =IFERROR((K29-'0'!K29)/'0'!K29,0) -> 0.1333333898 | L89: =IFERROR((L29-'0'!L29)/'0'!L29,0) -> 0.07500003179 | R89: 2024 | S89: =IFERROR((S29-'0'!S29)/'0'!S29,0) -> -0.1176471028 | T89: =IFERROR((T29-'0'!T29)/'0'!T29,0) -> -0.06976746937 | Z89: 2024 | AA89: =IFERROR((AA29-'0'!AA29)/'0'!AA29,0) -> 0 | AB89: =IFERROR((AB29-'0'!AB29)/'0'!AB29,0) -> 0 | AG89: |
B90: 2025 | C90: =IFERROR((C30-'0'!C30)/'0'!C30,0) -> 0 | J90: 2025 | K90: =IFERROR((K30-'0'!K30)/'0'!K30,0) -> 0.1333333898 | R90: 2025 | S90: =IFERROR((S30-'0'!S30)/'0'!S30,0) -> -0.1176471028 | Z90: 2025 | AA90: =IFERROR((AA30-'0'!AA30)/'0'!AA30,0) -> 0 | AG90: |
AG91: |
C92: PAID dollars-per-count | K92: REPORTED dollars-per-count | S92: Case O/S dollars-per-count | AG92: |
C93: average paid loss | F93: Development Age | K93: average rptd loss | N93: Development Age | S93: average case O/S | V93: Development Age | AG93: |
B94: AY | C94: 12 | D94: 24 | E94: 36 | F94: 48 | G94: 60 | H94: 72 | J94: AY | K94: 12 | L94: 24 | M94: 36 | N94: 48 | O94: 60 | P94: 72 | R94: AY | S94: 12 | T94: 24 | U94: 36 | V94: 48 | W94: 60 | X94: 72 | AG94: |
B95: =$B$7 -> 2020 | C95: =IFERROR((C35-'0'!C35)/'0'!C35,0) -> 0 | D95: =IFERROR((D35-'0'!D35)/'0'!D35,0) -> 0 | E95: =IFERROR((E35-'0'!E35)/'0'!E35,0) -> 0 | F95: =IFERROR((F35-'0'!F35)/'0'!F35,0) -> 0 | G95: =IFERROR((G35-'0'!G35)/'0'!G35,0) -> 0 | H95: =IFERROR((H35-'0'!H35)/'0'!H35,0) -> 0 | J95: =$B$7 -> 2020 | K95: =IFERROR((K35-'0'!K35)/'0'!K35,0) -> 0 | L95: =IFERROR((L35-'0'!L35)/'0'!L35,0) -> 0 | M95: =IFERROR((M35-'0'!M35)/'0'!M35,0) -> 0 | N95: =IFERROR((N35-'0'!N35)/'0'!N35,0) -> 0 | O95: =IFERROR((O35-'0'!O35)/'0'!O35,0) -> 0.01666667373 | P95: =IFERROR((P35-'0'!P35)/'0'!P35,0) -> 0 | R95: =$B$7 -> 2020 | S95: =IFERROR((S35-'0'!S35)/'0'!S35,0) -> 0 | T95: =IFERROR((T35-'0'!T35)/'0'!T35,0) -> 0 | U95: =IFERROR((U35-'0'!U35)/'0'!U35,0) -> 0 | V95: =IFERROR((V35-'0'!V35)/'0'!V35,0) -> 0 | W95: =IFERROR((W35-'0'!W35)/'0'!W35,0) -> 0.2000000848 | X95: =IFERROR((X35-'0'!X35)/'0'!X35,0) -> 0 | AG95: |
B96: =B95+1 -> 2021 | C96: =IFERROR((C36-'0'!C36)/'0'!C36,0) -> 0 | D96: =IFERROR((D36-'0'!D36)/'0'!D36,0) -> 0 | E96: =IFERROR((E36-'0'!E36)/'0'!E36,0) -> 0 | F96: =IFERROR((F36-'0'!F36)/'0'!F36,0) -> 0 | G96: =IFERROR((G36-'0'!G36)/'0'!G36,0) -> 0 | J96: =J95+1 -> 2021 | K96: =IFERROR((K36-'0'!K36)/'0'!K36,0) -> 0 | L96: =IFERROR((L36-'0'!L36)/'0'!L36,0) -> 0 | M96: =IFERROR((M36-'0'!M36)/'0'!M36,0) -> 0 | N96: =IFERROR((N36-'0'!N36)/'0'!N36,0) -> 0.01818182589 | O96: =IFERROR((O36-'0'!O36)/'0'!O36,0) -> 0.01666667373 | R96: =R95+1 -> 2021 | S96: =IFERROR((S36-'0'!S36)/'0'!S36,0) -> 0 | T96: =IFERROR((T36-'0'!T36)/'0'!T36,0) -> 0 | U96: =IFERROR((U36-'0'!U36)/'0'!U36,0) -> 0 | V96: =IFERROR((V36-'0'!V36)/'0'!V36,0) -> 0.2000000848 | W96: =IFERROR((W36-'0'!W36)/'0'!W36,0) -> 0.2000000848 | AG96: |
B97: =B96+1 -> 2022 | C97: =IFERROR((C37-'0'!C37)/'0'!C37,0) -> 0 | D97: =IFERROR((D37-'0'!D37)/'0'!D37,0) -> 0 | E97: =IFERROR((E37-'0'!E37)/'0'!E37,0) -> 0 | F97: =IFERROR((F37-'0'!F37)/'0'!F37,0) -> 0 | J97: =J96+1 -> 2022 | K97: =IFERROR((K37-'0'!K37)/'0'!K37,0) -> 0 | L97: =IFERROR((L37-'0'!L37)/'0'!L37,0) -> 0 | M97: =IFERROR((M37-'0'!M37)/'0'!M37,0) -> 0.04000001695 | N97: =IFERROR((N37-'0'!N37)/'0'!N37,0) -> 0.01818182589 | R97: =R96+1 -> 2022 | S97: =IFERROR((S37-'0'!S37)/'0'!S37,0) -> 0 | T97: =IFERROR((T37-'0'!T37)/'0'!T37,0) -> 0 | U97: =IFERROR((U37-'0'!U37)/'0'!U37,0) -> 0.2000000848 | V97: =IFERROR((V37-'0'!V37)/'0'!V37,0) -> 0.2000000848 | AG97: |
B98: 2023 | C98: =IFERROR((C38-'0'!C38)/'0'!C38,0) -> 0 | D98: =IFERROR((D38-'0'!D38)/'0'!D38,0) -> 0 | E98: =IFERROR((E38-'0'!E38)/'0'!E38,0) -> 0 | J98: 2023 | K98: =IFERROR((K38-'0'!K38)/'0'!K38,0) -> 0 | L98: =IFERROR((L38-'0'!L38)/'0'!L38,0) -> 0.05000002119 | M98: =IFERROR((M38-'0'!M38)/'0'!M38,0) -> 0.04000001695 | R98: 2023 | S98: =IFERROR((S38-'0'!S38)/'0'!S38,0) -> 0 | T98: =IFERROR((T38-'0'!T38)/'0'!T38,0) -> 0.1333333898 | U98: =IFERROR((U38-'0'!U38)/'0'!U38,0) -> 0.2000000848 | AG98: |
B99: 2024 | C99: =IFERROR((C39-'0'!C39)/'0'!C39,0) -> 0 | D99: =IFERROR((D39-'0'!D39)/'0'!D39,0) -> 0 | J99: 2024 | K99: =IFERROR((K39-'0'!K39)/'0'!K39,0) -> 0.1333333898 | L99: =IFERROR((L39-'0'!L39)/'0'!L39,0) -> 0.07500003179 | R99: 2024 | S99: =IFERROR((S39-'0'!S39)/'0'!S39,0) -> 0.2000000848 | T99: =IFERROR((T39-'0'!T39)/'0'!T39,0) -> 0.2000000848 | AG99: |
B100: 2025 | C100: =IFERROR((C40-'0'!C40)/'0'!C40,0) -> 0 | J100: 2025 | K100: =IFERROR((K40-'0'!K40)/'0'!K40,0) -> 0.1333333898 | R100: 2025 | S100: =IFERROR((S40-'0'!S40)/'0'!S40,0) -> 0.2000000848 | AG100: |
AG101: |
AG102: |
AG103: |
AG104: |
AG105: |
AG106: |
AG107: |
AG108: |
AG109: |
AG110: |
AG111: |
AG112: |
AG113: |
AG114: |
AG115: |
AG116: |
AG117: |
AG118: |
AG119: |
B120: ---- | C120: ---- | D120: ---- | E120: ---- | F120: ---- | G120: ---- | H120: ---- | I120: ---- | J120: ---- | K120: ---- | L120: ---- | M120: ---- | N120: ---- | O120: ---- | P120: ---- | Q120: ---- | R120: ---- | S120: ---- | T120: ---- | U120: ---- | V120: ---- | W120: ---- | AG120: ----
AG121: |
AG122: |
AG123: |
AG124: |
AG125: |
AG126: |
AG127: |
AG128: |
AG129: |
AG130: |
AG131: |
AG132: |
AG133: |
AG134: |
AG135: |
AG136: |
AG137: |
AG138: |
AG139: |
AG140: |
AG141: |
AG142: |
AG143: |
AG144: |
AG145: |
AG146: |
AG147: |
AG148: |
AG149: |
AG150: |
AG151: |
AG152: |
AG153: |
AG154: |
AG155: |
AG156: |
AG157: |
AG158: |
AG159: |
AG160: |
AG161: |
AG162: |
AG163: |
AG164: |
AG165: |
AG166: |
AG167: |
AG168: |
AG169: |
AG170: |
AG171: |
AG172: |
AG173: |
AG174: |
AG175: |
AG176: |
AG177: |
AG178: |
AG179: |
B180: ---- | C180: ---- | D180: ---- | E180: ---- | F180: ---- | G180: ---- | H180: ---- | I180: ---- | J180: ---- | K180: ---- | L180: ---- | M180: ---- | N180: ---- | O180: ---- | P180: ---- | Q180: ---- | R180: ---- | S180: ---- | T180: ---- | U180: ---- | V180: ---- | W180: ---- | AG180: ----
AG181: |
AG182: |
AG183: |
AG184: |
AG185: |
AG186: |
AG187: |
AG188: |
AG189: |
AG190: |
AG191: |
AG192: |
AG193: |
AG194: |
AG195: |
AG196: |
AG197: |
AG198: |
AG199: |
AG200: |
AG201: |
... 1358 more rows

Sheet 5
B2: Book of Triangles | AG2: |
B3: Scenario: | C3: 5 | R3: (1) | S3: (2) | T3: (3) | U3: (4) | V3: (5) | W3: (6) | X3: (7) | AG3: |
T4: avg. | U4: cum. | V4: ann. | W4: rt level | X4: on | AG4: | | AI4: est pd | AJ4: est rptd | AK4: real | AL4: real
B5: Amounts | C5: Paid Loss | E5: Development Age | J5: Amounts | K5: Rptd Loss | M5: Development Age | T5: rate | U5: avg. | V5: expos. | W5: adj. to | X5: level | AG5: | | AI5: AY | AJ5: AY | AK5: AY | AL5: AY
B6: AY | C6: 12 | D6: =C6+12 -> 24 | E6: =D6+12 -> 36 | F6: 48 | G6: 60 | H6: 72 | J6: AY | K6: 12 | L6: =K6+12 -> 24 | M6: =L6+12 -> 36 | N6: 48 | O6: 60 | P6: 72 | R6: CY | S6: EP | T6: chg. | U6: rt. lvl. | V6: chg. | W6: =R12 -> 2025 | X6: EP | Z6: CY | AA6: EE | AG6: | | AH6: AY | AI6: ULR | AJ6: ULR | AK6: ULR | AL6: Loss
B7: 2020 | C7: 720 | D7: 1800 | E7: 2880 | F7: 3600 | G7: 3960 | H7: 4320 | J7: =$B$7 -> 2020 | K7: 2160 | L7: 2880 | M7: 3600 | N7: 3960 | O7: 4320 | P7: 4320 | R7: =$B$7 -> 2020 | S7: 7200 | U7: =T7 -> 0 | W7: =(1+U12)/(1+U7) -> 1 | X7: =S7*W7 -> 7200 | Z7: =$B$7 -> 2020 | AA7: 12.00000036 | AG7: | | AH7: =$B$7 -> 2020 | AI7: 0.6 | AJ7: 0.6 | AK7: 0.6 | AL7: =S7*AK7 -> 4320
B8: =B7+1 -> 2021 | C8: 720 | D8: 1800 | E8: 2880 | F8: 3600 | G8: 3960 | J8: =J7+1 -> 2021 | K8: 2160 | L8: 2880 | M8: 3600 | N8: 3960 | O8: 4320 | R8: =R7+1 -> 2021 | S8: 7200 | T8: 0 | U8: =(1+U7)*(1+T8)-1 -> 0 | V8: =(S8/S7)/(1+T8)-1 -> 0 | W8: =(1+U12)/(1+U8) -> 1 | X8: 7200 | Z8: =Z7+1 -> 2021 | AA8: 12.00000036 | AG8: | | AH8: =AH7+1 -> 2021 | AI8: 0.6 | AJ8: 0.6 | AK8: 0.6 | AL8: 4320
B9: =B8+1 -> 2022 | C9: 720 | D9: 1800 | E9: 2880 | F9: 3600 | J9: =J8+1 -> 2022 | K9: 2160 | L9: 2880 | M9: 3600 | N9: 3960 | R9: =R8+1 -> 2022 | S9: 7200 | T9: 0 | U9: =(1+U8)*(1+T9)-1 -> 0 | V9: =(S9/S8)/(1+T9)-1 -> 0 | W9: =(1+U12)/(1+U9) -> 1 | X9: 7200 | Z9: =Z8+1 -> 2022 | AA9: 12.00000036 | AG9: | | AH9: =AH8+1 -> 2022 | AI9: 0.6 | AJ9: 0.6 | AK9: 0.6 | AL9: 4320
B10: 2023 | C10: 1200 | D10: 3000 | E10: 4800 | J10: 2023 | K10: 3600 | L10: 4800 | M10: 6000 | R10: =R9+1 -> 2023 | S10: 7200 | T10: 0 | U10: 0 | V10: =(S10/S9)/(1+T10)-1 -> 0 | W10: =(1+U12)/(1+U10) -> 1 | X10: 7200 | Z10: =Z9+1 -> 2023 | AA10: 12.00000036 | AG10: | | AH10: 2023 | AI10: 1 | AJ10: 1 | AK10: 0.6 | AL10: 4320
B11: 2024 | C11: 720 | D11: 1800 | J11: 2024 | K11: 2160 | L11: 2880 | R11: =R10+1 -> 2024 | S11: 7200 | T11: 0 | U11: 0 | V11: =(S11/S10)/(1+T11)-1 -> 0 | W11: =(1+U12)/(1+U11) -> 1 | X11: 7200 | Z11: =Z10+1 -> 2024 | AA11: 12.00000036 | AG11: | | AH11: 2024 | AI11: 0.6 | AJ11: 0.6 | AK11: 0.6 | AL11: 4320
B12: 2025 | C12: 720 | J12: 2025 | K12: 2160 | R12: =R11+1 -> 2025 | S12: 7200 | T12: 0 | U12: 0 | V12: =(S12/S11)/(1+T12)-1 -> 0 | W12: =(1+U12)/(1+U12) -> 1 | X12: 7200 | Z12: =Z11+1 -> 2025 | AA12: 12.00000036 | AG12: | | AH12: 2025 | AI12: 0.6 | AJ12: 0.6 | AK12: 0.6 | AL12: 4320
AG13: |
B14: Counts | C14: Paid Count | E14: Development Age | J14: Counts | K14: Rptd Count | M14: Development Age | R14: (2) | S14: = | T14: given | AG14: |
B15: AY | C15: 12 | D15: 24 | E15: 36 | F15: 48 | G15: 60 | H15: 72 | J15: AY | K15: 12 | L15: 24 | M15: 36 | N15: 48 | O15: 60 | P15: 72 | R15: (3) | S15: = | T15: given | AG15: |
B16: =$B$7 -> 2020 | C16: 2 | D16: 5 | E16: 8 | F16: 10 | G16: 11 | H16: 12 | J16: =$B$7 -> 2020 | K16: 6 | L16: 8 | M16: 10 | N16: 11 | O16: 12 | P16: 12 | R16: (4) | S16: = | T16: [ 1 + (4):prior] x [1 + (3)] - 1.0 | AG16: | | AH16: Interpretation: | AJ16: large loss in AY 2023
B17: =B16+1 -> 2021 | C17: 2 | D17: 5 | E17: 8 | F17: 10 | G17: 11 | J17: =J16+1 -> 2021 | K17: 6 | L17: 8 | M17: 10 | N17: 11 | O17: 12 | R17: (5) | S17: = | T17: [ (2) / (2):prior] / [1 + (3)] - 1.0 | AG17: |
B18: =B17+1 -> 2022 | C18: 2 | D18: 5 | E18: 8 | F18: 10 | J18: =J17+1 -> 2022 | K18: 6 | L18: 8 | M18: 10 | N18: 11 | R18: (6) | S18: = | T18: [ 1 + (4):2025] / [1 + (4)] | AG18: |
B19: 2023 | C19: 2 | D19: 5 | E19: 8 | J19: 2023 | K19: 6 | L19: 8 | M19: 10 | R19: (7) | S19: = | T19: (2) x (6) | AG19: |
B20: 2024 | C20: 2 | D20: 5 | J20: 2024 | K20: 6 | L20: 8 | AG20: |
B21: 2025 | C21: 2 | J21: 2025 | K21: 6 | AG21: |
AG22: |
C23: paid loss ratio | F23: Development Age | K23: rptd loss ratio | N23: Development Age | S23: paid/rptd loss | V23: Development Age | AA23: paid/rptd counts | AD23: Development Age | AG23: |
B24: AY | C24: 12 | D24: 24 | E24: 36 | F24: 48 | G24: 60 | H24: 72 | J24: AY | K24: 12 | L24: 24 | M24: 36 | N24: 48 | O24: 60 | P24: 72 | R24: AY | S24: 12 | T24: 24 | U24: 36 | V24: 48 | W24: 60 | X24: 72 | Z24: AY | AA24: 12 | AB24: 24 | AC24: 36 | AD24: 48 | AE24: 60 | AF24: 72 | AG24: |
B25: =$B$7 -> 2020 | C25: =C7/$X7 -> 0.1 | D25: 0.25 | E25: 0.4 | F25: 0.5 | G25: 0.55 | H25: 0.6 | J25: =$B$7 -> 2020 | K25: =K7/$X7 -> 0.3 | L25: 0.4 | M25: 0.5 | N25: 0.55 | O25: 0.6 | P25: 0.6 | R25: =$B$7 -> 2020 | S25: =C7/K7 -> 0.3333333333 | T25: 0.625 | U25: 0.8 | V25: 0.9090909091 | W25: 0.9166666667 | X25: 1 | Z25: =$B$7 -> 2020 | AA25: =C16/K16 -> 0.3333333333 | AB25: 0.625 | AC25: 0.8 | AD25: 0.9090909091 | AE25: 0.9166666667 | AF25: 1 | AG25: |
B26: =B25+1 -> 2021 | C26: =C8/$X8 -> 0.1 | D26: =D8/$X8 -> 0.25 | E26: =E8/$X8 -> 0.4 | F26: =F8/$X8 -> 0.5 | G26: =G8/$X8 -> 0.55 | J26: =J25+1 -> 2021 | K26: =K8/$X8 -> 0.3 | L26: =L8/$X8 -> 0.4 | M26: =M8/$X8 -> 0.5 | N26: =N8/$X8 -> 0.55 | O26: =O8/$X8 -> 0.6 | R26: =R25+1 -> 2021 | S26: =C8/K8 -> 0.3333333333 | T26: =D8/L8 -> 0.625 | U26: =E8/M8 -> 0.8 | V26: =F8/N8 -> 0.9090909091 | W26: =G8/O8 -> 0.9166666667 | Z26: =Z25+1 -> 2021 | AA26: =C17/K17 -> 0.3333333333 | AB26: =D17/L17 -> 0.625 | AC26: =E17/M17 -> 0.8 | AD26: =F17/N17 -> 0.9090909091 | AE26: =G17/O17 -> 0.9166666667 | AG26: |
B27: =B26+1 -> 2022 | C27: =C9/$X9 -> 0.1 | D27: =D9/$X9 -> 0.25 | E27: =E9/$X9 -> 0.4 | F27: =F9/$X9 -> 0.5 | J27: =J26+1 -> 2022 | K27: =K9/$X9 -> 0.3 | L27: =L9/$X9 -> 0.4 | M27: =M9/$X9 -> 0.5 | N27: =N9/$X9 -> 0.55 | R27: =R26+1 -> 2022 | S27: =C9/K9 -> 0.3333333333 | T27: =D9/L9 -> 0.625 | U27: =E9/M9 -> 0.8 | V27: =F9/N9 -> 0.9090909091 | Z27: =Z26+1 -> 2022 | AA27: =C18/K18 -> 0.3333333333 | AB27: =D18/L18 -> 0.625 | AC27: =E18/M18 -> 0.8 | AD27: =F18/N18 -> 0.9090909091 | AG27: |
B28: 2023 | C28: =C10/$X10 -> 0.1666666667 | D28: =D10/$X10 -> 0.4166666667 | E28: =E10/$X10 -> 0.6666666667 | J28: 2023 | K28: =K10/$X10 -> 0.5 | L28: =L10/$X10 -> 0.6666666667 | M28: =M10/$X10 -> 0.8333333333 | R28: 2023 | S28: =C10/K10 -> 0.3333333333 | T28: =D10/L10 -> 0.625 | U28: =E10/M10 -> 0.8 | Z28: 2023 | AA28: =C19/K19 -> 0.3333333333 | AB28: =D19/L19 -> 0.625 | AC28: =E19/M19 -> 0.8 | AG28: |
B29: 2024 | C29: =C11/$X11 -> 0.1 | D29: =D11/$X11 -> 0.25 | J29: 2024 | K29: =K11/$X11 -> 0.3 | L29: =L11/$X11 -> 0.4 | R29: 2024 | S29: =C11/K11 -> 0.3333333333 | T29: =D11/L11 -> 0.625 | Z29: 2024 | AA29: =C20/K20 -> 0.3333333333 | AB29: =D20/L20 -> 0.625 | AG29: |
B30: 2025 | C30: =C12/$X12 -> 0.1 | J30: 2025 | K30: =K12/$X12 -> 0.3 | R30: 2025 | S30: =C12/K12 -> 0.3333333333 | Z30: 2025 | AA30: =C21/K21 -> 0.3333333333 | AG30: |
AG31: |
C32: PAID dollars-per-count | K32: REPORTED dollars-per-count | S32: Case O/S dollars-per-count | AG32: |
C33: average paid loss | F33: Development Age | K33: average rptd loss | N33: Development Age | S33: average case O/S | V33: Development Age | AG33: |
B34: AY | C34: 12 | D34: 24 | E34: 36 | F34: 48 | G34: 60 | H34: 72 | J34: AY | K34: 12 | L34: 24 | M34: 36 | N34: 48 | O34: 60 | P34: 72 | R34: AY | S34: 12 | T34: 24 | U34: 36 | V34: 48 | W34: 60 | X34: 72 | AG34: |
B35: =$B$7 -> 2020 | C35: =C7/C16 -> 360 | D35: 360 | E35: 360 | F35: 360 | G35: 360 | H35: 360 | J35: =$B$7 -> 2020 | K35: =K7/K16 -> 360 | L35: 360 | M35: 360 | N35: 360 | O35: 360 | P35: 360 | R35: =$B$7 -> 2020 | S35: =IFERROR((K7-C7)/(K16-C16),0) -> 360 | T35: 360 | U35: 360 | V35: 360 | W35: 360 | X35: 0 | AG35: |
B36: =B35+1 -> 2021 | C36: =C8/C17 -> 360 | D36: =D8/D17 -> 360 | E36: =E8/E17 -> 360 | F36: =F8/F17 -> 360 | G36: =G8/G17 -> 360 | J36: =J35+1 -> 2021 | K36: =K8/K17 -> 360 | L36: =L8/L17 -> 360 | M36: =M8/M17 -> 360 | N36: =N8/N17 -> 360 | O36: =O8/O17 -> 360 | R36: =R35+1 -> 2021 | S36: =IFERROR((K8-C8)/(K17-C17),0) -> 360 | T36: =IFERROR((L8-D8)/(L17-D17),0) -> 360 | U36: =IFERROR((M8-E8)/(M17-E17),0) -> 360 | V36: =IFERROR((N8-F8)/(N17-F17),0) -> 360 | W36: =IFERROR((O8-G8)/(O17-G17),0) -> 360 | AG36: |
B37: =B36+1 -> 2022 | C37: =C9/C18 -> 360 | D37: =D9/D18 -> 360 | E37: =E9/E18 -> 360 | F37: =F9/F18 -> 360 | J37: =J36+1 -> 2022 | K37: =K9/K18 -> 360 | L37: =L9/L18 -> 360 | M37: =M9/M18 -> 360 | N37: =N9/N18 -> 360 | R37: =R36+1 -> 2022 | S37: =IFERROR((K9-C9)/(K18-C18),0) -> 360 | T37: =IFERROR((L9-D9)/(L18-D18),0) -> 360 | U37: =IFERROR((M9-E9)/(M18-E18),0) -> 360 | V37: =IFERROR((N9-F9)/(N18-F18),0) -> 360 | AG37: |
B38: 2023 | C38: =C10/C19 -> 600 | D38: =D10/D19 -> 600 | E38: =E10/E19 -> 600 | J38: 2023 | K38: =K10/K19 -> 600 | L38: =L10/L19 -> 600 | M38: =M10/M19 -> 600 | R38: 2023 | S38: =IFERROR((K10-C10)/(K19-C19),0) -> 600 | T38: =IFERROR((L10-D10)/(L19-D19),0) -> 600 | U38: =IFERROR((M10-E10)/(M19-E19),0) -> 600 | AG38: |
B39: 2024 | C39: =C11/C20 -> 360 | D39: =D11/D20 -> 360 | J39: 2024 | K39: =K11/K20 -> 360 | L39: =L11/L20 -> 360 | R39: 2024 | S39: =IFERROR((K11-C11)/(K20-C20),0) -> 360 | T39: =IFERROR((L11-D11)/(L20-D20),0) -> 360 | AG39: |
B40: 2025 | C40: =C12/C21 -> 360 | J40: 2025 | K40: =K12/K21 -> 360 | R40: 2025 | S40: =IFERROR((K12-C12)/(K21-C21),0) -> 360 | AG40: |
AG41: |
AG42: |
AG43: |
AG44: |
AG45: |
AG46: |
AG47: |
AG48: |
AG49: |
AG50: |
AG51: |
AG52: |
AG53: |
AG54: |
AG55: |
AG56: |
AG57: |
AG58: |
AG59: |
B60: ---- | C60: ---- | D60: ---- | E60: ---- | F60: ---- | G60: ---- | H60: ---- | I60: ---- | J60: ---- | K60: ---- | L60: ---- | M60: ---- | N60: ---- | O60: ---- | P60: ---- | Q60: ---- | R60: ---- | S60: ---- | T60: ---- | U60: ---- | V60: ---- | W60: ---- | X60: ---- | Y60: ---- | Z60: ---- | AA60: ---- | AB60: ---- | AC60: ---- | AD60: ---- | AE60: ---- | AF60: ---- | AG60: ----
AG61: |
B62: Book of Triangles | AG62: |
B63: Scenario: | C63: =C3 -> 5 | D63: (Comparison to Base Case) | R63: (1) | S63: (2) | T63: (3) | U63: (4) | V63: (5) | W63: (6) | X63: (7) | AG63: |
T64: avg. | U64: cum. | V64: ann. | W64: rt level | X64: on | AG64: |
B65: Amounts | C65: Paid Loss | E65: Development Age | J65: Amounts | K65: Rptd Loss | M65: Development Age | T65: rate | U65: avg. | V65: expos. | W65: adj. to | X65: level | AG65: |
B66: AY | C66: 12 | D66: =C66+12 -> 24 | E66: =D66+12 -> 36 | F66: 48 | G66: 60 | H66: 72 | J66: AY | K66: 12 | L66: =K66+12 -> 24 | M66: =L66+12 -> 36 | N66: 48 | O66: 60 | P66: 72 | R66: CY | S66: EP | T66: chg. | U66: rt. lvl. | V66: chg. | W66: =R72 -> 2025 | X66: EP | Z66: CY | AA66: EE | AG66: |
B67: 2020 | C67: =IFERROR((C7-'0'!C7)/'0'!C7,0) -> 0 | D67: =IFERROR((D7-'0'!D7)/'0'!D7,0) -> 0 | E67: =IFERROR((E7-'0'!E7)/'0'!E7,0) -> 0 | F67: =IFERROR((F7-'0'!F7)/'0'!F7,0) -> 0 | G67: =IFERROR((G7-'0'!G7)/'0'!G7,0) -> 0 | H67: =IFERROR((H7-'0'!H7)/'0'!H7,0) -> 0 | J67: =$B$7 -> 2020 | K67: =IFERROR((K7-'0'!K7)/'0'!K7,0) -> 0 | L67: =IFERROR((L7-'0'!L7)/'0'!L7,0) -> 0 | M67: =IFERROR((M7-'0'!M7)/'0'!M7,0) -> 0 | N67: =IFERROR((N7-'0'!N7)/'0'!N7,0) -> 0 | O67: =IFERROR((O7-'0'!O7)/'0'!O7,0) -> 0 | P67: =IFERROR((P7-'0'!P7)/'0'!P7,0) -> 0 | R67: =$B$7 -> 2020 | S67: =IFERROR((S7-'0'!S7)/'0'!S7,0) -> 0 | Z67: =$B$7 -> 2020 | AA67: =IFERROR((AA7-'0'!AA7)/'0'!AA7,0) -> 0 | AG67: |
B68: =B67+1 -> 2021 | C68: =IFERROR((C8-'0'!C8)/'0'!C8,0) -> 0 | D68: =IFERROR((D8-'0'!D8)/'0'!D8,0) -> 0 | E68: =IFERROR((E8-'0'!E8)/'0'!E8,0) -> 0 | F68: =IFERROR((F8-'0'!F8)/'0'!F8,0) -> 0 | G68: =IFERROR((G8-'0'!G8)/'0'!G8,0) -> 0 | J68: =J67+1 -> 2021 | K68: =IFERROR((K8-'0'!K8)/'0'!K8,0) -> 0 | L68: =IFERROR((L8-'0'!L8)/'0'!L8,0) -> 0 | M68: =IFERROR((M8-'0'!M8)/'0'!M8,0) -> 0 | N68: =IFERROR((N8-'0'!N8)/'0'!N8,0) -> 0 | O68: =IFERROR((O8-'0'!O8)/'0'!O8,0) -> 0 | R68: =R67+1 -> 2021 | S68: =IFERROR((S8-'0'!S8)/'0'!S8,0) -> 0 | T68: =IFERROR((T8-'0'!T8)/'0'!T8,0) -> 0 | Z68: =Z67+1 -> 2021 | AA68: =IFERROR((AA8-'0'!AA8)/'0'!AA8,0) -> 0 | AG68: |
B69: =B68+1 -> 2022 | C69: =IFERROR((C9-'0'!C9)/'0'!C9,0) -> 0 | D69: =IFERROR((D9-'0'!D9)/'0'!D9,0) -> 0 | E69: =IFERROR((E9-'0'!E9)/'0'!E9,0) -> 0 | F69: =IFERROR((F9-'0'!F9)/'0'!F9,0) -> 0 | J69: =J68+1 -> 2022 | K69: =IFERROR((K9-'0'!K9)/'0'!K9,0) -> 0 | L69: =IFERROR((L9-'0'!L9)/'0'!L9,0) -> 0 | M69: =IFERROR((M9-'0'!M9)/'0'!M9,0) -> 0 | N69: =IFERROR((N9-'0'!N9)/'0'!N9,0) -> 0 | R69: =R68+1 -> 2022 | S69: =IFERROR((S9-'0'!S9)/'0'!S9,0) -> 0 | T69: =IFERROR((T9-'0'!T9)/'0'!T9,0) -> 0 | Z69: =Z68+1 -> 2022 | AA69: =IFERROR((AA9-'0'!AA9)/'0'!AA9,0) -> 0 | AG69: |
B70: 2023 | C70: =IFERROR((C10-'0'!C10)/'0'!C10,0) -> 0.6666666667 | D70: =IFERROR((D10-'0'!D10)/'0'!D10,0) -> 0.6666666667 | E70: =IFERROR((E10-'0'!E10)/'0'!E10,0) -> 0.6666666667 | J70: 2023 | K70: =IFERROR((K10-'0'!K10)/'0'!K10,0) -> 0.6666666667 | L70: =IFERROR((L10-'0'!L10)/'0'!L10,0) -> 0.6666666667 | M70: =IFERROR((M10-'0'!M10)/'0'!M10,0) -> 0.6666666667 | R70: =R69+1 -> 2023 | S70: =IFERROR((S10-'0'!S10)/'0'!S10,0) -> 0 | T70: =IFERROR((T10-'0'!T10)/'0'!T10,0) -> 0 | Z70: =Z69+1 -> 2023 | AA70: =IFERROR((AA10-'0'!AA10)/'0'!AA10,0) -> 0 | AG70: |
B71: 2024 | C71: =IFERROR((C11-'0'!C11)/'0'!C11,0) -> 0 | D71: =IFERROR((D11-'0'!D11)/'0'!D11,0) -> 0 | J71: 2024 | K71: =IFERROR((K11-'0'!K11)/'0'!K11,0) -> 0 | L71: =IFERROR((L11-'0'!L11)/'0'!L11,0) -> 0 | R71: =R70+1 -> 2024 | S71: =IFERROR((S11-'0'!S11)/'0'!S11,0) -> 0 | T71: =IFERROR((T11-'0'!T11)/'0'!T11,0) -> 0 | Z71: =Z70+1 -> 2024 | AA71: =IFERROR((AA11-'0'!AA11)/'0'!AA11,0) -> 0 | AG71: |
B72: 2025 | C72: =IFERROR((C12-'0'!C12)/'0'!C12,0) -> 0 | J72: 2025 | K72: =IFERROR((K12-'0'!K12)/'0'!K12,0) -> 0 | R72: =R71+1 -> 2025 | S72: =IFERROR((S12-'0'!S12)/'0'!S12,0) -> 0 | T72: =IFERROR((T12-'0'!T12)/'0'!T12,0) -> 0 | Z72: =Z71+1 -> 2025 | AA72: =IFERROR((AA12-'0'!AA12)/'0'!AA12,0) -> 0 | AG72: |
AG73: |
B74: Counts | C74: Paid Count | E74: Development Age | J74: Counts | K74: Rptd Count | M74: Development Age | AG74: |
B75: AY | C75: 12 | D75: 24 | E75: 36 | F75: 48 | G75: 60 | H75: 72 | J75: AY | K75: 12 | L75: 24 | M75: 36 | N75: 48 | O75: 60 | P75: 72 | AG75: |
B76: =$B$7 -> 2020 | C76: =IFERROR((C16-'0'!C16)/'0'!C16,0) -> 0 | D76: =IFERROR((D16-'0'!D16)/'0'!D16,0) -> 0 | E76: =IFERROR((E16-'0'!E16)/'0'!E16,0) -> 0 | F76: =IFERROR((F16-'0'!F16)/'0'!F16,0) -> 0 | G76: =IFERROR((G16-'0'!G16)/'0'!G16,0) -> 0 | H76: =IFERROR((H16-'0'!H16)/'0'!H16,0) -> 0 | J76: =$B$7 -> 2020 | K76: =IFERROR((K16-'0'!K16)/'0'!K16,0) -> 0 | L76: =IFERROR((L16-'0'!L16)/'0'!L16,0) -> 0 | M76: =IFERROR((M16-'0'!M16)/'0'!M16,0) -> 0 | N76: =IFERROR((N16-'0'!N16)/'0'!N16,0) -> 0 | O76: =IFERROR((O16-'0'!O16)/'0'!O16,0) -> 0 | P76: =IFERROR((P16-'0'!P16)/'0'!P16,0) -> 0 | AG76: |
B77: =B76+1 -> 2021 | C77: =IFERROR((C17-'0'!C17)/'0'!C17,0) -> 0 | D77: =IFERROR((D17-'0'!D17)/'0'!D17,0) -> 0 | E77: =IFERROR((E17-'0'!E17)/'0'!E17,0) -> 0 | F77: =IFERROR((F17-'0'!F17)/'0'!F17,0) -> 0 | G77: =IFERROR((G17-'0'!G17)/'0'!G17,0) -> 0 | J77: =J76+1 -> 2021 | K77: =IFERROR((K17-'0'!K17)/'0'!K17,0) -> 0 | L77: =IFERROR((L17-'0'!L17)/'0'!L17,0) -> 0 | M77: =IFERROR((M17-'0'!M17)/'0'!M17,0) -> 0 | N77: =IFERROR((N17-'0'!N17)/'0'!N17,0) -> 0 | O77: =IFERROR((O17-'0'!O17)/'0'!O17,0) -> 0 | AG77: |
B78: =B77+1 -> 2022 | C78: =IFERROR((C18-'0'!C18)/'0'!C18,0) -> 0 | D78: =IFERROR((D18-'0'!D18)/'0'!D18,0) -> 0 | E78: =IFERROR((E18-'0'!E18)/'0'!E18,0) -> 0 | F78: =IFERROR((F18-'0'!F18)/'0'!F18,0) -> 0 | J78: =J77+1 -> 2022 | K78: =IFERROR((K18-'0'!K18)/'0'!K18,0) -> 0 | L78: =IFERROR((L18-'0'!L18)/'0'!L18,0) -> 0 | M78: =IFERROR((M18-'0'!M18)/'0'!M18,0) -> 0 | N78: =IFERROR((N18-'0'!N18)/'0'!N18,0) -> 0 | AG78: |
B79: 2023 | C79: =IFERROR((C19-'0'!C19)/'0'!C19,0) -> 0 | D79: =IFERROR((D19-'0'!D19)/'0'!D19,0) -> 0 | E79: =IFERROR((E19-'0'!E19)/'0'!E19,0) -> 0 | J79: 2023 | K79: =IFERROR((K19-'0'!K19)/'0'!K19,0) -> 0 | L79: =IFERROR((L19-'0'!L19)/'0'!L19,0) -> 0 | M79: =IFERROR((M19-'0'!M19)/'0'!M19,0) -> 0 | AG79: |
B80: 2024 | C80: =IFERROR((C20-'0'!C20)/'0'!C20,0) -> 0 | D80: =IFERROR((D20-'0'!D20)/'0'!D20,0) -> 0 | J80: 2024 | K80: =IFERROR((K20-'0'!K20)/'0'!K20,0) -> 0 | L80: =IFERROR((L20-'0'!L20)/'0'!L20,0) -> 0 | AG80: |
B81: 2025 | C81: =IFERROR((C21-'0'!C21)/'0'!C21,0) -> 0 | J81: 2025 | K81: =IFERROR((K21-'0'!K21)/'0'!K21,0) -> 0 | AG81: |
AG82: |
C83: paid loss ratio | F83: Development Age | K83: rptd loss ratio | N83: Development Age | S83: paid/rptd loss | V83: Development Age | AA83: paid/rptd counts | AD83: Development Age | AG83: |
B84: AY | C84: 12 | D84: 24 | E84: 36 | F84: 48 | G84: 60 | H84: 72 | J84: AY | K84: 12 | L84: 24 | M84: 36 | N84: 48 | O84: 60 | P84: 72 | R84: AY | S84: 12 | T84: 24 | U84: 36 | V84: 48 | W84: 60 | X84: 72 | Z84: AY | AA84: 12 | AB84: 24 | AC84: 36 | AD84: 48 | AE84: 60 | AF84: 72 | AG84: |
B85: =$B$7 -> 2020 | C85: =IFERROR((C25-'0'!C25)/'0'!C25,0) -> 0 | D85: =IFERROR((D25-'0'!D25)/'0'!D25,0) -> 0 | E85: =IFERROR((E25-'0'!E25)/'0'!E25,0) -> 0 | F85: =IFERROR((F25-'0'!F25)/'0'!F25,0) -> 0 | G85: =IFERROR((G25-'0'!G25)/'0'!G25,0) -> 0 | H85: =IFERROR((H25-'0'!H25)/'0'!H25,0) -> 0 | J85: =$B$7 -> 2020 | K85: =IFERROR((K25-'0'!K25)/'0'!K25,0) -> 0 | L85: =IFERROR((L25-'0'!L25)/'0'!L25,0) -> 0 | M85: =IFERROR((M25-'0'!M25)/'0'!M25,0) -> 0 | N85: =IFERROR((N25-'0'!N25)/'0'!N25,0) -> 0 | O85: =IFERROR((O25-'0'!O25)/'0'!O25,0) -> 0 | P85: =IFERROR((P25-'0'!P25)/'0'!P25,0) -> 0 | R85: =$B$7 -> 2020 | S85: =IFERROR((S25-'0'!S25)/'0'!S25,0) -> 0 | T85: =IFERROR((T25-'0'!T25)/'0'!T25,0) -> 0 | U85: =IFERROR((U25-'0'!U25)/'0'!U25,0) -> 0 | V85: =IFERROR((V25-'0'!V25)/'0'!V25,0) -> 0 | W85: =IFERROR((W25-'0'!W25)/'0'!W25,0) -> 0 | X85: =IFERROR((X25-'0'!X25)/'0'!X25,0) -> 0 | Z85: =$B$7 -> 2020 | AA85: =IFERROR((AA25-'0'!AA25)/'0'!AA25,0) -> 0 | AB85: =IFERROR((AB25-'0'!AB25)/'0'!AB25,0) -> 0 | AC85: =IFERROR((AC25-'0'!AC25)/'0'!AC25,0) -> 0 | AD85: =IFERROR((AD25-'0'!AD25)/'0'!AD25,0) -> 0 | AE85: =IFERROR((AE25-'0'!AE25)/'0'!AE25,0) -> 0 | AF85: =IFERROR((AF25-'0'!AF25)/'0'!AF25,0) -> 0 | AG85: |
B86: =B85+1 -> 2021 | C86: =IFERROR((C26-'0'!C26)/'0'!C26,0) -> 0 | D86: =IFERROR((D26-'0'!D26)/'0'!D26,0) -> 0 | E86: =IFERROR((E26-'0'!E26)/'0'!E26,0) -> 0 | F86: =IFERROR((F26-'0'!F26)/'0'!F26,0) -> 0 | G86: =IFERROR((G26-'0'!G26)/'0'!G26,0) -> 0 | J86: =J85+1 -> 2021 | K86: =IFERROR((K26-'0'!K26)/'0'!K26,0) -> 0 | L86: =IFERROR((L26-'0'!L26)/'0'!L26,0) -> 0 | M86: =IFERROR((M26-'0'!M26)/'0'!M26,0) -> 0 | N86: =IFERROR((N26-'0'!N26)/'0'!N26,0) -> 0 | O86: =IFERROR((O26-'0'!O26)/'0'!O26,0) -> 0 | R86: =R85+1 -> 2021 | S86: =IFERROR((S26-'0'!S26)/'0'!S26,0) -> 0 | T86: =IFERROR((T26-'0'!T26)/'0'!T26,0) -> 0 | U86: =IFERROR((U26-'0'!U26)/'0'!U26,0) -> 0 | V86: =IFERROR((V26-'0'!V26)/'0'!V26,0) -> 0 | W86: =IFERROR((W26-'0'!W26)/'0'!W26,0) -> 0 | Z86: =Z85+1 -> 2021 | AA86: =IFERROR((AA26-'0'!AA26)/'0'!AA26,0) -> 0 | AB86: =IFERROR((AB26-'0'!AB26)/'0'!AB26,0) -> 0 | AC86: =IFERROR((AC26-'0'!AC26)/'0'!AC26,0) -> 0 | AD86: =IFERROR((AD26-'0'!AD26)/'0'!AD26,0) -> 0 | AE86: =IFERROR((AE26-'0'!AE26)/'0'!AE26,0) -> 0 | AG86: |
B87: =B86+1 -> 2022 | C87: =IFERROR((C27-'0'!C27)/'0'!C27,0) -> 0 | D87: =IFERROR((D27-'0'!D27)/'0'!D27,0) -> 0 | E87: =IFERROR((E27-'0'!E27)/'0'!E27,0) -> 0 | F87: =IFERROR((F27-'0'!F27)/'0'!F27,0) -> 0 | J87: =J86+1 -> 2022 | K87: =IFERROR((K27-'0'!K27)/'0'!K27,0) -> 0 | L87: =IFERROR((L27-'0'!L27)/'0'!L27,0) -> 0 | M87: =IFERROR((M27-'0'!M27)/'0'!M27,0) -> 0 | N87: =IFERROR((N27-'0'!N27)/'0'!N27,0) -> 0 | R87: =R86+1 -> 2022 | S87: =IFERROR((S27-'0'!S27)/'0'!S27,0) -> 0 | T87: =IFERROR((T27-'0'!T27)/'0'!T27,0) -> 0 | U87: =IFERROR((U27-'0'!U27)/'0'!U27,0) -> 0 | V87: =IFERROR((V27-'0'!V27)/'0'!V27,0) -> 0 | Z87: =Z86+1 -> 2022 | AA87: =IFERROR((AA27-'0'!AA27)/'0'!AA27,0) -> 0 | AB87: =IFERROR((AB27-'0'!AB27)/'0'!AB27,0) -> 0 | AC87: =IFERROR((AC27-'0'!AC27)/'0'!AC27,0) -> 0 | AD87: =IFERROR((AD27-'0'!AD27)/'0'!AD27,0) -> 0 | AG87: |
B88: 2023 | C88: =IFERROR((C28-'0'!C28)/'0'!C28,0) -> 0.6666666667 | D88: =IFERROR((D28-'0'!D28)/'0'!D28,0) -> 0.6666666667 | E88: =IFERROR((E28-'0'!E28)/'0'!E28,0) -> 0.6666666667 | J88: 2023 | K88: =IFERROR((K28-'0'!K28)/'0'!K28,0) -> 0.6666666667 | L88: =IFERROR((L28-'0'!L28)/'0'!L28,0) -> 0.6666666667 | M88: =IFERROR((M28-'0'!M28)/'0'!M28,0) -> 0.6666666667 | R88: 2023 | S88: =IFERROR((S28-'0'!S28)/'0'!S28,0) -> 0 | T88: =IFERROR((T28-'0'!T28)/'0'!T28,0) -> 0 | U88: =IFERROR((U28-'0'!U28)/'0'!U28,0) -> 0 | Z88: 2023 | AA88: =IFERROR((AA28-'0'!AA28)/'0'!AA28,0) -> 0 | AB88: =IFERROR((AB28-'0'!AB28)/'0'!AB28,0) -> 0 | AC88: =IFERROR((AC28-'0'!AC28)/'0'!AC28,0) -> 0 | AG88: |
B89: 2024 | C89: =IFERROR((C29-'0'!C29)/'0'!C29,0) -> 0 | D89: =IFERROR((D29-'0'!D29)/'0'!D29,0) -> 0 | J89: 2024 | K89: =IFERROR((K29-'0'!K29)/'0'!K29,0) -> 0 | L89: =IFERROR((L29-'0'!L29)/'0'!L29,0) -> 0 | R89: 2024 | S89: =IFERROR((S29-'0'!S29)/'0'!S29,0) -> 0 | T89: =IFERROR((T29-'0'!T29)/'0'!T29,0) -> 0 | Z89: 2024 | AA89: =IFERROR((AA29-'0'!AA29)/'0'!AA29,0) -> 0 | AB89: =IFERROR((AB29-'0'!AB29)/'0'!AB29,0) -> 0 | AG89: |
B90: 2025 | C90: =IFERROR((C30-'0'!C30)/'0'!C30,0) -> 0 | J90: 2025 | K90: =IFERROR((K30-'0'!K30)/'0'!K30,0) -> 0 | R90: 2025 | S90: =IFERROR((S30-'0'!S30)/'0'!S30,0) -> 0 | Z90: 2025 | AA90: =IFERROR((AA30-'0'!AA30)/'0'!AA30,0) -> 0 | AG90: |
AG91: |
C92: PAID dollars-per-count | K92: REPORTED dollars-per-count | S92: Case O/S dollars-per-count | AG92: |
C93: average paid loss | F93: Development Age | K93: average rptd loss | N93: Development Age | S93: average case O/S | V93: Development Age | AG93: |
B94: AY | C94: 12 | D94: 24 | E94: 36 | F94: 48 | G94: 60 | H94: 72 | J94: AY | K94: 12 | L94: 24 | M94: 36 | N94: 48 | O94: 60 | P94: 72 | R94: AY | S94: 12 | T94: 24 | U94: 36 | V94: 48 | W94: 60 | X94: 72 | AG94: |
B95: =$B$7 -> 2020 | C95: =IFERROR((C35-'0'!C35)/'0'!C35,0) -> 0 | D95: =IFERROR((D35-'0'!D35)/'0'!D35,0) -> 0 | E95: =IFERROR((E35-'0'!E35)/'0'!E35,0) -> 0 | F95: =IFERROR((F35-'0'!F35)/'0'!F35,0) -> 0 | G95: =IFERROR((G35-'0'!G35)/'0'!G35,0) -> 0 | H95: =IFERROR((H35-'0'!H35)/'0'!H35,0) -> 0 | J95: =$B$7 -> 2020 | K95: =IFERROR((K35-'0'!K35)/'0'!K35,0) -> 0 | L95: =IFERROR((L35-'0'!L35)/'0'!L35,0) -> 0 | M95: =IFERROR((M35-'0'!M35)/'0'!M35,0) -> 0 | N95: =IFERROR((N35-'0'!N35)/'0'!N35,0) -> 0 | O95: =IFERROR((O35-'0'!O35)/'0'!O35,0) -> 0 | P95: =IFERROR((P35-'0'!P35)/'0'!P35,0) -> 0 | R95: =$B$7 -> 2020 | S95: =IFERROR((S35-'0'!S35)/'0'!S35,0) -> 0 | T95: =IFERROR((T35-'0'!T35)/'0'!T35,0) -> 0 | U95: =IFERROR((U35-'0'!U35)/'0'!U35,0) -> 0 | V95: =IFERROR((V35-'0'!V35)/'0'!V35,0) -> 0 | W95: =IFERROR((W35-'0'!W35)/'0'!W35,0) -> 0 | X95: =IFERROR((X35-'0'!X35)/'0'!X35,0) -> 0 | AG95: |
B96: =B95+1 -> 2021 | C96: =IFERROR((C36-'0'!C36)/'0'!C36,0) -> 0 | D96: =IFERROR((D36-'0'!D36)/'0'!D36,0) -> 0 | E96: =IFERROR((E36-'0'!E36)/'0'!E36,0) -> 0 | F96: =IFERROR((F36-'0'!F36)/'0'!F36,0) -> 0 | G96: =IFERROR((G36-'0'!G36)/'0'!G36,0) -> 0 | J96: =J95+1 -> 2021 | K96: =IFERROR((K36-'0'!K36)/'0'!K36,0) -> 0 | L96: =IFERROR((L36-'0'!L36)/'0'!L36,0) -> 0 | M96: =IFERROR((M36-'0'!M36)/'0'!M36,0) -> 0 | N96: =IFERROR((N36-'0'!N36)/'0'!N36,0) -> 0 | O96: =IFERROR((O36-'0'!O36)/'0'!O36,0) -> 0 | R96: =R95+1 -> 2021 | S96: =IFERROR((S36-'0'!S36)/'0'!S36,0) -> 0 | T96: =IFERROR((T36-'0'!T36)/'0'!T36,0) -> 0 | U96: =IFERROR((U36-'0'!U36)/'0'!U36,0) -> 0 | V96: =IFERROR((V36-'0'!V36)/'0'!V36,0) -> 0 | W96: =IFERROR((W36-'0'!W36)/'0'!W36,0) -> 0 | AG96: |
B97: =B96+1 -> 2022 | C97: =IFERROR((C37-'0'!C37)/'0'!C37,0) -> 0 | D97: =IFERROR((D37-'0'!D37)/'0'!D37,0) -> 0 | E97: =IFERROR((E37-'0'!E37)/'0'!E37,0) -> 0 | F97: =IFERROR((F37-'0'!F37)/'0'!F37,0) -> 0 | J97: =J96+1 -> 2022 | K97: =IFERROR((K37-'0'!K37)/'0'!K37,0) -> 0 | L97: =IFERROR((L37-'0'!L37)/'0'!L37,0) -> 0 | M97: =IFERROR((M37-'0'!M37)/'0'!M37,0) -> 0 | N97: =IFERROR((N37-'0'!N37)/'0'!N37,0) -> 0 | R97: =R96+1 -> 2022 | S97: =IFERROR((S37-'0'!S37)/'0'!S37,0) -> 0 | T97: =IFERROR((T37-'0'!T37)/'0'!T37,0) -> 0 | U97: =IFERROR((U37-'0'!U37)/'0'!U37,0) -> 0 | V97: =IFERROR((V37-'0'!V37)/'0'!V37,0) -> 0 | AG97: |
B98: 2023 | C98: =IFERROR((C38-'0'!C38)/'0'!C38,0) -> 0.6666666667 | D98: =IFERROR((D38-'0'!D38)/'0'!D38,0) -> 0.6666666667 | E98: =IFERROR((E38-'0'!E38)/'0'!E38,0) -> 0.6666666667 | J98: 2023 | K98: =IFERROR((K38-'0'!K38)/'0'!K38,0) -> 0.6666666667 | L98: =IFERROR((L38-'0'!L38)/'0'!L38,0) -> 0.6666666667 | M98: =IFERROR((M38-'0'!M38)/'0'!M38,0) -> 0.6666666667 | R98: 2023 | S98: =IFERROR((S38-'0'!S38)/'0'!S38,0) -> 0.6666666667 | T98: =IFERROR((T38-'0'!T38)/'0'!T38,0) -> 0.6666666667 | U98: =IFERROR((U38-'0'!U38)/'0'!U38,0) -> 0.6666666667 | AG98: |
B99: 2024 | C99: =IFERROR((C39-'0'!C39)/'0'!C39,0) -> 0 | D99: =IFERROR((D39-'0'!D39)/'0'!D39,0) -> 0 | J99: 2024 | K99: =IFERROR((K39-'0'!K39)/'0'!K39,0) -> 0 | L99: =IFERROR((L39-'0'!L39)/'0'!L39,0) -> 0 | R99: 2024 | S99: =IFERROR((S39-'0'!S39)/'0'!S39,0) -> 0 | T99: =IFERROR((T39-'0'!T39)/'0'!T39,0) -> 0 | AG99: |
B100: 2025 | C100: =IFERROR((C40-'0'!C40)/'0'!C40,0) -> 0 | J100: 2025 | K100: =IFERROR((K40-'0'!K40)/'0'!K40,0) -> 0 | R100: 2025 | S100: =IFERROR((S40-'0'!S40)/'0'!S40,0) -> 0 | AG100: |
AG101: |
AG102: |
AG103: |
AG104: |
AG105: |
AG106: |
AG107: |
AG108: |
AG109: |
AG110: |
AG111: |
AG112: |
AG113: |
AG114: |
AG115: |
AG116: |
AG117: |
AG118: |
AG119: |
B120: ---- | C120: ---- | D120: ---- | E120: ---- | F120: ---- | G120: ---- | H120: ---- | I120: ---- | J120: ---- | K120: ---- | L120: ---- | M120: ---- | N120: ---- | O120: ---- | P120: ---- | Q120: ---- | R120: ---- | S120: ---- | T120: ---- | U120: ---- | V120: ---- | W120: ---- | AG120: ----
AG121: |
AG122: |
AG123: |
AG124: |
AG125: |
AG126: |
AG127: |
AG128: |
AG129: |
AG130: |
AG131: |
AG132: |
AG133: |
AG134: |
AG135: |
AG136: |
AG137: |
AG138: |
AG139: |
AG140: |
AG141: |
AG142: |
AG143: |
AG144: |
AG145: |
AG146: |
AG147: |
AG148: |
AG149: |
AG150: |
AG151: |
AG152: |
AG153: |
AG154: |
AG155: |
AG156: |
AG157: |
AG158: |
AG159: |
AG160: |
AG161: |
AG162: |
AG163: |
AG164: |
AG165: |
AG166: |
AG167: |
AG168: |
AG169: |
AG170: |
AG171: |
AG172: |
AG173: |
AG174: |
AG175: |
AG176: |
AG177: |
AG178: |
AG179: |
B180: ---- | C180: ---- | D180: ---- | E180: ---- | F180: ---- | G180: ---- | H180: ---- | I180: ---- | J180: ---- | K180: ---- | L180: ---- | M180: ---- | N180: ---- | O180: ---- | P180: ---- | Q180: ---- | R180: ---- | S180: ---- | T180: ---- | U180: ---- | V180: ---- | W180: ---- | AG180: ----
AG181: |
AG182: |
AG183: |
AG184: |
AG185: |
AG186: |
AG187: |
AG188: |
AG189: |
AG190: |
AG191: |
AG192: |
AG193: |
AG194: |
AG195: |
AG196: |
AG197: |
AG198: |
AG199: |
AG200: |
AG201: |
... 1358 more rows

Sheet 6
B2: Book of Triangles | AG2: |
B3: Scenario: | C3: 6 | R3: (1) | S3: (2) | T3: (3) | U3: (4) | V3: (5) | W3: (6) | X3: (7) | AG3: |
T4: avg. | U4: cum. | V4: ann. | W4: rt level | X4: on | AG4: | | AI4: est pd | AJ4: est rptd | AK4: real | AL4: real
B5: Amounts | C5: Paid Loss | E5: Development Age | J5: Amounts | K5: Rptd Loss | M5: Development Age | T5: rate | U5: avg. | V5: expos. | W5: adj. to | X5: level | AG5: | | AI5: AY | AJ5: AY | AK5: AY | AL5: AY
B6: AY | C6: 12 | D6: =C6+12 -> 24 | E6: =D6+12 -> 36 | F6: 48 | G6: 60 | H6: 72 | J6: AY | K6: 12 | L6: =K6+12 -> 24 | M6: =L6+12 -> 36 | N6: 48 | O6: 60 | P6: 72 | R6: CY | S6: EP | T6: chg. | U6: rt. lvl. | V6: chg. | W6: =R12 -> 2025 | X6: EP | Z6: CY | AA6: EE | AG6: | | AH6: AY | AI6: ULR | AJ6: ULR | AK6: ULR | AL6: Loss
B7: 2020 | C7: 720 | D7: 1800 | E7: 2880 | F7: 3600 | G7: 3960 | H7: 4320 | J7: =$B$7 -> 2020 | K7: 2160 | L7: 2880 | M7: 3600 | N7: 3960 | O7: 4320 | P7: 4320 | R7: =$B$7 -> 2020 | S7: 7200 | U7: =T7 -> 0 | W7: =(1+U12)/(1+U7) -> 1 | X7: =S7*W7 -> 7200 | Z7: =$B$7 -> 2020 | AA7: 12.00000036 | AG7: | | AH7: =$B$7 -> 2020 | AI7: 0.6 | AJ7: 0.6 | AK7: 0.6 | AL7: =S7*AK7 -> 4320
B8: =B7+1 -> 2021 | C8: 744 | D8: 1860 | E8: 2976 | F8: 3720 | G8: 4092 | J8: =J7+1 -> 2021 | K8: 2232 | L8: 2976 | M8: 3720 | N8: 4092 | O8: 4464 | R8: =R7+1 -> 2021 | S8: 7200 | T8: 0 | U8: =(1+U7)*(1+T8)-1 -> 0 | V8: =(S8/S7)/(1+T8)-1 -> 0 | W8: =(1+U12)/(1+U8) -> 1 | X8: 7200 | Z8: =Z7+1 -> 2021 | AA8: 12.00000036 | AG8: | | AH8: =AH7+1 -> 2021 | AI8: 0.62 | AJ8: 0.62 | AK8: 0.62 | AL8: 4464
B9: =B8+1 -> 2022 | C9: 768 | D9: 1920 | E9: 3072 | F9: 3840 | J9: =J8+1 -> 2022 | K9: 2304 | L9: 3072 | M9: 3840 | N9: 4224 | R9: =R8+1 -> 2022 | S9: 7200 | T9: 0 | U9: =(1+U8)*(1+T9)-1 -> 0 | V9: =(S9/S8)/(1+T9)-1 -> 0 | W9: =(1+U12)/(1+U9) -> 1 | X9: 7200 | Z9: =Z8+1 -> 2022 | AA9: 12.00000036 | AG9: | | AH9: =AH8+1 -> 2022 | AI9: 0.64 | AJ9: 0.64 | AK9: 0.64 | AL9: 4608
B10: 2023 | C10: 792 | D10: 1980 | E10: 3168 | J10: 2023 | K10: 2376 | L10: 3168 | M10: 3960 | R10: =R9+1 -> 2023 | S10: 7200 | T10: 0 | U10: 0 | V10: =(S10/S9)/(1+T10)-1 -> 0 | W10: =(1+U12)/(1+U10) -> 1 | X10: 7200 | Z10: =Z9+1 -> 2023 | AA10: 12.00000036 | AG10: | | AH10: 2023 | AI10: 0.66 | AJ10: 0.66 | AK10: 0.66 | AL10: 4752
B11: 2024 | C11: 816 | D11: 2040 | J11: 2024 | K11: 2448 | L11: 3264 | R11: =R10+1 -> 2024 | S11: 7200 | T11: 0 | U11: 0 | V11: =(S11/S10)/(1+T11)-1 -> 0 | W11: =(1+U12)/(1+U11) -> 1 | X11: 7200 | Z11: =Z10+1 -> 2024 | AA11: 12.00000036 | AG11: | | AH11: 2024 | AI11: 0.68 | AJ11: 0.68 | AK11: 0.68 | AL11: 4896
B12: 2025 | C12: 840 | J12: 2025 | K12: 2520 | R12: =R11+1 -> 2025 | S12: 7200 | T12: 0 | U12: 0 | V12: =(S12/S11)/(1+T12)-1 -> 0 | W12: =(1+U12)/(1+U12) -> 1 | X12: 7200 | Z12: =Z11+1 -> 2025 | AA12: 12.00000036 | AG12: | | AH12: 2025 | AI12: 0.7 | AJ12: 0.7 | AK12: 0.7 | AL12: 5040
AG13: |
B14: Counts | C14: Paid Count | E14: Development Age | J14: Counts | K14: Rptd Count | M14: Development Age | R14: (2) | S14: = | T14: given | AG14: |
B15: AY | C15: 12 | D15: 24 | E15: 36 | F15: 48 | G15: 60 | H15: 72 | J15: AY | K15: 12 | L15: 24 | M15: 36 | N15: 48 | O15: 60 | P15: 72 | R15: (3) | S15: = | T15: given | AG15: |
B16: =$B$7 -> 2020 | C16: 2 | D16: 5 | E16: 8 | F16: 10 | G16: 11 | H16: 12 | J16: =$B$7 -> 2020 | K16: 6 | L16: 8 | M16: 10 | N16: 11 | O16: 12 | P16: 12 | R16: (4) | S16: = | T16: [ 1 + (4):prior] x [1 + (3)] - 1.0 | AG16: | | AH16: Interpretation: | AJ16: deteriortating loss ratio AY 2020 to AY 2025
B17: =B16+1 -> 2021 | C17: 2 | D17: 5 | E17: 8 | F17: 10 | G17: 11 | J17: =J16+1 -> 2021 | K17: 6 | L17: 8 | M17: 10 | N17: 11 | O17: 12 | R17: (5) | S17: = | T17: [ (2) / (2):prior] / [1 + (3)] - 1.0 | AG17: |
B18: =B17+1 -> 2022 | C18: 2 | D18: 5 | E18: 8 | F18: 10 | J18: =J17+1 -> 2022 | K18: 6 | L18: 8 | M18: 10 | N18: 11 | R18: (6) | S18: = | T18: [ 1 + (4):2025] / [1 + (4)] | AG18: |
B19: 2023 | C19: 2 | D19: 5 | E19: 8 | J19: 2023 | K19: 6 | L19: 8 | M19: 10 | R19: (7) | S19: = | T19: (2) x (6) | AG19: |
B20: 2024 | C20: 2 | D20: 5 | J20: 2024 | K20: 6 | L20: 8 | AG20: |
B21: 2025 | C21: 2 | J21: 2025 | K21: 6 | AG21: |
AG22: |
C23: paid loss ratio | F23: Development Age | K23: rptd loss ratio | N23: Development Age | S23: paid/rptd loss | V23: Development Age | AA23: paid/rptd counts | AD23: Development Age | AG23: |
B24: AY | C24: 12 | D24: 24 | E24: 36 | F24: 48 | G24: 60 | H24: 72 | J24: AY | K24: 12 | L24: 24 | M24: 36 | N24: 48 | O24: 60 | P24: 72 | R24: AY | S24: 12 | T24: 24 | U24: 36 | V24: 48 | W24: 60 | X24: 72 | Z24: AY | AA24: 12 | AB24: 24 | AC24: 36 | AD24: 48 | AE24: 60 | AF24: 72 | AG24: |
B25: =$B$7 -> 2020 | C25: =C7/$X7 -> 0.1 | D25: 0.25 | E25: 0.4 | F25: 0.5 | G25: 0.55 | H25: 0.6 | J25: =$B$7 -> 2020 | K25: =K7/$X7 -> 0.3 | L25: 0.4 | M25: 0.5 | N25: 0.55 | O25: 0.6 | P25: 0.6 | R25: =$B$7 -> 2020 | S25: =C7/K7 -> 0.3333333333 | T25: 0.625 | U25: 0.8 | V25: 0.9090909091 | W25: 0.9166666667 | X25: 1 | Z25: =$B$7 -> 2020 | AA25: =C16/K16 -> 0.3333333333 | AB25: 0.625 | AC25: 0.8 | AD25: 0.9090909091 | AE25: 0.9166666667 | AF25: 1 | AG25: |
B26: =B25+1 -> 2021 | C26: =C8/$X8 -> 0.1033333333 | D26: =D8/$X8 -> 0.2583333333 | E26: =E8/$X8 -> 0.4133333333 | F26: =F8/$X8 -> 0.5166666667 | G26: =G8/$X8 -> 0.5683333333 | J26: =J25+1 -> 2021 | K26: =K8/$X8 -> 0.31 | L26: =L8/$X8 -> 0.4133333333 | M26: =M8/$X8 -> 0.5166666667 | N26: =N8/$X8 -> 0.5683333333 | O26: =O8/$X8 -> 0.62 | R26: =R25+1 -> 2021 | S26: =C8/K8 -> 0.3333333333 | T26: =D8/L8 -> 0.625 | U26: =E8/M8 -> 0.8 | V26: =F8/N8 -> 0.9090909091 | W26: =G8/O8 -> 0.9166666667 | Z26: =Z25+1 -> 2021 | AA26: =C17/K17 -> 0.3333333333 | AB26: =D17/L17 -> 0.625 | AC26: =E17/M17 -> 0.8 | AD26: =F17/N17 -> 0.9090909091 | AE26: =G17/O17 -> 0.9166666667 | AG26: |
B27: =B26+1 -> 2022 | C27: =C9/$X9 -> 0.1066666667 | D27: =D9/$X9 -> 0.2666666667 | E27: =E9/$X9 -> 0.4266666667 | F27: =F9/$X9 -> 0.5333333333 | J27: =J26+1 -> 2022 | K27: =K9/$X9 -> 0.32 | L27: =L9/$X9 -> 0.4266666667 | M27: =M9/$X9 -> 0.5333333333 | N27: =N9/$X9 -> 0.5866666667 | R27: =R26+1 -> 2022 | S27: =C9/K9 -> 0.3333333333 | T27: =D9/L9 -> 0.625 | U27: =E9/M9 -> 0.8 | V27: =F9/N9 -> 0.9090909091 | Z27: =Z26+1 -> 2022 | AA27: =C18/K18 -> 0.3333333333 | AB27: =D18/L18 -> 0.625 | AC27: =E18/M18 -> 0.8 | AD27: =F18/N18 -> 0.9090909091 | AG27: |
B28: 2023 | C28: =C10/$X10 -> 0.11 | D28: =D10/$X10 -> 0.275 | E28: =E10/$X10 -> 0.44 | J28: 2023 | K28: =K10/$X10 -> 0.33 | L28: =L10/$X10 -> 0.44 | M28: =M10/$X10 -> 0.55 | R28: 2023 | S28: =C10/K10 -> 0.3333333333 | T28: =D10/L10 -> 0.625 | U28: =E10/M10 -> 0.8 | Z28: 2023 | AA28: =C19/K19 -> 0.3333333333 | AB28: =D19/L19 -> 0.625 | AC28: =E19/M19 -> 0.8 | AG28: |
B29: 2024 | C29: =C11/$X11 -> 0.1133333333 | D29: =D11/$X11 -> 0.2833333333 | J29: 2024 | K29: =K11/$X11 -> 0.34 | L29: =L11/$X11 -> 0.4533333333 | R29: 2024 | S29: =C11/K11 -> 0.3333333333 | T29: =D11/L11 -> 0.625 | Z29: 2024 | AA29: =C20/K20 -> 0.3333333333 | AB29: =D20/L20 -> 0.625 | AG29: |
B30: 2025 | C30: =C12/$X12 -> 0.1166666667 | J30: 2025 | K30: =K12/$X12 -> 0.35 | R30: 2025 | S30: =C12/K12 -> 0.3333333333 | Z30: 2025 | AA30: =C21/K21 -> 0.3333333333 | AG30: |
AG31: |
C32: PAID dollars-per-count | K32: REPORTED dollars-per-count | S32: Case O/S dollars-per-count | AG32: |
C33: average paid loss | F33: Development Age | K33: average rptd loss | N33: Development Age | S33: average case O/S | V33: Development Age | AG33: |
B34: AY | C34: 12 | D34: 24 | E34: 36 | F34: 48 | G34: 60 | H34: 72 | J34: AY | K34: 12 | L34: 24 | M34: 36 | N34: 48 | O34: 60 | P34: 72 | R34: AY | S34: 12 | T34: 24 | U34: 36 | V34: 48 | W34: 60 | X34: 72 | AG34: |
B35: =$B$7 -> 2020 | C35: =C7/C16 -> 360 | D35: 360 | E35: 360 | F35: 360 | G35: 360 | H35: 360 | J35: =$B$7 -> 2020 | K35: =K7/K16 -> 360 | L35: 360 | M35: 360 | N35: 360 | O35: 360 | P35: 360 | R35: =$B$7 -> 2020 | S35: =IFERROR((K7-C7)/(K16-C16),0) -> 360 | T35: 360 | U35: 360 | V35: 360 | W35: 360 | X35: 0 | AG35: |
B36: =B35+1 -> 2021 | C36: =C8/C17 -> 372 | D36: =D8/D17 -> 372 | E36: =E8/E17 -> 372 | F36: =F8/F17 -> 372 | G36: =G8/G17 -> 372 | J36: =J35+1 -> 2021 | K36: =K8/K17 -> 372 | L36: =L8/L17 -> 372 | M36: =M8/M17 -> 372 | N36: =N8/N17 -> 372 | O36: =O8/O17 -> 372 | R36: =R35+1 -> 2021 | S36: =IFERROR((K8-C8)/(K17-C17),0) -> 372 | T36: =IFERROR((L8-D8)/(L17-D17),0) -> 372 | U36: =IFERROR((M8-E8)/(M17-E17),0) -> 372 | V36: =IFERROR((N8-F8)/(N17-F17),0) -> 372 | W36: =IFERROR((O8-G8)/(O17-G17),0) -> 372 | AG36: |
B37: =B36+1 -> 2022 | C37: =C9/C18 -> 384 | D37: =D9/D18 -> 384 | E37: =E9/E18 -> 384 | F37: =F9/F18 -> 384 | J37: =J36+1 -> 2022 | K37: =K9/K18 -> 384 | L37: =L9/L18 -> 384 | M37: =M9/M18 -> 384 | N37: =N9/N18 -> 384 | R37: =R36+1 -> 2022 | S37: =IFERROR((K9-C9)/(K18-C18),0) -> 384 | T37: =IFERROR((L9-D9)/(L18-D18),0) -> 384 | U37: =IFERROR((M9-E9)/(M18-E18),0) -> 384 | V37: =IFERROR((N9-F9)/(N18-F18),0) -> 384 | AG37: |
B38: 2023 | C38: =C10/C19 -> 396 | D38: =D10/D19 -> 396 | E38: =E10/E19 -> 396 | J38: 2023 | K38: =K10/K19 -> 396 | L38: =L10/L19 -> 396 | M38: =M10/M19 -> 396 | R38: 2023 | S38: =IFERROR((K10-C10)/(K19-C19),0) -> 396 | T38: =IFERROR((L10-D10)/(L19-D19),0) -> 396 | U38: =IFERROR((M10-E10)/(M19-E19),0) -> 396 | AG38: |
B39: 2024 | C39: =C11/C20 -> 408 | D39: =D11/D20 -> 408 | J39: 2024 | K39: =K11/K20 -> 408 | L39: =L11/L20 -> 408 | R39: 2024 | S39: =IFERROR((K11-C11)/(K20-C20),0) -> 408 | T39: =IFERROR((L11-D11)/(L20-D20),0) -> 408 | AG39: |
B40: 2025 | C40: =C12/C21 -> 420 | J40: 2025 | K40: =K12/K21 -> 420 | R40: 2025 | S40: =IFERROR((K12-C12)/(K21-C21),0) -> 420 | AG40: |
AG41: |
AG42: |
AG43: |
AG44: |
AG45: |
AG46: |
AG47: |
AG48: |
AG49: |
AG50: |
AG51: |
AG52: |
AG53: |
AG54: |
AG55: |
AG56: |
AG57: |
AG58: |
AG59: |
B60: ---- | C60: ---- | D60: ---- | E60: ---- | F60: ---- | G60: ---- | H60: ---- | I60: ---- | J60: ---- | K60: ---- | L60: ---- | M60: ---- | N60: ---- | O60: ---- | P60: ---- | Q60: ---- | R60: ---- | S60: ---- | T60: ---- | U60: ---- | V60: ---- | W60: ---- | X60: ---- | Y60: ---- | Z60: ---- | AA60: ---- | AB60: ---- | AC60: ---- | AD60: ---- | AE60: ---- | AF60: ---- | AG60: ----
AG61: |
B62: Book of Triangles | AG62: |
B63: Scenario: | C63: =C3 -> 6 | D63: (Comparison to Base Case) | R63: (1) | S63: (2) | T63: (3) | U63: (4) | V63: (5) | W63: (6) | X63: (7) | AG63: |
T64: avg. | U64: cum. | V64: ann. | W64: rt level | X64: on | AG64: |
B65: Amounts | C65: Paid Loss | E65: Development Age | J65: Amounts | K65: Rptd Loss | M65: Development Age | T65: rate | U65: avg. | V65: expos. | W65: adj. to | X65: level | AG65: |
B66: AY | C66: 12 | D66: =C66+12 -> 24 | E66: =D66+12 -> 36 | F66: 48 | G66: 60 | H66: 72 | J66: AY | K66: 12 | L66: =K66+12 -> 24 | M66: =L66+12 -> 36 | N66: 48 | O66: 60 | P66: 72 | R66: CY | S66: EP | T66: chg. | U66: rt. lvl. | V66: chg. | W66: =R72 -> 2025 | X66: EP | Z66: CY | AA66: EE | AG66: |
B67: 2020 | C67: =IFERROR((C7-'0'!C7)/'0'!C7,0) -> 0 | D67: =IFERROR((D7-'0'!D7)/'0'!D7,0) -> 0 | E67: =IFERROR((E7-'0'!E7)/'0'!E7,0) -> 0 | F67: =IFERROR((F7-'0'!F7)/'0'!F7,0) -> 0 | G67: =IFERROR((G7-'0'!G7)/'0'!G7,0) -> 0 | H67: =IFERROR((H7-'0'!H7)/'0'!H7,0) -> 0 | J67: =$B$7 -> 2020 | K67: =IFERROR((K7-'0'!K7)/'0'!K7,0) -> 0 | L67: =IFERROR((L7-'0'!L7)/'0'!L7,0) -> 0 | M67: =IFERROR((M7-'0'!M7)/'0'!M7,0) -> 0 | N67: =IFERROR((N7-'0'!N7)/'0'!N7,0) -> 0 | O67: =IFERROR((O7-'0'!O7)/'0'!O7,0) -> 0 | P67: =IFERROR((P7-'0'!P7)/'0'!P7,0) -> 0 | R67: =$B$7 -> 2020 | S67: =IFERROR((S7-'0'!S7)/'0'!S7,0) -> 0 | Z67: =$B$7 -> 2020 | AA67: =IFERROR((AA7-'0'!AA7)/'0'!AA7,0) -> 0 | AG67: |
B68: =B67+1 -> 2021 | C68: =IFERROR((C8-'0'!C8)/'0'!C8,0) -> 0.03333333333 | D68: =IFERROR((D8-'0'!D8)/'0'!D8,0) -> 0.03333333333 | E68: =IFERROR((E8-'0'!E8)/'0'!E8,0) -> 0.03333333333 | F68: =IFERROR((F8-'0'!F8)/'0'!F8,0) -> 0.03333333333 | G68: =IFERROR((G8-'0'!G8)/'0'!G8,0) -> 0.03333333333 | J68: =J67+1 -> 2021 | K68: =IFERROR((K8-'0'!K8)/'0'!K8,0) -> 0.03333333333 | L68: =IFERROR((L8-'0'!L8)/'0'!L8,0) -> 0.03333333333 | M68: =IFERROR((M8-'0'!M8)/'0'!M8,0) -> 0.03333333333 | N68: =IFERROR((N8-'0'!N8)/'0'!N8,0) -> 0.03333333333 | O68: =IFERROR((O8-'0'!O8)/'0'!O8,0) -> 0.03333333333 | R68: =R67+1 -> 2021 | S68: =IFERROR((S8-'0'!S8)/'0'!S8,0) -> 0 | T68: =IFERROR((T8-'0'!T8)/'0'!T8,0) -> 0 | Z68: =Z67+1 -> 2021 | AA68: =IFERROR((AA8-'0'!AA8)/'0'!AA8,0) -> 0 | AG68: |
B69: =B68+1 -> 2022 | C69: =IFERROR((C9-'0'!C9)/'0'!C9,0) -> 0.06666666667 | D69: =IFERROR((D9-'0'!D9)/'0'!D9,0) -> 0.06666666667 | E69: =IFERROR((E9-'0'!E9)/'0'!E9,0) -> 0.06666666667 | F69: =IFERROR((F9-'0'!F9)/'0'!F9,0) -> 0.06666666667 | J69: =J68+1 -> 2022 | K69: =IFERROR((K9-'0'!K9)/'0'!K9,0) -> 0.06666666667 | L69: =IFERROR((L9-'0'!L9)/'0'!L9,0) -> 0.06666666667 | M69: =IFERROR((M9-'0'!M9)/'0'!M9,0) -> 0.06666666667 | N69: =IFERROR((N9-'0'!N9)/'0'!N9,0) -> 0.06666666667 | R69: =R68+1 -> 2022 | S69: =IFERROR((S9-'0'!S9)/'0'!S9,0) -> 0 | T69: =IFERROR((T9-'0'!T9)/'0'!T9,0) -> 0 | Z69: =Z68+1 -> 2022 | AA69: =IFERROR((AA9-'0'!AA9)/'0'!AA9,0) -> 0 | AG69: |
B70: 2023 | C70: =IFERROR((C10-'0'!C10)/'0'!C10,0) -> 0.1 | D70: =IFERROR((D10-'0'!D10)/'0'!D10,0) -> 0.1 | E70: =IFERROR((E10-'0'!E10)/'0'!E10,0) -> 0.1 | J70: 2023 | K70: =IFERROR((K10-'0'!K10)/'0'!K10,0) -> 0.1 | L70: =IFERROR((L10-'0'!L10)/'0'!L10,0) -> 0.1 | M70: =IFERROR((M10-'0'!M10)/'0'!M10,0) -> 0.1 | R70: =R69+1 -> 2023 | S70: =IFERROR((S10-'0'!S10)/'0'!S10,0) -> 0 | T70: =IFERROR((T10-'0'!T10)/'0'!T10,0) -> 0 | Z70: =Z69+1 -> 2023 | AA70: =IFERROR((AA10-'0'!AA10)/'0'!AA10,0) -> 0 | AG70: |
B71: 2024 | C71: =IFERROR((C11-'0'!C11)/'0'!C11,0) -> 0.1333333333 | D71: =IFERROR((D11-'0'!D11)/'0'!D11,0) -> 0.1333333333 | J71: 2024 | K71: =IFERROR((K11-'0'!K11)/'0'!K11,0) -> 0.1333333333 | L71: =IFERROR((L11-'0'!L11)/'0'!L11,0) -> 0.1333333333 | R71: =R70+1 -> 2024 | S71: =IFERROR((S11-'0'!S11)/'0'!S11,0) -> 0 | T71: =IFERROR((T11-'0'!T11)/'0'!T11,0) -> 0 | Z71: =Z70+1 -> 2024 | AA71: =IFERROR((AA11-'0'!AA11)/'0'!AA11,0) -> 0 | AG71: |
B72: 2025 | C72: =IFERROR((C12-'0'!C12)/'0'!C12,0) -> 0.1666666667 | J72: 2025 | K72: =IFERROR((K12-'0'!K12)/'0'!K12,0) -> 0.1666666667 | R72: =R71+1 -> 2025 | S72: =IFERROR((S12-'0'!S12)/'0'!S12,0) -> 0 | T72: =IFERROR((T12-'0'!T12)/'0'!T12,0) -> 0 | Z72: =Z71+1 -> 2025 | AA72: =IFERROR((AA12-'0'!AA12)/'0'!AA12,0) -> 0 | AG72: |
AG73: |
B74: Counts | C74: Paid Count | E74: Development Age | J74: Counts | K74: Rptd Count | M74: Development Age | AG74: |
B75: AY | C75: 12 | D75: 24 | E75: 36 | F75: 48 | G75: 60 | H75: 72 | J75: AY | K75: 12 | L75: 24 | M75: 36 | N75: 48 | O75: 60 | P75: 72 | AG75: |
B76: =$B$7 -> 2020 | C76: =IFERROR((C16-'0'!C16)/'0'!C16,0) -> 0 | D76: =IFERROR((D16-'0'!D16)/'0'!D16,0) -> 0 | E76: =IFERROR((E16-'0'!E16)/'0'!E16,0) -> 0 | F76: =IFERROR((F16-'0'!F16)/'0'!F16,0) -> 0 | G76: =IFERROR((G16-'0'!G16)/'0'!G16,0) -> 0 | H76: =IFERROR((H16-'0'!H16)/'0'!H16,0) -> 0 | J76: =$B$7 -> 2020 | K76: =IFERROR((K16-'0'!K16)/'0'!K16,0) -> 0 | L76: =IFERROR((L16-'0'!L16)/'0'!L16,0) -> 0 | M76: =IFERROR((M16-'0'!M16)/'0'!M16,0) -> 0 | N76: =IFERROR((N16-'0'!N16)/'0'!N16,0) -> 0 | O76: =IFERROR((O16-'0'!O16)/'0'!O16,0) -> 0 | P76: =IFERROR((P16-'0'!P16)/'0'!P16,0) -> 0 | AG76: |
B77: =B76+1 -> 2021 | C77: =IFERROR((C17-'0'!C17)/'0'!C17,0) -> 0 | D77: =IFERROR((D17-'0'!D17)/'0'!D17,0) -> 0 | E77: =IFERROR((E17-'0'!E17)/'0'!E17,0) -> 0 | F77: =IFERROR((F17-'0'!F17)/'0'!F17,0) -> 0 | G77: =IFERROR((G17-'0'!G17)/'0'!G17,0) -> 0 | J77: =J76+1 -> 2021 | K77: =IFERROR((K17-'0'!K17)/'0'!K17,0) -> 0 | L77: =IFERROR((L17-'0'!L17)/'0'!L17,0) -> 0 | M77: =IFERROR((M17-'0'!M17)/'0'!M17,0) -> 0 | N77: =IFERROR((N17-'0'!N17)/'0'!N17,0) -> 0 | O77: =IFERROR((O17-'0'!O17)/'0'!O17,0) -> 0 | AG77: |
B78: =B77+1 -> 2022 | C78: =IFERROR((C18-'0'!C18)/'0'!C18,0) -> 0 | D78: =IFERROR((D18-'0'!D18)/'0'!D18,0) -> 0 | E78: =IFERROR((E18-'0'!E18)/'0'!E18,0) -> 0 | F78: =IFERROR((F18-'0'!F18)/'0'!F18,0) -> 0 | J78: =J77+1 -> 2022 | K78: =IFERROR((K18-'0'!K18)/'0'!K18,0) -> 0 | L78: =IFERROR((L18-'0'!L18)/'0'!L18,0) -> 0 | M78: =IFERROR((M18-'0'!M18)/'0'!M18,0) -> 0 | N78: =IFERROR((N18-'0'!N18)/'0'!N18,0) -> 0 | AG78: |
B79: 2023 | C79: =IFERROR((C19-'0'!C19)/'0'!C19,0) -> 0 | D79: =IFERROR((D19-'0'!D19)/'0'!D19,0) -> 0 | E79: =IFERROR((E19-'0'!E19)/'0'!E19,0) -> 0 | J79: 2023 | K79: =IFERROR((K19-'0'!K19)/'0'!K19,0) -> 0 | L79: =IFERROR((L19-'0'!L19)/'0'!L19,0) -> 0 | M79: =IFERROR((M19-'0'!M19)/'0'!M19,0) -> 0 | AG79: |
B80: 2024 | C80: =IFERROR((C20-'0'!C20)/'0'!C20,0) -> 0 | D80: =IFERROR((D20-'0'!D20)/'0'!D20,0) -> 0 | J80: 2024 | K80: =IFERROR((K20-'0'!K20)/'0'!K20,0) -> 0 | L80: =IFERROR((L20-'0'!L20)/'0'!L20,0) -> 0 | AG80: |
B81: 2025 | C81: =IFERROR((C21-'0'!C21)/'0'!C21,0) -> 0 | J81: 2025 | K81: =IFERROR((K21-'0'!K21)/'0'!K21,0) -> 0 | AG81: |
AG82: |
C83: paid loss ratio | F83: Development Age | K83: rptd loss ratio | N83: Development Age | S83: paid/rptd loss | V83: Development Age | AA83: paid/rptd counts | AD83: Development Age | AG83: |
B84: AY | C84: 12 | D84: 24 | E84: 36 | F84: 48 | G84: 60 | H84: 72 | J84: AY | K84: 12 | L84: 24 | M84: 36 | N84: 48 | O84: 60 | P84: 72 | R84: AY | S84: 12 | T84: 24 | U84: 36 | V84: 48 | W84: 60 | X84: 72 | Z84: AY | AA84: 12 | AB84: 24 | AC84: 36 | AD84: 48 | AE84: 60 | AF84: 72 | AG84: |
B85: =$B$7 -> 2020 | C85: =IFERROR((C25-'0'!C25)/'0'!C25,0) -> 0 | D85: =IFERROR((D25-'0'!D25)/'0'!D25,0) -> 0 | E85: =IFERROR((E25-'0'!E25)/'0'!E25,0) -> 0 | F85: =IFERROR((F25-'0'!F25)/'0'!F25,0) -> 0 | G85: =IFERROR((G25-'0'!G25)/'0'!G25,0) -> 0 | H85: =IFERROR((H25-'0'!H25)/'0'!H25,0) -> 0 | J85: =$B$7 -> 2020 | K85: =IFERROR((K25-'0'!K25)/'0'!K25,0) -> 0 | L85: =IFERROR((L25-'0'!L25)/'0'!L25,0) -> 0 | M85: =IFERROR((M25-'0'!M25)/'0'!M25,0) -> 0 | N85: =IFERROR((N25-'0'!N25)/'0'!N25,0) -> 0 | O85: =IFERROR((O25-'0'!O25)/'0'!O25,0) -> 0 | P85: =IFERROR((P25-'0'!P25)/'0'!P25,0) -> 0 | R85: =$B$7 -> 2020 | S85: =IFERROR((S25-'0'!S25)/'0'!S25,0) -> 0 | T85: =IFERROR((T25-'0'!T25)/'0'!T25,0) -> 0 | U85: =IFERROR((U25-'0'!U25)/'0'!U25,0) -> 0 | V85: =IFERROR((V25-'0'!V25)/'0'!V25,0) -> 0 | W85: =IFERROR((W25-'0'!W25)/'0'!W25,0) -> 0 | X85: =IFERROR((X25-'0'!X25)/'0'!X25,0) -> 0 | Z85: =$B$7 -> 2020 | AA85: =IFERROR((AA25-'0'!AA25)/'0'!AA25,0) -> 0 | AB85: =IFERROR((AB25-'0'!AB25)/'0'!AB25,0) -> 0 | AC85: =IFERROR((AC25-'0'!AC25)/'0'!AC25,0) -> 0 | AD85: =IFERROR((AD25-'0'!AD25)/'0'!AD25,0) -> 0 | AE85: =IFERROR((AE25-'0'!AE25)/'0'!AE25,0) -> 0 | AF85: =IFERROR((AF25-'0'!AF25)/'0'!AF25,0) -> 0 | AG85: |
B86: =B85+1 -> 2021 | C86: =IFERROR((C26-'0'!C26)/'0'!C26,0) -> 0.03333333333 | D86: =IFERROR((D26-'0'!D26)/'0'!D26,0) -> 0.03333333333 | E86: =IFERROR((E26-'0'!E26)/'0'!E26,0) -> 0.03333333333 | F86: =IFERROR((F26-'0'!F26)/'0'!F26,0) -> 0.03333333333 | G86: =IFERROR((G26-'0'!G26)/'0'!G26,0) -> 0.03333333333 | J86: =J85+1 -> 2021 | K86: =IFERROR((K26-'0'!K26)/'0'!K26,0) -> 0.03333333333 | L86: =IFERROR((L26-'0'!L26)/'0'!L26,0) -> 0.03333333333 | M86: =IFERROR((M26-'0'!M26)/'0'!M26,0) -> 0.03333333333 | N86: =IFERROR((N26-'0'!N26)/'0'!N26,0) -> 0.03333333333 | O86: =IFERROR((O26-'0'!O26)/'0'!O26,0) -> 0.03333333333 | R86: =R85+1 -> 2021 | S86: =IFERROR((S26-'0'!S26)/'0'!S26,0) -> 0 | T86: =IFERROR((T26-'0'!T26)/'0'!T26,0) -> 0 | U86: =IFERROR((U26-'0'!U26)/'0'!U26,0) -> 0 | V86: =IFERROR((V26-'0'!V26)/'0'!V26,0) -> 0 | W86: =IFERROR((W26-'0'!W26)/'0'!W26,0) -> 0 | Z86: =Z85+1 -> 2021 | AA86: =IFERROR((AA26-'0'!AA26)/'0'!AA26,0) -> 0 | AB86: =IFERROR((AB26-'0'!AB26)/'0'!AB26,0) -> 0 | AC86: =IFERROR((AC26-'0'!AC26)/'0'!AC26,0) -> 0 | AD86: =IFERROR((AD26-'0'!AD26)/'0'!AD26,0) -> 0 | AE86: =IFERROR((AE26-'0'!AE26)/'0'!AE26,0) -> 0 | AG86: |
B87: =B86+1 -> 2022 | C87: =IFERROR((C27-'0'!C27)/'0'!C27,0) -> 0.06666666667 | D87: =IFERROR((D27-'0'!D27)/'0'!D27,0) -> 0.06666666667 | E87: =IFERROR((E27-'0'!E27)/'0'!E27,0) -> 0.06666666667 | F87: =IFERROR((F27-'0'!F27)/'0'!F27,0) -> 0.06666666667 | J87: =J86+1 -> 2022 | K87: =IFERROR((K27-'0'!K27)/'0'!K27,0) -> 0.06666666667 | L87: =IFERROR((L27-'0'!L27)/'0'!L27,0) -> 0.06666666667 | M87: =IFERROR((M27-'0'!M27)/'0'!M27,0) -> 0.06666666667 | N87: =IFERROR((N27-'0'!N27)/'0'!N27,0) -> 0.06666666667 | R87: =R86+1 -> 2022 | S87: =IFERROR((S27-'0'!S27)/'0'!S27,0) -> 0 | T87: =IFERROR((T27-'0'!T27)/'0'!T27,0) -> 0 | U87: =IFERROR((U27-'0'!U27)/'0'!U27,0) -> 0 | V87: =IFERROR((V27-'0'!V27)/'0'!V27,0) -> 0 | Z87: =Z86+1 -> 2022 | AA87: =IFERROR((AA27-'0'!AA27)/'0'!AA27,0) -> 0 | AB87: =IFERROR((AB27-'0'!AB27)/'0'!AB27,0) -> 0 | AC87: =IFERROR((AC27-'0'!AC27)/'0'!AC27,0) -> 0 | AD87: =IFERROR((AD27-'0'!AD27)/'0'!AD27,0) -> 0 | AG87: |
B88: 2023 | C88: =IFERROR((C28-'0'!C28)/'0'!C28,0) -> 0.1 | D88: =IFERROR((D28-'0'!D28)/'0'!D28,0) -> 0.1 | E88: =IFERROR((E28-'0'!E28)/'0'!E28,0) -> 0.1 | J88: 2023 | K88: =IFERROR((K28-'0'!K28)/'0'!K28,0) -> 0.1 | L88: =IFERROR((L28-'0'!L28)/'0'!L28,0) -> 0.1 | M88: =IFERROR((M28-'0'!M28)/'0'!M28,0) -> 0.1 | R88: 2023 | S88: =IFERROR((S28-'0'!S28)/'0'!S28,0) -> 0 | T88: =IFERROR((T28-'0'!T28)/'0'!T28,0) -> 0 | U88: =IFERROR((U28-'0'!U28)/'0'!U28,0) -> 0 | Z88: 2023 | AA88: =IFERROR((AA28-'0'!AA28)/'0'!AA28,0) -> 0 | AB88: =IFERROR((AB28-'0'!AB28)/'0'!AB28,0) -> 0 | AC88: =IFERROR((AC28-'0'!AC28)/'0'!AC28,0) -> 0 | AG88: |
B89: 2024 | C89: =IFERROR((C29-'0'!C29)/'0'!C29,0) -> 0.1333333333 | D89: =IFERROR((D29-'0'!D29)/'0'!D29,0) -> 0.1333333333 | J89: 2024 | K89: =IFERROR((K29-'0'!K29)/'0'!K29,0) -> 0.1333333333 | L89: =IFERROR((L29-'0'!L29)/'0'!L29,0) -> 0.1333333333 | R89: 2024 | S89: =IFERROR((S29-'0'!S29)/'0'!S29,0) -> 0 | T89: =IFERROR((T29-'0'!T29)/'0'!T29,0) -> 0 | Z89: 2024 | AA89: =IFERROR((AA29-'0'!AA29)/'0'!AA29,0) -> 0 | AB89: =IFERROR((AB29-'0'!AB29)/'0'!AB29,0) -> 0 | AG89: |
B90: 2025 | C90: =IFERROR((C30-'0'!C30)/'0'!C30,0) -> 0.1666666667 | J90: 2025 | K90: =IFERROR((K30-'0'!K30)/'0'!K30,0) -> 0.1666666667 | R90: 2025 | S90: =IFERROR((S30-'0'!S30)/'0'!S30,0) -> 0 | Z90: 2025 | AA90: =IFERROR((AA30-'0'!AA30)/'0'!AA30,0) -> 0 | AG90: |
AG91: |
C92: PAID dollars-per-count | K92: REPORTED dollars-per-count | S92: Case O/S dollars-per-count | AG92: |
C93: average paid loss | F93: Development Age | K93: average rptd loss | N93: Development Age | S93: average case O/S | V93: Development Age | AG93: |
B94: AY | C94: 12 | D94: 24 | E94: 36 | F94: 48 | G94: 60 | H94: 72 | J94: AY | K94: 12 | L94: 24 | M94: 36 | N94: 48 | O94: 60 | P94: 72 | R94: AY | S94: 12 | T94: 24 | U94: 36 | V94: 48 | W94: 60 | X94: 72 | AG94: |
B95: =$B$7 -> 2020 | C95: =IFERROR((C35-'0'!C35)/'0'!C35,0) -> 0 | D95: =IFERROR((D35-'0'!D35)/'0'!D35,0) -> 0 | E95: =IFERROR((E35-'0'!E35)/'0'!E35,0) -> 0 | F95: =IFERROR((F35-'0'!F35)/'0'!F35,0) -> 0 | G95: =IFERROR((G35-'0'!G35)/'0'!G35,0) -> 0 | H95: =IFERROR((H35-'0'!H35)/'0'!H35,0) -> 0 | J95: =$B$7 -> 2020 | K95: =IFERROR((K35-'0'!K35)/'0'!K35,0) -> 0 | L95: =IFERROR((L35-'0'!L35)/'0'!L35,0) -> 0 | M95: =IFERROR((M35-'0'!M35)/'0'!M35,0) -> 0 | N95: =IFERROR((N35-'0'!N35)/'0'!N35,0) -> 0 | O95: =IFERROR((O35-'0'!O35)/'0'!O35,0) -> 0 | P95: =IFERROR((P35-'0'!P35)/'0'!P35,0) -> 0 | R95: =$B$7 -> 2020 | S95: =IFERROR((S35-'0'!S35)/'0'!S35,0) -> 0 | T95: =IFERROR((T35-'0'!T35)/'0'!T35,0) -> 0 | U95: =IFERROR((U35-'0'!U35)/'0'!U35,0) -> 0 | V95: =IFERROR((V35-'0'!V35)/'0'!V35,0) -> 0 | W95: =IFERROR((W35-'0'!W35)/'0'!W35,0) -> 0 | X95: =IFERROR((X35-'0'!X35)/'0'!X35,0) -> 0 | AG95: |
B96: =B95+1 -> 2021 | C96: =IFERROR((C36-'0'!C36)/'0'!C36,0) -> 0.03333333333 | D96: =IFERROR((D36-'0'!D36)/'0'!D36,0) -> 0.03333333333 | E96: =IFERROR((E36-'0'!E36)/'0'!E36,0) -> 0.03333333333 | F96: =IFERROR((F36-'0'!F36)/'0'!F36,0) -> 0.03333333333 | G96: =IFERROR((G36-'0'!G36)/'0'!G36,0) -> 0.03333333333 | J96: =J95+1 -> 2021 | K96: =IFERROR((K36-'0'!K36)/'0'!K36,0) -> 0.03333333333 | L96: =IFERROR((L36-'0'!L36)/'0'!L36,0) -> 0.03333333333 | M96: =IFERROR((M36-'0'!M36)/'0'!M36,0) -> 0.03333333333 | N96: =IFERROR((N36-'0'!N36)/'0'!N36,0) -> 0.03333333333 | O96: =IFERROR((O36-'0'!O36)/'0'!O36,0) -> 0.03333333333 | R96: =R95+1 -> 2021 | S96: =IFERROR((S36-'0'!S36)/'0'!S36,0) -> 0.03333333333 | T96: =IFERROR((T36-'0'!T36)/'0'!T36,0) -> 0.03333333333 | U96: =IFERROR((U36-'0'!U36)/'0'!U36,0) -> 0.03333333333 | V96: =IFERROR((V36-'0'!V36)/'0'!V36,0) -> 0.03333333333 | W96: =IFERROR((W36-'0'!W36)/'0'!W36,0) -> 0.03333333333 | AG96: |
B97: =B96+1 -> 2022 | C97: =IFERROR((C37-'0'!C37)/'0'!C37,0) -> 0.06666666667 | D97: =IFERROR((D37-'0'!D37)/'0'!D37,0) -> 0.06666666667 | E97: =IFERROR((E37-'0'!E37)/'0'!E37,0) -> 0.06666666667 | F97: =IFERROR((F37-'0'!F37)/'0'!F37,0) -> 0.06666666667 | J97: =J96+1 -> 2022 | K97: =IFERROR((K37-'0'!K37)/'0'!K37,0) -> 0.06666666667 | L97: =IFERROR((L37-'0'!L37)/'0'!L37,0) -> 0.06666666667 | M97: =IFERROR((M37-'0'!M37)/'0'!M37,0) -> 0.06666666667 | N97: =IFERROR((N37-'0'!N37)/'0'!N37,0) -> 0.06666666667 | R97: =R96+1 -> 2022 | S97: =IFERROR((S37-'0'!S37)/'0'!S37,0) -> 0.06666666667 | T97: =IFERROR((T37-'0'!T37)/'0'!T37,0) -> 0.06666666667 | U97: =IFERROR((U37-'0'!U37)/'0'!U37,0) -> 0.06666666667 | V97: =IFERROR((V37-'0'!V37)/'0'!V37,0) -> 0.06666666667 | AG97: |
B98: 2023 | C98: =IFERROR((C38-'0'!C38)/'0'!C38,0) -> 0.1 | D98: =IFERROR((D38-'0'!D38)/'0'!D38,0) -> 0.1 | E98: =IFERROR((E38-'0'!E38)/'0'!E38,0) -> 0.1 | J98: 2023 | K98: =IFERROR((K38-'0'!K38)/'0'!K38,0) -> 0.1 | L98: =IFERROR((L38-'0'!L38)/'0'!L38,0) -> 0.1 | M98: =IFERROR((M38-'0'!M38)/'0'!M38,0) -> 0.1 | R98: 2023 | S98: =IFERROR((S38-'0'!S38)/'0'!S38,0) -> 0.1 | T98: =IFERROR((T38-'0'!T38)/'0'!T38,0) -> 0.1 | U98: =IFERROR((U38-'0'!U38)/'0'!U38,0) -> 0.1 | AG98: |
B99: 2024 | C99: =IFERROR((C39-'0'!C39)/'0'!C39,0) -> 0.1333333333 | D99: =IFERROR((D39-'0'!D39)/'0'!D39,0) -> 0.1333333333 | J99: 2024 | K99: =IFERROR((K39-'0'!K39)/'0'!K39,0) -> 0.1333333333 | L99: =IFERROR((L39-'0'!L39)/'0'!L39,0) -> 0.1333333333 | R99: 2024 | S99: =IFERROR((S39-'0'!S39)/'0'!S39,0) -> 0.1333333333 | T99: =IFERROR((T39-'0'!T39)/'0'!T39,0) -> 0.1333333333 | AG99: |
B100: 2025 | C100: =IFERROR((C40-'0'!C40)/'0'!C40,0) -> 0.1666666667 | J100: 2025 | K100: =IFERROR((K40-'0'!K40)/'0'!K40,0) -> 0.1666666667 | R100: 2025 | S100: =IFERROR((S40-'0'!S40)/'0'!S40,0) -> 0.1666666667 | AG100: |
AG101: |
AG102: |
AG103: |
AG104: |
AG105: |
AG106: |
AG107: |
AG108: |
AG109: |
AG110: |
AG111: |
AG112: |
AG113: |
AG114: |
AG115: |
AG116: |
AG117: |
AG118: |
AG119: |
B120: ---- | C120: ---- | D120: ---- | E120: ---- | F120: ---- | G120: ---- | H120: ---- | I120: ---- | J120: ---- | K120: ---- | L120: ---- | M120: ---- | N120: ---- | O120: ---- | P120: ---- | Q120: ---- | R120: ---- | S120: ---- | T120: ---- | U120: ---- | V120: ---- | W120: ---- | AG120: ----
AG121: |
AG122: |
AG123: |
AG124: |
AG125: |
AG126: |
AG127: |
AG128: |
AG129: |
AG130: |
AG131: |
AG132: |
AG133: |
AG134: |
AG135: |
AG136: |
AG137: |
AG138: |
AG139: |
AG140: |
AG141: |
AG142: |
AG143: |
AG144: |
AG145: |
AG146: |
AG147: |
AG148: |
AG149: |
AG150: |
AG151: |
AG152: |
AG153: |
AG154: |
AG155: |
AG156: |
AG157: |
AG158: |
AG159: |
AG160: |
AG161: |
AG162: |
AG163: |
AG164: |
AG165: |
AG166: |
AG167: |
AG168: |
AG169: |
AG170: |
AG171: |
AG172: |
AG173: |
AG174: |
AG175: |
AG176: |
AG177: |
AG178: |
AG179: |
B180: ---- | C180: ---- | D180: ---- | E180: ---- | F180: ---- | G180: ---- | H180: ---- | I180: ---- | J180: ---- | K180: ---- | L180: ---- | M180: ---- | N180: ---- | O180: ---- | P180: ---- | Q180: ---- | R180: ---- | S180: ---- | T180: ---- | U180: ---- | V180: ---- | W180: ---- | AG180: ----
AG181: |
AG182: |
AG183: |
AG184: |
AG185: |
AG186: |
AG187: |
AG188: |
AG189: |
AG190: |
AG191: |
AG192: |
AG193: |
AG194: |
AG195: |
AG196: |
AG197: |
AG198: |
AG199: |
AG200: |
AG201: |
... 1358 more rows

Sheet 7
B2: Book of Triangles | AG2: |
B3: Scenario: | C3: 7 | R3: (1) | S3: (2) | T3: (3) | U3: (4) | V3: (5) | W3: (6) | X3: (7) | AG3: |
T4: avg. | U4: cum. | V4: ann. | W4: rt level | X4: on | AG4: | | AI4: est pd | AJ4: est rptd | AK4: real | AL4: real
B5: Amounts | C5: Paid Loss | E5: Development Age | J5: Amounts | K5: Rptd Loss | M5: Development Age | T5: rate | U5: avg. | V5: expos. | W5: adj. to | X5: level | AG5: | | AI5: AY | AJ5: AY | AK5: AY | AL5: AY
B6: AY | C6: 12 | D6: =C6+12 -> 24 | E6: =D6+12 -> 36 | F6: 48 | G6: 60 | H6: 72 | J6: AY | K6: 12 | L6: =K6+12 -> 24 | M6: =L6+12 -> 36 | N6: 48 | O6: 60 | P6: 72 | R6: CY | S6: EP | T6: chg. | U6: rt. lvl. | V6: chg. | W6: =R12 -> 2025 | X6: EP | Z6: CY | AA6: EE | AG6: | | AH6: AY | AI6: ULR | AJ6: ULR | AK6: ULR | AL6: Loss
B7: 2020 | C7: 720 | D7: 1800 | E7: 2880 | F7: 3600 | G7: 3960 | H7: 4320 | J7: =$B$7 -> 2020 | K7: 2160 | L7: 2880 | M7: 3600 | N7: 3960 | O7: 4320 | P7: 4320 | R7: =$B$7 -> 2020 | S7: 7200 | U7: =T7 -> 0 | W7: =(1+U12)/(1+U7) -> 1 | X7: =S7*W7 -> 7200 | Z7: =$B$7 -> 2020 | AA7: 12.00000036 | AG7: | | AH7: =$B$7 -> 2020 | AI7: 0.6 | AJ7: 0.6 | AK7: 0.6 | AL7: =S7*AK7 -> 4320
B8: =B7+1 -> 2021 | C8: 720 | D8: 1800 | E8: 2880 | F8: 3600 | G8: 3960 | J8: =J7+1 -> 2021 | K8: 2160 | L8: 2880 | M8: 3600 | N8: 3960 | O8: 4320 | R8: =R7+1 -> 2021 | S8: 7200 | T8: 0 | U8: =(1+U7)*(1+T8)-1 -> 0 | V8: =(S8/S7)/(1+T8)-1 -> 0 | W8: =(1+U12)/(1+U8) -> 1 | X8: 7200 | Z8: =Z7+1 -> 2021 | AA8: 12.00000036 | AG8: | | AH8: =AH7+1 -> 2021 | AI8: 0.6 | AJ8: 0.6 | AK8: 0.6 | AL8: 4320
B9: =B8+1 -> 2022 | C9: 720 | D9: 1800 | E9: 2880 | F9: 3600 | J9: =J8+1 -> 2022 | K9: 2160 | L9: 2880 | M9: 3600 | N9: 3960 | R9: =R8+1 -> 2022 | S9: 7200 | T9: 0 | U9: =(1+U8)*(1+T9)-1 -> 0 | V9: =(S9/S8)/(1+T9)-1 -> 0 | W9: =(1+U12)/(1+U9) -> 1 | X9: 7200 | Z9: =Z8+1 -> 2022 | AA9: 12.00000036 | AG9: | | AH9: =AH8+1 -> 2022 | AI9: 0.6 | AJ9: 0.6 | AK9: 0.6 | AL9: 4320
B10: 2023 | C10: 1440 | D10: 3240 | E10: 5040 | J10: 2023 | K10: 3600 | L10: 5040 | M10: 6480 | R10: =R9+1 -> 2023 | S10: 12600 | T10: 0 | U10: 0 | V10: =(S10/S9)/(1+T10)-1 -> 0.75 | W10: =(1+U12)/(1+U10) -> 1 | X10: 12600 | Z10: =Z9+1 -> 2023 | AA10: 21.00000063 | AG10: | | AH10: 2023 | AI10: 0.6 | AJ10: 0.6171428571 | AK10: 0.6 | AL10: 7560
B11: 2024 | C11: 1440 | D11: 3240 | J11: 2024 | K11: 3600 | L11: 5040 | R11: =R10+1 -> 2024 | S11: 12600 | T11: 0 | U11: 0 | V11: =(S11/S10)/(1+T11)-1 -> 0 | W11: =(1+U12)/(1+U11) -> 1 | X11: 12600 | Z11: =Z10+1 -> 2024 | AA11: 21.00000063 | AG11: | | AH11: 2024 | AI11: 0.6128571429 | AJ11: 0.6042857143 | AK11: 0.6 | AL11: 7560
B12: 2025 | C12: 1440 | J12: 2025 | K12: 3600 | R12: =R11+1 -> 2025 | S12: 12600 | T12: 0 | U12: 0 | V12: =(S12/S11)/(1+T12)-1 -> 0 | W12: =(1+U12)/(1+U12) -> 1 | X12: 12600 | Z12: =Z11+1 -> 2025 | AA12: 21.00000063 | AG12: | | AH12: 2025 | AI12: 0.6537142857 | AJ12: 0.5870204082 | AK12: 0.6 | AL12: 7560
AG13: |
B14: Counts | C14: Paid Count | E14: Development Age | J14: Counts | K14: Rptd Count | M14: Development Age | R14: (2) | S14: = | T14: given | AG14: |
B15: AY | C15: 12 | D15: 24 | E15: 36 | F15: 48 | G15: 60 | H15: 72 | J15: AY | K15: 12 | L15: 24 | M15: 36 | N15: 48 | O15: 60 | P15: 72 | R15: (3) | S15: = | T15: given | AG15: |
B16: =$B$7 -> 2020 | C16: 2 | D16: 5 | E16: 8 | F16: 10 | G16: 11 | H16: 12 | J16: =$B$7 -> 2020 | K16: 6 | L16: 8 | M16: 10 | N16: 11 | O16: 12 | P16: 12 | R16: (4) | S16: = | T16: [ 1 + (4):prior] x [1 + (3)] - 1.0 | AG16: | | AH16: Interpretation: | AJ16: entered a new region in CY 2023
B17: =B16+1 -> 2021 | C17: 2 | D17: 5 | E17: 8 | F17: 10 | G17: 11 | J17: =J16+1 -> 2021 | K17: 6 | L17: 8 | M17: 10 | N17: 11 | O17: 12 | R17: (5) | S17: = | T17: [ (2) / (2):prior] / [1 + (3)] - 1.0 | AG17: |
B18: =B17+1 -> 2022 | C18: 2 | D18: 5 | E18: 8 | F18: 10 | J18: =J17+1 -> 2022 | K18: 6 | L18: 8 | M18: 10 | N18: 11 | R18: (6) | S18: = | T18: [ 1 + (4):2025] / [1 + (4)] | AG18: |
B19: 2023 | C19: 4 | D19: 9 | E19: 14 | J19: 2023 | K19: 10 | L19: 14 | M19: 18 | R19: (7) | S19: = | T19: (2) x (6) | AG19: |
B20: 2024 | C20: 4 | D20: 9 | J20: 2024 | K20: 10 | L20: 14 | AG20: |
B21: 2025 | C21: 4 | J21: 2025 | K21: 10 | AG21: |
AG22: |
C23: paid loss ratio | F23: Development Age | K23: rptd loss ratio | N23: Development Age | S23: paid/rptd loss | V23: Development Age | AA23: paid/rptd counts | AD23: Development Age | AG23: |
B24: AY | C24: 12 | D24: 24 | E24: 36 | F24: 48 | G24: 60 | H24: 72 | J24: AY | K24: 12 | L24: 24 | M24: 36 | N24: 48 | O24: 60 | P24: 72 | R24: AY | S24: 12 | T24: 24 | U24: 36 | V24: 48 | W24: 60 | X24: 72 | Z24: AY | AA24: 12 | AB24: 24 | AC24: 36 | AD24: 48 | AE24: 60 | AF24: 72 | AG24: |
B25: =$B$7 -> 2020 | C25: =C7/$X7 -> 0.1 | D25: 0.25 | E25: 0.4 | F25: 0.5 | G25: 0.55 | H25: 0.6 | J25: =$B$7 -> 2020 | K25: =K7/$X7 -> 0.3 | L25: 0.4 | M25: 0.5 | N25: 0.55 | O25: 0.6 | P25: 0.6 | R25: =$B$7 -> 2020 | S25: =C7/K7 -> 0.3333333333 | T25: 0.625 | U25: 0.8 | V25: 0.9090909091 | W25: 0.9166666667 | X25: 1 | Z25: =$B$7 -> 2020 | AA25: =C16/K16 -> 0.3333333333 | AB25: 0.625 | AC25: 0.8 | AD25: 0.9090909091 | AE25: 0.9166666667 | AF25: 1 | AG25: |
B26: =B25+1 -> 2021 | C26: =C8/$X8 -> 0.1 | D26: =D8/$X8 -> 0.25 | E26: =E8/$X8 -> 0.4 | F26: =F8/$X8 -> 0.5 | G26: =G8/$X8 -> 0.55 | J26: =J25+1 -> 2021 | K26: =K8/$X8 -> 0.3 | L26: =L8/$X8 -> 0.4 | M26: =M8/$X8 -> 0.5 | N26: =N8/$X8 -> 0.55 | O26: =O8/$X8 -> 0.6 | R26: =R25+1 -> 2021 | S26: =C8/K8 -> 0.3333333333 | T26: =D8/L8 -> 0.625 | U26: =E8/M8 -> 0.8 | V26: =F8/N8 -> 0.9090909091 | W26: =G8/O8 -> 0.9166666667 | Z26: =Z25+1 -> 2021 | AA26: =C17/K17 -> 0.3333333333 | AB26: =D17/L17 -> 0.625 | AC26: =E17/M17 -> 0.8 | AD26: =F17/N17 -> 0.9090909091 | AE26: =G17/O17 -> 0.9166666667 | AG26: |
B27: =B26+1 -> 2022 | C27: =C9/$X9 -> 0.1 | D27: =D9/$X9 -> 0.25 | E27: =E9/$X9 -> 0.4 | F27: =F9/$X9 -> 0.5 | J27: =J26+1 -> 2022 | K27: =K9/$X9 -> 0.3 | L27: =L9/$X9 -> 0.4 | M27: =M9/$X9 -> 0.5 | N27: =N9/$X9 -> 0.55 | R27: =R26+1 -> 2022 | S27: =C9/K9 -> 0.3333333333 | T27: =D9/L9 -> 0.625 | U27: =E9/M9 -> 0.8 | V27: =F9/N9 -> 0.9090909091 | Z27: =Z26+1 -> 2022 | AA27: =C18/K18 -> 0.3333333333 | AB27: =D18/L18 -> 0.625 | AC27: =E18/M18 -> 0.8 | AD27: =F18/N18 -> 0.9090909091 | AG27: |
B28: 2023 | C28: =C10/$X10 -> 0.1142857143 | D28: =D10/$X10 -> 0.2571428571 | E28: =E10/$X10 -> 0.4 | J28: 2023 | K28: =K10/$X10 -> 0.2857142857 | L28: =L10/$X10 -> 0.4 | M28: =M10/$X10 -> 0.5142857143 | R28: 2023 | S28: =C10/K10 -> 0.4 | T28: =D10/L10 -> 0.6428571429 | U28: =E10/M10 -> 0.7777777778 | Z28: 2023 | AA28: =C19/K19 -> 0.4 | AB28: =D19/L19 -> 0.6428571429 | AC28: =E19/M19 -> 0.7777777778 | AG28: |
B29: 2024 | C29: =C11/$X11 -> 0.1142857143 | D29: =D11/$X11 -> 0.2571428571 | J29: 2024 | K29: =K11/$X11 -> 0.2857142857 | L29: =L11/$X11 -> 0.4 | R29: 2024 | S29: =C11/K11 -> 0.4 | T29: =D11/L11 -> 0.6428571429 | Z29: 2024 | AA29: =C20/K20 -> 0.4 | AB29: =D20/L20 -> 0.6428571429 | AG29: |
B30: 2025 | C30: =C12/$X12 -> 0.1142857143 | J30: 2025 | K30: =K12/$X12 -> 0.2857142857 | R30: 2025 | S30: =C12/K12 -> 0.4 | Z30: 2025 | AA30: =C21/K21 -> 0.4 | AG30: |
AG31: |
C32: PAID dollars-per-count | K32: REPORTED dollars-per-count | S32: Case O/S dollars-per-count | AG32: |
C33: average paid loss | F33: Development Age | K33: average rptd loss | N33: Development Age | S33: average case O/S | V33: Development Age | AG33: |
B34: AY | C34: 12 | D34: 24 | E34: 36 | F34: 48 | G34: 60 | H34: 72 | J34: AY | K34: 12 | L34: 24 | M34: 36 | N34: 48 | O34: 60 | P34: 72 | R34: AY | S34: 12 | T34: 24 | U34: 36 | V34: 48 | W34: 60 | X34: 72 | AG34: |
B35: =$B$7 -> 2020 | C35: =C7/C16 -> 360 | D35: 360 | E35: 360 | F35: 360 | G35: 360 | H35: 360 | J35: =$B$7 -> 2020 | K35: =K7/K16 -> 360 | L35: 360 | M35: 360 | N35: 360 | O35: 360 | P35: 360 | R35: =$B$7 -> 2020 | S35: =IFERROR((K7-C7)/(K16-C16),0) -> 360 | T35: 360 | U35: 360 | V35: 360 | W35: 360 | X35: 0 | AG35: |
B36: =B35+1 -> 2021 | C36: =C8/C17 -> 360 | D36: =D8/D17 -> 360 | E36: =E8/E17 -> 360 | F36: =F8/F17 -> 360 | G36: =G8/G17 -> 360 | J36: =J35+1 -> 2021 | K36: =K8/K17 -> 360 | L36: =L8/L17 -> 360 | M36: =M8/M17 -> 360 | N36: =N8/N17 -> 360 | O36: =O8/O17 -> 360 | R36: =R35+1 -> 2021 | S36: =IFERROR((K8-C8)/(K17-C17),0) -> 360 | T36: =IFERROR((L8-D8)/(L17-D17),0) -> 360 | U36: =IFERROR((M8-E8)/(M17-E17),0) -> 360 | V36: =IFERROR((N8-F8)/(N17-F17),0) -> 360 | W36: =IFERROR((O8-G8)/(O17-G17),0) -> 360 | AG36: |
B37: =B36+1 -> 2022 | C37: =C9/C18 -> 360 | D37: =D9/D18 -> 360 | E37: =E9/E18 -> 360 | F37: =F9/F18 -> 360 | J37: =J36+1 -> 2022 | K37: =K9/K18 -> 360 | L37: =L9/L18 -> 360 | M37: =M9/M18 -> 360 | N37: =N9/N18 -> 360 | R37: =R36+1 -> 2022 | S37: =IFERROR((K9-C9)/(K18-C18),0) -> 360 | T37: =IFERROR((L9-D9)/(L18-D18),0) -> 360 | U37: =IFERROR((M9-E9)/(M18-E18),0) -> 360 | V37: =IFERROR((N9-F9)/(N18-F18),0) -> 360 | AG37: |
B38: 2023 | C38: =C10/C19 -> 360 | D38: =D10/D19 -> 360 | E38: =E10/E19 -> 360 | J38: 2023 | K38: =K10/K19 -> 360 | L38: =L10/L19 -> 360 | M38: =M10/M19 -> 360 | R38: 2023 | S38: =IFERROR((K10-C10)/(K19-C19),0) -> 360 | T38: =IFERROR((L10-D10)/(L19-D19),0) -> 360 | U38: =IFERROR((M10-E10)/(M19-E19),0) -> 360 | AG38: |
B39: 2024 | C39: =C11/C20 -> 360 | D39: =D11/D20 -> 360 | J39: 2024 | K39: =K11/K20 -> 360 | L39: =L11/L20 -> 360 | R39: 2024 | S39: =IFERROR((K11-C11)/(K20-C20),0) -> 360 | T39: =IFERROR((L11-D11)/(L20-D20),0) -> 360 | AG39: |
B40: 2025 | C40: =C12/C21 -> 360 | J40: 2025 | K40: =K12/K21 -> 360 | R40: 2025 | S40: =IFERROR((K12-C12)/(K21-C21),0) -> 360 | AG40: |
AG41: |
AG42: |
AG43: |
AG44: |
AG45: |
AG46: |
AG47: |
AG48: |
AG49: |
AG50: |
AG51: |
AG52: |
AG53: |
AG54: |
AG55: |
AG56: |
AG57: |
AG58: |
AG59: |
B60: ---- | C60: ---- | D60: ---- | E60: ---- | F60: ---- | G60: ---- | H60: ---- | I60: ---- | J60: ---- | K60: ---- | L60: ---- | M60: ---- | N60: ---- | O60: ---- | P60: ---- | Q60: ---- | R60: ---- | S60: ---- | T60: ---- | U60: ---- | V60: ---- | W60: ---- | X60: ---- | Y60: ---- | Z60: ---- | AA60: ---- | AB60: ---- | AC60: ---- | AD60: ---- | AE60: ---- | AF60: ---- | AG60: ----
AG61: |
B62: Book of Triangles | AG62: |
B63: Scenario: | C63: =C3 -> 7 | D63: (Comparison to Base Case) | R63: (1) | S63: (2) | T63: (3) | U63: (4) | V63: (5) | W63: (6) | X63: (7) | AG63: |
T64: avg. | U64: cum. | V64: ann. | W64: rt level | X64: on | AG64: |
B65: Amounts | C65: Paid Loss | E65: Development Age | J65: Amounts | K65: Rptd Loss | M65: Development Age | T65: rate | U65: avg. | V65: expos. | W65: adj. to | X65: level | AG65: |
B66: AY | C66: 12 | D66: =C66+12 -> 24 | E66: =D66+12 -> 36 | F66: 48 | G66: 60 | H66: 72 | J66: AY | K66: 12 | L66: =K66+12 -> 24 | M66: =L66+12 -> 36 | N66: 48 | O66: 60 | P66: 72 | R66: CY | S66: EP | T66: chg. | U66: rt. lvl. | V66: chg. | W66: =R72 -> 2025 | X66: EP | Z66: CY | AA66: EE | AG66: |
B67: 2020 | C67: =IFERROR((C7-'0'!C7)/'0'!C7,0) -> 0 | D67: =IFERROR((D7-'0'!D7)/'0'!D7,0) -> 0 | E67: =IFERROR((E7-'0'!E7)/'0'!E7,0) -> 0 | F67: =IFERROR((F7-'0'!F7)/'0'!F7,0) -> 0 | G67: =IFERROR((G7-'0'!G7)/'0'!G7,0) -> 0 | H67: =IFERROR((H7-'0'!H7)/'0'!H7,0) -> 0 | J67: =$B$7 -> 2020 | K67: =IFERROR((K7-'0'!K7)/'0'!K7,0) -> 0 | L67: =IFERROR((L7-'0'!L7)/'0'!L7,0) -> 0 | M67: =IFERROR((M7-'0'!M7)/'0'!M7,0) -> 0 | N67: =IFERROR((N7-'0'!N7)/'0'!N7,0) -> 0 | O67: =IFERROR((O7-'0'!O7)/'0'!O7,0) -> 0 | P67: =IFERROR((P7-'0'!P7)/'0'!P7,0) -> 0 | R67: =$B$7 -> 2020 | S67: =IFERROR((S7-'0'!S7)/'0'!S7,0) -> 0 | Z67: =$B$7 -> 2020 | AA67: =IFERROR((AA7-'0'!AA7)/'0'!AA7,0) -> 0 | AG67: |
B68: =B67+1 -> 2021 | C68: =IFERROR((C8-'0'!C8)/'0'!C8,0) -> 0 | D68: =IFERROR((D8-'0'!D8)/'0'!D8,0) -> 0 | E68: =IFERROR((E8-'0'!E8)/'0'!E8,0) -> 0 | F68: =IFERROR((F8-'0'!F8)/'0'!F8,0) -> 0 | G68: =IFERROR((G8-'0'!G8)/'0'!G8,0) -> 0 | J68: =J67+1 -> 2021 | K68: =IFERROR((K8-'0'!K8)/'0'!K8,0) -> 0 | L68: =IFERROR((L8-'0'!L8)/'0'!L8,0) -> 0 | M68: =IFERROR((M8-'0'!M8)/'0'!M8,0) -> 0 | N68: =IFERROR((N8-'0'!N8)/'0'!N8,0) -> 0 | O68: =IFERROR((O8-'0'!O8)/'0'!O8,0) -> 0 | R68: =R67+1 -> 2021 | S68: =IFERROR((S8-'0'!S8)/'0'!S8,0) -> 0 | T68: =IFERROR((T8-'0'!T8)/'0'!T8,0) -> 0 | Z68: =Z67+1 -> 2021 | AA68: =IFERROR((AA8-'0'!AA8)/'0'!AA8,0) -> 0 | AG68: |
B69: =B68+1 -> 2022 | C69: =IFERROR((C9-'0'!C9)/'0'!C9,0) -> 0 | D69: =IFERROR((D9-'0'!D9)/'0'!D9,0) -> 0 | E69: =IFERROR((E9-'0'!E9)/'0'!E9,0) -> 0 | F69: =IFERROR((F9-'0'!F9)/'0'!F9,0) -> 0 | J69: =J68+1 -> 2022 | K69: =IFERROR((K9-'0'!K9)/'0'!K9,0) -> 0 | L69: =IFERROR((L9-'0'!L9)/'0'!L9,0) -> 0 | M69: =IFERROR((M9-'0'!M9)/'0'!M9,0) -> 0 | N69: =IFERROR((N9-'0'!N9)/'0'!N9,0) -> 0 | R69: =R68+1 -> 2022 | S69: =IFERROR((S9-'0'!S9)/'0'!S9,0) -> 0 | T69: =IFERROR((T9-'0'!T9)/'0'!T9,0) -> 0 | Z69: =Z68+1 -> 2022 | AA69: =IFERROR((AA9-'0'!AA9)/'0'!AA9,0) -> 0 | AG69: |
B70: 2023 | C70: =IFERROR((C10-'0'!C10)/'0'!C10,0) -> 1 | D70: =IFERROR((D10-'0'!D10)/'0'!D10,0) -> 0.8 | E70: =IFERROR((E10-'0'!E10)/'0'!E10,0) -> 0.75 | J70: 2023 | K70: =IFERROR((K10-'0'!K10)/'0'!K10,0) -> 0.6666666667 | L70: =IFERROR((L10-'0'!L10)/'0'!L10,0) -> 0.75 | M70: =IFERROR((M10-'0'!M10)/'0'!M10,0) -> 0.8 | R70: =R69+1 -> 2023 | S70: =IFERROR((S10-'0'!S10)/'0'!S10,0) -> 0.75 | T70: =IFERROR((T10-'0'!T10)/'0'!T10,0) -> 0 | Z70: =Z69+1 -> 2023 | AA70: =IFERROR((AA10-'0'!AA10)/'0'!AA10,0) -> 0.75 | AG70: |
B71: 2024 | C71: =IFERROR((C11-'0'!C11)/'0'!C11,0) -> 1 | D71: =IFERROR((D11-'0'!D11)/'0'!D11,0) -> 0.8 | J71: 2024 | K71: =IFERROR((K11-'0'!K11)/'0'!K11,0) -> 0.6666666667 | L71: =IFERROR((L11-'0'!L11)/'0'!L11,0) -> 0.75 | R71: =R70+1 -> 2024 | S71: =IFERROR((S11-'0'!S11)/'0'!S11,0) -> 0.75 | T71: =IFERROR((T11-'0'!T11)/'0'!T11,0) -> 0 | Z71: =Z70+1 -> 2024 | AA71: =IFERROR((AA11-'0'!AA11)/'0'!AA11,0) -> 0.75 | AG71: |
B72: 2025 | C72: =IFERROR((C12-'0'!C12)/'0'!C12,0) -> 1 | J72: 2025 | K72: =IFERROR((K12-'0'!K12)/'0'!K12,0) -> 0.6666666667 | R72: =R71+1 -> 2025 | S72: =IFERROR((S12-'0'!S12)/'0'!S12,0) -> 0.75 | T72: =IFERROR((T12-'0'!T12)/'0'!T12,0) -> 0 | Z72: =Z71+1 -> 2025 | AA72: =IFERROR((AA12-'0'!AA12)/'0'!AA12,0) -> 0.75 | AG72: |
AG73: |
B74: Counts | C74: Paid Count | E74: Development Age | J74: Counts | K74: Rptd Count | M74: Development Age | AG74: |
B75: AY | C75: 12 | D75: 24 | E75: 36 | F75: 48 | G75: 60 | H75: 72 | J75: AY | K75: 12 | L75: 24 | M75: 36 | N75: 48 | O75: 60 | P75: 72 | AG75: |
B76: =$B$7 -> 2020 | C76: =IFERROR((C16-'0'!C16)/'0'!C16,0) -> 0 | D76: =IFERROR((D16-'0'!D16)/'0'!D16,0) -> 0 | E76: =IFERROR((E16-'0'!E16)/'0'!E16,0) -> 0 | F76: =IFERROR((F16-'0'!F16)/'0'!F16,0) -> 0 | G76: =IFERROR((G16-'0'!G16)/'0'!G16,0) -> 0 | H76: =IFERROR((H16-'0'!H16)/'0'!H16,0) -> 0 | J76: =$B$7 -> 2020 | K76: =IFERROR((K16-'0'!K16)/'0'!K16,0) -> 0 | L76: =IFERROR((L16-'0'!L16)/'0'!L16,0) -> 0 | M76: =IFERROR((M16-'0'!M16)/'0'!M16,0) -> 0 | N76: =IFERROR((N16-'0'!N16)/'0'!N16,0) -> 0 | O76: =IFERROR((O16-'0'!O16)/'0'!O16,0) -> 0 | P76: =IFERROR((P16-'0'!P16)/'0'!P16,0) -> 0 | AG76: |
B77: =B76+1 -> 2021 | C77: =IFERROR((C17-'0'!C17)/'0'!C17,0) -> 0 | D77: =IFERROR((D17-'0'!D17)/'0'!D17,0) -> 0 | E77: =IFERROR((E17-'0'!E17)/'0'!E17,0) -> 0 | F77: =IFERROR((F17-'0'!F17)/'0'!F17,0) -> 0 | G77: =IFERROR((G17-'0'!G17)/'0'!G17,0) -> 0 | J77: =J76+1 -> 2021 | K77: =IFERROR((K17-'0'!K17)/'0'!K17,0) -> 0 | L77: =IFERROR((L17-'0'!L17)/'0'!L17,0) -> 0 | M77: =IFERROR((M17-'0'!M17)/'0'!M17,0) -> 0 | N77: =IFERROR((N17-'0'!N17)/'0'!N17,0) -> 0 | O77: =IFERROR((O17-'0'!O17)/'0'!O17,0) -> 0 | AG77: |
B78: =B77+1 -> 2022 | C78: =IFERROR((C18-'0'!C18)/'0'!C18,0) -> 0 | D78: =IFERROR((D18-'0'!D18)/'0'!D18,0) -> 0 | E78: =IFERROR((E18-'0'!E18)/'0'!E18,0) -> 0 | F78: =IFERROR((F18-'0'!F18)/'0'!F18,0) -> 0 | J78: =J77+1 -> 2022 | K78: =IFERROR((K18-'0'!K18)/'0'!K18,0) -> 0 | L78: =IFERROR((L18-'0'!L18)/'0'!L18,0) -> 0 | M78: =IFERROR((M18-'0'!M18)/'0'!M18,0) -> 0 | N78: =IFERROR((N18-'0'!N18)/'0'!N18,0) -> 0 | AG78: |
B79: 2023 | C79: =IFERROR((C19-'0'!C19)/'0'!C19,0) -> 1 | D79: =IFERROR((D19-'0'!D19)/'0'!D19,0) -> 0.8 | E79: =IFERROR((E19-'0'!E19)/'0'!E19,0) -> 0.75 | J79: 2023 | K79: =IFERROR((K19-'0'!K19)/'0'!K19,0) -> 0.6666666667 | L79: =IFERROR((L19-'0'!L19)/'0'!L19,0) -> 0.75 | M79: =IFERROR((M19-'0'!M19)/'0'!M19,0) -> 0.8 | AG79: |
B80: 2024 | C80: =IFERROR((C20-'0'!C20)/'0'!C20,0) -> 1 | D80: =IFERROR((D20-'0'!D20)/'0'!D20,0) -> 0.8 | J80: 2024 | K80: =IFERROR((K20-'0'!K20)/'0'!K20,0) -> 0.6666666667 | L80: =IFERROR((L20-'0'!L20)/'0'!L20,0) -> 0.75 | AG80: |
B81: 2025 | C81: =IFERROR((C21-'0'!C21)/'0'!C21,0) -> 1 | J81: 2025 | K81: =IFERROR((K21-'0'!K21)/'0'!K21,0) -> 0.6666666667 | AG81: |
AG82: |
C83: paid loss ratio | F83: Development Age | K83: rptd loss ratio | N83: Development Age | S83: paid/rptd loss | V83: Development Age | AA83: paid/rptd counts | AD83: Development Age | AG83: |
B84: AY | C84: 12 | D84: 24 | E84: 36 | F84: 48 | G84: 60 | H84: 72 | J84: AY | K84: 12 | L84: 24 | M84: 36 | N84: 48 | O84: 60 | P84: 72 | R84: AY | S84: 12 | T84: 24 | U84: 36 | V84: 48 | W84: 60 | X84: 72 | Z84: AY | AA84: 12 | AB84: 24 | AC84: 36 | AD84: 48 | AE84: 60 | AF84: 72 | AG84: |
B85: =$B$7 -> 2020 | C85: =IFERROR((C25-'0'!C25)/'0'!C25,0) -> 0 | D85: =IFERROR((D25-'0'!D25)/'0'!D25,0) -> 0 | E85: =IFERROR((E25-'0'!E25)/'0'!E25,0) -> 0 | F85: =IFERROR((F25-'0'!F25)/'0'!F25,0) -> 0 | G85: =IFERROR((G25-'0'!G25)/'0'!G25,0) -> 0 | H85: =IFERROR((H25-'0'!H25)/'0'!H25,0) -> 0 | J85: =$B$7 -> 2020 | K85: =IFERROR((K25-'0'!K25)/'0'!K25,0) -> 0 | L85: =IFERROR((L25-'0'!L25)/'0'!L25,0) -> 0 | M85: =IFERROR((M25-'0'!M25)/'0'!M25,0) -> 0 | N85: =IFERROR((N25-'0'!N25)/'0'!N25,0) -> 0 | O85: =IFERROR((O25-'0'!O25)/'0'!O25,0) -> 0 | P85: =IFERROR((P25-'0'!P25)/'0'!P25,0) -> 0 | R85: =$B$7 -> 2020 | S85: =IFERROR((S25-'0'!S25)/'0'!S25,0) -> 0 | T85: =IFERROR((T25-'0'!T25)/'0'!T25,0) -> 0 | U85: =IFERROR((U25-'0'!U25)/'0'!U25,0) -> 0 | V85: =IFERROR((V25-'0'!V25)/'0'!V25,0) -> 0 | W85: =IFERROR((W25-'0'!W25)/'0'!W25,0) -> 0 | X85: =IFERROR((X25-'0'!X25)/'0'!X25,0) -> 0 | Z85: =$B$7 -> 2020 | AA85: =IFERROR((AA25-'0'!AA25)/'0'!AA25,0) -> 0 | AB85: =IFERROR((AB25-'0'!AB25)/'0'!AB25,0) -> 0 | AC85: =IFERROR((AC25-'0'!AC25)/'0'!AC25,0) -> 0 | AD85: =IFERROR((AD25-'0'!AD25)/'0'!AD25,0) -> 0 | AE85: =IFERROR((AE25-'0'!AE25)/'0'!AE25,0) -> 0 | AF85: =IFERROR((AF25-'0'!AF25)/'0'!AF25,0) -> 0 | AG85: |
B86: =B85+1 -> 2021 | C86: =IFERROR((C26-'0'!C26)/'0'!C26,0) -> 0 | D86: =IFERROR((D26-'0'!D26)/'0'!D26,0) -> 0 | E86: =IFERROR((E26-'0'!E26)/'0'!E26,0) -> 0 | F86: =IFERROR((F26-'0'!F26)/'0'!F26,0) -> 0 | G86: =IFERROR((G26-'0'!G26)/'0'!G26,0) -> 0 | J86: =J85+1 -> 2021 | K86: =IFERROR((K26-'0'!K26)/'0'!K26,0) -> 0 | L86: =IFERROR((L26-'0'!L26)/'0'!L26,0) -> 0 | M86: =IFERROR((M26-'0'!M26)/'0'!M26,0) -> 0 | N86: =IFERROR((N26-'0'!N26)/'0'!N26,0) -> 0 | O86: =IFERROR((O26-'0'!O26)/'0'!O26,0) -> 0 | R86: =R85+1 -> 2021 | S86: =IFERROR((S26-'0'!S26)/'0'!S26,0) -> 0 | T86: =IFERROR((T26-'0'!T26)/'0'!T26,0) -> 0 | U86: =IFERROR((U26-'0'!U26)/'0'!U26,0) -> 0 | V86: =IFERROR((V26-'0'!V26)/'0'!V26,0) -> 0 | W86: =IFERROR((W26-'0'!W26)/'0'!W26,0) -> 0 | Z86: =Z85+1 -> 2021 | AA86: =IFERROR((AA26-'0'!AA26)/'0'!AA26,0) -> 0 | AB86: =IFERROR((AB26-'0'!AB26)/'0'!AB26,0) -> 0 | AC86: =IFERROR((AC26-'0'!AC26)/'0'!AC26,0) -> 0 | AD86: =IFERROR((AD26-'0'!AD26)/'0'!AD26,0) -> 0 | AE86: =IFERROR((AE26-'0'!AE26)/'0'!AE26,0) -> 0 | AG86: |
B87: =B86+1 -> 2022 | C87: =IFERROR((C27-'0'!C27)/'0'!C27,0) -> 0 | D87: =IFERROR((D27-'0'!D27)/'0'!D27,0) -> 0 | E87: =IFERROR((E27-'0'!E27)/'0'!E27,0) -> 0 | F87: =IFERROR((F27-'0'!F27)/'0'!F27,0) -> 0 | J87: =J86+1 -> 2022 | K87: =IFERROR((K27-'0'!K27)/'0'!K27,0) -> 0 | L87: =IFERROR((L27-'0'!L27)/'0'!L27,0) -> 0 | M87: =IFERROR((M27-'0'!M27)/'0'!M27,0) -> 0 | N87: =IFERROR((N27-'0'!N27)/'0'!N27,0) -> 0 | R87: =R86+1 -> 2022 | S87: =IFERROR((S27-'0'!S27)/'0'!S27,0) -> 0 | T87: =IFERROR((T27-'0'!T27)/'0'!T27,0) -> 0 | U87: =IFERROR((U27-'0'!U27)/'0'!U27,0) -> 0 | V87: =IFERROR((V27-'0'!V27)/'0'!V27,0) -> 0 | Z87: =Z86+1 -> 2022 | AA87: =IFERROR((AA27-'0'!AA27)/'0'!AA27,0) -> 0 | AB87: =IFERROR((AB27-'0'!AB27)/'0'!AB27,0) -> 0 | AC87: =IFERROR((AC27-'0'!AC27)/'0'!AC27,0) -> 0 | AD87: =IFERROR((AD27-'0'!AD27)/'0'!AD27,0) -> 0 | AG87: |
B88: 2023 | C88: =IFERROR((C28-'0'!C28)/'0'!C28,0) -> 0.1428571429 | D88: =IFERROR((D28-'0'!D28)/'0'!D28,0) -> 0.02857142857 | E88: =IFERROR((E28-'0'!E28)/'0'!E28,0) -> 0 | J88: 2023 | K88: =IFERROR((K28-'0'!K28)/'0'!K28,0) -> -0.04761904762 | L88: =IFERROR((L28-'0'!L28)/'0'!L28,0) -> 0 | M88: =IFERROR((M28-'0'!M28)/'0'!M28,0) -> 0.02857142857 | R88: 2023 | S88: =IFERROR((S28-'0'!S28)/'0'!S28,0) -> 0.2 | T88: =IFERROR((T28-'0'!T28)/'0'!T28,0) -> 0.02857142857 | U88: =IFERROR((U28-'0'!U28)/'0'!U28,0) -> -0.02777777778 | Z88: 2023 | AA88: =IFERROR((AA28-'0'!AA28)/'0'!AA28,0) -> 0.2 | AB88: =IFERROR((AB28-'0'!AB28)/'0'!AB28,0) -> 0.02857142857 | AC88: =IFERROR((AC28-'0'!AC28)/'0'!AC28,0) -> -0.02777777778 | AG88: |
B89: 2024 | C89: =IFERROR((C29-'0'!C29)/'0'!C29,0) -> 0.1428571429 | D89: =IFERROR((D29-'0'!D29)/'0'!D29,0) -> 0.02857142857 | J89: 2024 | K89: =IFERROR((K29-'0'!K29)/'0'!K29,0) -> -0.04761904762 | L89: =IFERROR((L29-'0'!L29)/'0'!L29,0) -> 0 | R89: 2024 | S89: =IFERROR((S29-'0'!S29)/'0'!S29,0) -> 0.2 | T89: =IFERROR((T29-'0'!T29)/'0'!T29,0) -> 0.02857142857 | Z89: 2024 | AA89: =IFERROR((AA29-'0'!AA29)/'0'!AA29,0) -> 0.2 | AB89: =IFERROR((AB29-'0'!AB29)/'0'!AB29,0) -> 0.02857142857 | AG89: |
B90: 2025 | C90: =IFERROR((C30-'0'!C30)/'0'!C30,0) -> 0.1428571429 | J90: 2025 | K90: =IFERROR((K30-'0'!K30)/'0'!K30,0) -> -0.04761904762 | R90: 2025 | S90: =IFERROR((S30-'0'!S30)/'0'!S30,0) -> 0.2 | Z90: 2025 | AA90: =IFERROR((AA30-'0'!AA30)/'0'!AA30,0) -> 0.2 | AG90: |
AG91: |
C92: PAID dollars-per-count | K92: REPORTED dollars-per-count | S92: Case O/S dollars-per-count | AG92: |
C93: average paid loss | F93: Development Age | K93: average rptd loss | N93: Development Age | S93: average case O/S | V93: Development Age | AG93: |
B94: AY | C94: 12 | D94: 24 | E94: 36 | F94: 48 | G94: 60 | H94: 72 | J94: AY | K94: 12 | L94: 24 | M94: 36 | N94: 48 | O94: 60 | P94: 72 | R94: AY | S94: 12 | T94: 24 | U94: 36 | V94: 48 | W94: 60 | X94: 72 | AG94: |
B95: =$B$7 -> 2020 | C95: =IFERROR((C35-'0'!C35)/'0'!C35,0) -> 0 | D95: =IFERROR((D35-'0'!D35)/'0'!D35,0) -> 0 | E95: =IFERROR((E35-'0'!E35)/'0'!E35,0) -> 0 | F95: =IFERROR((F35-'0'!F35)/'0'!F35,0) -> 0 | G95: =IFERROR((G35-'0'!G35)/'0'!G35,0) -> 0 | H95: =IFERROR((H35-'0'!H35)/'0'!H35,0) -> 0 | J95: =$B$7 -> 2020 | K95: =IFERROR((K35-'0'!K35)/'0'!K35,0) -> 0 | L95: =IFERROR((L35-'0'!L35)/'0'!L35,0) -> 0 | M95: =IFERROR((M35-'0'!M35)/'0'!M35,0) -> 0 | N95: =IFERROR((N35-'0'!N35)/'0'!N35,0) -> 0 | O95: =IFERROR((O35-'0'!O35)/'0'!O35,0) -> 0 | P95: =IFERROR((P35-'0'!P35)/'0'!P35,0) -> 0 | R95: =$B$7 -> 2020 | S95: =IFERROR((S35-'0'!S35)/'0'!S35,0) -> 0 | T95: =IFERROR((T35-'0'!T35)/'0'!T35,0) -> 0 | U95: =IFERROR((U35-'0'!U35)/'0'!U35,0) -> 0 | V95: =IFERROR((V35-'0'!V35)/'0'!V35,0) -> 0 | W95: =IFERROR((W35-'0'!W35)/'0'!W35,0) -> 0 | X95: =IFERROR((X35-'0'!X35)/'0'!X35,0) -> 0 | AG95: |
B96: =B95+1 -> 2021 | C96: =IFERROR((C36-'0'!C36)/'0'!C36,0) -> 0 | D96: =IFERROR((D36-'0'!D36)/'0'!D36,0) -> 0 | E96: =IFERROR((E36-'0'!E36)/'0'!E36,0) -> 0 | F96: =IFERROR((F36-'0'!F36)/'0'!F36,0) -> 0 | G96: =IFERROR((G36-'0'!G36)/'0'!G36,0) -> 0 | J96: =J95+1 -> 2021 | K96: =IFERROR((K36-'0'!K36)/'0'!K36,0) -> 0 | L96: =IFERROR((L36-'0'!L36)/'0'!L36,0) -> 0 | M96: =IFERROR((M36-'0'!M36)/'0'!M36,0) -> 0 | N96: =IFERROR((N36-'0'!N36)/'0'!N36,0) -> 0 | O96: =IFERROR((O36-'0'!O36)/'0'!O36,0) -> 0 | R96: =R95+1 -> 2021 | S96: =IFERROR((S36-'0'!S36)/'0'!S36,0) -> 0 | T96: =IFERROR((T36-'0'!T36)/'0'!T36,0) -> 0 | U96: =IFERROR((U36-'0'!U36)/'0'!U36,0) -> 0 | V96: =IFERROR((V36-'0'!V36)/'0'!V36,0) -> 0 | W96: =IFERROR((W36-'0'!W36)/'0'!W36,0) -> 0 | AG96: |
B97: =B96+1 -> 2022 | C97: =IFERROR((C37-'0'!C37)/'0'!C37,0) -> 0 | D97: =IFERROR((D37-'0'!D37)/'0'!D37,0) -> 0 | E97: =IFERROR((E37-'0'!E37)/'0'!E37,0) -> 0 | F97: =IFERROR((F37-'0'!F37)/'0'!F37,0) -> 0 | J97: =J96+1 -> 2022 | K97: =IFERROR((K37-'0'!K37)/'0'!K37,0) -> 0 | L97: =IFERROR((L37-'0'!L37)/'0'!L37,0) -> 0 | M97: =IFERROR((M37-'0'!M37)/'0'!M37,0) -> 0 | N97: =IFERROR((N37-'0'!N37)/'0'!N37,0) -> 0 | R97: =R96+1 -> 2022 | S97: =IFERROR((S37-'0'!S37)/'0'!S37,0) -> 0 | T97: =IFERROR((T37-'0'!T37)/'0'!T37,0) -> 0 | U97: =IFERROR((U37-'0'!U37)/'0'!U37,0) -> 0 | V97: =IFERROR((V37-'0'!V37)/'0'!V37,0) -> 0 | AG97: |
B98: 2023 | C98: =IFERROR((C38-'0'!C38)/'0'!C38,0) -> 0 | D98: =IFERROR((D38-'0'!D38)/'0'!D38,0) -> 0 | E98: =IFERROR((E38-'0'!E38)/'0'!E38,0) -> 0 | J98: 2023 | K98: =IFERROR((K38-'0'!K38)/'0'!K38,0) -> 0 | L98: =IFERROR((L38-'0'!L38)/'0'!L38,0) -> 0 | M98: =IFERROR((M38-'0'!M38)/'0'!M38,0) -> 0 | R98: 2023 | S98: =IFERROR((S38-'0'!S38)/'0'!S38,0) -> 0 | T98: =IFERROR((T38-'0'!T38)/'0'!T38,0) -> 0 | U98: =IFERROR((U38-'0'!U38)/'0'!U38,0) -> 0 | AG98: |
B99: 2024 | C99: =IFERROR((C39-'0'!C39)/'0'!C39,0) -> 0 | D99: =IFERROR((D39-'0'!D39)/'0'!D39,0) -> 0 | J99: 2024 | K99: =IFERROR((K39-'0'!K39)/'0'!K39,0) -> 0 | L99: =IFERROR((L39-'0'!L39)/'0'!L39,0) -> 0 | R99: 2024 | S99: =IFERROR((S39-'0'!S39)/'0'!S39,0) -> 0 | T99: =IFERROR((T39-'0'!T39)/'0'!T39,0) -> 0 | AG99: |
B100: 2025 | C100: =IFERROR((C40-'0'!C40)/'0'!C40,0) -> 0 | J100: 2025 | K100: =IFERROR((K40-'0'!K40)/'0'!K40,0) -> 0 | R100: 2025 | S100: =IFERROR((S40-'0'!S40)/'0'!S40,0) -> 0 | AG100: |
AG101: |
AG102: |
AG103: |
AG104: |
AG105: |
AG106: |
AG107: |
AG108: |
AG109: |
AG110: |
AG111: |
AG112: |
AG113: |
AG114: |
AG115: |
AG116: |
AG117: |
AG118: |
AG119: |
B120: ---- | C120: ---- | D120: ---- | E120: ---- | F120: ---- | G120: ---- | H120: ---- | I120: ---- | J120: ---- | K120: ---- | L120: ---- | M120: ---- | N120: ---- | O120: ---- | P120: ---- | Q120: ---- | R120: ---- | S120: ---- | T120: ---- | U120: ---- | V120: ---- | W120: ---- | AG120: ----
AG121: |
AG122: |
AG123: |
AG124: |
AG125: |
AG126: |
AG127: |
AG128: |
AG129: |
AG130: |
AG131: |
AG132: |
AG133: |
AG134: |
AG135: |
AG136: |
AG137: |
AG138: |
AG139: |
AG140: |
AG141: |
AG142: |
AG143: |
AG144: |
AG145: |
AG146: |
AG147: |
AG148: |
AG149: |
AG150: |
AG151: |
AG152: |
AG153: |
AG154: |
AG155: |
AG156: |
AG157: |
AG158: |
AG159: |
AG160: |
AG161: |
AG162: |
AG163: |
AG164: |
AG165: |
AG166: |
AG167: |
AG168: |
AG169: |
AG170: |
AG171: |
AG172: |
AG173: |
AG174: |
AG175: |
AG176: |
AG177: |
AG178: |
AG179: |
B180: ---- | C180: ---- | D180: ---- | E180: ---- | F180: ---- | G180: ---- | H180: ---- | I180: ---- | J180: ---- | K180: ---- | L180: ---- | M180: ---- | N180: ---- | O180: ---- | P180: ---- | Q180: ---- | R180: ---- | S180: ---- | T180: ---- | U180: ---- | V180: ---- | W180: ---- | AG180: ----
AG181: |
AG182: |
AG183: |
AG184: |
AG185: |
AG186: |
AG187: |
AG188: |
AG189: |
AG190: |
AG191: |
AG192: |
AG193: |
AG194: |
AG195: |
AG196: |
AG197: |
AG198: |
AG199: |
AG200: |
AG201: |
... 1358 more rows

Sheet 8
B2: Book of Triangles | AG2: |
B3: Scenario: | C3: 8 | R3: (1) | S3: (2) | T3: (3) | U3: (4) | V3: (5) | W3: (6) | X3: (7) | AG3: |
T4: avg. | U4: cum. | V4: ann. | W4: rt level | X4: on | AG4: | | AI4: est pd | AJ4: est rptd | AK4: real | AL4: real
B5: Amounts | C5: Paid Loss | E5: Development Age | J5: Amounts | K5: Rptd Loss | M5: Development Age | T5: rate | U5: avg. | V5: expos. | W5: adj. to | X5: level | AG5: | | AI5: AY | AJ5: AY | AK5: AY | AL5: AY
B6: AY | C6: 12 | D6: =C6+12 -> 24 | E6: =D6+12 -> 36 | F6: 48 | G6: 60 | H6: 72 | J6: AY | K6: 12 | L6: =K6+12 -> 24 | M6: =L6+12 -> 36 | N6: 48 | O6: 60 | P6: 72 | R6: CY | S6: EP | T6: chg. | U6: rt. lvl. | V6: chg. | W6: =R12 -> 2025 | X6: EP | Z6: CY | AA6: EE | AG6: | | AH6: AY | AI6: ULR | AJ6: ULR | AK6: ULR | AL6: Loss
B7: 2020 | C7: 720 | D7: 1800 | E7: 2880 | F7: 3960 | G7: 4320 | H7: 4320 | J7: =$B$7 -> 2020 | K7: 2160 | L7: 2880 | M7: 3600 | N7: 3960 | O7: 4320 | P7: 4320 | R7: =$B$7 -> 2020 | S7: 7200 | U7: =T7 -> 0 | W7: =(1+U12)/(1+U7) -> 1.10040084 | X7: =S7*W7 -> 7922.886048 | Z7: =$B$7 -> 2020 | AA7: 12.00000036 | AG7: | | AH7: =$B$7 -> 2020 | AI7: 0.6 | AJ7: 0.6 | AK7: 0.6 | AL7: =S7*AK7 -> 4320
B8: =B7+1 -> 2021 | C8: 720 | D8: 1800 | E8: 3600 | F8: 3960 | G8: 4320 | J8: =J7+1 -> 2021 | K8: 2160 | L8: 2880 | M8: 3600 | N8: 3960 | O8: 4320 | R8: =R7+1 -> 2021 | S8: 7200 | T8: 0.06 | U8: =(1+U7)*(1+T8)-1 -> 0.06 | V8: =(S8/S7)/(1+T8)-1 -> -0.05660377358 | W8: =(1+U12)/(1+U8) -> 1.038114 | X8: 7474.4208 | Z8: =Z7+1 -> 2021 | AA8: 12.00000036 | AG8: | | AH8: =AH7+1 -> 2021 | AI8: 0.6 | AJ8: 0.6 | AK8: 0.6 | AL8: 4320
B9: =B8+1 -> 2022 | C9: 720 | D9: 2880 | E9: 3600 | F9: 3960 | J9: =J8+1 -> 2022 | K9: 2160 | L9: 2880 | M9: 3600 | N9: 3960 | R9: =R8+1 -> 2022 | S9: 7200 | T9: 0.07 | U9: =(1+U8)*(1+T9)-1 -> 0.1342 | V9: =(S9/S8)/(1+T9)-1 -> -0.06542056075 | W9: =(1+U12)/(1+U9) -> 0.9702 | X9: 6985.44 | Z9: =Z8+1 -> 2022 | AA9: 12.00000036 | AG9: | | AH9: =AH8+1 -> 2022 | AI9: 0.6 | AJ9: 0.6 | AK9: 0.6 | AL9: 4320
B10: 2023 | C10: 1800 | D10: 2880 | E10: 3600 | J10: 2023 | K10: 2160 | L10: 2880 | M10: 3600 | R10: =R9+1 -> 2023 | S10: 7200 | T10: 0 | U10: 0.1342 | V10: =(S10/S9)/(1+T10)-1 -> 0 | W10: =(1+U12)/(1+U10) -> 0.9702 | X10: 6985.44 | Z10: =Z9+1 -> 2023 | AA10: 12.00000036 | AG10: | | AH10: 2023 | AI10: 0.65 | AJ10: 0.6 | AK10: 0.6 | AL10: 4320
B11: 2024 | C11: 1800 | D11: 2880 | J11: 2024 | K11: 2160 | L11: 2880 | R11: =R10+1 -> 2024 | S11: 7200 | T11: -0.01 | U11: 0.122858 | V11: =(S11/S10)/(1+T11)-1 -> 0.0101010101 | W11: =(1+U12)/(1+U11) -> 0.98 | X11: 7056 | Z11: =Z10+1 -> 2024 | AA11: 12.00000036 | AG11: | | AH11: 2024 | AI11: 0.793 | AJ11: 0.6 | AK11: 0.6 | AL11: 4320
B12: 2025 | C12: 1800 | J12: 2025 | K12: 2160 | R12: =R11+1 -> 2025 | S12: 7200 | T12: -0.02 | U12: 0.10040084 | V12: =(S12/S11)/(1+T12)-1 -> 0.02040816327 | W12: =(1+U12)/(1+U12) -> 1 | X12: 7200 | Z12: =Z11+1 -> 2025 | AA12: 12.00000036 | AG12: | | AH12: 2025 | AI12: 1.209325 | AJ12: 0.6 | AK12: 0.6 | AL12: 4320
AG13: |
B14: Counts | C14: Paid Count | E14: Development Age | J14: Counts | K14: Rptd Count | M14: Development Age | R14: (2) | S14: = | T14: given | AG14: |
B15: AY | C15: 12 | D15: 24 | E15: 36 | F15: 48 | G15: 60 | H15: 72 | J15: AY | K15: 12 | L15: 24 | M15: 36 | N15: 48 | O15: 60 | P15: 72 | R15: (3) | S15: = | T15: given | AG15: |
B16: =$B$7 -> 2020 | C16: 2 | D16: 5 | E16: 8 | F16: 11 | G16: 12 | H16: 12 | J16: =$B$7 -> 2020 | K16: 6 | L16: 8 | M16: 10 | N16: 11 | O16: 12 | P16: 12 | R16: (4) | S16: = | T16: [ 1 + (4):prior] x [1 + (3)] - 1.0 | AG16: | | AH16: Interpretation: | AJ16: settlement rate increase of 12 months at CY 2023
B17: =B16+1 -> 2021 | C17: 2 | D17: 5 | E17: 10 | F17: 11 | G17: 12 | J17: =J16+1 -> 2021 | K17: 6 | L17: 8 | M17: 10 | N17: 11 | O17: 12 | R17: (5) | S17: = | T17: [ (2) / (2):prior] / [1 + (3)] - 1.0 | AG17: |
B18: =B17+1 -> 2022 | C18: 2 | D18: 8 | E18: 10 | F18: 11 | J18: =J17+1 -> 2022 | K18: 6 | L18: 8 | M18: 10 | N18: 11 | R18: (6) | S18: = | T18: [ 1 + (4):2025] / [1 + (4)] | AG18: |
B19: 2023 | C19: 5 | D19: 8 | E19: 10 | J19: 2023 | K19: 6 | L19: 8 | M19: 10 | R19: (7) | S19: = | T19: (2) x (6) | AG19: |
B20: 2024 | C20: 5 | D20: 8 | J20: 2024 | K20: 6 | L20: 8 | AG20: |
B21: 2025 | C21: 5 | J21: 2025 | K21: 6 | AG21: |
AG22: |
C23: paid loss ratio | F23: Development Age | K23: rptd loss ratio | N23: Development Age | S23: paid/rptd loss | V23: Development Age | AA23: paid/rptd counts | AD23: Development Age | AG23: |
B24: AY | C24: 12 | D24: 24 | E24: 36 | F24: 48 | G24: 60 | H24: 72 | J24: AY | K24: 12 | L24: 24 | M24: 36 | N24: 48 | O24: 60 | P24: 72 | R24: AY | S24: 12 | T24: 24 | U24: 36 | V24: 48 | W24: 60 | X24: 72 | Z24: AY | AA24: 12 | AB24: 24 | AC24: 36 | AD24: 48 | AE24: 60 | AF24: 72 | AG24: |
B25: =$B$7 -> 2020 | C25: =C7/$X7 -> 0.0908759757 | D25: 0.2271899393 | E25: 0.3635039028 | F25: 0.4998178664 | G25: 0.5452558542 | H25: 0.5452558542 | J25: =$B$7 -> 2020 | K25: =K7/$X7 -> 0.2726279271 | L25: 0.3635039028 | M25: 0.4543798785 | N25: 0.4998178664 | O25: 0.5452558542 | P25: 0.5452558542 | R25: =$B$7 -> 2020 | S25: =C7/K7 -> 0.3333333333 | T25: 0.625 | U25: 0.8 | V25: 1 | W25: 1 | X25: 1 | Z25: =$B$7 -> 2020 | AA25: =C16/K16 -> 0.3333333333 | AB25: 0.625 | AC25: 0.8 | AD25: 1 | AE25: 1 | AF25: 1 | AG25: |
B26: =B25+1 -> 2021 | C26: =C8/$X8 -> 0.09632853425 | D26: =D8/$X8 -> 0.2408213356 | E26: =E8/$X8 -> 0.4816426712 | F26: =F8/$X8 -> 0.5298069384 | G26: =G8/$X8 -> 0.5779712055 | J26: =J25+1 -> 2021 | K26: =K8/$X8 -> 0.2889856027 | L26: =L8/$X8 -> 0.385314137 | M26: =M8/$X8 -> 0.4816426712 | N26: =N8/$X8 -> 0.5298069384 | O26: =O8/$X8 -> 0.5779712055 | R26: =R25+1 -> 2021 | S26: =C8/K8 -> 0.3333333333 | T26: =D8/L8 -> 0.625 | U26: =E8/M8 -> 1 | V26: =F8/N8 -> 1 | W26: =G8/O8 -> 1 | Z26: =Z25+1 -> 2021 | AA26: =C17/K17 -> 0.3333333333 | AB26: =D17/L17 -> 0.625 | AC26: =E17/M17 -> 1 | AD26: =F17/N17 -> 1 | AE26: =G17/O17 -> 1 | AG26: |
B27: =B26+1 -> 2022 | C27: =C9/$X9 -> 0.1030715316 | D27: =D9/$X9 -> 0.4122861266 | E27: =E9/$X9 -> 0.5153576582 | F27: =F9/$X9 -> 0.566893424 | J27: =J26+1 -> 2022 | K27: =K9/$X9 -> 0.3092145949 | L27: =L9/$X9 -> 0.4122861266 | M27: =M9/$X9 -> 0.5153576582 | N27: =N9/$X9 -> 0.566893424 | R27: =R26+1 -> 2022 | S27: =C9/K9 -> 0.3333333333 | T27: =D9/L9 -> 1 | U27: =E9/M9 -> 1 | V27: =F9/N9 -> 1 | Z27: =Z26+1 -> 2022 | AA27: =C18/K18 -> 0.3333333333 | AB27: =D18/L18 -> 1 | AC27: =E18/M18 -> 1 | AD27: =F18/N18 -> 1 | AG27: |
B28: 2023 | C28: =C10/$X10 -> 0.2576788291 | D28: =D10/$X10 -> 0.4122861266 | E28: =E10/$X10 -> 0.5153576582 | J28: 2023 | K28: =K10/$X10 -> 0.3092145949 | L28: =L10/$X10 -> 0.4122861266 | M28: =M10/$X10 -> 0.5153576582 | R28: 2023 | S28: =C10/K10 -> 0.8333333333 | T28: =D10/L10 -> 1 | U28: =E10/M10 -> 1 | Z28: 2023 | AA28: =C19/K19 -> 0.8333333333 | AB28: =D19/L19 -> 1 | AC28: =E19/M19 -> 1 | AG28: |
B29: 2024 | C29: =C11/$X11 -> 0.2551020408 | D29: =D11/$X11 -> 0.4081632653 | J29: 2024 | K29: =K11/$X11 -> 0.306122449 | L29: =L11/$X11 -> 0.4081632653 | R29: 2024 | S29: =C11/K11 -> 0.8333333333 | T29: =D11/L11 -> 1 | Z29: 2024 | AA29: =C20/K20 -> 0.8333333333 | AB29: =D20/L20 -> 1 | AG29: |
B30: 2025 | C30: =C12/$X12 -> 0.25 | J30: 2025 | K30: =K12/$X12 -> 0.3 | R30: 2025 | S30: =C12/K12 -> 0.8333333333 | Z30: 2025 | AA30: =C21/K21 -> 0.8333333333 | AG30: |
AG31: |
C32: PAID dollars-per-count | K32: REPORTED dollars-per-count | S32: Case O/S dollars-per-count | AG32: |
C33: average paid loss | F33: Development Age | K33: average rptd loss | N33: Development Age | S33: average case O/S | V33: Development Age | AG33: |
B34: AY | C34: 12 | D34: 24 | E34: 36 | F34: 48 | G34: 60 | H34: 72 | J34: AY | K34: 12 | L34: 24 | M34: 36 | N34: 48 | O34: 60 | P34: 72 | R34: AY | S34: 12 | T34: 24 | U34: 36 | V34: 48 | W34: 60 | X34: 72 | AG34: |
B35: =$B$7 -> 2020 | C35: =C7/C16 -> 360 | D35: 360 | E35: 360 | F35: 360 | G35: 360 | H35: 360 | J35: =$B$7 -> 2020 | K35: =K7/K16 -> 360 | L35: 360 | M35: 360 | N35: 360 | O35: 360 | P35: 360 | R35: =$B$7 -> 2020 | S35: =IFERROR((K7-C7)/(K16-C16),0) -> 360 | T35: 360 | U35: 360 | V35: 0 | W35: 0 | X35: 0 | AG35: |
B36: =B35+1 -> 2021 | C36: =C8/C17 -> 360 | D36: =D8/D17 -> 360 | E36: =E8/E17 -> 360 | F36: =F8/F17 -> 360 | G36: =G8/G17 -> 360 | J36: =J35+1 -> 2021 | K36: =K8/K17 -> 360 | L36: =L8/L17 -> 360 | M36: =M8/M17 -> 360 | N36: =N8/N17 -> 360 | O36: =O8/O17 -> 360 | R36: =R35+1 -> 2021 | S36: =IFERROR((K8-C8)/(K17-C17),0) -> 360 | T36: =IFERROR((L8-D8)/(L17-D17),0) -> 360 | U36: =IFERROR((M8-E8)/(M17-E17),0) -> 0 | V36: =IFERROR((N8-F8)/(N17-F17),0) -> 0 | W36: =IFERROR((O8-G8)/(O17-G17),0) -> 0 | AG36: |
B37: =B36+1 -> 2022 | C37: =C9/C18 -> 360 | D37: =D9/D18 -> 360 | E37: =E9/E18 -> 360 | F37: =F9/F18 -> 360 | J37: =J36+1 -> 2022 | K37: =K9/K18 -> 360 | L37: =L9/L18 -> 360 | M37: =M9/M18 -> 360 | N37: =N9/N18 -> 360 | R37: =R36+1 -> 2022 | S37: =IFERROR((K9-C9)/(K18-C18),0) -> 360 | T37: =IFERROR((L9-D9)/(L18-D18),0) -> 0 | U37: =IFERROR((M9-E9)/(M18-E18),0) -> 0 | V37: =IFERROR((N9-F9)/(N18-F18),0) -> 0 | AG37: |
B38: 2023 | C38: =C10/C19 -> 360 | D38: =D10/D19 -> 360 | E38: =E10/E19 -> 360 | J38: 2023 | K38: =K10/K19 -> 360 | L38: =L10/L19 -> 360 | M38: =M10/M19 -> 360 | R38: 2023 | S38: =IFERROR((K10-C10)/(K19-C19),0) -> 360 | T38: =IFERROR((L10-D10)/(L19-D19),0) -> 0 | U38: =IFERROR((M10-E10)/(M19-E19),0) -> 0 | AG38: |
B39: 2024 | C39: =C11/C20 -> 360 | D39: =D11/D20 -> 360 | J39: 2024 | K39: =K11/K20 -> 360 | L39: =L11/L20 -> 360 | R39: 2024 | S39: =IFERROR((K11-C11)/(K20-C20),0) -> 360 | T39: =IFERROR((L11-D11)/(L20-D20),0) -> 0 | AG39: |
B40: 2025 | C40: =C12/C21 -> 360 | J40: 2025 | K40: =K12/K21 -> 360 | R40: 2025 | S40: =IFERROR((K12-C12)/(K21-C21),0) -> 360 | AG40: |
AG41: |
AG42: |
AG43: |
AG44: |
AG45: |
AG46: |
AG47: |
AG48: |
AG49: |
AG50: |
AG51: |
AG52: |
AG53: |
AG54: |
AG55: |
AG56: |
AG57: |
AG58: |
AG59: |
B60: ---- | C60: ---- | D60: ---- | E60: ---- | F60: ---- | G60: ---- | H60: ---- | I60: ---- | J60: ---- | K60: ---- | L60: ---- | M60: ---- | N60: ---- | O60: ---- | P60: ---- | Q60: ---- | R60: ---- | S60: ---- | T60: ---- | U60: ---- | V60: ---- | W60: ---- | X60: ---- | Y60: ---- | Z60: ---- | AA60: ---- | AB60: ---- | AC60: ---- | AD60: ---- | AE60: ---- | AF60: ---- | AG60: ----
AG61: |
B62: Book of Triangles | AG62: |
B63: Scenario: | C63: =C3 -> 8 | D63: (Comparison to Base Case) | R63: (1) | S63: (2) | T63: (3) | U63: (4) | V63: (5) | W63: (6) | X63: (7) | AG63: |
T64: avg. | U64: cum. | V64: ann. | W64: rt level | X64: on | AG64: |
B65: Amounts | C65: Paid Loss | E65: Development Age | J65: Amounts | K65: Rptd Loss | M65: Development Age | T65: rate | U65: avg. | V65: expos. | W65: adj. to | X65: level | AG65: |
B66: AY | C66: 12 | D66: =C66+12 -> 24 | E66: =D66+12 -> 36 | F66: 48 | G66: 60 | H66: 72 | J66: AY | K66: 12 | L66: =K66+12 -> 24 | M66: =L66+12 -> 36 | N66: 48 | O66: 60 | P66: 72 | R66: CY | S66: EP | T66: chg. | U66: rt. lvl. | V66: chg. | W66: =R72 -> 2025 | X66: EP | Z66: CY | AA66: EE | AG66: |
B67: 2020 | C67: =IFERROR((C7-'0'!C7)/'0'!C7,0) -> 0 | D67: =IFERROR((D7-'0'!D7)/'0'!D7,0) -> 0 | E67: =IFERROR((E7-'0'!E7)/'0'!E7,0) -> 0 | F67: =IFERROR((F7-'0'!F7)/'0'!F7,0) -> 0.1 | G67: =IFERROR((G7-'0'!G7)/'0'!G7,0) -> 0.09090909091 | H67: =IFERROR((H7-'0'!H7)/'0'!H7,0) -> 0 | J67: =$B$7 -> 2020 | K67: =IFERROR((K7-'0'!K7)/'0'!K7,0) -> 0 | L67: =IFERROR((L7-'0'!L7)/'0'!L7,0) -> 0 | M67: =IFERROR((M7-'0'!M7)/'0'!M7,0) -> 0 | N67: =IFERROR((N7-'0'!N7)/'0'!N7,0) -> 0 | O67: =IFERROR((O7-'0'!O7)/'0'!O7,0) -> 0 | P67: =IFERROR((P7-'0'!P7)/'0'!P7,0) -> 0 | R67: =$B$7 -> 2020 | S67: =IFERROR((S7-'0'!S7)/'0'!S7,0) -> 0 | Z67: =$B$7 -> 2020 | AA67: =IFERROR((AA7-'0'!AA7)/'0'!AA7,0) -> 0 | AG67: |
B68: =B67+1 -> 2021 | C68: =IFERROR((C8-'0'!C8)/'0'!C8,0) -> 0 | D68: =IFERROR((D8-'0'!D8)/'0'!D8,0) -> 0 | E68: =IFERROR((E8-'0'!E8)/'0'!E8,0) -> 0.25 | F68: =IFERROR((F8-'0'!F8)/'0'!F8,0) -> 0.1 | G68: =IFERROR((G8-'0'!G8)/'0'!G8,0) -> 0.09090909091 | J68: =J67+1 -> 2021 | K68: =IFERROR((K8-'0'!K8)/'0'!K8,0) -> 0 | L68: =IFERROR((L8-'0'!L8)/'0'!L8,0) -> 0 | M68: =IFERROR((M8-'0'!M8)/'0'!M8,0) -> 0 | N68: =IFERROR((N8-'0'!N8)/'0'!N8,0) -> 0 | O68: =IFERROR((O8-'0'!O8)/'0'!O8,0) -> 0 | R68: =R67+1 -> 2021 | S68: =IFERROR((S8-'0'!S8)/'0'!S8,0) -> 0 | T68: =IFERROR((T8-'0'!T8)/'0'!T8,0) -> 0 | Z68: =Z67+1 -> 2021 | AA68: =IFERROR((AA8-'0'!AA8)/'0'!AA8,0) -> 0 | AG68: |
B69: =B68+1 -> 2022 | C69: =IFERROR((C9-'0'!C9)/'0'!C9,0) -> 0 | D69: =IFERROR((D9-'0'!D9)/'0'!D9,0) -> 0.6 | E69: =IFERROR((E9-'0'!E9)/'0'!E9,0) -> 0.25 | F69: =IFERROR((F9-'0'!F9)/'0'!F9,0) -> 0.1 | J69: =J68+1 -> 2022 | K69: =IFERROR((K9-'0'!K9)/'0'!K9,0) -> 0 | L69: =IFERROR((L9-'0'!L9)/'0'!L9,0) -> 0 | M69: =IFERROR((M9-'0'!M9)/'0'!M9,0) -> 0 | N69: =IFERROR((N9-'0'!N9)/'0'!N9,0) -> 0 | R69: =R68+1 -> 2022 | S69: =IFERROR((S9-'0'!S9)/'0'!S9,0) -> 0 | T69: =IFERROR((T9-'0'!T9)/'0'!T9,0) -> 0 | Z69: =Z68+1 -> 2022 | AA69: =IFERROR((AA9-'0'!AA9)/'0'!AA9,0) -> 0 | AG69: |
B70: 2023 | C70: =IFERROR((C10-'0'!C10)/'0'!C10,0) -> 1.5 | D70: =IFERROR((D10-'0'!D10)/'0'!D10,0) -> 0.6 | E70: =IFERROR((E10-'0'!E10)/'0'!E10,0) -> 0.25 | J70: 2023 | K70: =IFERROR((K10-'0'!K10)/'0'!K10,0) -> 0 | L70: =IFERROR((L10-'0'!L10)/'0'!L10,0) -> 0 | M70: =IFERROR((M10-'0'!M10)/'0'!M10,0) -> 0 | R70: =R69+1 -> 2023 | S70: =IFERROR((S10-'0'!S10)/'0'!S10,0) -> 0 | T70: =IFERROR((T10-'0'!T10)/'0'!T10,0) -> 0 | Z70: =Z69+1 -> 2023 | AA70: =IFERROR((AA10-'0'!AA10)/'0'!AA10,0) -> 0 | AG70: |
B71: 2024 | C71: =IFERROR((C11-'0'!C11)/'0'!C11,0) -> 1.5 | D71: =IFERROR((D11-'0'!D11)/'0'!D11,0) -> 0.6 | J71: 2024 | K71: =IFERROR((K11-'0'!K11)/'0'!K11,0) -> 0 | L71: =IFERROR((L11-'0'!L11)/'0'!L11,0) -> 0 | R71: =R70+1 -> 2024 | S71: =IFERROR((S11-'0'!S11)/'0'!S11,0) -> 0 | T71: =IFERROR((T11-'0'!T11)/'0'!T11,0) -> 0 | Z71: =Z70+1 -> 2024 | AA71: =IFERROR((AA11-'0'!AA11)/'0'!AA11,0) -> 0 | AG71: |
B72: 2025 | C72: =IFERROR((C12-'0'!C12)/'0'!C12,0) -> 1.5 | J72: 2025 | K72: =IFERROR((K12-'0'!K12)/'0'!K12,0) -> 0 | R72: =R71+1 -> 2025 | S72: =IFERROR((S12-'0'!S12)/'0'!S12,0) -> 0 | T72: =IFERROR((T12-'0'!T12)/'0'!T12,0) -> 0 | Z72: =Z71+1 -> 2025 | AA72: =IFERROR((AA12-'0'!AA12)/'0'!AA12,0) -> 0 | AG72: |
AG73: |
B74: Counts | C74: Paid Count | E74: Development Age | J74: Counts | K74: Rptd Count | M74: Development Age | R74: (2) | S74: = | T74: given | AG74: |
B75: AY | C75: 12 | D75: 24 | E75: 36 | F75: 48 | G75: 60 | H75: 72 | J75: AY | K75: 12 | L75: 24 | M75: 36 | N75: 48 | O75: 60 | P75: 72 | R75: (3) | S75: = | T75: given | AG75: |
B76: =$B$7 -> 2020 | C76: =IFERROR((C16-'0'!C16)/'0'!C16,0) -> 0 | D76: =IFERROR((D16-'0'!D16)/'0'!D16,0) -> 0 | E76: =IFERROR((E16-'0'!E16)/'0'!E16,0) -> 0 | F76: =IFERROR((F16-'0'!F16)/'0'!F16,0) -> 0.1 | G76: =IFERROR((G16-'0'!G16)/'0'!G16,0) -> 0.09090909091 | H76: =IFERROR((H16-'0'!H16)/'0'!H16,0) -> 0 | J76: =$B$7 -> 2020 | K76: =IFERROR((K16-'0'!K16)/'0'!K16,0) -> 0 | L76: =IFERROR((L16-'0'!L16)/'0'!L16,0) -> 0 | M76: =IFERROR((M16-'0'!M16)/'0'!M16,0) -> 0 | N76: =IFERROR((N16-'0'!N16)/'0'!N16,0) -> 0 | O76: =IFERROR((O16-'0'!O16)/'0'!O16,0) -> 0 | P76: =IFERROR((P16-'0'!P16)/'0'!P16,0) -> 0 | R76: (4) | S76: = | T76: [ 1 + (4):prior] x [1 + (3)] - 1.0 | AG76: |
B77: =B76+1 -> 2021 | C77: =IFERROR((C17-'0'!C17)/'0'!C17,0) -> 0 | D77: =IFERROR((D17-'0'!D17)/'0'!D17,0) -> 0 | E77: =IFERROR((E17-'0'!E17)/'0'!E17,0) -> 0.25 | F77: =IFERROR((F17-'0'!F17)/'0'!F17,0) -> 0.1 | G77: =IFERROR((G17-'0'!G17)/'0'!G17,0) -> 0.09090909091 | J77: =J76+1 -> 2021 | K77: =IFERROR((K17-'0'!K17)/'0'!K17,0) -> 0 | L77: =IFERROR((L17-'0'!L17)/'0'!L17,0) -> 0 | M77: =IFERROR((M17-'0'!M17)/'0'!M17,0) -> 0 | N77: =IFERROR((N17-'0'!N17)/'0'!N17,0) -> 0 | O77: =IFERROR((O17-'0'!O17)/'0'!O17,0) -> 0 | R77: (5) | S77: = | T77: [ (2) / (2):prior] / [1 + (3)] - 1.0 | AG77: |
B78: =B77+1 -> 2022 | C78: =IFERROR((C18-'0'!C18)/'0'!C18,0) -> 0 | D78: =IFERROR((D18-'0'!D18)/'0'!D18,0) -> 0.6 | E78: =IFERROR((E18-'0'!E18)/'0'!E18,0) -> 0.25 | F78: =IFERROR((F18-'0'!F18)/'0'!F18,0) -> 0.1 | J78: =J77+1 -> 2022 | K78: =IFERROR((K18-'0'!K18)/'0'!K18,0) -> 0 | L78: =IFERROR((L18-'0'!L18)/'0'!L18,0) -> 0 | M78: =IFERROR((M18-'0'!M18)/'0'!M18,0) -> 0 | N78: =IFERROR((N18-'0'!N18)/'0'!N18,0) -> 0 | R78: (6) | S78: = | T78: [ 1 + (4):2025] / [1 + (4)] | AG78: |
B79: 2023 | C79: =IFERROR((C19-'0'!C19)/'0'!C19,0) -> 1.5 | D79: =IFERROR((D19-'0'!D19)/'0'!D19,0) -> 0.6 | E79: =IFERROR((E19-'0'!E19)/'0'!E19,0) -> 0.25 | J79: 2023 | K79: =IFERROR((K19-'0'!K19)/'0'!K19,0) -> 0 | L79: =IFERROR((L19-'0'!L19)/'0'!L19,0) -> 0 | M79: =IFERROR((M19-'0'!M19)/'0'!M19,0) -> 0 | R79: (7) | S79: = | T79: (2) x (6) | AG79: |
B80: 2024 | C80: =IFERROR((C20-'0'!C20)/'0'!C20,0) -> 1.5 | D80: =IFERROR((D20-'0'!D20)/'0'!D20,0) -> 0.6 | J80: 2024 | K80: =IFERROR((K20-'0'!K20)/'0'!K20,0) -> 0 | L80: =IFERROR((L20-'0'!L20)/'0'!L20,0) -> 0 | AG80: |
B81: 2025 | C81: =IFERROR((C21-'0'!C21)/'0'!C21,0) -> 1.5 | J81: 2025 | K81: =IFERROR((K21-'0'!K21)/'0'!K21,0) -> 0 | AG81: |
AG82: |
C83: paid loss ratio | F83: Development Age | K83: rptd loss ratio | N83: Development Age | S83: paid/rptd loss | V83: Development Age | AA83: paid/rptd counts | AD83: Development Age | AG83: |
B84: AY | C84: 12 | D84: 24 | E84: 36 | F84: 48 | G84: 60 | H84: 72 | J84: AY | K84: 12 | L84: 24 | M84: 36 | N84: 48 | O84: 60 | P84: 72 | R84: AY | S84: 12 | T84: 24 | U84: 36 | V84: 48 | W84: 60 | X84: 72 | Z84: AY | AA84: 12 | AB84: 24 | AC84: 36 | AD84: 48 | AE84: 60 | AF84: 72 | AG84: |
B85: =$B$7 -> 2020 | C85: =IFERROR((C25-'0'!C25)/'0'!C25,0) -> -0.09124024296 | D85: =IFERROR((D25-'0'!D25)/'0'!D25,0) -> -0.09124024296 | E85: =IFERROR((E25-'0'!E25)/'0'!E25,0) -> -0.09124024296 | F85: =IFERROR((F25-'0'!F25)/'0'!F25,0) -> -0.000364267261 | G85: =IFERROR((G25-'0'!G25)/'0'!G25,0) -> -0.008625719598 | H85: =IFERROR((H25-'0'!H25)/'0'!H25,0) -> -0.09124024296 | J85: =$B$7 -> 2020 | K85: =IFERROR((K25-'0'!K25)/'0'!K25,0) -> -0.09124024296 | L85: =IFERROR((L25-'0'!L25)/'0'!L25,0) -> -0.09124024296 | M85: =IFERROR((M25-'0'!M25)/'0'!M25,0) -> -0.09124024296 | N85: =IFERROR((N25-'0'!N25)/'0'!N25,0) -> -0.09124024296 | O85: =IFERROR((O25-'0'!O25)/'0'!O25,0) -> -0.09124024296 | P85: =IFERROR((P25-'0'!P25)/'0'!P25,0) -> -0.09124024296 | R85: =$B$7 -> 2020 | S85: =IFERROR((S25-'0'!S25)/'0'!S25,0) -> 0 | T85: =IFERROR((T25-'0'!T25)/'0'!T25,0) -> 0 | U85: =IFERROR((U25-'0'!U25)/'0'!U25,0) -> 0 | V85: =IFERROR((V25-'0'!V25)/'0'!V25,0) -> 0.1 | W85: =IFERROR((W25-'0'!W25)/'0'!W25,0) -> 0.09090909091 | X85: =IFERROR((X25-'0'!X25)/'0'!X25,0) -> 0 | Z85: =$B$7 -> 2020 | AA85: =IFERROR((AA25-'0'!AA25)/'0'!AA25,0) -> 0 | AB85: =IFERROR((AB25-'0'!AB25)/'0'!AB25,0) -> 0 | AC85: =IFERROR((AC25-'0'!AC25)/'0'!AC25,0) -> 0 | AD85: =IFERROR((AD25-'0'!AD25)/'0'!AD25,0) -> 0.1 | AE85: =IFERROR((AE25-'0'!AE25)/'0'!AE25,0) -> 0.09090909091 | AF85: =IFERROR((AF25-'0'!AF25)/'0'!AF25,0) -> 0 | AG85: |
B86: =B85+1 -> 2021 | C86: =IFERROR((C26-'0'!C26)/'0'!C26,0) -> -0.03671465754 | D86: =IFERROR((D26-'0'!D26)/'0'!D26,0) -> -0.03671465754 | E86: =IFERROR((E26-'0'!E26)/'0'!E26,0) -> 0.2041066781 | F86: =IFERROR((F26-'0'!F26)/'0'!F26,0) -> 0.0596138767 | G86: =IFERROR((G26-'0'!G26)/'0'!G26,0) -> 0.05085673723 | J86: =J85+1 -> 2021 | K86: =IFERROR((K26-'0'!K26)/'0'!K26,0) -> -0.03671465754 | L86: =IFERROR((L26-'0'!L26)/'0'!L26,0) -> -0.03671465754 | M86: =IFERROR((M26-'0'!M26)/'0'!M26,0) -> -0.03671465754 | N86: =IFERROR((N26-'0'!N26)/'0'!N26,0) -> -0.03671465754 | O86: =IFERROR((O26-'0'!O26)/'0'!O26,0) -> -0.03671465754 | R86: =R85+1 -> 2021 | S86: =IFERROR((S26-'0'!S26)/'0'!S26,0) -> 0 | T86: =IFERROR((T26-'0'!T26)/'0'!T26,0) -> 0 | U86: =IFERROR((U26-'0'!U26)/'0'!U26,0) -> 0.25 | V86: =IFERROR((V26-'0'!V26)/'0'!V26,0) -> 0.1 | W86: =IFERROR((W26-'0'!W26)/'0'!W26,0) -> 0.09090909091 | Z86: =Z85+1 -> 2021 | AA86: =IFERROR((AA26-'0'!AA26)/'0'!AA26,0) -> 0 | AB86: =IFERROR((AB26-'0'!AB26)/'0'!AB26,0) -> 0 | AC86: =IFERROR((AC26-'0'!AC26)/'0'!AC26,0) -> 0.25 | AD86: =IFERROR((AD26-'0'!AD26)/'0'!AD26,0) -> 0.1 | AE86: =IFERROR((AE26-'0'!AE26)/'0'!AE26,0) -> 0.09090909091 | AG86: |
B87: =B86+1 -> 2022 | C87: =IFERROR((C27-'0'!C27)/'0'!C27,0) -> 0.03071531643 | D87: =IFERROR((D27-'0'!D27)/'0'!D27,0) -> 0.6491445063 | E87: =IFERROR((E27-'0'!E27)/'0'!E27,0) -> 0.2883941455 | F87: =IFERROR((F27-'0'!F27)/'0'!F27,0) -> 0.1337868481 | J87: =J86+1 -> 2022 | K87: =IFERROR((K27-'0'!K27)/'0'!K27,0) -> 0.03071531643 | L87: =IFERROR((L27-'0'!L27)/'0'!L27,0) -> 0.03071531643 | M87: =IFERROR((M27-'0'!M27)/'0'!M27,0) -> 0.03071531643 | N87: =IFERROR((N27-'0'!N27)/'0'!N27,0) -> 0.03071531643 | R87: =R86+1 -> 2022 | S87: =IFERROR((S27-'0'!S27)/'0'!S27,0) -> 0 | T87: =IFERROR((T27-'0'!T27)/'0'!T27,0) -> 0.6 | U87: =IFERROR((U27-'0'!U27)/'0'!U27,0) -> 0.25 | V87: =IFERROR((V27-'0'!V27)/'0'!V27,0) -> 0.1 | Z87: =Z86+1 -> 2022 | AA87: =IFERROR((AA27-'0'!AA27)/'0'!AA27,0) -> 0 | AB87: =IFERROR((AB27-'0'!AB27)/'0'!AB27,0) -> 0.6 | AC87: =IFERROR((AC27-'0'!AC27)/'0'!AC27,0) -> 0.25 | AD87: =IFERROR((AD27-'0'!AD27)/'0'!AD27,0) -> 0.1 | AG87: |
B88: 2023 | C88: =IFERROR((C28-'0'!C28)/'0'!C28,0) -> 1.576788291 | D88: =IFERROR((D28-'0'!D28)/'0'!D28,0) -> 0.6491445063 | E88: =IFERROR((E28-'0'!E28)/'0'!E28,0) -> 0.2883941455 | J88: 2023 | K88: =IFERROR((K28-'0'!K28)/'0'!K28,0) -> 0.03071531643 | L88: =IFERROR((L28-'0'!L28)/'0'!L28,0) -> 0.03071531643 | M88: =IFERROR((M28-'0'!M28)/'0'!M28,0) -> 0.03071531643 | R88: 2023 | S88: =IFERROR((S28-'0'!S28)/'0'!S28,0) -> 1.5 | T88: =IFERROR((T28-'0'!T28)/'0'!T28,0) -> 0.6 | U88: =IFERROR((U28-'0'!U28)/'0'!U28,0) -> 0.25 | Z88: 2023 | AA88: =IFERROR((AA28-'0'!AA28)/'0'!AA28,0) -> 1.5 | AB88: =IFERROR((AB28-'0'!AB28)/'0'!AB28,0) -> 0.6 | AC88: =IFERROR((AC28-'0'!AC28)/'0'!AC28,0) -> 0.25 | AG88: |
B89: 2024 | C89: =IFERROR((C29-'0'!C29)/'0'!C29,0) -> 1.551020408 | D89: =IFERROR((D29-'0'!D29)/'0'!D29,0) -> 0.6326530612 | J89: 2024 | K89: =IFERROR((K29-'0'!K29)/'0'!K29,0) -> 0.02040816327 | L89: =IFERROR((L29-'0'!L29)/'0'!L29,0) -> 0.02040816327 | R89: 2024 | S89: =IFERROR((S29-'0'!S29)/'0'!S29,0) -> 1.5 | T89: =IFERROR((T29-'0'!T29)/'0'!T29,0) -> 0.6 | Z89: 2024 | AA89: =IFERROR((AA29-'0'!AA29)/'0'!AA29,0) -> 1.5 | AB89: =IFERROR((AB29-'0'!AB29)/'0'!AB29,0) -> 0.6 | AG89: |
B90: 2025 | C90: =IFERROR((C30-'0'!C30)/'0'!C30,0) -> 1.5 | J90: 2025 | K90: =IFERROR((K30-'0'!K30)/'0'!K30,0) -> 0 | R90: 2025 | S90: =IFERROR((S30-'0'!S30)/'0'!S30,0) -> 1.5 | Z90: 2025 | AA90: =IFERROR((AA30-'0'!AA30)/'0'!AA30,0) -> 1.5 | AG90: |
AG91: |
C92: PAID dollars-per-count | K92: REPORTED dollars-per-count | S92: Case O/S dollars-per-count | AG92: |
C93: average paid loss | F93: Development Age | K93: average rptd loss | N93: Development Age | S93: average case O/S | V93: Development Age | AG93: |
B94: AY | C94: 12 | D94: 24 | E94: 36 | F94: 48 | G94: 60 | H94: 72 | J94: AY | K94: 12 | L94: 24 | M94: 36 | N94: 48 | O94: 60 | P94: 72 | R94: AY | S94: 12 | T94: 24 | U94: 36 | V94: 48 | W94: 60 | X94: 72 | AG94: |
B95: =$B$7 -> 2020 | C95: =IFERROR((C35-'0'!C35)/'0'!C35,0) -> 0 | D95: =IFERROR((D35-'0'!D35)/'0'!D35,0) -> 0 | E95: =IFERROR((E35-'0'!E35)/'0'!E35,0) -> 0 | F95: =IFERROR((F35-'0'!F35)/'0'!F35,0) -> 0 | G95: =IFERROR((G35-'0'!G35)/'0'!G35,0) -> 0 | H95: =IFERROR((H35-'0'!H35)/'0'!H35,0) -> 0 | J95: =$B$7 -> 2020 | K95: =IFERROR((K35-'0'!K35)/'0'!K35,0) -> 0 | L95: =IFERROR((L35-'0'!L35)/'0'!L35,0) -> 0 | M95: =IFERROR((M35-'0'!M35)/'0'!M35,0) -> 0 | N95: =IFERROR((N35-'0'!N35)/'0'!N35,0) -> 0 | O95: =IFERROR((O35-'0'!O35)/'0'!O35,0) -> 0 | P95: =IFERROR((P35-'0'!P35)/'0'!P35,0) -> 0 | R95: =$B$7 -> 2020 | S95: =IFERROR((S35-'0'!S35)/'0'!S35,0) -> 0 | T95: =IFERROR((T35-'0'!T35)/'0'!T35,0) -> 0 | U95: =IFERROR((U35-'0'!U35)/'0'!U35,0) -> 0 | V95: =IFERROR((V35-'0'!V35)/'0'!V35,0) -> -1 | W95: =IFERROR((W35-'0'!W35)/'0'!W35,0) -> -1 | X95: =IFERROR((X35-'0'!X35)/'0'!X35,0) -> 0 | AG95: |
B96: =B95+1 -> 2021 | C96: =IFERROR((C36-'0'!C36)/'0'!C36,0) -> 0 | D96: =IFERROR((D36-'0'!D36)/'0'!D36,0) -> 0 | E96: =IFERROR((E36-'0'!E36)/'0'!E36,0) -> 0 | F96: =IFERROR((F36-'0'!F36)/'0'!F36,0) -> 0 | G96: =IFERROR((G36-'0'!G36)/'0'!G36,0) -> 0 | J96: =J95+1 -> 2021 | K96: =IFERROR((K36-'0'!K36)/'0'!K36,0) -> 0 | L96: =IFERROR((L36-'0'!L36)/'0'!L36,0) -> 0 | M96: =IFERROR((M36-'0'!M36)/'0'!M36,0) -> 0 | N96: =IFERROR((N36-'0'!N36)/'0'!N36,0) -> 0 | O96: =IFERROR((O36-'0'!O36)/'0'!O36,0) -> 0 | R96: =R95+1 -> 2021 | S96: =IFERROR((S36-'0'!S36)/'0'!S36,0) -> 0 | T96: =IFERROR((T36-'0'!T36)/'0'!T36,0) -> 0 | U96: =IFERROR((U36-'0'!U36)/'0'!U36,0) -> -1 | V96: =IFERROR((V36-'0'!V36)/'0'!V36,0) -> -1 | W96: =IFERROR((W36-'0'!W36)/'0'!W36,0) -> -1 | AG96: |
B97: =B96+1 -> 2022 | C97: =IFERROR((C37-'0'!C37)/'0'!C37,0) -> 0 | D97: =IFERROR((D37-'0'!D37)/'0'!D37,0) -> 0 | E97: =IFERROR((E37-'0'!E37)/'0'!E37,0) -> 0 | F97: =IFERROR((F37-'0'!F37)/'0'!F37,0) -> 0 | J97: =J96+1 -> 2022 | K97: =IFERROR((K37-'0'!K37)/'0'!K37,0) -> 0 | L97: =IFERROR((L37-'0'!L37)/'0'!L37,0) -> 0 | M97: =IFERROR((M37-'0'!M37)/'0'!M37,0) -> 0 | N97: =IFERROR((N37-'0'!N37)/'0'!N37,0) -> 0 | R97: =R96+1 -> 2022 | S97: =IFERROR((S37-'0'!S37)/'0'!S37,0) -> 0 | T97: =IFERROR((T37-'0'!T37)/'0'!T37,0) -> -1 | U97: =IFERROR((U37-'0'!U37)/'0'!U37,0) -> -1 | V97: =IFERROR((V37-'0'!V37)/'0'!V37,0) -> -1 | AG97: |
B98: 2023 | C98: =IFERROR((C38-'0'!C38)/'0'!C38,0) -> 0 | D98: =IFERROR((D38-'0'!D38)/'0'!D38,0) -> 0 | E98: =IFERROR((E38-'0'!E38)/'0'!E38,0) -> 0 | J98: 2023 | K98: =IFERROR((K38-'0'!K38)/'0'!K38,0) -> 0 | L98: =IFERROR((L38-'0'!L38)/'0'!L38,0) -> 0 | M98: =IFERROR((M38-'0'!M38)/'0'!M38,0) -> 0 | R98: 2023 | S98: =IFERROR((S38-'0'!S38)/'0'!S38,0) -> 0 | T98: =IFERROR((T38-'0'!T38)/'0'!T38,0) -> -1 | U98: =IFERROR((U38-'0'!U38)/'0'!U38,0) -> -1 | AG98: |
B99: 2024 | C99: =IFERROR((C39-'0'!C39)/'0'!C39,0) -> 0 | D99: =IFERROR((D39-'0'!D39)/'0'!D39,0) -> 0 | J99: 2024 | K99: =IFERROR((K39-'0'!K39)/'0'!K39,0) -> 0 | L99: =IFERROR((L39-'0'!L39)/'0'!L39,0) -> 0 | R99: 2024 | S99: =IFERROR((S39-'0'!S39)/'0'!S39,0) -> 0 | T99: =IFERROR((T39-'0'!T39)/'0'!T39,0) -> -1 | AG99: |
B100: 2025 | C100: =IFERROR((C40-'0'!C40)/'0'!C40,0) -> 0 | J100: 2025 | K100: =IFERROR((K40-'0'!K40)/'0'!K40,0) -> 0 | R100: 2025 | S100: =IFERROR((S40-'0'!S40)/'0'!S40,0) -> 0 | AG100: |
AG101: |
AG102: |
AG103: |
AG104: |
AG105: |
AG106: |
AG107: |
AG108: |
AG109: |
AG110: |
AG111: |
AG112: |
AG113: |
AG114: |
AG115: |
AG116: |
AG117: |
AG118: |
AG119: |
B120: ---- | C120: ---- | D120: ---- | E120: ---- | F120: ---- | G120: ---- | H120: ---- | I120: ---- | J120: ---- | K120: ---- | L120: ---- | M120: ---- | N120: ---- | O120: ---- | P120: ---- | Q120: ---- | R120: ---- | S120: ---- | T120: ---- | U120: ---- | V120: ---- | W120: ---- | AG120: ----
AG121: |
AG122: |
AG123: |
AG124: |
AG125: |
AG126: |
AG127: |
AG128: |
AG129: |
AG130: |
AG131: |
AG132: |
AG133: |
AG134: |
AG135: |
AG136: |
AG137: |
AG138: |
AG139: |
AG140: |
AG141: |
AG142: |
AG143: |
AG144: |
AG145: |
AG146: |
AG147: |
AG148: |
AG149: |
AG150: |
AG151: |
AG152: |
AG153: |
AG154: |
AG155: |
AG156: |
AG157: |
AG158: |
AG159: |
AG160: |
AG161: |
AG162: |
AG163: |
AG164: |
AG165: |
AG166: |
AG167: |
AG168: |
AG169: |
AG170: |
AG171: |
AG172: |
AG173: |
AG174: |
AG175: |
AG176: |
AG177: |
AG178: |
AG179: |
B180: ---- | C180: ---- | D180: ---- | E180: ---- | F180: ---- | G180: ---- | H180: ---- | I180: ---- | J180: ---- | K180: ---- | L180: ---- | M180: ---- | N180: ---- | O180: ---- | P180: ---- | Q180: ---- | R180: ---- | S180: ---- | T180: ---- | U180: ---- | V180: ---- | W180: ---- | AG180: ----
AG181: |
AG182: |
AG183: |
AG184: |
AG185: |
AG186: |
AG187: |
AG188: |
AG189: |
AG190: |
AG191: |
AG192: |
AG193: |
AG194: |
AG195: |
AG196: |
AG197: |
AG198: |
AG199: |
AG200: |
AG201: |
... 1358 more rows

Sheet 9
B2: Book of Triangles | AG2: |
B3: Scenario: | C3: 9 | R3: (1) | S3: (2) | T3: (3) | U3: (4) | V3: (5) | W3: (6) | X3: (7) | AG3: |
T4: avg. | U4: cum. | V4: ann. | W4: rt level | X4: on | AG4: | | AI4: est pd | AJ4: est rptd | AK4: real | AL4: real
B5: Amounts | C5: Paid Loss | E5: Development Age | J5: Amounts | K5: Rptd Loss | M5: Development Age | T5: rate | U5: avg. | V5: expos. | W5: adj. to | X5: level | AG5: | | AI5: AY | AJ5: AY | AK5: AY | AL5: AY
B6: AY | C6: 12 | D6: =C6+12 -> 24 | E6: =D6+12 -> 36 | F6: 48 | G6: 60 | H6: 72 | J6: AY | K6: 12 | L6: =K6+12 -> 24 | M6: =L6+12 -> 36 | N6: 48 | O6: 60 | P6: 72 | R6: CY | S6: EP | T6: chg. | U6: rt. lvl. | V6: chg. | W6: =R12 -> 2025 | X6: EP | Z6: CY | AA6: EE | AG6: | | AH6: AY | AI6: ULR | AJ6: ULR | AK6: ULR | AL6: Loss
B7: 2020 | C7: 720 | D7: 1800 | E7: 2880 | F7: 3960 | G7: 4320 | H7: 4320 | J7: =$B$7 -> 2020 | K7: 2160 | L7: 2880 | M7: 3600 | N7: 3960 | O7: 4320 | P7: 4320 | R7: =$B$7 -> 2020 | S7: 7200 | U7: =T7 -> 0 | W7: =(1+U12)/(1+U7) -> 1 | X7: =S7*W7 -> 7200 | Z7: =$B$7 -> 2020 | AA7: 12.00000036 | AG7: | | AH7: =$B$7 -> 2020 | AI7: 0.6 | AJ7: 0.6 | AK7: 0.6 | AL7: =S7*AK7 -> 4320
B8: =B7+1 -> 2021 | C8: 720 | D8: 1800 | E8: 3600 | F8: 3960 | G8: 4320 | J8: =J7+1 -> 2021 | K8: 2160 | L8: 2880 | M8: 3600 | N8: 3960 | O8: 4320 | R8: =R7+1 -> 2021 | S8: 7200 | T8: 0 | U8: =(1+U7)*(1+T8)-1 -> 0 | V8: =(S8/S7)/(1+T8)-1 -> 0 | W8: =(1+U12)/(1+U8) -> 1 | X8: 7200 | Z8: =Z7+1 -> 2021 | AA8: 12.00000036 | AG8: | | AH8: =AH7+1 -> 2021 | AI8: 0.6 | AJ8: 0.6 | AK8: 0.6 | AL8: 4320
B9: =B8+1 -> 2022 | C9: 720 | D9: 2880 | E9: 3600 | F9: 3960 | J9: =J8+1 -> 2022 | K9: 2160 | L9: 2880 | M9: 3600 | N9: 3960 | R9: =R8+1 -> 2022 | S9: 7200 | T9: 0 | U9: =(1+U8)*(1+T9)-1 -> 0 | V9: =(S9/S8)/(1+T9)-1 -> 0 | W9: =(1+U12)/(1+U9) -> 1 | X9: 7200 | Z9: =Z8+1 -> 2022 | AA9: 12.00000036 | AG9: | | AH9: =AH8+1 -> 2022 | AI9: 0.6 | AJ9: 0.6 | AK9: 0.6 | AL9: 4320
B10: 2023 | C10: 1800 | D10: 2880 | E10: 3600 | J10: 2023 | K10: 2232.000031 | L10: 2880 | M10: 3600 | R10: =R9+1 -> 2023 | S10: 7200 | T10: 0 | U10: 0 | V10: =(S10/S9)/(1+T10)-1 -> 0 | W10: =(1+U12)/(1+U10) -> 1 | X10: 7200 | Z10: =Z9+1 -> 2023 | AA10: 12.00000036 | AG10: | | AH10: 2023 | AI10: 0.65 | AJ10: 0.6 | AK10: 0.6 | AL10: 4320
B11: 2024 | C11: 1800 | D11: 2880 | J11: 2024 | K11: 2232.000031 | L11: 2880 | R11: =R10+1 -> 2024 | S11: 7200 | T11: 0 | U11: 0 | V11: =(S11/S10)/(1+T11)-1 -> 0 | W11: =(1+U12)/(1+U11) -> 1 | X11: 7200 | Z11: =Z10+1 -> 2024 | AA11: 12.00000036 | AG11: | | AH11: 2024 | AI11: 0.793 | AJ11: 0.6 | AK11: 0.6 | AL11: 4320
B12: 2025 | C12: 1800 | J12: 2025 | K12: 2232.000031 | R12: =R11+1 -> 2025 | S12: 7200 | T12: 0 | U12: 0 | V12: =(S12/S11)/(1+T12)-1 -> 0 | W12: =(1+U12)/(1+U12) -> 1 | X12: 7200 | Z12: =Z11+1 -> 2025 | AA12: 12.00000036 | AG12: | | AH12: 2025 | AI12: 1.209325 | AJ12: 0.6120000051 | AK12: 0.6 | AL12: 4320
AG13: |
B14: Counts | C14: Paid Count | E14: Development Age | J14: Counts | K14: Rptd Count | M14: Development Age | R14: (2) | S14: = | T14: given | AG14: |
B15: AY | C15: 12 | D15: 24 | E15: 36 | F15: 48 | G15: 60 | H15: 72 | J15: AY | K15: 12 | L15: 24 | M15: 36 | N15: 48 | O15: 60 | P15: 72 | R15: (3) | S15: = | T15: given | AG15: |
B16: =$B$7 -> 2020 | C16: 2 | D16: 5 | E16: 8 | F16: 11 | G16: 12 | H16: 12 | J16: =$B$7 -> 2020 | K16: 6 | L16: 8 | M16: 10 | N16: 11 | O16: 12 | P16: 12 | R16: (4) | S16: = | T16: [ 1 + (4):prior] x [1 + (3)] - 1.0 | AG16: | | AH16: Interpretation: | AJ16: settlement rate increase of 12 months at CY 2023
B17: =B16+1 -> 2021 | C17: 2 | D17: 5 | E17: 10 | F17: 11 | G17: 12 | J17: =J16+1 -> 2021 | K17: 6 | L17: 8 | M17: 10 | N17: 11 | O17: 12 | R17: (5) | S17: = | T17: [ (2) / (2):prior] / [1 + (3)] - 1.0 | AG17: | | AJ17: case reserve adequacy +20% at CY 2023
B18: =B17+1 -> 2022 | C18: 2 | D18: 8 | E18: 10 | F18: 11 | J18: =J17+1 -> 2022 | K18: 6 | L18: 8 | M18: 10 | N18: 11 | R18: (6) | S18: = | T18: [ 1 + (4):2025] / [1 + (4)] | AG18: |
B19: 2023 | C19: 5 | D19: 8 | E19: 10 | J19: 2023 | K19: 6 | L19: 8 | M19: 10 | R19: (7) | S19: = | T19: (2) x (6) | AG19: |
B20: 2024 | C20: 5 | D20: 8 | J20: 2024 | K20: 6 | L20: 8 | AG20: |
B21: 2025 | C21: 5 | J21: 2025 | K21: 6 | AG21: |
AG22: |
C23: paid loss ratio | F23: Development Age | K23: rptd loss ratio | N23: Development Age | S23: paid/rptd loss | V23: Development Age | AA23: paid/rptd counts | AD23: Development Age | AG23: |
B24: AY | C24: 12 | D24: 24 | E24: 36 | F24: 48 | G24: 60 | H24: 72 | J24: AY | K24: 12 | L24: 24 | M24: 36 | N24: 48 | O24: 60 | P24: 72 | R24: AY | S24: 12 | T24: 24 | U24: 36 | V24: 48 | W24: 60 | X24: 72 | Z24: AY | AA24: 12 | AB24: 24 | AC24: 36 | AD24: 48 | AE24: 60 | AF24: 72 | AG24: |
B25: =$B$7 -> 2020 | C25: =C7/$X7 -> 0.1 | D25: 0.25 | E25: 0.4 | F25: 0.55 | G25: 0.6 | H25: 0.6 | J25: =$B$7 -> 2020 | K25: =K7/$X7 -> 0.3 | L25: 0.4 | M25: 0.5 | N25: 0.55 | O25: 0.6 | P25: 0.6 | R25: =$B$7 -> 2020 | S25: =C7/K7 -> 0.3333333333 | T25: 0.625 | U25: 0.8 | V25: 1 | W25: 1 | X25: 1 | Z25: =$B$7 -> 2020 | AA25: =C16/K16 -> 0.3333333333 | AB25: 0.625 | AC25: 0.8 | AD25: 1 | AE25: 1 | AF25: 1 | AG25: |
B26: =B25+1 -> 2021 | C26: =C8/$X8 -> 0.1 | D26: =D8/$X8 -> 0.25 | E26: =E8/$X8 -> 0.5 | F26: =F8/$X8 -> 0.55 | G26: =G8/$X8 -> 0.6 | J26: =J25+1 -> 2021 | K26: =K8/$X8 -> 0.3 | L26: =L8/$X8 -> 0.4 | M26: =M8/$X8 -> 0.5 | N26: =N8/$X8 -> 0.55 | O26: =O8/$X8 -> 0.6 | R26: =R25+1 -> 2021 | S26: =C8/K8 -> 0.3333333333 | T26: =D8/L8 -> 0.625 | U26: =E8/M8 -> 1 | V26: =F8/N8 -> 1 | W26: =G8/O8 -> 1 | Z26: =Z25+1 -> 2021 | AA26: =C17/K17 -> 0.3333333333 | AB26: =D17/L17 -> 0.625 | AC26: =E17/M17 -> 1 | AD26: =F17/N17 -> 1 | AE26: =G17/O17 -> 1 | AG26: |
B27: =B26+1 -> 2022 | C27: =C9/$X9 -> 0.1 | D27: =D9/$X9 -> 0.4 | E27: =E9/$X9 -> 0.5 | F27: =F9/$X9 -> 0.55 | J27: =J26+1 -> 2022 | K27: =K9/$X9 -> 0.3 | L27: =L9/$X9 -> 0.4 | M27: =M9/$X9 -> 0.5 | N27: =N9/$X9 -> 0.55 | R27: =R26+1 -> 2022 | S27: =C9/K9 -> 0.3333333333 | T27: =D9/L9 -> 1 | U27: =E9/M9 -> 1 | V27: =F9/N9 -> 1 | Z27: =Z26+1 -> 2022 | AA27: =C18/K18 -> 0.3333333333 | AB27: =D18/L18 -> 1 | AC27: =E18/M18 -> 1 | AD27: =F18/N18 -> 1 | AG27: |
B28: 2023 | C28: =C10/$X10 -> 0.25 | D28: =D10/$X10 -> 0.4 | E28: =E10/$X10 -> 0.5 | J28: 2023 | K28: =K10/$X10 -> 0.3100000042 | L28: =L10/$X10 -> 0.4 | M28: =M10/$X10 -> 0.5 | R28: 2023 | S28: =C10/K10 -> 0.8064516019 | T28: =D10/L10 -> 1 | U28: =E10/M10 -> 1 | Z28: 2023 | AA28: =C19/K19 -> 0.8333333333 | AB28: =D19/L19 -> 1 | AC28: =E19/M19 -> 1 | AG28: |
B29: 2024 | C29: =C11/$X11 -> 0.25 | D29: =D11/$X11 -> 0.4 | J29: 2024 | K29: =K11/$X11 -> 0.3100000042 | L29: =L11/$X11 -> 0.4 | R29: 2024 | S29: =C11/K11 -> 0.8064516019 | T29: =D11/L11 -> 1 | Z29: 2024 | AA29: =C20/K20 -> 0.8333333333 | AB29: =D20/L20 -> 1 | AG29: |
B30: 2025 | C30: =C12/$X12 -> 0.25 | J30: 2025 | K30: =K12/$X12 -> 0.3100000042 | R30: 2025 | S30: =C12/K12 -> 0.8064516019 | Z30: 2025 | AA30: =C21/K21 -> 0.8333333333 | AG30: |
AG31: |
C32: PAID dollars-per-count | K32: REPORTED dollars-per-count | S32: Case O/S dollars-per-count | AG32: |
C33: average paid loss | F33: Development Age | K33: average rptd loss | N33: Development Age | S33: average case O/S | V33: Development Age | AG33: |
B34: AY | C34: 12 | D34: 24 | E34: 36 | F34: 48 | G34: 60 | H34: 72 | J34: AY | K34: 12 | L34: 24 | M34: 36 | N34: 48 | O34: 60 | P34: 72 | R34: AY | S34: 12 | T34: 24 | U34: 36 | V34: 48 | W34: 60 | X34: 72 | AG34: |
B35: =$B$7 -> 2020 | C35: =C7/C16 -> 360 | D35: 360 | E35: 360 | F35: 360 | G35: 360 | H35: 360 | J35: =$B$7 -> 2020 | K35: =K7/K16 -> 360 | L35: 360 | M35: 360 | N35: 360 | O35: 360 | P35: 360 | R35: =$B$7 -> 2020 | S35: =IFERROR((K7-C7)/(K16-C16),0) -> 360 | T35: 360 | U35: 360 | V35: 0 | W35: 0 | X35: 0 | AG35: |
B36: =B35+1 -> 2021 | C36: =C8/C17 -> 360 | D36: =D8/D17 -> 360 | E36: =E8/E17 -> 360 | F36: =F8/F17 -> 360 | G36: =G8/G17 -> 360 | J36: =J35+1 -> 2021 | K36: =K8/K17 -> 360 | L36: =L8/L17 -> 360 | M36: =M8/M17 -> 360 | N36: =N8/N17 -> 360 | O36: =O8/O17 -> 360 | R36: =R35+1 -> 2021 | S36: =IFERROR((K8-C8)/(K17-C17),0) -> 360 | T36: =IFERROR((L8-D8)/(L17-D17),0) -> 360 | U36: =IFERROR((M8-E8)/(M17-E17),0) -> 0 | V36: =IFERROR((N8-F8)/(N17-F17),0) -> 0 | W36: =IFERROR((O8-G8)/(O17-G17),0) -> 0 | AG36: |
B37: =B36+1 -> 2022 | C37: =C9/C18 -> 360 | D37: =D9/D18 -> 360 | E37: =E9/E18 -> 360 | F37: =F9/F18 -> 360 | J37: =J36+1 -> 2022 | K37: =K9/K18 -> 360 | L37: =L9/L18 -> 360 | M37: =M9/M18 -> 360 | N37: =N9/N18 -> 360 | R37: =R36+1 -> 2022 | S37: =IFERROR((K9-C9)/(K18-C18),0) -> 360 | T37: =IFERROR((L9-D9)/(L18-D18),0) -> 0 | U37: =IFERROR((M9-E9)/(M18-E18),0) -> 0 | V37: =IFERROR((N9-F9)/(N18-F18),0) -> 0 | AG37: |
B38: 2023 | C38: =C10/C19 -> 360 | D38: =D10/D19 -> 360 | E38: =E10/E19 -> 360 | J38: 2023 | K38: =K10/K19 -> 372.0000051 | L38: =L10/L19 -> 360 | M38: =M10/M19 -> 360 | R38: 2023 | S38: =IFERROR((K10-C10)/(K19-C19),0) -> 432.0000305 | T38: =IFERROR((L10-D10)/(L19-D19),0) -> 0 | U38: =IFERROR((M10-E10)/(M19-E19),0) -> 0 | AG38: |
B39: 2024 | C39: =C11/C20 -> 360 | D39: =D11/D20 -> 360 | J39: 2024 | K39: =K11/K20 -> 372.0000051 | L39: =L11/L20 -> 360 | R39: 2024 | S39: =IFERROR((K11-C11)/(K20-C20),0) -> 432.0000305 | T39: =IFERROR((L11-D11)/(L20-D20),0) -> 0 | AG39: |
B40: 2025 | C40: =C12/C21 -> 360 | J40: 2025 | K40: =K12/K21 -> 372.0000051 | R40: 2025 | S40: =IFERROR((K12-C12)/(K21-C21),0) -> 432.0000305 | AG40: |
AG41: |
AG42: |
AG43: |
AG44: |
AG45: |
AG46: |
AG47: |
AG48: |
AG49: |
AG50: |
AG51: |
AG52: |
AG53: |
AG54: |
AG55: |
AG56: |
AG57: |
AG58: |
AG59: |
B60: ---- | C60: ---- | D60: ---- | E60: ---- | F60: ---- | G60: ---- | H60: ---- | I60: ---- | J60: ---- | K60: ---- | L60: ---- | M60: ---- | N60: ---- | O60: ---- | P60: ---- | Q60: ---- | R60: ---- | S60: ---- | T60: ---- | U60: ---- | V60: ---- | W60: ---- | X60: ---- | Y60: ---- | Z60: ---- | AA60: ---- | AB60: ---- | AC60: ---- | AD60: ---- | AE60: ---- | AF60: ---- | AG60: ----
AG61: |
B62: Book of Triangles | AG62: |
B63: Scenario: | C63: =C3 -> 9 | D63: (Comparison to Base Case) | R63: (1) | S63: (2) | T63: (3) | U63: (4) | V63: (5) | W63: (6) | X63: (7) | AG63: |
T64: avg. | U64: cum. | V64: ann. | W64: rt level | X64: on | AG64: |
B65: Amounts | C65: Paid Loss | E65: Development Age | J65: Amounts | K65: Rptd Loss | M65: Development Age | T65: rate | U65: avg. | V65: expos. | W65: adj. to | X65: level | AG65: |
B66: AY | C66: 12 | D66: =C66+12 -> 24 | E66: =D66+12 -> 36 | F66: 48 | G66: 60 | H66: 72 | J66: AY | K66: 12 | L66: =K66+12 -> 24 | M66: =L66+12 -> 36 | N66: 48 | O66: 60 | P66: 72 | R66: CY | S66: EP | T66: chg. | U66: rt. lvl. | V66: chg. | W66: =R72 -> 2025 | X66: EP | Z66: CY | AA66: EE | AG66: |
B67: 2020 | C67: =IFERROR((C7-'0'!C7)/'0'!C7,0) -> 0 | D67: =IFERROR((D7-'0'!D7)/'0'!D7,0) -> 0 | E67: =IFERROR((E7-'0'!E7)/'0'!E7,0) -> 0 | F67: =IFERROR((F7-'0'!F7)/'0'!F7,0) -> 0.1 | G67: =IFERROR((G7-'0'!G7)/'0'!G7,0) -> 0.09090909091 | H67: =IFERROR((H7-'0'!H7)/'0'!H7,0) -> 0 | J67: =$B$7 -> 2020 | K67: =IFERROR((K7-'0'!K7)/'0'!K7,0) -> 0 | L67: =IFERROR((L7-'0'!L7)/'0'!L7,0) -> 0 | M67: =IFERROR((M7-'0'!M7)/'0'!M7,0) -> 0 | N67: =IFERROR((N7-'0'!N7)/'0'!N7,0) -> 0 | O67: =IFERROR((O7-'0'!O7)/'0'!O7,0) -> 0 | P67: =IFERROR((P7-'0'!P7)/'0'!P7,0) -> 0 | R67: =$B$7 -> 2020 | S67: =IFERROR((S7-'0'!S7)/'0'!S7,0) -> 0 | Z67: =$B$7 -> 2020 | AA67: =IFERROR((AA7-'0'!AA7)/'0'!AA7,0) -> 0 | AG67: |
B68: =B67+1 -> 2021 | C68: =IFERROR((C8-'0'!C8)/'0'!C8,0) -> 0 | D68: =IFERROR((D8-'0'!D8)/'0'!D8,0) -> 0 | E68: =IFERROR((E8-'0'!E8)/'0'!E8,0) -> 0.25 | F68: =IFERROR((F8-'0'!F8)/'0'!F8,0) -> 0.1 | G68: =IFERROR((G8-'0'!G8)/'0'!G8,0) -> 0.09090909091 | J68: =J67+1 -> 2021 | K68: =IFERROR((K8-'0'!K8)/'0'!K8,0) -> 0 | L68: =IFERROR((L8-'0'!L8)/'0'!L8,0) -> 0 | M68: =IFERROR((M8-'0'!M8)/'0'!M8,0) -> 0 | N68: =IFERROR((N8-'0'!N8)/'0'!N8,0) -> 0 | O68: =IFERROR((O8-'0'!O8)/'0'!O8,0) -> 0 | R68: =R67+1 -> 2021 | S68: =IFERROR((S8-'0'!S8)/'0'!S8,0) -> 0 | T68: =IFERROR((T8-'0'!T8)/'0'!T8,0) -> 0 | Z68: =Z67+1 -> 2021 | AA68: =IFERROR((AA8-'0'!AA8)/'0'!AA8,0) -> 0 | AG68: |
B69: =B68+1 -> 2022 | C69: =IFERROR((C9-'0'!C9)/'0'!C9,0) -> 0 | D69: =IFERROR((D9-'0'!D9)/'0'!D9,0) -> 0.6 | E69: =IFERROR((E9-'0'!E9)/'0'!E9,0) -> 0.25 | F69: =IFERROR((F9-'0'!F9)/'0'!F9,0) -> 0.1 | J69: =J68+1 -> 2022 | K69: =IFERROR((K9-'0'!K9)/'0'!K9,0) -> 0 | L69: =IFERROR((L9-'0'!L9)/'0'!L9,0) -> 0 | M69: =IFERROR((M9-'0'!M9)/'0'!M9,0) -> 0 | N69: =IFERROR((N9-'0'!N9)/'0'!N9,0) -> 0 | R69: =R68+1 -> 2022 | S69: =IFERROR((S9-'0'!S9)/'0'!S9,0) -> 0 | T69: =IFERROR((T9-'0'!T9)/'0'!T9,0) -> 0 | Z69: =Z68+1 -> 2022 | AA69: =IFERROR((AA9-'0'!AA9)/'0'!AA9,0) -> 0 | AG69: |
B70: 2023 | C70: =IFERROR((C10-'0'!C10)/'0'!C10,0) -> 1.5 | D70: =IFERROR((D10-'0'!D10)/'0'!D10,0) -> 0.6 | E70: =IFERROR((E10-'0'!E10)/'0'!E10,0) -> 0.25 | J70: 2023 | K70: =IFERROR((K10-'0'!K10)/'0'!K10,0) -> 0.03333334746 | L70: =IFERROR((L10-'0'!L10)/'0'!L10,0) -> 0 | M70: =IFERROR((M10-'0'!M10)/'0'!M10,0) -> 0 | R70: =R69+1 -> 2023 | S70: =IFERROR((S10-'0'!S10)/'0'!S10,0) -> 0 | T70: =IFERROR((T10-'0'!T10)/'0'!T10,0) -> 0 | Z70: =Z69+1 -> 2023 | AA70: =IFERROR((AA10-'0'!AA10)/'0'!AA10,0) -> 0 | AG70: |
B71: 2024 | C71: =IFERROR((C11-'0'!C11)/'0'!C11,0) -> 1.5 | D71: =IFERROR((D11-'0'!D11)/'0'!D11,0) -> 0.6 | J71: 2024 | K71: =IFERROR((K11-'0'!K11)/'0'!K11,0) -> 0.03333334746 | L71: =IFERROR((L11-'0'!L11)/'0'!L11,0) -> 0 | R71: =R70+1 -> 2024 | S71: =IFERROR((S11-'0'!S11)/'0'!S11,0) -> 0 | T71: =IFERROR((T11-'0'!T11)/'0'!T11,0) -> 0 | Z71: =Z70+1 -> 2024 | AA71: =IFERROR((AA11-'0'!AA11)/'0'!AA11,0) -> 0 | AG71: |
B72: 2025 | C72: =IFERROR((C12-'0'!C12)/'0'!C12,0) -> 1.5 | J72: 2025 | K72: =IFERROR((K12-'0'!K12)/'0'!K12,0) -> 0.03333334746 | R72: =R71+1 -> 2025 | S72: =IFERROR((S12-'0'!S12)/'0'!S12,0) -> 0 | T72: =IFERROR((T12-'0'!T12)/'0'!T12,0) -> 0 | Z72: =Z71+1 -> 2025 | AA72: =IFERROR((AA12-'0'!AA12)/'0'!AA12,0) -> 0 | AG72: |
AG73: |
B74: Counts | C74: Paid Count | E74: Development Age | J74: Counts | K74: Rptd Count | M74: Development Age | R74: (2) | S74: = | T74: given | AG74: |
B75: AY | C75: 12 | D75: 24 | E75: 36 | F75: 48 | G75: 60 | H75: 72 | J75: AY | K75: 12 | L75: 24 | M75: 36 | N75: 48 | O75: 60 | P75: 72 | R75: (3) | S75: = | T75: given | AG75: |
B76: =$B$7 -> 2020 | C76: =IFERROR((C16-'0'!C16)/'0'!C16,0) -> 0 | D76: =IFERROR((D16-'0'!D16)/'0'!D16,0) -> 0 | E76: =IFERROR((E16-'0'!E16)/'0'!E16,0) -> 0 | F76: =IFERROR((F16-'0'!F16)/'0'!F16,0) -> 0.1 | G76: =IFERROR((G16-'0'!G16)/'0'!G16,0) -> 0.09090909091 | H76: =IFERROR((H16-'0'!H16)/'0'!H16,0) -> 0 | J76: =$B$7 -> 2020 | K76: =IFERROR((K16-'0'!K16)/'0'!K16,0) -> 0 | L76: =IFERROR((L16-'0'!L16)/'0'!L16,0) -> 0 | M76: =IFERROR((M16-'0'!M16)/'0'!M16,0) -> 0 | N76: =IFERROR((N16-'0'!N16)/'0'!N16,0) -> 0 | O76: =IFERROR((O16-'0'!O16)/'0'!O16,0) -> 0 | P76: =IFERROR((P16-'0'!P16)/'0'!P16,0) -> 0 | R76: (4) | S76: = | T76: [ 1 + (4):prior] x [1 + (3)] - 1.0 | AG76: |
B77: =B76+1 -> 2021 | C77: =IFERROR((C17-'0'!C17)/'0'!C17,0) -> 0 | D77: =IFERROR((D17-'0'!D17)/'0'!D17,0) -> 0 | E77: =IFERROR((E17-'0'!E17)/'0'!E17,0) -> 0.25 | F77: =IFERROR((F17-'0'!F17)/'0'!F17,0) -> 0.1 | G77: =IFERROR((G17-'0'!G17)/'0'!G17,0) -> 0.09090909091 | J77: =J76+1 -> 2021 | K77: =IFERROR((K17-'0'!K17)/'0'!K17,0) -> 0 | L77: =IFERROR((L17-'0'!L17)/'0'!L17,0) -> 0 | M77: =IFERROR((M17-'0'!M17)/'0'!M17,0) -> 0 | N77: =IFERROR((N17-'0'!N17)/'0'!N17,0) -> 0 | O77: =IFERROR((O17-'0'!O17)/'0'!O17,0) -> 0 | R77: (5) | S77: = | T77: [ (2) / (2):prior] / [1 + (3)] - 1.0 | AG77: |
B78: =B77+1 -> 2022 | C78: =IFERROR((C18-'0'!C18)/'0'!C18,0) -> 0 | D78: =IFERROR((D18-'0'!D18)/'0'!D18,0) -> 0.6 | E78: =IFERROR((E18-'0'!E18)/'0'!E18,0) -> 0.25 | F78: =IFERROR((F18-'0'!F18)/'0'!F18,0) -> 0.1 | J78: =J77+1 -> 2022 | K78: =IFERROR((K18-'0'!K18)/'0'!K18,0) -> 0 | L78: =IFERROR((L18-'0'!L18)/'0'!L18,0) -> 0 | M78: =IFERROR((M18-'0'!M18)/'0'!M18,0) -> 0 | N78: =IFERROR((N18-'0'!N18)/'0'!N18,0) -> 0 | R78: (6) | S78: = | T78: [ 1 + (4):2025] / [1 + (4)] | AG78: |
B79: 2023 | C79: =IFERROR((C19-'0'!C19)/'0'!C19,0) -> 1.5 | D79: =IFERROR((D19-'0'!D19)/'0'!D19,0) -> 0.6 | E79: =IFERROR((E19-'0'!E19)/'0'!E19,0) -> 0.25 | J79: 2023 | K79: =IFERROR((K19-'0'!K19)/'0'!K19,0) -> 0 | L79: =IFERROR((L19-'0'!L19)/'0'!L19,0) -> 0 | M79: =IFERROR((M19-'0'!M19)/'0'!M19,0) -> 0 | R79: (7) | S79: = | T79: (2) x (6) | AG79: |
B80: 2024 | C80: =IFERROR((C20-'0'!C20)/'0'!C20,0) -> 1.5 | D80: =IFERROR((D20-'0'!D20)/'0'!D20,0) -> 0.6 | J80: 2024 | K80: =IFERROR((K20-'0'!K20)/'0'!K20,0) -> 0 | L80: =IFERROR((L20-'0'!L20)/'0'!L20,0) -> 0 | AG80: |
B81: 2025 | C81: =IFERROR((C21-'0'!C21)/'0'!C21,0) -> 1.5 | J81: 2025 | K81: =IFERROR((K21-'0'!K21)/'0'!K21,0) -> 0 | AG81: |
AG82: |
C83: paid loss ratio | F83: Development Age | K83: rptd loss ratio | N83: Development Age | S83: paid/rptd loss | V83: Development Age | AA83: paid/rptd counts | AD83: Development Age | AG83: |
B84: AY | C84: 12 | D84: 24 | E84: 36 | F84: 48 | G84: 60 | H84: 72 | J84: AY | K84: 12 | L84: 24 | M84: 36 | N84: 48 | O84: 60 | P84: 72 | R84: AY | S84: 12 | T84: 24 | U84: 36 | V84: 48 | W84: 60 | X84: 72 | Z84: AY | AA84: 12 | AB84: 24 | AC84: 36 | AD84: 48 | AE84: 60 | AF84: 72 | AG84: |
B85: =$B$7 -> 2020 | C85: =IFERROR((C25-'0'!C25)/'0'!C25,0) -> 0 | D85: =IFERROR((D25-'0'!D25)/'0'!D25,0) -> 0 | E85: =IFERROR((E25-'0'!E25)/'0'!E25,0) -> 0 | F85: =IFERROR((F25-'0'!F25)/'0'!F25,0) -> 0.1 | G85: =IFERROR((G25-'0'!G25)/'0'!G25,0) -> 0.09090909091 | H85: =IFERROR((H25-'0'!H25)/'0'!H25,0) -> 0 | J85: =$B$7 -> 2020 | K85: =IFERROR((K25-'0'!K25)/'0'!K25,0) -> 0 | L85: =IFERROR((L25-'0'!L25)/'0'!L25,0) -> 0 | M85: =IFERROR((M25-'0'!M25)/'0'!M25,0) -> 0 | N85: =IFERROR((N25-'0'!N25)/'0'!N25,0) -> 0 | O85: =IFERROR((O25-'0'!O25)/'0'!O25,0) -> 0 | P85: =IFERROR((P25-'0'!P25)/'0'!P25,0) -> 0 | R85: =$B$7 -> 2020 | S85: =IFERROR((S25-'0'!S25)/'0'!S25,0) -> 0 | T85: =IFERROR((T25-'0'!T25)/'0'!T25,0) -> 0 | U85: =IFERROR((U25-'0'!U25)/'0'!U25,0) -> 0 | V85: =IFERROR((V25-'0'!V25)/'0'!V25,0) -> 0.1 | W85: =IFERROR((W25-'0'!W25)/'0'!W25,0) -> 0.09090909091 | X85: =IFERROR((X25-'0'!X25)/'0'!X25,0) -> 0 | Z85: =$B$7 -> 2020 | AA85: =IFERROR((AA25-'0'!AA25)/'0'!AA25,0) -> 0 | AB85: =IFERROR((AB25-'0'!AB25)/'0'!AB25,0) -> 0 | AC85: =IFERROR((AC25-'0'!AC25)/'0'!AC25,0) -> 0 | AD85: =IFERROR((AD25-'0'!AD25)/'0'!AD25,0) -> 0.1 | AE85: =IFERROR((AE25-'0'!AE25)/'0'!AE25,0) -> 0.09090909091 | AF85: =IFERROR((AF25-'0'!AF25)/'0'!AF25,0) -> 0 | AG85: |
B86: =B85+1 -> 2021 | C86: =IFERROR((C26-'0'!C26)/'0'!C26,0) -> 0 | D86: =IFERROR((D26-'0'!D26)/'0'!D26,0) -> 0 | E86: =IFERROR((E26-'0'!E26)/'0'!E26,0) -> 0.25 | F86: =IFERROR((F26-'0'!F26)/'0'!F26,0) -> 0.1 | G86: =IFERROR((G26-'0'!G26)/'0'!G26,0) -> 0.09090909091 | J86: =J85+1 -> 2021 | K86: =IFERROR((K26-'0'!K26)/'0'!K26,0) -> 0 | L86: =IFERROR((L26-'0'!L26)/'0'!L26,0) -> 0 | M86: =IFERROR((M26-'0'!M26)/'0'!M26,0) -> 0 | N86: =IFERROR((N26-'0'!N26)/'0'!N26,0) -> 0 | O86: =IFERROR((O26-'0'!O26)/'0'!O26,0) -> 0 | R86: =R85+1 -> 2021 | S86: =IFERROR((S26-'0'!S26)/'0'!S26,0) -> 0 | T86: =IFERROR((T26-'0'!T26)/'0'!T26,0) -> 0 | U86: =IFERROR((U26-'0'!U26)/'0'!U26,0) -> 0.25 | V86: =IFERROR((V26-'0'!V26)/'0'!V26,0) -> 0.1 | W86: =IFERROR((W26-'0'!W26)/'0'!W26,0) -> 0.09090909091 | Z86: =Z85+1 -> 2021 | AA86: =IFERROR((AA26-'0'!AA26)/'0'!AA26,0) -> 0 | AB86: =IFERROR((AB26-'0'!AB26)/'0'!AB26,0) -> 0 | AC86: =IFERROR((AC26-'0'!AC26)/'0'!AC26,0) -> 0.25 | AD86: =IFERROR((AD26-'0'!AD26)/'0'!AD26,0) -> 0.1 | AE86: =IFERROR((AE26-'0'!AE26)/'0'!AE26,0) -> 0.09090909091 | AG86: |
B87: =B86+1 -> 2022 | C87: =IFERROR((C27-'0'!C27)/'0'!C27,0) -> 0 | D87: =IFERROR((D27-'0'!D27)/'0'!D27,0) -> 0.6 | E87: =IFERROR((E27-'0'!E27)/'0'!E27,0) -> 0.25 | F87: =IFERROR((F27-'0'!F27)/'0'!F27,0) -> 0.1 | J87: =J86+1 -> 2022 | K87: =IFERROR((K27-'0'!K27)/'0'!K27,0) -> 0 | L87: =IFERROR((L27-'0'!L27)/'0'!L27,0) -> 0 | M87: =IFERROR((M27-'0'!M27)/'0'!M27,0) -> 0 | N87: =IFERROR((N27-'0'!N27)/'0'!N27,0) -> 0 | R87: =R86+1 -> 2022 | S87: =IFERROR((S27-'0'!S27)/'0'!S27,0) -> 0 | T87: =IFERROR((T27-'0'!T27)/'0'!T27,0) -> 0.6 | U87: =IFERROR((U27-'0'!U27)/'0'!U27,0) -> 0.25 | V87: =IFERROR((V27-'0'!V27)/'0'!V27,0) -> 0.1 | Z87: =Z86+1 -> 2022 | AA87: =IFERROR((AA27-'0'!AA27)/'0'!AA27,0) -> 0 | AB87: =IFERROR((AB27-'0'!AB27)/'0'!AB27,0) -> 0.6 | AC87: =IFERROR((AC27-'0'!AC27)/'0'!AC27,0) -> 0.25 | AD87: =IFERROR((AD27-'0'!AD27)/'0'!AD27,0) -> 0.1 | AG87: |
B88: 2023 | C88: =IFERROR((C28-'0'!C28)/'0'!C28,0) -> 1.5 | D88: =IFERROR((D28-'0'!D28)/'0'!D28,0) -> 0.6 | E88: =IFERROR((E28-'0'!E28)/'0'!E28,0) -> 0.25 | J88: 2023 | K88: =IFERROR((K28-'0'!K28)/'0'!K28,0) -> 0.03333334746 | L88: =IFERROR((L28-'0'!L28)/'0'!L28,0) -> 0 | M88: =IFERROR((M28-'0'!M28)/'0'!M28,0) -> 0 | R88: 2023 | S88: =IFERROR((S28-'0'!S28)/'0'!S28,0) -> 1.419354806 | T88: =IFERROR((T28-'0'!T28)/'0'!T28,0) -> 0.6 | U88: =IFERROR((U28-'0'!U28)/'0'!U28,0) -> 0.25 | Z88: 2023 | AA88: =IFERROR((AA28-'0'!AA28)/'0'!AA28,0) -> 1.5 | AB88: =IFERROR((AB28-'0'!AB28)/'0'!AB28,0) -> 0.6 | AC88: =IFERROR((AC28-'0'!AC28)/'0'!AC28,0) -> 0.25 | AG88: |
B89: 2024 | C89: =IFERROR((C29-'0'!C29)/'0'!C29,0) -> 1.5 | D89: =IFERROR((D29-'0'!D29)/'0'!D29,0) -> 0.6 | J89: 2024 | K89: =IFERROR((K29-'0'!K29)/'0'!K29,0) -> 0.03333334746 | L89: =IFERROR((L29-'0'!L29)/'0'!L29,0) -> 0 | R89: 2024 | S89: =IFERROR((S29-'0'!S29)/'0'!S29,0) -> 1.419354806 | T89: =IFERROR((T29-'0'!T29)/'0'!T29,0) -> 0.6 | Z89: 2024 | AA89: =IFERROR((AA29-'0'!AA29)/'0'!AA29,0) -> 1.5 | AB89: =IFERROR((AB29-'0'!AB29)/'0'!AB29,0) -> 0.6 | AG89: |
B90: 2025 | C90: =IFERROR((C30-'0'!C30)/'0'!C30,0) -> 1.5 | J90: 2025 | K90: =IFERROR((K30-'0'!K30)/'0'!K30,0) -> 0.03333334746 | R90: 2025 | S90: =IFERROR((S30-'0'!S30)/'0'!S30,0) -> 1.419354806 | Z90: 2025 | AA90: =IFERROR((AA30-'0'!AA30)/'0'!AA30,0) -> 1.5 | AG90: |
AG91: |
C92: PAID dollars-per-count | K92: REPORTED dollars-per-count | S92: Case O/S dollars-per-count | AG92: |
C93: average paid loss | F93: Development Age | K93: average rptd loss | N93: Development Age | S93: average case O/S | V93: Development Age | AG93: |
B94: AY | C94: 12 | D94: 24 | E94: 36 | F94: 48 | G94: 60 | H94: 72 | J94: AY | K94: 12 | L94: 24 | M94: 36 | N94: 48 | O94: 60 | P94: 72 | R94: AY | S94: 12 | T94: 24 | U94: 36 | V94: 48 | W94: 60 | X94: 72 | AG94: |
B95: =$B$7 -> 2020 | C95: =IFERROR((C35-'0'!C35)/'0'!C35,0) -> 0 | D95: =IFERROR((D35-'0'!D35)/'0'!D35,0) -> 0 | E95: =IFERROR((E35-'0'!E35)/'0'!E35,0) -> 0 | F95: =IFERROR((F35-'0'!F35)/'0'!F35,0) -> 0 | G95: =IFERROR((G35-'0'!G35)/'0'!G35,0) -> 0 | H95: =IFERROR((H35-'0'!H35)/'0'!H35,0) -> 0 | J95: =$B$7 -> 2020 | K95: =IFERROR((K35-'0'!K35)/'0'!K35,0) -> 0 | L95: =IFERROR((L35-'0'!L35)/'0'!L35,0) -> 0 | M95: =IFERROR((M35-'0'!M35)/'0'!M35,0) -> 0 | N95: =IFERROR((N35-'0'!N35)/'0'!N35,0) -> 0 | O95: =IFERROR((O35-'0'!O35)/'0'!O35,0) -> 0 | P95: =IFERROR((P35-'0'!P35)/'0'!P35,0) -> 0 | R95: =$B$7 -> 2020 | S95: =IFERROR((S35-'0'!S35)/'0'!S35,0) -> 0 | T95: =IFERROR((T35-'0'!T35)/'0'!T35,0) -> 0 | U95: =IFERROR((U35-'0'!U35)/'0'!U35,0) -> 0 | V95: =IFERROR((V35-'0'!V35)/'0'!V35,0) -> -1 | W95: =IFERROR((W35-'0'!W35)/'0'!W35,0) -> -1 | X95: =IFERROR((X35-'0'!X35)/'0'!X35,0) -> 0 | AG95: |
B96: =B95+1 -> 2021 | C96: =IFERROR((C36-'0'!C36)/'0'!C36,0) -> 0 | D96: =IFERROR((D36-'0'!D36)/'0'!D36,0) -> 0 | E96: =IFERROR((E36-'0'!E36)/'0'!E36,0) -> 0 | F96: =IFERROR((F36-'0'!F36)/'0'!F36,0) -> 0 | G96: =IFERROR((G36-'0'!G36)/'0'!G36,0) -> 0 | J96: =J95+1 -> 2021 | K96: =IFERROR((K36-'0'!K36)/'0'!K36,0) -> 0 | L96: =IFERROR((L36-'0'!L36)/'0'!L36,0) -> 0 | M96: =IFERROR((M36-'0'!M36)/'0'!M36,0) -> 0 | N96: =IFERROR((N36-'0'!N36)/'0'!N36,0) -> 0 | O96: =IFERROR((O36-'0'!O36)/'0'!O36,0) -> 0 | R96: =R95+1 -> 2021 | S96: =IFERROR((S36-'0'!S36)/'0'!S36,0) -> 0 | T96: =IFERROR((T36-'0'!T36)/'0'!T36,0) -> 0 | U96: =IFERROR((U36-'0'!U36)/'0'!U36,0) -> -1 | V96: =IFERROR((V36-'0'!V36)/'0'!V36,0) -> -1 | W96: =IFERROR((W36-'0'!W36)/'0'!W36,0) -> -1 | AG96: |
B97: =B96+1 -> 2022 | C97: =IFERROR((C37-'0'!C37)/'0'!C37,0) -> 0 | D97: =IFERROR((D37-'0'!D37)/'0'!D37,0) -> 0 | E97: =IFERROR((E37-'0'!E37)/'0'!E37,0) -> 0 | F97: =IFERROR((F37-'0'!F37)/'0'!F37,0) -> 0 | J97: =J96+1 -> 2022 | K97: =IFERROR((K37-'0'!K37)/'0'!K37,0) -> 0 | L97: =IFERROR((L37-'0'!L37)/'0'!L37,0) -> 0 | M97: =IFERROR((M37-'0'!M37)/'0'!M37,0) -> 0 | N97: =IFERROR((N37-'0'!N37)/'0'!N37,0) -> 0 | R97: =R96+1 -> 2022 | S97: =IFERROR((S37-'0'!S37)/'0'!S37,0) -> 0 | T97: =IFERROR((T37-'0'!T37)/'0'!T37,0) -> -1 | U97: =IFERROR((U37-'0'!U37)/'0'!U37,0) -> -1 | V97: =IFERROR((V37-'0'!V37)/'0'!V37,0) -> -1 | AG97: |
B98: 2023 | C98: =IFERROR((C38-'0'!C38)/'0'!C38,0) -> 0 | D98: =IFERROR((D38-'0'!D38)/'0'!D38,0) -> 0 | E98: =IFERROR((E38-'0'!E38)/'0'!E38,0) -> 0 | J98: 2023 | K98: =IFERROR((K38-'0'!K38)/'0'!K38,0) -> 0.03333334746 | L98: =IFERROR((L38-'0'!L38)/'0'!L38,0) -> 0 | M98: =IFERROR((M38-'0'!M38)/'0'!M38,0) -> 0 | R98: 2023 | S98: =IFERROR((S38-'0'!S38)/'0'!S38,0) -> 0.2000000848 | T98: =IFERROR((T38-'0'!T38)/'0'!T38,0) -> -1 | U98: =IFERROR((U38-'0'!U38)/'0'!U38,0) -> -1 | AG98: |
B99: 2024 | C99: =IFERROR((C39-'0'!C39)/'0'!C39,0) -> 0 | D99: =IFERROR((D39-'0'!D39)/'0'!D39,0) -> 0 | J99: 2024 | K99: =IFERROR((K39-'0'!K39)/'0'!K39,0) -> 0.03333334746 | L99: =IFERROR((L39-'0'!L39)/'0'!L39,0) -> 0 | R99: 2024 | S99: =IFERROR((S39-'0'!S39)/'0'!S39,0) -> 0.2000000848 | T99: =IFERROR((T39-'0'!T39)/'0'!T39,0) -> -1 | AG99: |
B100: 2025 | C100: =IFERROR((C40-'0'!C40)/'0'!C40,0) -> 0 | J100: 2025 | K100: =IFERROR((K40-'0'!K40)/'0'!K40,0) -> 0.03333334746 | R100: 2025 | S100: =IFERROR((S40-'0'!S40)/'0'!S40,0) -> 0.2000000848 | AG100: |
AG101: |
AG102: |
AG103: |
AG104: |
AG105: |
AG106: |
AG107: |
AG108: |
AG109: |
AG110: |
AG111: |
AG112: |
AG113: |
AG114: |
AG115: |
AG116: |
AG117: |
AG118: |
AG119: |
B120: ---- | C120: ---- | D120: ---- | E120: ---- | F120: ---- | G120: ---- | H120: ---- | I120: ---- | J120: ---- | K120: ---- | L120: ---- | M120: ---- | N120: ---- | O120: ---- | P120: ---- | Q120: ---- | R120: ---- | S120: ---- | T120: ---- | U120: ---- | V120: ---- | W120: ---- | AG120: ----
AG121: |
AG122: |
AG123: |
AG124: |
AG125: |
AG126: |
AG127: |
AG128: |
AG129: |
AG130: |
AG131: |
AG132: |
AG133: |
AG134: |
AG135: |
AG136: |
AG137: |
AG138: |
AG139: |
AG140: |
AG141: |
AG142: |
AG143: |
AG144: |
AG145: |
AG146: |
AG147: |
AG148: |
AG149: |
AG150: |
AG151: |
AG152: |
AG153: |
AG154: |
AG155: |
AG156: |
AG157: |
AG158: |
AG159: |
AG160: |
AG161: |
AG162: |
AG163: |
AG164: |
AG165: |
AG166: |
AG167: |
AG168: |
AG169: |
AG170: |
AG171: |
AG172: |
AG173: |
AG174: |
AG175: |
AG176: |
AG177: |
AG178: |
AG179: |
B180: ---- | C180: ---- | D180: ---- | E180: ---- | F180: ---- | G180: ---- | H180: ---- | I180: ---- | J180: ---- | K180: ---- | L180: ---- | M180: ---- | N180: ---- | O180: ---- | P180: ---- | Q180: ---- | R180: ---- | S180: ---- | T180: ---- | U180: ---- | V180: ---- | W180: ---- | AG180: ----
AG181: |
AG182: |
AG183: |
AG184: |
AG185: |
AG186: |
AG187: |
AG188: |
AG189: |
AG190: |
AG191: |
AG192: |
AG193: |
AG194: |
AG195: |
AG196: |
AG197: |
AG198: |
AG199: |
AG200: |
AG201: |
... 1358 more rows

Sheet 10
B2: Book of Triangles | AG2: |
B3: Scenario: | C3: 10 | R3: (1) | S3: (2) | T3: (3) | U3: (4) | V3: (5) | W3: (6) | X3: (7) | AG3: |
T4: avg. | U4: cum. | V4: ann. | W4: rt level | X4: on | AG4: | | AI4: est pd | AJ4: est rptd | AK4: real | AL4: real
B5: Amounts | C5: Paid Loss | E5: Development Age | J5: Amounts | K5: Rptd Loss | M5: Development Age | T5: rate | U5: avg. | V5: expos. | W5: adj. to | X5: level | AG5: | | AI5: AY | AJ5: AY | AK5: AY | AL5: AY
B6: AY | C6: 12 | D6: =C6+12 -> 24 | E6: =D6+12 -> 36 | F6: 48 | G6: 60 | H6: 72 | J6: AY | K6: 12 | L6: =K6+12 -> 24 | M6: =L6+12 -> 36 | N6: 48 | O6: 60 | P6: 72 | R6: CY | S6: EP | T6: chg. | U6: rt. lvl. | V6: chg. | W6: =R12 -> 2025 | X6: EP | Z6: CY | AA6: EE | AG6: | | AH6: AY | AI6: ULR | AJ6: ULR | AK6: ULR | AL6: Loss
B7: 2020 | C7: 720 | D7: 1800 | E7: 3600 | F7: 3960 | G7: 4320 | H7: 4320 | J7: =$B$7 -> 2020 | K7: 2160 | L7: 2880 | M7: 3600 | N7: 3960 | O7: 4320 | P7: 4320 | R7: =$B$7 -> 2020 | S7: 7200 | U7: =T7 -> 0 | W7: =(1+U12)/(1+U7) -> 1 | X7: =S7*W7 -> 7200 | Z7: =$B$7 -> 2020 | AA7: 12.00000036 | AG7: | | AH7: =$B$7 -> 2020 | AI7: 0.6 | AJ7: 0.6 | AK7: 0.6 | AL7: =S7*AK7 -> 4320
B8: =B7+1 -> 2021 | C8: 720 | D8: 2880 | E8: 3600 | F8: 3960 | G8: 4320 | J8: =J7+1 -> 2021 | K8: 2160 | L8: 2880 | M8: 3600 | N8: 3960 | O8: 4320 | R8: =R7+1 -> 2021 | S8: 7200 | T8: 0 | U8: =(1+U7)*(1+T8)-1 -> 0 | V8: =(S8/S7)/(1+T8)-1 -> 0 | W8: =(1+U12)/(1+U8) -> 1 | X8: 7200 | Z8: =Z7+1 -> 2021 | AA8: 12.00000036 | AG8: | | AH8: =AH7+1 -> 2021 | AI8: 0.6 | AJ8: 0.6 | AK8: 0.6 | AL8: 4320
B9: =B8+1 -> 2022 | C9: 1800 | D9: 2880 | E9: 3600 | F9: 3960 | J9: =J8+1 -> 2022 | K9: 2160 | L9: 2880 | M9: 3600 | N9: 3960 | R9: =R8+1 -> 2022 | S9: 7200 | T9: 0 | U9: =(1+U8)*(1+T9)-1 -> 0 | V9: =(S9/S8)/(1+T9)-1 -> 0 | W9: =(1+U12)/(1+U9) -> 1 | X9: 7200 | Z9: =Z8+1 -> 2022 | AA9: 12.00000036 | AG9: | | AH9: =AH8+1 -> 2022 | AI9: 0.6 | AJ9: 0.6 | AK9: 0.6 | AL9: 4320
B10: 2023 | C10: 1800 | D10: 2880 | E10: 3600 | J10: 2023 | K10: 2160 | L10: 2880 | M10: 3600 | R10: =R9+1 -> 2023 | S10: 7200 | T10: 0 | U10: 0 | V10: =(S10/S9)/(1+T10)-1 -> 0 | W10: =(1+U12)/(1+U10) -> 1 | X10: 7200 | Z10: =Z9+1 -> 2023 | AA10: 12.00000036 | AG10: | | AH10: 2023 | AI10: 0.6 | AJ10: 0.6 | AK10: 0.6 | AL10: 4320
B11: 2024 | C11: 1800 | D11: 2880 | J11: 2024 | K11: 2160 | L11: 2880 | R11: =R10+1 -> 2024 | S11: 7200 | T11: 0 | U11: 0 | V11: =(S11/S10)/(1+T11)-1 -> 0 | W11: =(1+U12)/(1+U11) -> 1 | X11: 7200 | Z11: =Z10+1 -> 2024 | AA11: 12.00000036 | AG11: | | AH11: 2024 | AI11: 0.69 | AJ11: 0.6 | AK11: 0.6 | AL11: 4320
